Workbook

Sheet Intro
B2: Buttons for running a tournament:
B19: Buttons for practising:

Sheet Setup
A1: SCORING SETUP | D1: Group/Ind Swiss? | E1: Group | G1: Individual Tie Breaks | J1: Group Tie Breaks
G2: Player | J2: Group
A3: Points for… | D3: Name of First Bonus | E3: Bonus1 | G3: Points | H3: Order | J3: Points | K3: Order
A4: Win by at least 2 TD | B4: 1 | D4: Name of Second Bonus | E4: Bonus2 | G4: TD For | J4: TD For
A5: Win by 1 TD | B5: 1 | G5: TD Against | J5: TD Against
A6: Draw | B6: 0.5 | G6: TD Net | H6: 2 | J6: Net TDs | K6: 2
A7: Lose by 1 TD | B7: 0 | G7: Cas For | J7: Cas For
A8: Lose by at least 2 TD | B8: 0 | G8: Cas Against | J8: Cas Against
G9: Cas Net | H9: 3 | J9: Net Cas | K9: 3
A10: Bonus points for TD/Cas etc | D10: Test Individual Scoring System Here | G10: =Working!AG16 -> Bonus1 | J10: ="Group Total "&Working!AG16 -> Group Total Bonus1
A11: Points per TD | B11: 0 | D11: Your Score (required) | E11: 4 | G11: =Working!AG17 -> Bonus2 | J11: ="Group Total "&Working!AG17 -> Group Total Bonus2
A12: Max TD Bonus Pts | B12: 0 | D12: Opponent Score (required) | E12: 3 | G12: Wins | J12: Group Wins
A13: Points per Cas | B13: 0 | D13: Your Cas (optional) | E13: 3 | G13: Draws | J13: Groups Draws
A14: Max Cas Bonus Pts | B14: 0 | D14: ="Your "&Working!AG16&" (optional)" -> Your Bonus1 (optional) | E14: 1 | G14: Losses | J14: Group Losses
A15: =Working!AG16&" Max Bonus Pts" -> Bonus1 Max Bonus Pts | B15: 0 | D15: ="Your "&Working!AG17&" (optional)" -> Your Bonus2 (optional) | E15: 2 | G15: Opp Score | H15: 1 | J15: Individual Wins
A16: =Working!AG17&" Max Bonus Pts" -> Bonus2 Max Bonus Pts | B16: 0 | J16: Individual Draws
D17: Your Points | E17: =fctScore(E11,E12,E13,E14,E15) -> 1 | J17: Individual Losses
A18: Group Scoring Options | J18: Total Individual Points
A19: Points for a win | B19: 1 | J19: Opponent Score | K19: 1
A20: Points for a draw | B20: 0.5
A21: Points for a loss | B21: 0
A22: Points for a group win | B22: 1
A23: Points for a group draw | B23: 0.5
A24: Points for a group loss | B24: 0

Sheet Players
A1: Num | B1: Display Name | C1: NAF Name | D1: NAF Number (Random) | E1: Race | F1: Group | G1: Stunty | M1: Groups | O1: Team Size | P1: 8
A2: =IF(C2="","",MAX(A$1:A1)+1) -> 1 | B2: Niebling | C2: Niebling | D2: 11499 | E2: Amazons | F2: Denmark | M2: Belgium
A3: =IF(C3="","",MAX(A$1:A2)+1) -> 2 | B3: PurpleGoo | C3: PurpleGoo | D3: 11777 | E3: Amazons | F3: England | M3: Denmark
A4: =IF(C4="","",MAX(A$1:A3)+1) -> 3 | B4: Mubo | C4: Mubo | D4: 13409 | E4: Amazons | F4: England | M4: England
A5: =IF(B5="","",MAX(A$1:A4)+1) -> 4 | B5: Dirold | C5: Dirold | D5: 5900 | E5: Amazons | F5: Italy | M5: Finland
A6: =IF(B6="","",MAX(A$1:A5)+1) -> 5 | B6: The_Ref | C6: The_Ref | D6: 9441 | E6: Amazons | F6: Norway | M6: France
A7: =IF(C7="","",MAX(A$1:A6)+1) -> 6 | B7: Tripleskull | C7: Tripleskull | D7: 9524 | E7: Chaos | F7: Denmark | M7: Germany
A8: =IF(C8="","",MAX(A$1:A7)+1) -> 7 | B8: MissSweden | C8: MissSweden | D8: 11498 | E8: Chaos | F8: Denmark | M8: Hungary
A9: =IF(C9="","",MAX(A$1:A8)+1) -> 8 | B9: Topper | C9: Topper | D9: 6363 | E9: Chaos | F9: Denmark | M9: Italy
A10: =IF(C10="","",MAX(A$1:A9)+1) -> 9 | B10: Joemanji | C10: Joemanji | D10: 3312 | E10: Chaos | F10: England | M10: Norway
A11: =IF(B11="","",MAX(A$1:A10)+1) -> 10 | B11: edheim | C11: edheim | D11: 20760 | E11: Chaos | F11: Finland | M11: Poland
A12: =IF(B12="","",MAX(A$1:A11)+1) -> 11 | B12: FrankPedersen | C12: FrankPedersen | D12: 20899 | E12: Chaos | F12: Norway | M12: Scotland
A13: =IF(B13="","",MAX(A$1:A12)+1) -> 12 | B13: Obeliz | C13: Obeliz | D13: 2519 | E13: Chaos | F13: Spain | M13: Spain
A14: =IF(B14="","",MAX(A$1:A13)+1) -> 13 | B14: Northernknight | C14: Northernknight | D14: 7569 | E14: Chaos | F14: Wales | M14: Sweden
A15: =IF(C15="","",MAX(A$1:A14)+1) -> 14 | B15: Woete | C15: Woete | D15: 12500 | E15: Chaos Dwarves | F15: Belgium | M15: Switzerland
A16: =IF(B16="","",MAX(A$1:A15)+1) -> 15 | B16: RoterSternHochdahl | C16: RoterSternHochdahl | D16: 18704 | E16: Chaos Dwarves | F16: Germany | M16: Viking
A17: =IF(B17="","",MAX(A$1:A16)+1) -> 16 | B17: Jonny_Kanone | C17: Jonny_Kanone | D17: 9621 | E17: Chaos Dwarves | F17: Germany | M17: Wales
A18: =IF(B18="","",MAX(A$1:A17)+1) -> 17 | B18: Itzla | C18: Itzla | D18: 9758 | E18: Chaos Dwarves | F18: Hungary
A19: =IF(B19="","",MAX(A$1:A18)+1) -> 18 | B19: Farina | C19: Farina | D19: 3533 | E19: Chaos Dwarves | F19: Italy
A20: =IF(B20="","",MAX(A$1:A19)+1) -> 19 | B20: Garrick | C20: Garrick | D20: 18506 | E20: Chaos Dwarves | F20: Scotland
A21: =IF(B21="","",MAX(A$1:A20)+1) -> 20 | B21: Dark Duke | C21: Dark Duke | D21: 2925 | E21: Chaos Dwarves | F21: Spain
A22: =IF(B22="","",MAX(A$1:A21)+1) -> 21 | B22: 20Phoenix | C22: 20Phoenix | D22: 19395 | E22: Chaos Dwarves | F22: Wales
A23: =IF(C23="","",MAX(A$1:A22)+1) -> 22 | B23: Malodoror | C23: Malodoror | D23: 20793 | E23: Chaos Pact | F23: Belgium
A24: =IF(B24="","",MAX(A$1:A23)+1) -> 23 | B24: Bouzzy | C24: Bouzzy | D24: 15733 | E24: Chaos Pact | F24: France
A25: =IF(B25="","",MAX(A$1:A24)+1) -> 24 | B25: DocMaxx | C25: DocMaxx | D25: 16347 | E25: Chaos Pact | F25: Germany
A26: =IF(B26="","",MAX(A$1:A25)+1) -> 25 | B26: BlackOrc | C26: BlackOrc | D26: 6233 | E26: Chaos Pact | F26: Hungary
A27: =IF(B27="","",MAX(A$1:A26)+1) -> 26 | B27: Kaltenland | C27: Kaltenland | D27: 11924 | E27: Chaos Pact | F27: Italy
A28: =IF(B28="","",MAX(A$1:A27)+1) -> 27 | B28: Shawass | C28: Shawass | D28: 18416 | E28: Chaos Pact | F28: Poland
A29: =IF(B29="","",MAX(A$1:A28)+1) -> 28 | B29: Malasnoticias | C29: Malasnoticias | D29: 17068 | E29: Chaos Pact | F29: Spain
A30: =IF(B30="","",MAX(A$1:A29)+1) -> 29 | B30: Macabeo | C30: Macabeo | D30: 18608 | E30: Chaos Pact | F30: Switzerland
A31: =IF(B31="","",MAX(A$1:A30)+1) -> 30 | B31: Corwin | C31: Corwin | D31: 17878 | E31: Chaos Pact | F31: Viking
A32: =IF(B32="","",MAX(A$1:A31)+1) -> 31 | B32: SFisher91 | C32: SFisher91 | D32: 16057 | E32: Chaos Pact | F32: Wales
A33: =IF(C33="","",MAX(A$1:A32)+1) -> 32 | B33: Phoenix11 | C33: Phoenix11 | D33: 8402 | E33: Dark Elves | F33: Belgium
A34: =IF(B34="","",MAX(A$1:A33)+1) -> 33 | B34: Wolio | C34: Wolio | D34: 20061 | E34: Dark Elves | F34: Hungary
A35: =IF(B35="","",MAX(A$1:A34)+1) -> 34 | B35: Reszka | C35: Reszka | D35: 21573 | E35: Dark Elves | F35: Poland
A36: =IF(B36="","",MAX(A$1:A35)+1) -> 35 | B36: Slimaq | C36: Slimaq | D36: 21957 | E36: Dark Elves | F36: Poland
A37: =IF(B37="","",MAX(A$1:A36)+1) -> 36 | B37: Skuld | C37: Skuld | D37: 20481 | E37: Dark Elves | F37: Sweden
A38: =IF(B38="","",MAX(A$1:A37)+1) -> 37 | B38: Balder | C38: Balder | D38: 17725 | E38: Dark Elves | F38: Viking
A39: =IF(B39="","",MAX(A$1:A38)+1) -> 38 | B39: Dionysian | C39: Dionysian | D39: 19480 | E39: Dark Elves | F39: Wales
A40: =IF(B40="","",MAX(A$1:A39)+1) -> 39 | B40: Harza | C40: Harza | D40: 20060 | E40: Dwarves | F40: Finland
A41: =IF(B41="","",MAX(A$1:A40)+1) -> 40 | B41: Idroj | C41: Idroj | D41: 20930 | E41: Dwarves | F41: Spain
A42: =IF(B42="","",MAX(A$1:A41)+1) -> 41 | B42: Faccko | C42: Faccko | D42: 17893 | E42: Dwarves | F42: Viking
A43: =IF(B43="","",MAX(A$1:A42)+1) -> 42 | B43: MacWitt | C43: MacWitt | D43: 19932 | E43: Elves | F43: Finland
A44: =IF(B44="","",MAX(A$1:A43)+1) -> 43 | B44: Pellevin | C44: Pellevin | D44: 19271 | E44: Elves | F44: Sweden
A45: =IF(C45="","",MAX(A$1:A44)+1) -> 44 | B45: Araznaroth | C45: Araznaroth | D45: 13199 | E45: Goblins | F45: Belgium | G45: 1
A46: =IF(C46="","",MAX(A$1:A45)+1) -> 45 | B46: JimJimany | C46: JimJimany | D46: 12403 | E46: Goblins | F46: England | G46: 1
A47: =IF(B47="","",MAX(A$1:A46)+1) -> 46 | B47: zulu | C47: zulu | D47: 16829 | E47: Goblins | F47: Norway | G47: 1
A48: =IF(B48="","",MAX(A$1:A47)+1) -> 47 | B48: mynock | C48: mynock | D48: 20775 | E48: Goblins | F48: Norway | G48: 1
A49: =IF(B49="","",MAX(A$1:A48)+1) -> 48 | B49: Strider84 | C49: Strider84 | D49: 14113 | E49: Goblins | F49: Switzerland | G49: 1
A50: =IF(B50="","",MAX(A$1:A49)+1) -> 49 | B50: Phifoe | C50: Phifoe | D50: 16959 | E50: Goblins | F50: Switzerland | G50: 1
A51: =IF(B51="","",MAX(A$1:A50)+1) -> 50 | B51: JohnnyD | C51: JohnnyD | D51: 18171 | E51: Halflings | F51: Sweden | G51: 1
A52: =IF(C52="","",MAX(A$1:A51)+1) -> 51 | B52: Dekra1979 | C52: Dekra1979 | D52: 16259 | E52: High Elves | F52: Belgium
A53: =IF(B53="","",MAX(A$1:A52)+1) -> 52 | B53: straume | C53: straume | D53: 20685 | E53: High Elves | F53: Norway
A54: =IF(B54="","",MAX(A$1:A53)+1) -> 53 | B54: Barry | C54: Barry | D54: 3290 | E54: High Elves | F54: Spain
A55: =IF(B55="","",MAX(A$1:A54)+1) -> 54 | B55: Tactel | C55: Tactel | D55: 20218 | E55: High Elves | F55: Spain
A56: =IF(B56="","",MAX(A$1:A55)+1) -> 55 | B56: Pidpad | C56: Pidpad | D56: 20957 | E56: High Elves | F56: Sweden
A57: =IF(B57="","",MAX(A$1:A56)+1) -> 56 | B57: Elrik | C57: Elrik | D57: 19344 | E57: High Elves | F57: Switzerland
A58: =IF(B58="","",MAX(A$1:A57)+1) -> 57 | B58: Simon_ACP | C58: Simon_ACP | D58: 17603 | E58: Humans | F58: France
A59: =IF(B59="","",MAX(A$1:A58)+1) -> 58 | B59: sann0638 | C59: sann0638 | D59: 8866 | E59: Humans | F59: Scotland
A60: =IF(B60="","",MAX(A$1:A59)+1) -> 59 | B60: Goss | C60: Goss | D60: 18266 | E60: Humans | F60: Switzerland
A61: =IF(B61="","",MAX(A$1:A60)+1) -> 60 | B61: Muadib | C61: Muadib | D61: 2800 | E61: Khemri | F61: Germany
A62: =IF(B62="","",MAX(A$1:A61)+1) -> 61 | B62: swifty | C62: swifty | D62: 20309 | E62: Khemri | F62: Hungary
A63: =IF(B63="","",MAX(A$1:A62)+1) -> 62 | B63: Matte8 | C63: Matte8 | D63: 13785 | E63: Khemri | F63: Italy
A64: =IF(B64="","",MAX(A$1:A63)+1) -> 63 | B64: Joanet | C64: Joanet | D64: 7690 | E64: Khemri | F64: Spain
A65: =IF(C65="","",MAX(A$1:A64)+1) -> 64 | B65: SpecialOne | C65: SpecialOne | D65: 16742 | E65: Lizardmen | F65: Denmark
A66: =IF(B66="","",MAX(A$1:A65)+1) -> 65 | B66: Prince | C66: Prince | D66: 341 | E66: Lizardmen | F66: Germany
A67: =IF(B67="","",MAX(A$1:A66)+1) -> 66 | B67: GreatWhiteHope | C67: GreatWhiteHope | D67: 20881 | E67: Lizardmen | F67: Norway
A68: =IF(B68="","",MAX(A$1:A67)+1) -> 67 | B68: Bernuz | C68: Bernuz | D68: 19542 | E68: Lizardmen | F68: Viking
A69: =IF(B69="","",MAX(A$1:A68)+1) -> 68 | B69: MadeofWelsh | C69: MadeofWelsh | D69: 12184 | E69: Lizardmen | F69: Wales
A70: =IF(C70="","",MAX(A$1:A69)+1) -> 69 | B70: Tank | C70: Tank | D70: 11501 | E70: Necromantic | F70: Denmark
A71: =IF(B71="","",MAX(A$1:A70)+1) -> 70 | B71: BeerBeer | C71: BeerBeer | D71: 18245 | E71: Necromantic | F71: Finland
A72: =IF(B72="","",MAX(A$1:A71)+1) -> 71 | B72: ratogre | C72: ratogre | D72: 22007 | E72: Necromantic | F72: Finland
A73: =IF(B73="","",MAX(A$1:A72)+1) -> 72 | B73: BudWiser | C73: BudWiser | D73: 12987 | E73: Necromantic | F73: France
A74: =IF(B74="","",MAX(A$1:A73)+1) -> 73 | B74: Gros Nain | C74: Gros Nain | D74: 14524 | E74: Norse | F74: France
A75: =IF(B75="","",MAX(A$1:A74)+1) -> 74 | B75: Warrior1980 | C75: Warrior1980 | D75: 22376 | E75: Norse | F75: Poland
A76: =IF(B76="","",MAX(A$1:A75)+1) -> 75 | B76: Juniooor7 | C76: Juniooor7 | D76: 22455 | E76: Norse | F76: Poland
A77: =IF(B77="","",MAX(A$1:A76)+1) -> 76 | B77: Madmatt13 | C77: Madmatt13 | D77: 19790 | E77: Norse | F77: Switzerland
A78: =IF(B78="","",MAX(A$1:A77)+1) -> 77 | B78: jopotzuki | C78: jopotzuki | D78: 20783 | E78: Nurgle's Rotters | F78: Finland
A79: =IF(B79="","",MAX(A$1:A78)+1) -> 78 | B79: J-Ho | C79: J-Ho | D79: 19106 | E79: Nurgle's Rotters | F79: Finland
A80: =IF(B80="","",MAX(A$1:A79)+1) -> 79 | B80: Verrinho | C80: Verrinho | D80: 16930 | E80: Nurgle's Rotters | F80: Italy
A81: =IF(B81="","",MAX(A$1:A80)+1) -> 80 | B81: Valen | C81: Valen | D81: 1538 | E81: Nurgle's Rotters | F81: Scotland
A82: =IF(C82="","",MAX(A$1:A81)+1) -> 81 | B82: Lycos | C82: Lycos | D82: 2870 | E82: Ogres | F82: England | G82: 1
A83: =IF(B83="","",MAX(A$1:A82)+1) -> 82 | B83: Domingo | C83: Domingo | D83: 20280 | E83: Ogres | F83: Poland | G83: 1
A84: =IF(B84="","",MAX(A$1:A83)+1) -> 83 | B84: Mufflo | C84: Mufflo | D84: 15048 | E84: Ogres | F84: Viking | G84: 1
A85: =IF(B85="","",MAX(A$1:A84)+1) -> 84 | B85: andydavo | C85: andydavo | D85: 19726 | E85: Ogres | F85: Wales | G85: 1
A86: =IF(C86="","",MAX(A$1:A85)+1) -> 85 | B86: Geggster | C86: Geggster | D86: 70 | E86: Orc | F86: England
A87: =IF(B87="","",MAX(A$1:A86)+1) -> 86 | B87: Arioso | C87: Arioso | D87: 18738 | E87: Orc | F87: Germany
A88: =IF(B88="","",MAX(A$1:A87)+1) -> 87 | B88: Gaunab | C88: Gaunab | D88: 2150 | E88: Orc | F88: Germany
A89: =IF(B89="","",MAX(A$1:A88)+1) -> 88 | B89: Alex05 | C89: Alex05 | D89: 22352 | E89: Orc | F89: Hungary
A90: =IF(B90="","",MAX(A$1:A89)+1) -> 89 | B90: Beppe | C90: Beppe | D90: 3564 | E90: Orc | F90: Italy
A91: =IF(B91="","",MAX(A$1:A90)+1) -> 90 | B91: Melisqus | C91: Melisqus | D91: 16238 | E91: Orc | F91: Sweden
A92: =IF(B92="","",MAX(A$1:A91)+1) -> 91 | B92: Dragons | C92: Dragons | D92: 19003 | E92: Orc | F92: Sweden
A93: =IF(C93="","",MAX(A$1:A92)+1) -> 92 | B93: Jaqra | C93: Jaqra | D93: 19750 | E93: Skaven | F93: Denmark
A94: =IF(B94="","",MAX(A$1:A93)+1) -> 93 | B94: Harti | C94: Harti | D94: 13583 | E94: Skaven | F94: France
A95: =IF(B95="","",MAX(A$1:A94)+1) -> 94 | B95: Favi | C95: Favi | D95: 20062 | E95: Skaven | F95: Hungary
A96: =IF(B96="","",MAX(A$1:A95)+1) -> 95 | B96: Spartako | C96: Spartako | D96: 13417 | E96: Skaven | F96: Italy
A97: =IF(B97="","",MAX(A$1:A96)+1) -> 96 | B97: DonShula | C97: DonShula | D97: 14445 | E97: Skaven | F97: Scotland
A98: =IF(B98="","",MAX(A$1:A97)+1) -> 97 | B98: HumptyTrump | C98: HumptyTrump | D98: 20360 | E98: Skaven | F98: Scotland
A99: =IF(B99="","",MAX(A$1:A98)+1) -> 98 | B99: Purrelito | C99: Purrelito | D99: 15323 | E99: Skaven | F99: Viking
A100: =IF(B100="","",MAX(A$1:A99)+1) -> 99 | B100: nonumber | C100: nonumber | D100: 8923 | E100: Skaven | F100: Wales
A101: =IF(C101="","",MAX(A$1:A100)+1) -> 100 | B101: Driesfield | C101: Driesfield | D101: 6183 | E101: Slann | F101: Belgium
A102: =IF(C102="","",MAX(A$1:A101)+1) -> 101 | B102: kfoged | C102: kfoged | D102: 10691 | E102: Slann | F102: Denmark
A103: =IF(C103="","",MAX(A$1:A102)+1) -> 102 | B103: Podfrey | C103: Podfrey | D103: 149 | E103: Slann | F103: England
A104: =IF(B104="","",MAX(A$1:A103)+1) -> 103 | B104: valkohukka | C104: valkohukka | D104: 18772 | E104: Slann | F104: Finland
A105: =IF(B105="","",MAX(A$1:A104)+1) -> 104 | B105: Skoberget | C105: Skoberget | D105: 19448 | E105: Slann | F105: Sweden
A106: =IF(B106="","",MAX(A$1:A105)+1) -> 105 | B106: brocCooli | C106: brocCooli | D106: 12552 | E106: Slann | F106: Viking
A107: =IF(B107="","",MAX(A$1:A106)+1) -> 106 | B107: Ploppy_McPloppy | C107: Ploppy_McPloppy | D107: 16417 | E107: Slann | F107: Wales
A108: =IF(B108="","",MAX(A$1:A107)+1) -> 107 | B108: BiBi | C108: BiBi | D108: 11491 | E108: Undead | F108: France
A109: =IF(B109="","",MAX(A$1:A108)+1) -> 108 | B109: Matt le fou | C109: Matt le fou | D109: 13561 | E109: Undead | F109: France
A110: =IF(B110="","",MAX(A$1:A109)+1) -> 109 | B110: Candlejack | C110: Candlejack | D110: 5844 | E110: Undead | F110: Germany
A111: =IF(B111="","",MAX(A$1:A110)+1) -> 110 | B111: Purdindas | C111: Purdindas | D111: 10831 | E111: Undead | F111: Scotland
A112: =IF(C112="","",MAX(A$1:A111)+1) -> 111 | B112: JJ | C112: JJ | D112: 10488 | E112: Underworld | F112: Belgium
A113: =IF(C113="","",MAX(A$1:A112)+1) -> 112 | B113: Wilzif | C113: Wilzif | D113: 8901 | E113: Underworld | F113: England
A114: =IF(B114="","",MAX(A$1:A113)+1) -> 113 | B114: noraal | C114: noraal | D114: 21798 | E114: Underworld | F114: Hungary
A115: =IF(B115="","",MAX(A$1:A114)+1) -> 114 | B115: cz | C115: cz | D115: 21604 | E115: Underworld | F115: Hungary
A116: =IF(B116="","",MAX(A$1:A115)+1) -> 115 | B116: Loki | C116: Loki | D116: 371 | E116: Underworld | F116: Scotland
A117: =IF(C117="","",MAX(A$1:A116)+1) -> 116 | B117: gninocker | C117: gninocker | D117: 17832 | E117: Vampires | F117: Belgium
A118: =IF(B118="","",MAX(A$1:A117)+1) -> 117 | B118: Mewash | C118: Mewash | D118: 21627 | E118: Vampires | F118: Poland
A119: =IF(B119="","",MAX(A$1:A118)+1) -> 118 | B119: Leonek | C119: Leonek | D119: 22375 | E119: Vampires | F119: Poland
A120: =IF(B120="","",MAX(A$1:A119)+1) -> 119 | B120: JamesEs | C120: JamesEs | D120: 17875 | E120: Vampires | F120: Scotland
A121: =IF(B121="","",MAX(A$1:A120)+1) -> 120 | B121: Duke_Luthor_Von_Hawkfire | C121: Duke_Luthor_Von_Hawkfire | D121: 11793 | E121: Vampires | F121: Spain
A122: =IF(B122="","",MAX(A$1:A121)+1) -> 121 | B122: Jokaero | C122: Jokaero | D122: 2785 | E122: Vampires | F122: Switzerland
A123: =IF(B123="","",MAX(A$1:A122)+1) -> 122 | B123: Duckwing | C123: Duckwing | D123: 16278 | E123: Vampires | F123: Viking
A124: =IF(B124="","",MAX(A$1:A123)+1) -> 123 | B124: Justicium | C124: Justicium | D124: 12319 | E124: Wood Elves | F124: France
A125: =IF(B125="","",MAX(A$1:A124)+1) -> 124 | B125: Liam | C125: Liam | D125: 5906 | E125: Wood Elves | F125: Italy
A126: =IF(B126="","",MAX(A$1:A125)+1) -> 125 | B126: Endalos | C126: Endalos | D126: 17242 | E126: Wood Elves | F126: Norway
A127: =IF(B127="","",MAX(A$1:A126)+1) -> 126 | B127: bothun | C127: bothun | D127: 20953 | E127: Wood Elves | F127: Norway
A128: =IF(B128="","",MAX(A$1:A127)+1) -> 127 | B128: Inforthepain | C128: Inforthepain | D128: 19483 | E128: Wood Elves | F128: Sweden
A129: =IF(B129="","",MAX(A$1:A128)+1) -> 128 | B129: sigu70 | C129: sigu70 | D129: 17003 | E129: Wood Elves | F129: Switzerland
A130: =IF(B130="","",MAX(A$1:A129)+1) -> 
A131: =IF(B131="","",MAX(A$1:A130)+1) -> 
A132: =IF(B132="","",MAX(A$1:A131)+1) -> 
A133: =IF(B133="","",MAX(A$1:A132)+1) -> 
A134: =IF(B134="","",MAX(A$1:A133)+1) -> 
A135: =IF(B135="","",MAX(A$1:A134)+1) -> 
A136: =IF(B136="","",MAX(A$1:A135)+1) -> 
A137: =IF(B137="","",MAX(A$1:A136)+1) -> 
A138: =IF(B138="","",MAX(A$1:A137)+1) -> 
A139: =IF(B139="","",MAX(A$1:A138)+1) -> 
A140: =IF(B140="","",MAX(A$1:A139)+1) -> 
A141: =IF(B141="","",MAX(A$1:A140)+1) -> 
A142: =IF(B142="","",MAX(A$1:A141)+1) -> 
A143: =IF(B143="","",MAX(A$1:A142)+1) -> 
A144: =IF(B144="","",MAX(A$1:A143)+1) -> 
A145: =IF(B145="","",MAX(A$1:A144)+1) -> 
A146: =IF(B146="","",MAX(A$1:A145)+1) -> 
A147: =IF(B147="","",MAX(A$1:A146)+1) -> 
A148: =IF(B148="","",MAX(A$1:A147)+1) -> 
A149: =IF(B149="","",MAX(A$1:A148)+1) -> 
A150: =IF(B150="","",MAX(A$1:A149)+1) -> 
A151: =IF(B151="","",MAX(A$1:A150)+1) -> 
A152: =IF(B152="","",MAX(A$1:A151)+1) -> 
A153: =IF(B153="","",MAX(A$1:A152)+1) -> 
A154: =IF(B154="","",MAX(A$1:A153)+1) -> 
A155: =IF(B155="","",MAX(A$1:A154)+1) -> 
A156: =IF(B156="","",MAX(A$1:A155)+1) -> 
A157: =IF(B157="","",MAX(A$1:A156)+1) -> 
A158: =IF(B158="","",MAX(A$1:A157)+1) -> 
A159: =IF(B159="","",MAX(A$1:A158)+1) -> 
A160: =IF(B160="","",MAX(A$1:A159)+1) -> 

Sheet Table
A1: Player | B1: Points | C1: TD For | D1: TD Against | E1: TD Net | F1: Cas For | G1: Cas Against | H1: Cas Net | I1: Bonus1 | J1: Bonus2 | K1: Wins | L1: Draws | M1: Losses | N1: Opp Score | P1: Group
A2: Verrinho | B2: 6.5 | C2: 14 | D2: 5 | E2: 9 | F2: 14 | G2: 12 | H2: 2 | I2: 15 | J2: 13 | K2: 5 | L2: 3 | N2: 38 | P2: Italy
A3: Domingo | B3: 6.5 | C3: 12 | D3: 5 | E3: 7 | F3: 11 | G3: 14 | H3: -3 | I3: 14 | J3: 10 | K3: 6 | L3: 1 | M3: 1 | N3: 37 | P3: Poland
A4: Topper | B4: 6.5 | C4: 14 | D4: 8 | E4: 6 | F4: 8 | G4: 11 | H4: -3 | I4: 13 | J4: 11 | K4: 5 | L4: 3 | N4: 37 | P4: Denmark
A5: Garrick | B5: 6.5 | C5: 16 | D5: 8 | E5: 8 | F5: 11 | G5: 15 | H5: -4 | I5: 13 | J5: 20 | K5: 6 | L5: 1 | M5: 1 | N5: 33.5 | P5: Scotland
A6: DonShula | B6: 6 | C6: 18 | D6: 10 | E6: 8 | F6: 12 | G6: 12 | H6: 0 | I6: 7 | J6: 12 | K6: 5 | L6: 2 | M6: 1 | N6: 39.5 | P6: Scotland
A7: BiBi | B7: 6 | C7: 15 | D7: 9 | E7: 6 | F7: 15 | G7: 12 | H7: 3 | I7: 6 | J7: 10 | K7: 5 | L7: 2 | M7: 1 | N7: 38.5 | P7: France
A8: Inforthepain | B8: 6 | C8: 15 | D8: 9 | E8: 6 | F8: 12 | G8: 13 | H8: -1 | I8: 9 | J8: 8 | K8: 4 | L8: 4 | N8: 38.5 | P8: Sweden
A9: sigu70 | B9: 6 | C9: 12 | D9: 8 | E9: 4 | F9: 10 | G9: 8 | H9: 2 | I9: 14 | J9: 17 | K9: 5 | L9: 2 | M9: 1 | N9: 36.5 | P9: Switzerland
A10: jopotzuki | B10: 6 | C10: 18 | D10: 9 | E10: 9 | F10: 11 | G10: 19 | H10: -8 | I10: 7 | J10: 8 | K10: 5 | L10: 2 | M10: 1 | N10: 36 | P10: Finland
A11: Alex05 | B11: 6 | C11: 15 | D11: 9 | E11: 6 | F11: 14 | G11: 11 | H11: 3 | I11: 11 | J11: 16 | K11: 5 | L11: 2 | M11: 1 | N11: 29.5 | P11: Hungary
A12: Goss | B12: 5.5 | C12: 16 | D12: 11 | E12: 5 | F12: 15 | G12: 10 | H12: 5 | I12: 11 | J12: 15 | K12: 5 | L12: 1 | M12: 2 | N12: 39 | P12: Switzerland
A13: Faccko | B13: 5.5 | C13: 16 | D13: 12 | E13: 4 | F13: 13 | G13: 8 | H13: 5 | I13: 14 | J13: 10 | K13: 3 | L13: 5 | N13: 37.5 | P13: Viking
A14: mynock | B14: 5.5 | C14: 15 | D14: 10 | E14: 5 | F14: 8 | G14: 17 | H14: -9 | I14: 16 | J14: 16 | K14: 4 | L14: 3 | M14: 1 | N14: 36 | P14: Norway
A15: Itzla | B15: 5.5 | C15: 13 | D15: 7 | E15: 6 | F15: 10 | G15: 14 | H15: -4 | I15: 14 | J15: 12 | K15: 4 | L15: 3 | M15: 1 | N15: 35 | P15: Hungary
A16: Skuld | B16: 5.5 | C16: 15 | D16: 11 | E16: 4 | F16: 11 | G16: 15 | H16: -4 | I16: 14 | J16: 13 | K16: 4 | L16: 3 | M16: 1 | N16: 35 | P16: Sweden
A17: SpecialOne | B17: 5.5 | C17: 16 | D17: 10 | E17: 6 | F17: 10 | G17: 9 | H17: 1 | I17: 14 | J17: 12 | K17: 5 | L17: 1 | M17: 2 | N17: 34.5 | P17: Denmark
A18: Tactel | B18: 5.5 | C18: 17 | D18: 9 | E18: 8 | F18: 9 | G18: 13 | H18: -4 | I18: 12 | J18: 12 | K18: 5 | L18: 1 | M18: 2 | N18: 33 | P18: Spain
A19: sann0638 | B19: 5.5 | C19: 15 | D19: 9 | E19: 6 | F19: 12 | G19: 12 | H19: 0 | I19: 10 | J19: 11 | K19: 3 | L19: 5 | N19: 31.5 | P19: Scotland
A20: Elrik | B20: 5.5 | C20: 16 | D20: 12 | E20: 4 | F20: 10 | G20: 13 | H20: -3 | I20: 16 | J20: 12 | K20: 5 | L20: 1 | M20: 2 | N20: 30.5 | P20: Switzerland
A21: Liam | B21: 5.5 | C21: 14 | D21: 11 | E21: 3 | F21: 11 | G21: 15 | H21: -4 | I21: 12 | J21: 13 | K21: 4 | L21: 3 | M21: 1 | N21: 26 | P21: Italy
A22: Dragons | B22: 5 | C22: 13 | D22: 10 | E22: 3 | F22: 13 | G22: 14 | H22: -1 | I22: 12 | J22: 7 | K22: 5 | M22: 3 | N22: 37.5 | P22: Sweden
A23: Malodoror | B23: 5 | C23: 13 | D23: 11 | E23: 2 | F23: 15 | G23: 14 | H23: 1 | I23: 12 | J23: 10 | K23: 4 | L23: 2 | M23: 2 | N23: 37.5 | P23: Belgium
A24: BlackOrc | B24: 5 | C24: 16 | D24: 15 | E24: 1 | F24: 16 | G24: 7 | H24: 9 | I24: 14 | J24: 16 | K24: 3 | L24: 4 | M24: 1 | N24: 37 | P24: Hungary
A25: Gros Nain | B25: 5 | C25: 11 | D25: 8 | E25: 3 | F25: 11 | G25: 10 | H25: 1 | I25: 10 | J25: 14 | K25: 5 | M25: 3 | N25: 36.5 | P25: France
A26: Phifoe | B26: 5 | C26: 13 | D26: 9 | E26: 4 | F26: 10 | G26: 14 | H26: -4 | I26: 10 | J26: 16 | K26: 4 | L26: 2 | M26: 2 | N26: 35.5 | P26: Switzerland
A27: 20Phoenix | B27: 5 | C27: 15 | D27: 11 | E27: 4 | F27: 12 | G27: 9 | H27: 3 | I27: 12 | J27: 12 | K27: 4 | L27: 2 | M27: 2 | N27: 32.5 | P27: Wales
A28: Joemanji | B28: 5 | C28: 13 | D28: 10 | E28: 3 | F28: 12 | G28: 9 | H28: 3 | I28: 12 | J28: 13 | K28: 4 | L28: 2 | M28: 2 | N28: 32 | P28: England
A29: Corwin | B29: 5 | C29: 11 | D29: 8 | E29: 3 | F29: 11 | G29: 9 | H29: 2 | I29: 10 | J29: 8 | K29: 3 | L29: 4 | M29: 1 | N29: 32 | P29: Viking
A30: noraal | B30: 5 | C30: 11 | D30: 8 | E30: 3 | F30: 10 | G30: 11 | H30: -1 | I30: 8 | J30: 15 | K30: 4 | L30: 2 | M30: 2 | N30: 31 | P30: Hungary
A31: Pellevin | B31: 5 | C31: 12 | D31: 13 | E31: -1 | F31: 15 | G31: 11 | H31: 4 | I31: 10 | J31: 15 | K31: 5 | M31: 3 | N31: 29 | P31: Sweden
A32: GreatWhiteHope | B32: 4.5 | C32: 15 | D32: 12 | E32: 3 | F32: 10 | G32: 5 | H32: 5 | I32: 10 | J32: 11 | K32: 3 | L32: 3 | M32: 2 | N32: 41 | P32: Norway
A33: Arioso | B33: 4.5 | C33: 13 | D33: 10 | E33: 3 | F33: 12 | G33: 17 | H33: -5 | I33: 9 | J33: 15 | K33: 3 | L33: 3 | M33: 2 | N33: 41 | P33: Germany
A34: Mufflo | B34: 4.5 | C34: 13 | D34: 14 | E34: -1 | F34: 9 | G34: 10 | H34: -1 | I34: 14 | J34: 12 | K34: 4 | L34: 1 | M34: 3 | N34: 41 | P34: Viking
A35: Beppe | B35: 4.5 | C35: 15 | D35: 13 | E35: 2 | F35: 11 | G35: 13 | H35: -2 | I35: 8 | J35: 10 | K35: 4 | L35: 1 | M35: 3 | N35: 40.5 | P35: Italy
A36: Bouzzy | B36: 4.5 | C36: 13 | D36: 12 | E36: 1 | F36: 9 | G36: 6 | H36: 3 | I36: 12 | J36: 13 | K36: 1 | L36: 7 | N36: 38.5 | P36: France
A37: edheim | B37: 4.5 | C37: 13 | D37: 14 | E37: -1 | F37: 12 | G37: 8 | H37: 4 | I37: 12 | J37: 8 | K37: 4 | L37: 1 | M37: 3 | N37: 38.5 | P37: Finland
A38: ratogre | B38: 4.5 | C38: 13 | D38: 12 | E38: 1 | F38: 9 | G38: 9 | H38: 0 | I38: 6 | J38: 16 | K38: 4 | L38: 1 | M38: 3 | N38: 38 | P38: Finland
A39: MadeofWelsh | B39: 4.5 | C39: 10 | D39: 7 | E39: 3 | F39: 16 | G39: 15 | H39: 1 | I39: 10 | J39: 10 | K39: 2 | L39: 5 | M39: 1 | N39: 37.5 | P39: Wales
A40: Niebling | B40: 4.5 | C40: 16 | D40: 16 | E40: 0 | F40: 14 | G40: 10 | H40: 4 | I40: 12 | J40: 7 | K40: 3 | L40: 3 | M40: 2 | N40: 35.5 | P40: Denmark
A41: straume | B41: 4.5 | C41: 11 | D41: 10 | E41: 1 | F41: 11 | G41: 10 | H41: 1 | I41: 16 | J41: 16 | K41: 3 | L41: 3 | M41: 2 | N41: 34.5 | P41: Norway
A42: Woete | B42: 4.5 | C42: 11 | D42: 11 | E42: 0 | F42: 18 | G42: 14 | H42: 4 | I42: 13 | J42: 13 | K42: 4 | L42: 1 | M42: 3 | N42: 34.5 | P42: Belgium
A43: Mubo | B43: 4.5 | C43: 14 | D43: 11 | E43: 3 | F43: 13 | G43: 13 | H43: 0 | I43: 12 | J43: 11 | K43: 3 | L43: 3 | M43: 2 | N43: 34 | P43: England
A44: DocMaxx | B44: 4.5 | C44: 13 | D44: 11 | E44: 2 | F44: 15 | G44: 11 | H44: 4 | I44: 13 | J44: 12 | K44: 4 | L44: 1 | M44: 3 | N44: 32.5 | P44: Germany
A45: valkohukka | B45: 4.5 | C45: 14 | D45: 12 | E45: 2 | F45: 14 | G45: 10 | H45: 4 | I45: 10 | J45: 13 | K45: 4 | L45: 1 | M45: 3 | N45: 32 | P45: Finland
A46: Kaltenland | B46: 4.5 | C46: 9 | D46: 8 | E46: 1 | F46: 14 | G46: 16 | H46: -2 | I46: 12 | J46: 14 | K46: 3 | L46: 3 | M46: 2 | N46: 31.5 | P46: Italy
A47: Shawass | B47: 4.5 | C47: 14 | D47: 12 | E47: 2 | F47: 10 | G47: 11 | H47: -1 | I47: 12 | J47: 15 | K47: 4 | L47: 1 | M47: 3 | N47: 31 | P47: Poland
A48: MacWitt | B48: 4.5 | C48: 12 | D48: 13 | E48: -1 | F48: 11 | G48: 12 | H48: -1 | I48: 9 | J48: 11 | K48: 3 | L48: 3 | M48: 2 | N48: 30 | P48: Finland
A49: Phoenix11 | B49: 4.5 | C49: 15 | D49: 13 | E49: 2 | F49: 16 | G49: 8 | H49: 8 | I49: 9 | J49: 16 | K49: 3 | L49: 3 | M49: 2 | N49: 29 | P49: Belgium
A50: zulu | B50: 4.5 | C50: 12 | D50: 11 | E50: 1 | F50: 15 | G50: 17 | H50: -2 | I50: 12 | J50: 11 | K50: 2 | L50: 5 | M50: 1 | N50: 29 | P50: Norway
A51: Candlejack | B51: 4.5 | C51: 12 | D51: 12 | E51: 0 | F51: 16 | G51: 12 | H51: 4 | I51: 13 | J51: 14 | K51: 3 | L51: 3 | M51: 2 | N51: 29 | P51: Germany
A52: Justicium | B52: 4.5 | C52: 13 | D52: 13 | E52: 0 | F52: 12 | G52: 17 | H52: -5 | I52: 14 | J52: 15 | K52: 3 | L52: 3 | M52: 2 | N52: 28.5 | P52: France
A53: Simon_ACP | B53: 4.5 | C53: 12 | D53: 11 | E53: 1 | F53: 11 | G53: 13 | H53: -2 | I53: 12 | J53: 11 | K53: 3 | L53: 3 | M53: 2 | N53: 26.5 | P53: France
A54: Idroj | B54: 4 | C54: 12 | D54: 11 | E54: 1 | F54: 16 | G54: 16 | H54: 0 | I54: 9 | J54: 13 | K54: 3 | L54: 2 | M54: 3 | N54: 36.5 | P54: Spain
A55: Leonek | B55: 4 | C55: 11 | D55: 11 | E55: 0 | F55: 14 | G55: 13 | H55: 1 | I55: 15 | J55: 11 | K55: 2 | L55: 4 | M55: 2 | N55: 36.5 | P55: Poland
A56: Reszka | B56: 4 | C56: 8 | D56: 7 | E56: 1 | F56: 9 | G56: 15 | H56: -6 | I56: 9 | J56: 12 | K56: 1 | L56: 6 | M56: 1 | N56: 36 | P56: Poland
A57: kfoged | B57: 4 | C57: 8 | D57: 9 | E57: -1 | F57: 8 | G57: 9 | H57: -1 | I57: 14 | J57: 9 | K57: 2 | L57: 4 | M57: 2 | N57: 35.5 | P57: Denmark
A58: Dark Duke | B58: 4 | C58: 14 | D58: 16 | E58: -2 | F58: 10 | G58: 14 | H58: -4 | I58: 15 | J58: 9 | K58: 3 | L58: 2 | M58: 3 | N58: 34.5 | P58: Spain
A59: Spartako | B59: 4 | C59: 11 | D59: 13 | E59: -2 | F59: 9 | G59: 14 | H59: -5 | I59: 13 | J59: 11 | K59: 4 | M59: 4 | N59: 34.5 | P59: Italy
A60: BeerBeer | B60: 4 | C60: 12 | D60: 15 | E60: -3 | F60: 17 | G60: 9 | H60: 8 | I60: 18 | J60: 7 | K60: 3 | L60: 2 | M60: 3 | N60: 34 | P60: Finland
A61: Matte8 | B61: 4 | C61: 11 | D61: 11 | E61: 0 | F61: 14 | G61: 11 | H61: 3 | I61: 12 | J61: 15 | K61: 2 | L61: 4 | M61: 2 | N61: 33 | P61: Italy
A62: The_Ref | B62: 4 | C62: 12 | D62: 12 | E62: 0 | F62: 12 | G62: 11 | H62: 1 | I62: 15 | J62: 12 | K62: 2 | L62: 4 | M62: 2 | N62: 33 | P62: Norway
A63: Melisqus | B63: 4 | C63: 14 | D63: 14 | E63: 0 | F63: 9 | G63: 16 | H63: -7 | I63: 13 | J63: 11 | K63: 3 | L63: 2 | M63: 3 | N63: 33 | P63: Sweden
A64: Strider84 | B64: 4 | C64: 12 | D64: 13 | E64: -1 | F64: 7 | G64: 12 | H64: -5 | I64: 8 | J64: 13 | K64: 3 | L64: 2 | M64: 3 | N64: 33 | P64: Switzerland
A65: Macabeo | B65: 4 | C65: 10 | D65: 9 | E65: 1 | F65: 13 | G65: 10 | H65: 3 | I65: 15 | J65: 13 | K65: 3 | L65: 2 | M65: 3 | N65: 32.5 | P65: Switzerland
A66: Mewash | B66: 4 | C66: 12 | D66: 12 | E66: 0 | F66: 10 | G66: 11 | H66: -1 | I66: 13 | J66: 10 | K66: 3 | L66: 2 | M66: 3 | N66: 32.5 | P66: Poland
A67: Duckwing | B67: 4 | C67: 16 | D67: 15 | E67: 1 | F67: 13 | G67: 16 | H67: -3 | I67: 14 | J67: 10 | K67: 3 | L67: 2 | M67: 3 | N67: 32 | P67: Viking
A68: Harti | B68: 4 | C68: 10 | D68: 10 | E68: 0 | F68: 9 | G68: 9 | H68: 0 | I68: 9 | J68: 18 | K68: 3 | L68: 2 | M68: 3 | N68: 31.5 | P68: France
A69: gninocker | B69: 4 | C69: 8 | D69: 11 | E69: -3 | F69: 14 | G69: 11 | H69: 3 | I69: 14 | J69: 12 | K69: 3 | L69: 2 | M69: 3 | N69: 31.5 | P69: Belgium
A70: Ploppy_McPloppy | B70: 4 | C70: 13 | D70: 14 | E70: -1 | F70: 9 | G70: 11 | H70: -2 | I70: 17 | J70: 17 | K70: 3 | L70: 2 | M70: 3 | N70: 31 | P70: Wales
A71: Bernuz | B71: 4 | C71: 11 | D71: 9 | E71: 2 | F71: 12 | G71: 13 | H71: -1 | I71: 16 | J71: 11 | K71: 2 | L71: 4 | M71: 2 | N71: 30.5 | P71: Viking
A72: Endalos | B72: 4 | C72: 7 | D72: 8 | E72: -1 | F72: 14 | G72: 10 | H72: 4 | I72: 9 | J72: 14 | K72: 2 | L72: 4 | M72: 2 | N72: 30.5 | P72: Norway
A73: Dionysian | B73: 4 | C73: 13 | D73: 14 | E73: -1 | F73: 9 | G73: 11 | H73: -2 | I73: 16 | J73: 9 | K73: 3 | L73: 2 | M73: 3 | N73: 30.5 | P73: Wales
A74: Jaqra | B74: 4 | C74: 12 | D74: 11 | E74: 1 | F74: 9 | G74: 11 | H74: -2 | I74: 10 | J74: 13 | K74: 3 | L74: 2 | M74: 3 | N74: 29 | P74: Denmark
A75: Loki | B75: 4 | C75: 11 | D75: 11 | E75: 0 | F75: 10 | G75: 9 | H75: 1 | I75: 12 | J75: 16 | K75: 2 | L75: 4 | M75: 2 | N75: 28.5 | P75: Scotland
A76: Araznaroth | B76: 4 | C76: 15 | D76: 16 | E76: -1 | F76: 17 | G76: 11 | H76: 6 | I76: 12 | J76: 12 | K76: 2 | L76: 4 | M76: 2 | N76: 25 | P76: Belgium
A77: bothun | B77: 4 | C77: 9 | D77: 11 | E77: -2 | F77: 18 | G77: 10 | H77: 8 | I77: 10 | J77: 13 | K77: 3 | L77: 2 | M77: 3 | N77: 25 | P77: Norway
A78: Lycos | B78: 3.5 | C78: 12 | D78: 13 | E78: -1 | F78: 15 | G78: 14 | H78: 1 | I78: 11 | J78: 12 | K78: 2 | L78: 3 | M78: 3 | N78: 36 | P78: England
A79: Barry | B79: 3.5 | C79: 14 | D79: 15 | E79: -1 | F79: 14 | G79: 11 | H79: 3 | I79: 11 | J79: 15 | K79: 3 | L79: 1 | M79: 4 | N79: 35.5 | P79: Spain
A80: Muadib | B80: 3.5 | C80: 12 | D80: 13 | E80: -1 | F80: 13 | G80: 15 | H80: -2 | I80: 12 | J80: 8 | K80: 2 | L80: 3 | M80: 3 | N80: 35.5 | P80: Germany
A81: Matt le fou | B81: 3.5 | C81: 15 | D81: 17 | E81: -2 | F81: 13 | G81: 13 | H81: 0 | I81: 10 | J81: 15 | K81: 2 | L81: 3 | M81: 3 | N81: 35.5 | P81: France
A82: Madmatt13 | B82: 3.5 | C82: 13 | D82: 12 | E82: 1 | F82: 10 | G82: 19 | H82: -9 | I82: 12 | J82: 14 | K82: 3 | L82: 1 | M82: 4 | N82: 34 | P82: Switzerland
A83: brocCooli | B83: 3.5 | C83: 13 | D83: 12 | E83: 1 | F83: 17 | G83: 14 | H83: 3 | I83: 11 | J83: 11 | K83: 3 | L83: 1 | M83: 4 | N83: 33.5 | P83: Viking
A84: MissSweden | B84: 3.5 | C84: 14 | D84: 15 | E84: -1 | F84: 11 | G84: 12 | H84: -1 | I84: 14 | J84: 11 | K84: 3 | L84: 1 | M84: 4 | N84: 32 | P84: Denmark
A85: Podfrey | B85: 3.5 | C85: 13 | D85: 14 | E85: -1 | F85: 9 | G85: 10 | H85: -1 | I85: 11 | J85: 17 | K85: 3 | L85: 1 | M85: 4 | N85: 31.5 | P85: England
A86: Gaunab | B86: 3.5 | C86: 15 | D86: 17 | E86: -2 | F86: 10 | G86: 9 | H86: 1 | I86: 8 | J86: 18 | K86: 3 | L86: 1 | M86: 4 | N86: 30.5 | P86: Germany
A87: Geggster | B87: 3.5 | C87: 9 | D87: 10 | E87: -1 | F87: 8 | G87: 13 | H87: -5 | I87: 13 | J87: 17 | L87: 7 | M87: 1 | N87: 30 | P87: England
A88: Obeliz | B88: 3.5 | C88: 7 | D88: 9 | E88: -2 | F88: 5 | G88: 8 | H88: -3 | I88: 11 | J88: 15 | L88: 7 | M88: 1 | N88: 29.5 | P88: Spain
A89: Dirold | B89: 3.5 | C89: 9 | D89: 11 | E89: -2 | F89: 11 | G89: 14 | H89: -3 | I89: 11 | J89: 10 | K89: 2 | L89: 3 | M89: 3 | N89: 29 | P89: Italy
A90: SFisher91 | B90: 3.5 | C90: 14 | D90: 15 | E90: -1 | F90: 14 | G90: 13 | H90: 1 | I90: 11 | J90: 14 | K90: 3 | L90: 1 | M90: 4 | N90: 28.5 | P90: Wales
A91: Prince | B91: 3.5 | C91: 12 | D91: 13 | E91: -1 | F91: 11 | G91: 13 | H91: -2 | I91: 10 | J91: 17 | K91: 2 | L91: 3 | M91: 3 | N91: 28.5 | P91: Germany
A92: nonumber | B92: 3.5 | C92: 14 | D92: 15 | E92: -1 | F92: 13 | G92: 13 | H92: 0 | I92: 8 | J92: 8 | K92: 2 | L92: 3 | M92: 3 | N92: 27 | P92: Wales
A93: Wilzif | B93: 3.5 | C93: 10 | D93: 10 | E93: 0 | F93: 12 | G93: 17 | H93: -5 | I93: 12 | J93: 12 | K93: 3 | L93: 1 | M93: 4 | N93: 26 | P93: England
A94: Balder | B94: 3.5 | C94: 12 | D94: 14 | E94: -2 | F94: 15 | G94: 15 | H94: 0 | I94: 12 | J94: 11 | K94: 3 | L94: 1 | M94: 4 | N94: 26 | P94: Viking
A95: Jokaero | B95: 3.5 | C95: 10 | D95: 12 | E95: -2 | F95: 8 | G95: 8 | H95: 0 | I95: 13 | J95: 13 | K95: 2 | L95: 3 | M95: 3 | N95: 26 | P95: Switzerland
A96: Dekra1979 | B96: 3 | C96: 10 | D96: 13 | E96: -3 | F96: 13 | G96: 14 | H96: -1 | I96: 15 | J96: 9 | K96: 2 | L96: 2 | M96: 4 | N96: 35 | P96: Belgium
A97: Warrior1980 | B97: 3 | C97: 13 | D97: 16 | E97: -3 | F97: 12 | G97: 7 | H97: 5 | I97: 10 | J97: 12 | K97: 1 | L97: 4 | M97: 3 | N97: 34.5 | P97: Poland
A98: Malasnoticias | B98: 3 | C98: 13 | D98: 15 | E98: -2 | F98: 14 | G98: 12 | H98: 2 | I98: 13 | J98: 10 | K98: 2 | L98: 2 | M98: 4 | N98: 32 | P98: Spain
A99: PurpleGoo | B99: 3 | C99: 14 | D99: 15 | E99: -1 | F99: 10 | G99: 13 | H99: -3 | I99: 11 | J99: 12 | K99: 1 | L99: 4 | M99: 3 | N99: 31.5 | P99: England
A100: andydavo | B100: 3 | C100: 6 | D100: 8 | E100: -2 | F100: 12 | G100: 13 | H100: -1 | I100: 12 | J100: 13 | K100: 1 | L100: 4 | M100: 3 | N100: 31.5 | P100: Wales
A101: FrankPedersen | B101: 3 | C101: 12 | D101: 15 | E101: -3 | F101: 15 | G101: 11 | H101: 4 | I101: 17 | J101: 13 | K101: 2 | L101: 2 | M101: 4 | N101: 31.5 | P101: Norway
A102: Harza | B102: 3 | C102: 9 | D102: 11 | E102: -2 | F102: 7 | G102: 14 | H102: -7 | I102: 11 | J102: 7 | K102: 3 | M102: 5 | N102: 31 | P102: Finland
A103: Favi | B103: 3 | C103: 11 | D103: 14 | E103: -3 | F103: 13 | G103: 13 | H103: 0 | I103: 13 | J103: 9 | L103: 6 | M103: 2 | N103: 30.5 | P103: Hungary
A104: swifty | B104: 3 | C104: 10 | D104: 13 | E104: -3 | F104: 15 | G104: 10 | H104: 5 | I104: 11 | J104: 9 | K104: 2 | L104: 2 | M104: 4 | N104: 28.5 | P104: Hungary
A105: JJ | B105: 3 | C105: 17 | D105: 19 | E105: -2 | F105: 13 | G105: 18 | H105: -5 | I105: 10 | J105: 11 | K105: 2 | L105: 2 | M105: 4 | N105: 28 | P105: Belgium
A106: Slimaq | B106: 3 | C106: 13 | D106: 16 | E106: -3 | F106: 15 | G106: 10 | H106: 5 | I106: 12 | J106: 14 | K106: 1 | L106: 4 | M106: 3 | N106: 27.5 | P106: Poland
A107: Purrelito | B107: 3 | C107: 9 | D107: 11 | E107: -2 | F107: 12 | G107: 12 | H107: 0 | I107: 10 | J107: 10 | K107: 1 | L107: 4 | M107: 3 | N107: 26 | P107: Viking
A108: Joanet | B108: 3 | C108: 13 | D108: 18 | E108: -5 | F108: 10 | G108: 15 | H108: -5 | I108: 18 | J108: 12 | K108: 1 | L108: 4 | M108: 3 | N108: 26 | P108: Spain
A109: RoterSternHochdahl | B109: 3 | C109: 10 | D109: 14 | E109: -4 | F109: 13 | G109: 10 | H109: 3 | I109: 10 | J109: 13 | K109: 2 | L109: 2 | M109: 4 | N109: 25 | P109: Germany
A110: Tripleskull | B110: 3 | C110: 7 | D110: 14 | E110: -7 | F110: 6 | G110: 11 | H110: -5 | I110: 10 | J110: 11 | K110: 2 | L110: 2 | M110: 4 | N110: 25 | P110: Denmark
A111: J-Ho | B111: 3 | C111: 10 | D111: 13 | E111: -3 | F111: 14 | G111: 6 | H111: 8 | I111: 13 | J111: 10 | L111: 6 | M111: 2 | N111: 24 | P111: Finland
A112: JohnnyD | B112: 3 | C112: 11 | D112: 14 | E112: -3 | F112: 12 | G112: 14 | H112: -2 | I112: 10 | J112: 12 | K112: 2 | L112: 2 | M112: 4 | N112: 22.5 | P112: Sweden
A113: cz | B113: 2.5 | C113: 6 | D113: 10 | E113: -4 | F113: 10 | G113: 12 | H113: -2 | I113: 15 | J113: 12 | K113: 1 | L113: 3 | M113: 4 | N113: 36 | P113: Hungary
A114: Tank | B114: 2.5 | C114: 7 | D114: 11 | E114: -4 | F114: 14 | G114: 17 | H114: -3 | I114: 13 | J114: 10 | K114: 1 | L114: 3 | M114: 4 | N114: 34 | P114: Denmark
A115: Purdindas | B115: 2.5 | C115: 10 | D115: 13 | E115: -3 | F115: 13 | G115: 11 | H115: 2 | I115: 16 | J115: 9 | K115: 1 | L115: 3 | M115: 4 | N115: 32.5 | P115: Scotland
A116: Jonny_Kanone | B116: 2.5 | C116: 11 | D116: 15 | E116: -4 | F116: 12 | G116: 12 | H116: 0 | I116: 13 | J116: 13 | K116: 2 | L116: 1 | M116: 5 | N116: 31 | P116: Germany
A117: HumptyTrump | B117: 2.5 | C117: 11 | D117: 15 | E117: -4 | F117: 11 | G117: 9 | H117: 2 | I117: 12 | J117: 12 | K117: 2 | L117: 1 | M117: 5 | N117: 30 | P117: Scotland
A118: Juniooor7 | B118: 2.5 | C118: 10 | D118: 13 | E118: -3 | F118: 18 | G118: 11 | H118: 7 | I118: 12 | J118: 13 | K118: 2 | L118: 1 | M118: 5 | N118: 28 | P118: Poland
A119: JimJimany | B119: 2.5 | C119: 12 | D119: 18 | E119: -6 | F119: 12 | G119: 13 | H119: -1 | I119: 11 | J119: 14 | K119: 2 | L119: 1 | M119: 5 | N119: 27.5 | P119: England
A120: Wolio | B120: 2.5 | C120: 9 | D120: 13 | E120: -4 | F120: 15 | G120: 11 | H120: 4 | I120: 13 | J120: 13 | K120: 2 | L120: 1 | M120: 5 | N120: 27 | P120: Hungary
A121: Farina | B121: 2.5 | C121: 10 | D121: 13 | E121: -3 | F121: 10 | G121: 11 | H121: -1 | I121: 10 | J121: 12 | K121: 1 | L121: 3 | M121: 4 | N121: 24.5 | P121: Italy
A122: Skoberget | B122: 2 | C122: 10 | D122: 14 | E122: -4 | F122: 13 | G122: 8 | H122: 5 | I122: 11 | J122: 13 | L122: 4 | M122: 4 | N122: 26.5 | P122: Sweden
A123: BudWiser | B123: 2 | C123: 7 | D123: 12 | E123: -5 | F123: 9 | G123: 14 | H123: -5 | I123: 11 | J123: 12 | K123: 1 | L123: 2 | M123: 5 | N123: 26 | P123: France
A124: Valen | B124: 2 | C124: 14 | D124: 18 | E124: -4 | F124: 13 | G124: 10 | H124: 3 | I124: 14 | J124: 11 | K124: 1 | L124: 2 | M124: 5 | N124: 24.5 | P124: Scotland
A125: Driesfield | B125: 2 | C125: 10 | D125: 18 | E125: -8 | F125: 11 | G125: 15 | H125: -4 | I125: 11 | J125: 14 | K125: 1 | L125: 2 | M125: 5 | N125: 21 | P125: Belgium
A126: Pidpad | B126: 1.5 | C126: 12 | D126: 19 | E126: -7 | F126: 14 | G126: 15 | H126: -1 | I126: 12 | J126: 11 | L126: 3 | M126: 5 | N126: 35.5 | P126: Sweden
A127: JamesEs | B127: 1.5 | C127: 6 | D127: 15 | E127: -9 | F127: 15 | G127: 15 | H127: 0 | I127: 11 | J127: 8 | K127: 1 | L127: 1 | M127: 6 | N127: 30.5 | P127: Scotland
A128: Northernknight | B128: 1.5 | C128: 8 | D128: 17 | E128: -9 | F128: 14 | G128: 15 | H128: -1 | I128: 8 | J128: 15 | L128: 3 | M128: 5 | N128: 29 | P128: Wales
A129: Duke_Luthor_Von_Hawkfire | B129: 1 | C129: 7 | D129: 15 | E129: -8 | F129: 13 | G129: 10 | H129: 3 | I129: 14 | J129: 9 | L129: 2 | M129: 6 | N129: 22.5 | P129: Spain

Sheet Stunty
A1: Player | B1: Points | C1: TD For | D1: TD Against | E1: TD Net | F1: Cas For | G1: Cas Against | H1: Cas Net | I1: Bonus1 | J1: Bonus2 | K1: Wins | L1: Draws | M1: Losses | N1: Opp Score | O1: Race | P1: Group
A2: Domingo | B2: 6.5 | C2: 12 | D2: 5 | E2: 7 | F2: 11 | G2: 14 | H2: -3 | I2: 14 | J2: 10 | K2: 6 | L2: 1 | M2: 1 | N2: 37 | O2: Ogres | P2: Poland
A3: mynock | B3: 5.5 | C3: 15 | D3: 10 | E3: 5 | F3: 8 | G3: 17 | H3: -9 | I3: 16 | J3: 16 | K3: 4 | L3: 3 | M3: 1 | N3: 36 | O3: Goblins | P3: Norway
A4: Phifoe | B4: 5 | C4: 13 | D4: 9 | E4: 4 | F4: 10 | G4: 14 | H4: -4 | I4: 10 | J4: 16 | K4: 4 | L4: 2 | M4: 2 | N4: 35.5 | O4: Goblins | P4: Switzerland
A5: Mufflo | B5: 4.5 | C5: 13 | D5: 14 | E5: -1 | F5: 9 | G5: 10 | H5: -1 | I5: 14 | J5: 12 | K5: 4 | L5: 1 | M5: 3 | N5: 41 | O5: Ogres | P5: Viking
A6: zulu | B6: 4.5 | C6: 12 | D6: 11 | E6: 1 | F6: 15 | G6: 17 | H6: -2 | I6: 12 | J6: 11 | K6: 2 | L6: 5 | M6: 1 | N6: 29 | O6: Goblins | P6: Norway
A7: Strider84 | B7: 4 | C7: 12 | D7: 13 | E7: -1 | F7: 7 | G7: 12 | H7: -5 | I7: 8 | J7: 13 | K7: 3 | L7: 2 | M7: 3 | N7: 33 | O7: Goblins | P7: Switzerland
A8: Araznaroth | B8: 4 | C8: 15 | D8: 16 | E8: -1 | F8: 17 | G8: 11 | H8: 6 | I8: 12 | J8: 12 | K8: 2 | L8: 4 | M8: 2 | N8: 25 | O8: Goblins | P8: Belgium
A9: Lycos | B9: 3.5 | C9: 12 | D9: 13 | E9: -1 | F9: 15 | G9: 14 | H9: 1 | I9: 11 | J9: 12 | K9: 2 | L9: 3 | M9: 3 | N9: 36 | O9: Ogres | P9: England
A10: andydavo | B10: 3 | C10: 6 | D10: 8 | E10: -2 | F10: 12 | G10: 13 | H10: -1 | I10: 12 | J10: 13 | K10: 1 | L10: 4 | M10: 3 | N10: 31.5 | O10: Ogres | P10: Wales
A11: JohnnyD | B11: 3 | C11: 11 | D11: 14 | E11: -3 | F11: 12 | G11: 14 | H11: -2 | I11: 10 | J11: 12 | K11: 2 | L11: 2 | M11: 4 | N11: 22.5 | O11: Halflings | P11: Sweden
A12: JimJimany | B12: 2.5 | C12: 12 | D12: 18 | E12: -6 | F12: 12 | G12: 13 | H12: -1 | I12: 11 | J12: 14 | K12: 2 | L12: 1 | M12: 5 | N12: 27.5 | O12: Goblins | P12: England

Sheet GroupFixtures
A1: Round: 8 | C1: Home | D1: Away | M1: Points Before Games
A2: Swaps: 15 | C2: Switzerland | D2: France | M2: Switzerland | N2: 38
C3: Poland | D3: Denmark | M3: Viking | N3: 36.5
C4: Belgium | D4: Sweden | M4: Italy | N4: 36
C5: Finland | D5: Hungary | M5: France | N5: 35
C6: England | D6: Norway | M6: Norway | N6: 34
C7: Wales | D7: Viking | M7: Finland | N7: 33
C8: Germany | D8: Italy | M8: Poland | N8: 33
C9: Spain | D9: Scotland | M9: Hungary | N9: 32.5
M10: Sweden | N10: 31.5
M11: Denmark | N11: 31
M12: Scotland | N12: 29.5
M13: England | N13: 29
M14: Belgium | N14: 29
M15: Germany | N15: 27
M16: Spain | N16: 25.5
M17: Wales | N17: 23.5

Sheet GroupMatrix
B1: Belgium | C1: Denmark | D1: England | E1: Finland | F1: France | G1: Germany | H1: Hungary | I1: Italy | J1: Norway | K1: Poland | L1: Scotland | M1: Spain | N1: Sweden | O1: Switzerland | P1: Viking | Q1: Wales
A2: Belgium | D2: Rd 2 - 5.5 | G2: Rd 1 - 2 | H2: Rd 3 - 1.5 | K2: Rd 7 - 2.5 | L2: Rd 5 - 3.5 | M2: Rd 6 - 7.5 | N2: Rd 8 - 4.5 | Q2: Rd 4 - 6.5
A3: Denmark | E3: Rd 4 - 3.5 | F3: Rd 7 - 2 | H3: Rd 2 - 6 | J3: Rd 5 - 4.5 | K3: Rd 8 - 6.5 | M3: Rd 3 - 7 | N3: Rd 6 - 4.5 | O3: Rd 1 - 3.5
A4: England | B4: Rd 2 - 3.5 | E4: Rd 1 - 1.5 | F4: Rd 4 - 2.5 | G4: Rd 5 - 5.5 | J4: Rd 8 - 3.5 | L4: Rd 6 - 5.5 | M4: Rd 7 - 4.5 | Q4: Rd 3 - 6
A5: Finland | C5: Rd 4 - 5.5 | D5: Rd 1 - 7.5 | F5: Rd 6 - 3.5 | G5: Rd 2 - 6.5 | H5: Rd 8 - 5.5 | I5: Rd 7 - 3.5 | O5: Rd 3 - 2 | P5: Rd 5 - 4.5
A6: France | C6: Rd 7 - 7 | D6: Rd 4 - 6.5 | E6: Rd 6 - 5.5 | J6: Rd 1 - 4.5 | K6: Rd 2 - 3.5 | L6: Rd 3 - 2.5 | N6: Rd 5 - 5.5 | O6: Rd 8 - 3.5
A7: Germany | B7: Rd 1 - 7 | D7: Rd 5 - 3.5 | E7: Rd 2 - 2.5 | H7: Rd 4 - 3.5 | I7: Rd 8 - 5.5 | L7: Rd 7 - 4.5 | P7: Rd 3 - 1.5 | Q7: Rd 6 - 4.5
A8: Hungary | B8: Rd 3 - 7.5 | C8: Rd 2 - 3 | E8: Rd 8 - 3.5 | G8: Rd 4 - 5.5 | I8: Rd 6 - 5.5 | M8: Rd 5 - 4.5 | N8: Rd 1 - 3.5 | P8: Rd 7 - 3
A9: Italy | E9: Rd 7 - 5.5 | G9: Rd 8 - 3.5 | H9: Rd 6 - 3.5 | K9: Rd 3 - 4.5 | L9: Rd 4 - 7.5 | O9: Rd 5 - 4.5 | P9: Rd 2 - 4.5 | Q9: Rd 1 - 6
A10: Norway | C10: Rd 5 - 4.5 | D10: Rd 8 - 5.5 | F10: Rd 1 - 4.5 | K10: Rd 4 - 6 | L10: Rd 2 - 4.5 | N10: Rd 3 - 5.5 | O10: Rd 7 - 2.5 | P10: Rd 6 - 6.5
A11: Poland | B11: Rd 7 - 6.5 | C11: Rd 8 - 2.5 | F11: Rd 2 - 5.5 | I11: Rd 3 - 4.5 | J11: Rd 4 - 3 | L11: Rd 1 - 5.5 | O11: Rd 6 - 3.5 | Q11: Rd 5 - 4.5
A12: Scotland | B12: Rd 5 - 5.5 | D12: Rd 6 - 3.5 | F12: Rd 3 - 6.5 | G12: Rd 7 - 4.5 | I12: Rd 4 - 1.5 | J12: Rd 2 - 4.5 | K12: Rd 1 - 3.5 | M12: Rd 8 - 4.5
A13: Spain | B13: Rd 6 - 1.5 | C13: Rd 3 - 2 | D13: Rd 7 - 4.5 | H13: Rd 5 - 4.5 | L13: Rd 8 - 4.5 | N13: Rd 4 - 3 | P13: Rd 1 - 3.5 | Q13: Rd 2 - 6.5
A14: Sweden | B14: Rd 8 - 4.5 | C14: Rd 6 - 4.5 | F14: Rd 5 - 3.5 | H14: Rd 1 - 5.5 | J14: Rd 3 - 3.5 | M14: Rd 4 - 6 | O14: Rd 2 - 3 | Q14: Rd 7 - 5.5
A15: Switzerland | C15: Rd 1 - 5.5 | E15: Rd 3 - 7 | F15: Rd 8 - 5.5 | I15: Rd 5 - 4.5 | J15: Rd 7 - 6.5 | K15: Rd 6 - 5.5 | N15: Rd 2 - 6 | P15: Rd 4 - 3
A16: Viking | E16: Rd 5 - 4.5 | G16: Rd 3 - 7.5 | H16: Rd 7 - 6 | I16: Rd 2 - 4.5 | J16: Rd 6 - 2.5 | M16: Rd 1 - 5.5 | O16: Rd 4 - 6 | Q16: Rd 8 - 1.5
A17: Wales | B17: Rd 4 - 2.5 | D17: Rd 3 - 3 | G17: Rd 6 - 4.5 | I17: Rd 1 - 3 | K17: Rd 5 - 4.5 | M17: Rd 2 - 2.5 | N17: Rd 7 - 3.5 | P17: Rd 8 - 7.5

Sheet GroupTable
A1: Group | B1: Points | C1: TD For | D1: TD Against | E1: Net TDs | F1: Cas For | G1: Cas Against | H1: Net Cas | I1: Group Total Bonus1 | J1: Group Total Bonus2 | K1: Group Wins | L1: Groups Draws | M1: Group Losses | N1: Individual Wins | O1: Individual Draws | P1: Individual Losses | Q1: Total Individual Points | R1: Opponent Score
A2: Switzerland | B2: 43.5 | C2: 102 | D2: 86 | E2: 16 | F2: 83 | G2: 94 | H2: -11 | I2: 99 | J2: 113 | K2: 6 | L2: 1 | M2: 1 | N2: 30 | O2: 14 | P2: 20 | Q2: 37 | R2: 303
A3: Norway | B3: 39.5 | C3: 93 | D3: 89 | E3: 4 | F3: 103 | G3: 91 | H3: 12 | I3: 105 | J3: 106 | K3: 4 | L3: 3 | M3: 1 | N3: 21 | O3: 26 | P3: 17 | Q3: 34 | R3: 295.5
A4: Italy | B4: 39.5 | C4: 93 | D4: 85 | E4: 8 | F4: 94 | G4: 106 | H4: -12 | I4: 93 | J4: 98 | K4: 3 | L4: 3 | M4: 2 | N4: 25 | O4: 20 | P4: 19 | Q4: 35 | R4: 289
A5: Finland | B5: 38.5 | C5: 101 | D5: 99 | E5: 2 | F5: 95 | G5: 87 | H5: 8 | I5: 86 | J5: 80 | K5: 4 | L5: 1 | M5: 3 | N5: 26 | O5: 16 | P5: 22 | Q5: 34 | R5: 298
A6: France | B6: 38.5 | C6: 96 | D6: 92 | E6: 4 | F6: 89 | G6: 94 | H6: -5 | I6: 84 | J6: 108 | K6: 4 | L6: 1 | M6: 3 | N6: 23 | O6: 22 | P6: 19 | Q6: 34 | R6: 297
A7: Viking | B7: 38 | C7: 101 | D7: 95 | E7: 6 | F7: 102 | G7: 97 | H7: 5 | I7: 101 | J7: 83 | K7: 4 | L7: 2 | M7: 2 | N7: 22 | O7: 22 | P7: 20 | Q7: 33 | R7: 290.5
A8: Denmark | B8: 37.5 | C8: 94 | D8: 94 | E8: 0 | F8: 80 | G8: 90 | H8: -10 | I8: 100 | J8: 84 | K8: 3 | L8: 2 | M8: 3 | N8: 24 | O8: 19 | P8: 21 | Q8: 33.5 | R8: 297.5
A9: Sweden | B9: 36 | C9: 102 | D9: 104 | E9: -2 | F9: 99 | G9: 106 | H9: -7 | I9: 91 | J9: 90 | K9: 3 | L9: 2 | M9: 3 | N9: 23 | O9: 18 | P9: 23 | Q9: 32 | R9: 289.5
A10: Hungary | B10: 36 | C10: 91 | D10: 89 | E10: 2 | F10: 103 | G10: 89 | H10: 14 | I10: 99 | J10: 102 | K10: 3 | L10: 1 | M10: 4 | N10: 21 | O10: 23 | P10: 20 | Q10: 32.5 | R10: 285.5
A11: Poland | B11: 35.5 | C11: 93 | D11: 92 | E11: 1 | F11: 99 | G11: 92 | H11: 7 | I11: 97 | J11: 97 | K11: 3 | L11: 2 | M11: 3 | N11: 20 | O11: 23 | P11: 21 | Q11: 31.5 | R11: 297
A12: Scotland | B12: 34 | C12: 101 | D12: 99 | E12: 2 | F12: 97 | G12: 93 | H12: 4 | I12: 95 | J12: 99 | K12: 2 | L12: 3 | M12: 3 | N12: 21 | O12: 19 | P12: 24 | Q12: 30.5 | R12: 281.5
A13: Belgium | B13: 33.5 | C13: 99 | D13: 112 | E13: -13 | F13: 117 | G13: 105 | H13: 12 | I13: 96 | J13: 97 | K13: 3 | L13: 1 | M13: 4 | N13: 21 | O13: 18 | P13: 25 | Q13: 30 | R13: 267.5
A14: Germany | B14: 32.5 | C14: 98 | D14: 105 | E14: -7 | F14: 102 | G14: 99 | H14: 3 | I14: 88 | J14: 110 | K14: 2 | L14: 2 | M14: 4 | N14: 21 | O14: 17 | P14: 26 | Q14: 29.5 | R14: 283
A15: England | B15: 32.5 | C15: 97 | D15: 101 | E15: -4 | F15: 91 | G15: 102 | H15: -11 | I15: 93 | J15: 108 | K15: 3 | L15: 1 | M15: 4 | N15: 18 | O15: 22 | P15: 24 | Q15: 29 | R15: 277.5
A16: Wales | B16: 31 | C16: 93 | D16: 101 | E16: -8 | F16: 99 | G16: 100 | H16: -1 | I16: 94 | J16: 98 | K16: 1 | L16: 2 | M16: 5 | N16: 18 | O16: 22 | P16: 24 | Q16: 29 | R16: 277.5
A17: Spain | B17: 30 | C17: 97 | D17: 108 | E17: -11 | F17: 91 | G17: 99 | H17: -8 | I17: 103 | J17: 95 | K17: 1 | L17: 3 | M17: 4 | N17: 17 | O17: 21 | P17: 26 | Q17: 27.5 | R17: 278.5

Sheet Matrix
B1: Niebling | C1: PurpleGoo | D1: Mubo | E1: Dirold | F1: The_Ref | G1: Tripleskull | H1: MissSweden | I1: Topper | J1: Joemanji | K1: edheim | L1: FrankPedersen | M1: Obeliz | N1: Northernknight | O1: Woete | P1: RoterSternHochdahl | Q1: Jonny_Kanone | R1: Itzla | S1: Farina | T1: Garrick | U1: Dark Duke | V1: 20Phoenix | W1: Malodoror | X1: Bouzzy | Y1: DocMaxx | Z1: BlackOrc | AA1: Kaltenland | AB1: Shawass | AC1: Malasnoticias | AD1: Macabeo | AE1: Corwin | AF1: SFisher91 | AG1: Phoenix11 | AH1: Wolio | AI1: Reszka | AJ1: Slimaq | AK1: Skuld | AL1: Balder | AM1: Dionysian | AN1: Harza | AO1: Idroj | AP1: Faccko | AQ1: MacWitt | AR1: Pellevin | AS1: Araznaroth | AT1: JimJimany | AU1: zulu | AV1: mynock | AW1: Strider84 | AX1: Phifoe | AY1: JohnnyD | AZ1: Dekra1979 | BA1: straume | BB1: Barry | BC1: Tactel | BD1: Pidpad | BE1: Elrik | BF1: Simon_ACP | BG1: sann0638 | BH1: Goss | BI1: Muadib | BJ1: swifty | BK1: Matte8 | BL1: Joanet | BM1: SpecialOne | BN1: Prince | BO1: GreatWhiteHope | BP1: Bernuz | BQ1: MadeofWelsh | BR1: Tank | BS1: BeerBeer | BT1: ratogre | BU1: BudWiser | BV1: Gros Nain | BW1: Warrior1980 | BX1: Juniooor7 | BY1: Madmatt13 | BZ1: jopotzuki | CA1: J-Ho | CB1: Verrinho | CC1: Valen | CD1: Lycos | CE1: Domingo | CF1: Mufflo | CG1: andydavo | CH1: Geggster | CI1: Arioso | CJ1: Gaunab | CK1: Alex05 | CL1: Beppe | CM1: Melisqus | CN1: Dragons | CO1: Jaqra | CP1: Harti | CQ1: Favi | CR1: Spartako | CS1: DonShula | CT1: HumptyTrump | CU1: Purrelito | CV1: nonumber | CW1: Driesfield | CX1: kfoged | CY1: Podfrey | CZ1: valkohukka | DA1: Skoberget | DB1: brocCooli | DC1: Ploppy_McPloppy | DD1: BiBi | DE1: Matt le fou | DF1: Candlejack | DG1: Purdindas | DH1: JJ | DI1: Wilzif | DJ1: noraal | DK1: cz | DL1: Loki | DM1: gninocker | DN1: Mewash | DO1: Leonek | DP1: JamesEs | DQ1: Duke_Luthor_Von_Hawkfire | DR1: Jokaero | DS1: Duckwing | DT1: Justicium | DU1: Liam | DV1: Endalos | DW1: bothun | DX1: Inforthepain | DY1: sigu70
A2: Niebling | AC2: R3, 1 - 0 | AV2: R5, 0.5 - 0.5 | AX2: R1, 0.5 - 0.5 | BZ2: R4, 0.5 - 0.5 | CN2: R6, 0 - 1 | CP2: R7, 0 - 1 | CQ2: R2, 1 - 0 | CW2: R1, 1 - 0 | CX2: R5, 1 - 0 | CY2: R1, 1 - 0 | CZ2: R3, 0 - 1 | DB2: R4, 1 - 0 | DC2: R6, 1 - 0 | DE2: R1, 0.5 - 0.5 | DF2: R4, 4 - 18 | DG2: R2, 0 - 1 | DI2: R4, 1 - 0 | DK2: R5, 0 - 1 | DL2: R7, 0.5 - 0.5 | DM2: R1, 1 - 0 | DN2: R8, 1 - 0 | DO2: R3, 0 - 1 | DP2: R3, 1 - 0 | DQ2: R3, 23 - 5 | DS2: R3, 0 - 1 | DU2: R1, 0 - 1 | DX2: R3, 1 - 0 | DY2: R5, 1 - 0
A3: PurpleGoo | P3: R5, 1 - 0 | AG3: R2, 0.5 - 0.5 | AN3: R1, 0 - 1 | BA3: R8, 0 - 1 | BF3: R4, 0.5 - 0.5 | BG3: R6, 0 - 1 | BL3: R7, 0.5 - 0.5 | CV3: R3, 0.5 - 0.5 | CX3: R1, 0.5 - 0.5 | CZ3: R4, 0.5 - 0.5 | DA3: R5, 0.5 - 0.5 | DB3: R2, 0 - 1 | DC3: R1, 1 - 0 | DF3: R4, 0.5 - 0.5 | DH3: R3, 1 - 0 | DJ3: R1, 0.5 - 0.5 | DL3: R3, 0.5 - 0.5 | DQ3: R1, 1 - 0 | DR3: R3, 0 - 1 | DS3: R5, 1 - 0 | DV3: R4, 5 - 22 | DW3: R6, 0 - 1
A4: Mubo | AZ4: R2, 0.5 - 0.5 | BB4: R7, 1 - 0 | BI4: R5, 1 - 0 | BO4: R8, 0.5 - 0.5 | BZ4: R1, 0 - 1 | CS4: R6, 0 - 1 | CW4: R1, 0.5 - 0.5 | CX4: R4, 0.5 - 0.5 | CY4: R1, 0 - 1 | CZ4: R2, 0.5 - 0.5 | DB4: R3, 0 - 1 | DC4: R3, 1 - 0 | DD4: R4, 0 - 1 | DE4: R4, 0.5 - 0.5 | DF4: R5, 3 - 20 | DG4: R4, 0 - 1 | DJ4: R5, 0 - 1 | DK4: R6, 1 - 0 | DL4: R6, 1 - 0 | DM4: R1, 1 - 0 | DN4: R3, 1 - 0 | DO4: R2, 0 - 1 | DP4: R1, 0.5 - 0.5 | DQ4: R2, 0 - 1 | DT4: R2, 0 - 1 | DU4: R2, 22 - 6 | DV4: R5, 0.5 - 0.5 | DW4: R5, 1 - 0 | DX4: R2, 0 - 1
A5: Dirold | BE5: R5, 0 - 1 | BQ5: R1, 0.5 - 0.5 | BX5: R3, 1 - 0 | CA5: R7, 1 - 0 | CJ5: R8, 0 - 1 | CW5: R4, 0 - 1 | CX5: R5, 0.5 - 0.5 | CY5: R1, 0 - 1 | CZ5: R1, 1 - 0 | DA5: R1, 0.5 - 0.5 | DB5: R2, 0 - 1 | DC5: R4, 0.5 - 0.5 | DD5: R3, 0.5 - 0.5 | DE5: R7, 1 - 0 | DH5: R6, 0 - 1 | DI5: R1, 0 - 1 | DJ5: R3, 0.5 - 0.5 | DK5: R6, 0.5 - 0.5 | DL5: R4, 0.5 - 0.5 | DM5: R1, 1 - 0 | DN5: R4, 0.5 - 0.5 | DP5: R2, 1 - 0 | DQ5: R1, 0.5 - 0.5 | DR5: R3, 0 - 1 | DT5: R3, 21 - 4 | DU5: R2, 0 - 1 | DV5: R6, 0.5 - 0.5 | DX5: R3, 1 - 0 | DY5: R6, 19 - 3
A6: The_Ref | AI6: R4, 0.5 - 0.5 | BE6: R7, 0 - 1 | CC6: R2, 1 - 0 | CH6: R8, 0.5 - 0.5 | CM6: R3, 0.5 - 0.5 | CO6: R5, 0.5 - 0.5 | CY6: R5, 0 - 1 | CZ6: R2, 1 - 0 | DA6: R1, 0.5 - 0.5 | DB6: R2, 0.5 - 0.5 | DD6: R1, 0 - 1 | DE6: R4, 1 - 0 | DF6: R5, 1 - 0 | DG6: R4, 0 - 1 | DH6: R1, 0 - 1 | DI6: R5, 0 - 1 | DJ6: R3, 0.5 - 0.5 | DK6: R1, 0 - 1 | DL6: R1, 0.5 - 0.5 | DO6: R5, 0 - 1 | DP6: R1, 0.5 - 0.5 | DS6: R6, 1 - 0 | DT6: R3, 1 - 0 | DW6: R2, 1 - 0 | DY6: R6, 0 - 1
A7: Tripleskull | BH7: R1, 0 - 1 | BJ7: R2, 0 - 1 | BU7: R7, 1 - 0 | BW7: R8, 0.5 - 0.5 | CW7: R5, 1 - 0 | CX7: R1, 0 - 1 | CY7: R5, 0.5 - 0.5 | CZ7: R4, 0 - 1 | DA7: R6, 0.5 - 0.5 | DC7: R4, 0.5 - 0.5 | DE7: R4, 0.5 - 0.5 | DF7: R6, 0.5 - 0.5 | DG7: R1, 0.5 - 0.5 | DH7: R3, 1 - 0 | DI7: R3, 1 - 0 | DJ7: R6, 0.5 - 0.5 | DK7: R3, 0.5 - 0.5 | DL7: R2, 1 - 0 | DM7: R2, 1 - 0 | DN7: R3, 0.5 - 0.5 | DO7: R1, 1 - 0 | DP7: R7, 1 - 0 | DQ7: R3, 1 - 0 | DR7: R5, 0.5 - 0.5 | DU7: R3, 1 - 0 | DV7: R2, 1 - 0 | DW7: R5, 0 - 1
A8: MissSweden | L8: R5, 1 - 0 | U8: R3, 1 - 0 | AB8: R8, 0 - 1 | AD8: R1, 0 - 1 | AH8: R2, 1 - 0 | AQ8: R4, 0.5 - 0.5 | AR8: R6, 0 - 1 | CW8: R1, 1 - 0 | CY8: R4, 0 - 1 | CZ8: R1, 1 - 0 | DA8: R3, 1 - 0 | DB8: R1, 1 - 0 | DD8: R5, 0.5 - 0.5 | DF8: R3, 0 - 1 | DG8: R7, 0 - 1 | DH8: R4, 1 - 0 | DJ8: R2, 1 - 0 | DL8: R1, 0 - 1 | DM8: R5, 1 - 0 | DN8: R1, 1 - 0 | DO8: R2, 0 - 1 | DQ8: R1, 0.5 - 0.5 | DT8: R7, 0 - 1 | DV8: R3, 0.5 - 0.5 | DW8: R5, 0.5 - 0.5 | DY8: R2, 0 - 1
A9: Topper | BB9: R3, 1 - 0 | BO9: R5, 0.5 - 0.5 | BT9: R4, 1 - 0 | BY9: R1, 1 - 0 | CE9: R8, 1 - 0 | CW9: R1, 0 - 1 | CX9: R1, 1 - 0 | CY9: R1, 0.5 - 0.5 | CZ9: R5, 0 - 1 | DC9: R3, 0 - 1 | DD9: R7, 0.5 - 0.5 | DF9: R1, 1 - 0 | DH9: R4, 0 - 1 | DI9: R4, 0 - 1 | DJ9: R1, 0 - 1 | DK9: R2, 1 - 0 | DM9: R3, 0 - 1 | DO9: R2, 0.5 - 0.5 | DS9: R2, 1 - 0 | DT9: R4, 19 - 4 | DU9: R5, 0.5 - 0.5 | DV9: R2, 0.5 - 0.5 | DX9: R6, 0.5 - 0.5 | DY9: R3, 1 - 0
A10: Joemanji | Q10: R5, 1 - 0 | AM10: R3, 1 - 0 | AO10: R7, 1 - 0 | AV10: R8, 0.5 - 0.5 | BS10: R1, 0 - 1 | BV10: R4, 0 - 1 | CW10: R4, 1 - 0 | CY10: R1, 0.5 - 0.5 | CZ10: R3, 0 - 1 | DA10: R1, 1 - 0 | DB10: R2, 1 - 0 | DC10: R2, 0.5 - 0.5 | DD10: R2, 1 - 0 | DE10: R2, 1 - 0 | DF10: R1, 0.5 - 0.5 | DG10: R1, 0.5 - 0.5 | DH10: R2, 0.5 - 0.5 | DI10: R5, 0 - 1 | DK10: R1, 1 - 0 | DL10: R6, 1 - 0 | DM10: R6, 0.5 - 0.5 | DP10: R1, 0.5 - 0.5 | DQ10: R2, 0 - 1 | DR10: R3, 0.5 - 0.5 | DS10: R1, 0.5 - 0.5 | DT10: R1, 0.5 - 0.5 | DV10: R3, 1 - 0 | DW10: R4, 1 - 0 | DX10: R5, 0.5 - 0.5 | DY10: R1, 1 - 0
A11: edheim | R11: R8, 0 - 1 | AW11: R3, 1 - 0 | BM11: R4, 1 - 0 | BN11: R2, 1 - 0 | CB11: R7, 0 - 1 | CD11: R1, 0 - 1 | CX11: R1, 1 - 0 | CY11: R1, 1 - 0 | CZ11: R4, 1 - 0 | DA11: R1, 0 - 1 | DB11: R2, 1 - 0 | DC11: R1, 0.5 - 0.5 | DD11: R6, 0.5 - 0.5 | DE11: R1, 0 - 1 | DF11: R3, 1 - 0 | DH11: R2, 0.5 - 0.5 | DI11: R2, 0.5 - 0.5 | DJ11: R1, 0.5 - 0.5 | DK11: R2, 1 - 0 | DL11: R6, 1 - 0 | DM11: R7, 0.5 - 0.5 | DN11: R1, 0.5 - 0.5 | DP11: R2, 1 - 0 | DS11: R5, 1 - 0 | DT11: R5, 0 - 1 | DV11: R1, 0.5 - 0.5 | DW11: R1, 0 - 1 | DX11: R1, 0.5 - 0.5 | DY11: R4, 1 - 0
A12: FrankPedersen | H12: R5, 0 - 1 | T12: R2, 0 - 1 | AB12: R4, 0.5 - 0.5 | AD12: R7, 0 - 1 | AL12: R6, 1 - 0 | CP12: R1, 0.5 - 0.5 | CW12: R1, 1 - 0 | CY12: R8, 0 - 1 | CZ12: R1, 0.5 - 0.5 | DA12: R3, 1 - 0 | DB12: R3, 0 - 1 | DC12: R3, 0.5 - 0.5 | DD12: R1, 1 - 0 | DF12: R2, 0.5 - 0.5 | DG12: R2, 1 - 0 | DH12: R1, 1 - 0 | DJ12: R4, 20 - 3 | DK12: R2, 1 - 0 | DM12: R2, 1 - 0 | DO12: R1, 0.5 - 0.5 | DR12: R1, 0.5 - 0.5 | DT12: R3, 1 - 0 | DU12: R1, 1 - 0 | DW12: R1, 0 - 1
A13: Obeliz | AS13: R6, 0.5 - 0.5 | BP13: R1, 0.5 - 0.5 | CG13: R2, 0.5 - 0.5 | CH13: R7, 0.5 - 0.5 | CM13: R4, 0 - 1 | CO13: R3, 0.5 - 0.5 | CQ13: R5, 0.5 - 0.5 | CW13: R4, 0.5 - 0.5 | CZ13: R1, 0.5 - 0.5 | DA13: R1, 0.5 - 0.5 | DB13: R1, 0 - 1 | DC13: R2, 0.5 - 0.5 | DD13: R4, 0 - 1 | DE13: R3, 0 - 1 | DF13: R2, 0 - 1 | DG13: R3, 0.5 - 0.5 | DH13: R2, 0.5 - 0.5 | DJ13: R2, 1 - 0 | DL13: R8, 0.5 - 0.5 | DM13: R1, 1 - 0 | DP13: R4, 0 - 1 | DQ13: R2, 0 - 1 | DR13: R3, 0.5 - 0.5 | DU13: R4, 0 - 1 | DV13: R5, 0 - 1 | DW13: R1, 1 - 0 | DX13: R5, 0 - 1 | DY13: R1, 1 - 0
A14: Northernknight | Q14: R6, 0 - 1 | AG14: R4, 0 - 1 | AO14: R2, 0 - 1 | AT14: R3, 0 - 1 | AY14: R7, 0 - 1 | CU14: R8, 0.5 - 0.5 | CX14: R2, 0 - 1 | CZ14: R1, 0.5 - 0.5 | DA14: R4, 0 - 1 | DC14: R1, 0 - 1 | DD14: R6, 1 - 0 | DE14: R2, 1 - 0 | DI14: R2, 1 - 0 | DJ14: R2, 6 - 22 | DK14: R6, 0.5 - 0.5 | DN14: R5, 0.5 - 0.5 | DO14: R7, 0 - 1 | DP14: R2, 0 - 1 | DQ14: R1, 1 - 0 | DR14: R5, 0.5 - 0.5 | DT14: R1, 0.5 - 0.5 | DU14: R1, 0.5 - 0.5 | DV14: R6, 20 - 3 | DW14: R1, 0 - 1 | DX14: R1, 0 - 1
A15: Woete | T15: R5, 0 - 1 | AB15: R7, 1 - 0 | AF15: R4, 1 - 0 | BB15: R6, 1 - 0 | CI15: R1, 0 - 1 | CW15: R1, 0 - 1 | CX15: R1, 0.5 - 0.5 | CY15: R1, 1 - 0 | DB15: R3, 0.5 - 0.5 | DC15: R2, 1 - 0 | DE15: R3, 1 - 0 | DF15: R1, 0 - 1 | DG15: R1, 0.5 - 0.5 | DI15: R2, 1 - 0 | DJ15: R1, 0.5 - 0.5 | DK15: R3, 0.5 - 0.5 | DL15: R1, 1 - 0 | DN15: R2, 0.5 - 0.5 | DO15: R2, 0 - 1 | DP15: R6, 0 - 1 | DR15: R1, 0.5 - 0.5 | DT15: R4, 0 - 1 | DV15: R1, 0.5 - 0.5 | DW15: R3, 1 - 0 | DX15: R8, 0 - 1
A16: RoterSternHochdahl | C16: R5, 0 - 1 | S16: R8, 1 - 0 | W16: R1, 0 - 1 | AL16: R3, 0 - 1 | CA16: R2, 0.5 - 0.5 | CQ16: R4, 0.5 - 0.5 | CV16: R6, 0 - 1 | CW16: R1, 0.5 - 0.5 | CX16: R4, 0 - 1 | CY16: R1, 0.5 - 0.5 | DA16: R2, 0 - 1 | DB16: R1, 0 - 1 | DC16: R2, 19 - 3 | DD16: R2, 0 - 1 | DE16: R2, 1 - 0 | DF16: R2, 1 - 0 | DG16: R2, 1 - 0 | DH16: R1, 1 - 0 | DI16: R3, 0 - 1 | DL16: R5, 0.5 - 0.5 | DM16: R2, 0 - 1 | DN16: R1, 1 - 0 | DO16: R2, 1 - 0 | DP16: R7, 1 - 0 | DR16: R7, 1 - 0 | DS16: R1, 0.5 - 0.5 | DT16: R1, 1 - 0 | DU16: R1, 0.5 - 0.5 | DX16: R3, 0.5 - 0.5
A17: Jonny_Kanone | J17: R5, 0 - 1 | N17: R6, 1 - 0 | AA17: R8, 0 - 1 | AS17: R1, 1 - 0 | BP17: R3, 0 - 1 | BT17: R2, 0 - 1 | CT17: R7, 0.5 - 0.5 | CW17: R1, 1 - 0 | CX17: R1, 0.5 - 0.5 | CY17: R4, 0.5 - 0.5 | DA17: R1, 0 - 1 | DB17: R3, 0.5 - 0.5 | DD17: R2, 0.5 - 0.5 | DI17: R1, 0 - 1 | DJ17: R4, 0 - 1 | DK17: R1, 1 - 0 | DL17: R2, 0.5 - 0.5 | DO17: R1, 0.5 - 0.5 | DP17: R1, 0 - 1 | DS17: R1, 1 - 0 | DT17: R2, 0 - 1 | DU17: R1, 1 - 0 | DV17: R1, 1 - 0 | DW17: R5, 0.5 - 0.5
A18: Itzla | K18: R8, 1 - 0 | AO18: R5, 0 - 1 | AP18: R7, 0.5 - 0.5 | CB18: R6, 0.5 - 0.5 | CI18: R4, 1 - 0 | CW18: R2, 0 - 1 | CX18: R2, 0.5 - 0.5 | CY18: R6, 1 - 0 | CZ18: R1, 1 - 0 | DA18: R1, 1 - 0 | DB18: R3, 0 - 1 | DC18: R4, 1 - 0 | DD18: R6, 0.5 - 0.5 | DE18: R1, 0 - 1 | DF18: R4, 1 - 0 | DH18: R1, 1 - 0 | DI18: R2, 0.5 - 0.5 | DL18: R1, 0 - 1 | DM18: R3, 1 - 0 | DN18: R3, 1 - 0 | DO18: R1, 0.5 - 0.5 | DQ18: R2, 0 - 1 | DT18: R2, 1 - 0 | DU18: R1, 0 - 1 | DX18: R1, 0.5 - 0.5 | DY18: R2, 12 - 10
A19: Farina | P19: R8, 0 - 1 | AJ19: R3, 0 - 1 | AN19: R7, 1 - 0 | CC19: R4, 0.5 - 0.5 | CQ19: R6, 0.5 - 0.5 | CU19: R2, 0 - 1 | CW19: R2, 0 - 1 | CX19: R2, 1 - 0 | CZ19: R2, 1 - 0 | DA19: R3, 0.5 - 0.5 | DC19: R1, 0 - 1 | DE19: R5, 0 - 1 | DF19: R4, 0.5 - 0.5 | DG19: R2, 0 - 1 | DI19: R3, 1 - 0 | DK19: R4, 0 - 1 | DM19: R1, 1 - 0 | DN19: R1, 0.5 - 0.5 | DO19: R2, 0 - 1 | DP19: R1, 1 - 0 | DQ19: R1, 0 - 1 | DR19: R5, 0.5 - 0.5 | DT19: R1, 0 - 1 | DU19: R5, 0 - 1 | DV19: R1, 1 - 0 | DY19: R3, 1 - 0
A20: Garrick | L20: R2, 1 - 0 | O20: R5, 1 - 0 | Y20: R7, 1 - 0 | AI20: R1, 0.5 - 0.5 | AO20: R8, 1 - 0 | CB20: R4, 0 - 1 | CW20: R3, 1 - 0 | CX20: R3, 0.5 - 0.5 | CY20: R6, 1 - 0 | CZ20: R5, 1 - 0 | DD20: R2, 0.5 - 0.5 | DE20: R3, 1 - 0 | DF20: R2, 0 - 1 | DG20: R4, 0.5 - 0.5 | DH20: R5, 1 - 0 | DI20: R3, 1 - 0 | DJ20: R3, 1 - 0 | DK20: R1, 0.5 - 0.5 | DL20: R2, 0.5 - 0.5 | DM20: R4, 0.5 - 0.5 | DN20: R1, 0.5 - 0.5 | DO20: R4, 0 - 1 | DT20: R1, 0.5 - 0.5 | DV20: R1, 0 - 1 | DW20: R2, 1 - 0 | DX20: R3, 1 - 0
A21: Dark Duke | H21: R3, 0 - 1 | V21: R2, 1 - 0 | AG21: R6, 0 - 1 | AP21: R1, 0 - 1 | BG21: R8, 0.5 - 0.5 | CW21: R5, 1 - 0 | CX21: R3, 0 - 1 | CY21: R7, 1 - 0 | CZ21: R6, 0 - 1 | DA21: R4, 1 - 0 | DC21: R1, 0.5 - 0.5 | DD21: R4, 0.5 - 0.5 | DF21: R5, 1 - 0 | DG21: R3, 0.5 - 0.5 | DH21: R4, 0 - 1 | DI21: R1, 1 - 0 | DJ21: R5, 0.5 - 0.5 | DK21: R2, 1 - 0 | DL21: R1, 1 - 0 | DN21: R5, 0 - 1 | DO21: R1, 1 - 0 | DP21: R1, 0.5 - 0.5 | DS21: R2, 0 - 1 | DU21: R6, 1 - 0 | DV21: R1, 0.5 - 0.5 | DW21: R1, 1 - 0 | DY21: R2, 1 - 0
A22: 20Phoenix | U22: R2, 0 - 1 | AK22: R7, 0.5 - 0.5 | BW22: R5, 1 - 0 | CF22: R8, 1 - 0 | CI22: R6, 0.5 - 0.5 | CL22: R1, 0 - 1 | CW22: R3, 22 - 4 | CX22: R2, 1 - 0 | CY22: R2, 0 - 1 | DA22: R1, 0.5 - 0.5 | DB22: R2, 1 - 0 | DC22: R1, 0 - 1 | DF22: R3, 0 - 1 | DH22: R4, 1 - 0 | DI22: R3, 1 - 0 | DJ22: R1, 1 - 0 | DK22: R3, 0.5 - 0.5 | DL22: R5, 0.5 - 0.5 | DM22: R3, 0.5 - 0.5 | DP22: R4, 1 - 0 | DQ22: R1, 0 - 1 | DR22: R1, 0.5 - 0.5 | DS22: R2, 1 - 0 | DU22: R1, 0 - 1 | DY22: R1, 1 - 0
A23: Malodoror | P23: R1, 1 - 0 | Z23: R3, 0.5 - 0.5 | AO23: R6, 1 - 0 | BQ23: R4, 0.5 - 0.5 | CE23: R7, 0 - 1 | CH23: R2, 1 - 0 | CN23: R8, 1 - 0 | CS23: R5, 0 - 1 | CW23: R4, 1 - 0 | CX23: R1, 0 - 1 | CY23: R3, 0.5 - 0.5 | CZ23: R2, 1 - 0 | DA23: R5, 0 - 1 | DB23: R1, 0.5 - 0.5 | DD23: R5, 0 - 1 | DE23: R2, 0 - 1 | DF23: R6, 0 - 1 | DH23: R3, 0 - 1 | DJ23: R1, 0.5 - 0.5 | DK23: R1, 1 - 0 | DL23: R2, 0 - 1 | DM23: R1, 0.5 - 0.5 | DN23: R2, 0 - 1 | DO23: R1, 0.5 - 0.5 | DP23: R3, 1 - 0 | DQ23: R4, 0.5 - 0.5 | DR23: R1, 1 - 0 | DU23: R5, 0.5 - 0.5 | DV23: R2, 0.5 - 0.5 | DX23: R1, 1 - 0
A24: Bouzzy | BA24: R1, 0.5 - 0.5 | BE24: R8, 0.5 - 0.5 | BG24: R3, 0.5 - 0.5 | BM24: R7, 0.5 - 0.5 | BZ24: R6, 0.5 - 0.5 | CM24: R5, 0.5 - 0.5 | CY24: R4, 1 - 0 | CZ24: R3, 0.5 - 0.5 | DA24: R3, 0.5 - 0.5 | DB24: R6, 1 - 0 | DD24: R2, 0 - 1 | DE24: R3, 0 - 1 | DF24: R3, 1 - 0 | DH24: R4, 0.5 - 0.5 | DI24: R1, 1 - 0 | DJ24: R2, 0 - 1 | DK24: R3, 1 - 0 | DL24: R1, 0.5 - 0.5 | DM24: R1, 1 - 0 | DO24: R2, 0.5 - 0.5 | DP24: R1, 0.5 - 0.5 | DQ24: R3, 0.5 - 0.5 | DR24: R2, 0.5 - 0.5 | DS24: R1, 0 - 1 | DU24: R2, 0 - 1 | DW24: R1, 1 - 0 | DX24: R5, 0 - 1 | DY24: R4, 1 - 0
A25: DocMaxx | T25: R7, 0 - 1 | AT25: R5, 1 - 0 | BJ25: R4, 1 - 0 | BQ25: R6, 0 - 1 | BS25: R2, 0.5 - 0.5 | CF25: R3, 0 - 1 | CL25: R8, 1 - 0 | CW25: R3, 0 - 1 | CX25: R4, 0.5 - 0.5 | CY25: R5, 0 - 1 | CZ25: R3, 0.5 - 0.5 | DA25: R2, 0 - 1 | DB25: R4, 0 - 1 | DC25: R2, 0.5 - 0.5 | DD25: R3, 0 - 1 | DG25: R5, 1 - 0 | DH25: R1, 1 - 0 | DJ25: R1, 1 - 0 | DL25: R3, 1 - 0 | DM25: R2, 1 - 0 | DN25: R2, 0 - 1 | DP25: R1, 0.5 - 0.5 | DQ25: R4, 0.5 - 0.5 | DS25: R1, 0.5 - 0.5 | DT25: R1, 0 - 1 | DX25: R2, 0.5 - 0.5
A26: BlackOrc | W26: R3, 0.5 - 0.5 | BB26: R5, 0.5 - 0.5 | BI26: R4, 0.5 - 0.5 | BZ26: R8, 0 - 1 | CF26: R7, 1 - 0 | CL26: R6, 1 - 0 | CO26: R2, 1 - 0 | CW26: R1, 1 - 0 | CX26: R2, 0 - 1 | DC26: R3, 0 - 1 | DD26: R1, 1 - 0 | DE26: R2, 1 - 0 | DG26: R3, 1 - 0 | DJ26: R1, 1 - 0 | DL26: R5, 1 - 0 | DM26: R3, 0.5 - 0.5 | DO26: R2, 1 - 0 | DQ26: R3, 0 - 1 | DR26: R1, 0.5 - 0.5 | DT26: R6, 0 - 1 | DU26: R2, 0 - 1 | DV26: R1, 1 - 0 | DX26: R1, 0.5 - 0.5 | DY26: R2, 0.5 - 0.5
A27: Kaltenland | Q27: R8, 1 - 0 | AE27: R2, 0.5 - 0.5 | BY27: R5, 1 - 0 | CK27: R6, 0 - 1 | CV27: R1, 0.5 - 0.5 | CW27: R6, 0.5 - 0.5 | CY27: R2, 1 - 0 | CZ27: R7, 0 - 1 | DA27: R1, 0 - 1 | DC27: R1, 0.5 - 0.5 | DD27: R5, 1 - 0 | DF27: R2, 0.5 - 0.5 | DG27: R4, 1 - 0 | DH27: R2, 1 - 0 | DI27: R3, 0.5 - 0.5 | DJ27: R1, 21 - 4 | DK27: R3, 0.5 - 0.5 | DN27: R1, 1 - 0 | DO27: R3, 0.5 - 0.5 | DP27: R5, 1 - 0 | DQ27: R2, 0 - 1 | DR27: R1, 0.5 - 0.5 | DS27: R5, 0.5 - 0.5 | DT27: R5, 23 - 7 | DU27: R1, 0 - 1 | DX27: R6, 0.5 - 0.5 | DY27: R2, 0.5 - 0.5
A28: Shawass | H28: R8, 1 - 0 | L28: R4, 0.5 - 0.5 | O28: R7, 0 - 1 | BH28: R6, 0 - 1 | CG28: R5, 1 - 0 | CX28: R2, 0 - 1 | CZ28: R1, 0 - 1 | DA28: R2, 1 - 0 | DB28: R2, 0 - 1 | DC28: R3, 0 - 1 | DE28: R2, 0 - 1 | DF28: R2, 0 - 1 | DG28: R1, 1 - 0 | DI28: R1, 0 - 1 | DJ28: R5, 0 - 1 | DN28: R2, 1 - 0 | DO28: R3, 0.5 - 0.5 | DP28: R5, 0 - 1 | DQ28: R1, 0 - 1 | DR28: R6, 0.5 - 0.5 | DS28: R6, 0.5 - 0.5 | DT28: R3, 0.5 - 0.5 | DU28: R3, 1 - 0 | DV28: R1, 0.5 - 0.5 | DY28: R2, 0 - 1
A29: Malasnoticias | B29: R3, 0 - 1 | AE29: R1, 0.5 - 0.5 | AT29: R7, 1 - 0 | CK29: R5, 0 - 1 | CN29: R4, 0 - 1 | CV29: R2, 1 - 0 | CZ29: R2, 1 - 0 | DC29: R1, 1 - 0 | DE29: R3, 0.5 - 0.5 | DG29: R8, 0.5 - 0.5 | DH29: R6, 0 - 1 | DI29: R2, 0 - 1 | DJ29: R2, 0 - 1 | DM29: R4, 0 - 1 | DN29: R3, 0 - 1 | DO29: R5, 0 - 1 | DP29: R1, 0.5 - 0.5 | DR29: R1, 0.5 - 0.5 | DS29: R6, 0.5 - 0.5 | DU29: R3, 0.5 - 0.5 | DW29: R2, 0 - 1 | DY29: R1, 0 - 1
A30: Macabeo | H30: R1, 1 - 0 | L30: R7, 1 - 0 | AQ30: R3, 1 - 0 | AR30: R2, 0 - 1 | BK30: R5, 0 - 1 | BP30: R4, 0.5 - 0.5 | CW30: R2, 0 - 1 | CY30: R3, 0 - 1 | DA30: R4, 1 - 0 | DB30: R3, 0.5 - 0.5 | DC30: R2, 0 - 1 | DD30: R2, 0.5 - 0.5 | DE30: R1, 0.5 - 0.5 | DF30: R1, 0.5 - 0.5 | DG30: R3, 0.5 - 0.5 | DH30: R5, 0.5 - 0.5 | DJ30: R3, 1 - 0 | DK30: R5, 0 - 1 | DL30: R1, 0.5 - 0.5 | DO30: R6, 0 - 1 | DP30: R2, 0 - 1 | DQ30: R5, 0.5 - 0.5 | DR30: R3, 0.5 - 0.5 | DS30: R1, 1 - 0 | DT30: R8, 0.5 - 0.5 | DU30: R1, 0.5 - 0.5 | DV30: R6, 1 - 0 | DX30: R1, 1 - 0
A31: Corwin | AA31: R2, 0.5 - 0.5 | AC31: R1, 0.5 - 0.5 | AN31: R5, 1 - 0 | AV31: R6, 0 - 1 | BI31: R3, 0.5 - 0.5 | CX31: R1, 1 - 0 | CY31: R4, 0.5 - 0.5 | CZ31: R3, 1 - 20 | DA31: R7, 0 - 1 | DB31: R1, 1 - 0 | DC31: R8, 0.5 - 0.5 | DD31: R2, 1 - 0 | DG31: R2, 0.5 - 0.5 | DH31: R3, 1 - 0 | DI31: R1, 0 - 1 | DJ31: R7, 1 - 0 | DL31: R3, 1 - 0 | DM31: R2, 0.5 - 0.5 | DN31: R5, 1 - 0 | DO31: R3, 0.5 - 0.5 | DP31: R1, 6 - 20 | DQ31: R4, 1 - 0 | DR31: R4, 1 - 0 | DS31: R2, 0.5 - 0.5 | DT31: R1, 0 - 1 | DU31: R6, 0.5 - 0.5 | DV31: R2, 1 - 0 | DW31: R2, 0.5 - 0.5 | DX31: R2, 0.5 - 0.5 | DY31: R3, 1 - 0
A32: SFisher91 | O32: R4, 0 - 1 | AJ32: R5, 1 - 0 | BI32: R6, 0 - 1 | BP32: R8, 1 - 0 | CN32: R7, 0 - 1 | CR32: R1, 0 - 1 | CW32: R4, 1 - 0 | CY32: R3, 0.5 - 0.5 | DA32: R5, 0 - 1 | DD32: R3, 1 - 0 | DE32: R2, 3 - 18 | DF32: R2, 1 - 0 | DG32: R1, 1 - 0 | DH32: R3, 0 - 1 | DK32: R2, 0.5 - 0.5 | DM32: R3, 0.5 - 0.5 | DQ32: R2, 1 - 0 | DR32: R2, 0 - 1 | DS32: R1, 0 - 1 | DT32: R2, 0.5 - 0.5 | DV32: R2, 0.5 - 0.5 | DW32: R1, 0 - 1 | DX32: R2, 0.5 - 0.5 | DY32: R6, 0 - 1
A33: Phoenix11 | C33: R2, 0.5 - 0.5 | N33: R4, 1 - 0 | U33: R6, 1 - 0 | AI33: R7, 0.5 - 0.5 | AK33: R8, 0.5 - 0.5 | CJ33: R1, 0 - 1 | CX33: R4, 0 - 1 | CY33: R2, 1 - 0 | DB33: R1, 0.5 - 0.5 | DD33: R2, 0.5 - 0.5 | DE33: R5, 1 - 0 | DF33: R3, 0.5 - 0.5 | DG33: R5, 1 - 0 | DH33: R6, 20 - 5 | DJ33: R3, 0 - 1 | DL33: R2, 0 - 1 | DM33: R1, 0 - 1 | DN33: R5, 0 - 1 | DP33: R3, 0 - 1 | DQ33: R4, 0 - 1 | DR33: R1, 0 - 1 | DS33: R2, 1 - 0 | DU33: R2, 0.5 - 0.5 | DV33: R1, 1 - 0 | DW33: R6, 0.5 - 0.5 | DX33: R6, 0.5 - 0.5 | DY33: R1, 0.5 - 0.5
A34: Wolio | H34: R2, 0 - 1 | AL34: R7, 0 - 1 | AN34: R8, 0 - 1 | AR34: R1, 0 - 1 | BN34: R4, 0.5 - 0.5 | CW34: R3, 1 - 0 | CX34: R1, 0 - 1 | DA34: R5, 0 - 1 | DB34: R6, 1 - 0 | DD34: R2, 0.5 - 0.5 | DE34: R5, 0 - 1 | DF34: R2, 0.5 - 0.5 | DG34: R1, 0.5 - 0.5 | DI34: R6, 1 - 0 | DJ34: R2, 0.5 - 0.5 | DM34: R1, 0.5 - 0.5 | DN34: R4, 0.5 - 0.5 | DP34: R1, 1 - 0 | DQ34: R5, 1 - 0 | DR34: R4, 0.5 - 0.5 | DS34: R1, 0 - 1 | DT34: R4, 0.5 - 0.5 | DU34: R6, 0 - 1 | DX34: R5, 0.5 - 0.5 | DY34: R3, 0.5 - 0.5
A35: Reszka | F35: R4, 0.5 - 0.5 | T35: R1, 0.5 - 0.5 | AG35: R7, 0.5 - 0.5 | AX35: R6, 0.5 - 0.5 | CL35: R3, 0 - 1 | CP35: R2, 0.5 - 0.5 | CV35: R5, 1 - 0 | CX35: R8, 0.5 - 0.5 | CY35: R4, 1 - 0 | DB35: R1, 1 - 0 | DC35: R7, 0.5 - 0.5 | DD35: R1, 0 - 1 | DE35: R2, 1 - 0 | DF35: R1, 1 - 0 | DI35: R1, 0.5 - 0.5 | DJ35: R5, 0 - 1 | DK35: R3, 1 - 0 | DL35: R4, 0 - 1 | DM35: R1, 0 - 1 | DO35: R4, 0.5 - 0.5 | DP35: R2, 0.5 - 0.5 | DQ35: R4, 0.5 - 0.5 | DR35: R1, 0 - 1 | DS35: R4, 3 - 18 | DT35: R1, 0 - 1 | DU35: R6, 1 - 0 | DW35: R4, 0 - 1 | DX35: R1, 1 - 0 | DY35: R5, 0.5 - 0.5
A36: Slimaq | S36: R3, 1 - 0 | AF36: R5, 0 - 1 | BF36: R2, 0.5 - 0.5 | CO36: R8, 0 - 1 | CT36: R1, 0 - 1 | CX36: R4, 1 - 0 | CY36: R1, 0.5 - 0.5 | DB36: R3, 1 - 0 | DC36: R1, 0.5 - 0.5 | DD36: R6, 0.5 - 0.5 | DE36: R1, 1 - 0 | DG36: R6, 0.5 - 0.5 | DH36: R7, 0.5 - 0.5 | DI36: R2, 0.5 - 0.5 | DJ36: R3, 0 - 1 | DK36: R4, 0 - 1 | DL36: R6, 0 - 1 | DM36: R1, 0.5 - 0.5 | DN36: R1, 1 - 0 | DO36: R4, 0 - 1 | DP36: R3, 0.5 - 0.5 | DQ36: R5, 0 - 1 | DR36: R6, 0.5 - 0.5 | DS36: R1, 0.5 - 0.5 | DT36: R1, 0 - 1 | DU36: R5, 0.5 - 0.5 | DV36: R4, 0.5 - 0.5 | DW36: R6, 0.5 - 0.5 | DX36: R4, 0 - 1
A37: Skuld | V37: R7, 0.5 - 0.5 | AG37: R8, 0.5 - 0.5 | AX37: R2, 1 - 0 | BB37: R4, 1 - 0 | CQ37: R1, 0.5 - 0.5 | CW37: R1, 0 - 1 | CX37: R6, 1 - 0 | CY37: R5, 0.5 - 0.5 | DA37: R6, 20 - 5 | DB37: R1, 1 - 0 | DC37: R2, 0 - 1 | DD37: R5, 0 - 1 | DE37: R1, 23 - 3 | DF37: R1, 1 - 0 | DG37: R5, 0 - 1 | DI37: R1, 0.5 - 0.5 | DJ37: R1, 0 - 1 | DK37: R2, 22 - 3 | DL37: R1, 0 - 1 | DM37: R4, 1 - 0 | DN37: R3, 1 - 0 | DO37: R5, 0 - 1 | DP37: R4, 20 - 4 | DQ37: R2, 0.5 - 0.5 | DR37: R1, 0 - 1 | DS37: R1, 1 - 0 | DU37: R1, 1 - 0 | DV37: R3, 1 - 0 | DW37: R2, 19 - 5 | DY37: R1, 1 - 0
A38: Balder | L38: R6, 0 - 1 | P38: R3, 1 - 0 | AH38: R7, 1 - 0 | AX38: R4, 0 - 1 | CG38: R8, 0 - 1 | CR38: R2, 0 - 1 | CZ38: R5, 0.5 - 0.5 | DA38: R1, 0 - 1 | DB38: R5, 0 - 1 | DD38: R2, 0 - 1 | DE38: R6, 0 - 1 | DF38: R1, 1 - 0 | DG38: R1, 0 - 1 | DJ38: R1, 1 - 0 | DK38: R4, 0.5 - 0.5 | DL38: R3, 0.5 - 0.5 | DM38: R2, 0 - 1 | DP38: R4, 0.5 - 0.5 | DQ38: R1, 1 - 0 | DS38: R4, 0 - 1 | DT38: R5, 0.5 - 0.5 | DU38: R5, 0 - 1 | DV38: R3, 1 - 0 | DW38: R1, 0.5 - 0.5 | DX38: R1, 0 - 1
A39: Dionysian | J39: R3, 0 - 1 | BC39: R2, 0 - 1 | BD39: R7, 1 - 0 | BN39: R6, 0.5 - 0.5 | BX39: R5, 1 - 0 | CB39: R1, 0 - 1 | CW39: R4, 0.5 - 0.5 | CY39: R5, 18 - 2 | CZ39: R1, 0.5 - 0.5 | DD39: R4, 19 - 2 | DE39: R6, 0 - 1 | DF39: R6, 0 - 1 | DH39: R2, 0.5 - 0.5 | DJ39: R4, 1 - 0 | DK39: R1, 1 - 0 | DL39: R5, 0 - 1 | DM39: R3, 0 - 1 | DN39: R4, 1 - 0 | DO39: R2, 1 - 0 | DQ39: R1, 1 - 0 | DR39: R5, 0 - 1 | DS39: R8, 1 - 0 | DT39: R1, 1 - 0 | DV39: R6, 1 - 0 | DW39: R1, 0 - 1 | DX39: R3, 1 - 0 | DY39: R1, 0.5 - 0.5
A40: Harza | C40: R1, 1 - 0 | S40: R7, 0 - 1 | AE40: R5, 0 - 1 | AH40: R8, 1 - 0 | BF40: R6, 0 - 1 | CJ40: R2, 1 - 0 | CW40: R5, 0.5 - 0.5 | CX40: R4, 0 - 1 | DA40: R1, 0 - 1 | DB40: R2, 0.5 - 0.5 | DC40: R5, 1 - 0 | DD40: R1, 1 - 0 | DF40: R1, 9 - 10 | DH40: R4, 0 - 1 | DI40: R6, 0.5 - 0.5 | DK40: R4, 0.5 - 0.5 | DL40: R1, 0 - 1 | DM40: R5, 0.5 - 0.5 | DO40: R3, 0.5 - 0.5 | DP40: R3, 1 - 0 | DR40: R1, 1 - 0 | DS40: R5, 1 - 0 | DT40: R3, 0 - 1 | DU40: R4, 0.5 - 0.5 | DW40: R1, 0 - 1 | DX40: R1, 1 - 0 | DY40: R3, 0 - 1
A41: Idroj | J41: R7, 0 - 1 | N41: R2, 1 - 0 | R41: R5, 1 - 0 | T41: R8, 0 - 1 | W41: R6, 0 - 1 | AR41: R4, 1 - 0 | CX41: R3, 0.5 - 0.5 | CY41: R4, 0 - 1 | DC41: R1, 0 - 1 | DD41: R3, 1 - 0 | DF41: R4, 1 - 0 | DG41: R1, 0 - 1 | DH41: R1, 0 - 1 | DI41: R1, 0 - 1 | DK41: R5, 1 - 0 | DL41: R4, 0.5 - 0.5 | DM41: R2, 0 - 1 | DO41: R1, 0.5 - 0.5 | DP41: R4, 0.5 - 0.5 | DR41: R1, 0 - 1 | DS41: R1, 0.5 - 0.5 | DT41: R3, 1 - 0 | DU41: R1, 0 - 1 | DV41: R1, 0 - 1 | DW41: R5, 0.5 - 0.5 | DY41: R4, 0 - 1
A42: Faccko | R42: R7, 0.5 - 0.5 | U42: R1, 1 - 0 | BH42: R4, 1 - 0 | BO42: R6, 0.5 - 0.5 | BQ42: R8, 0.5 - 0.5 | BT42: R5, 1 - 0 | CI42: R3, 0.5 - 0.5 | CL42: R2, 0.5 - 0.5 | CW42: R1, 0.5 - 0.5 | CZ42: R6, 1 - 0 | DB42: R2, 20 - 3 | DC42: R2, 0.5 - 0.5 | DF42: R1, 1 - 0 | DG42: R1, 0 - 1 | DH42: R1, 0 - 1 | DI42: R1, 0.5 - 0.5 | DJ42: R5, 0 - 1 | DL42: R3, 0 - 1 | DM42: R6, 0 - 1 | DN42: R4, 0.5 - 0.5 | DO42: R6, 0 - 1 | DR42: R2, 1 - 0 | DT42: R1, 1 - 0 | DU42: R6, 0 - 1 | DV42: R2, 0.5 - 0.5 | DW42: R1, 0.5 - 0.5 | DX42: R7, 1 - 0
A43: MacWitt | H43: R4, 0.5 - 0.5 | AD43: R3, 0 - 1 | BI43: R2, 0.5 - 0.5 | BP43: R5, 1 - 0 | CL43: R7, 0 - 1 | CW43: R4, 0 - 1 | CX43: R3, 0.5 - 0.5 | CY43: R1, 1 - 0 | CZ43: R5, 1 - 0 | DA43: R1, 0 - 1 | DB43: R1, 0.5 - 0.5 | DC43: R1, 1 - 0 | DD43: R1, 0 - 1 | DH43: R1, 0 - 1 | DI43: R2, 0.5 - 0.5 | DJ43: R3, 1 - 0 | DK43: R8, 1 - 0 | DN43: R2, 0.5 - 0.5 | DO43: R6, 0.5 - 0.5 | DP43: R5, 0 - 1 | DQ43: R2, 0.5 - 0.5 | DR43: R2, 1 - 0 | DS43: R1, 1 - 0 | DT43: R6, 0.5 - 0.5 | DU43: R1, 0 - 1 | DV43: R1, 0 - 1 | DW43: R2, 1 - 0 | DX43: R2, 0.5 - 0.5 | DY43: R5, 0 - 1
A44: Pellevin | H44: R6, 1 - 0 | AD44: R2, 1 - 0 | AH44: R1, 1 - 0 | AO44: R4, 0 - 1 | AZ44: R8, 1 - 0 | BO44: R3, 0 - 1 | CW44: R5, 1 - 0 | CX44: R6, 0 - 1 | CZ44: R6, 0.5 - 0.5 | DA44: R4, 0 - 1 | DC44: R7, 0 - 1 | DE44: R5, 1 - 0 | DF44: R1, 0 - 1 | DG44: R1, 0.5 - 0.5 | DI44: R1, 0.5 - 0.5 | DJ44: R6, 0 - 1 | DL44: R5, 1 - 0 | DM44: R2, 1 - 0 | DP44: R3, 0 - 1 | DQ44: R2, 1 - 0 | DS44: R2, 1 - 0 | DU44: R3, 1 - 0 | DV44: R3, 0.5 - 0.5 | DW44: R2, 1 - 0 | DX44: R6, 0.5 - 0.5 | DY44: R2, 0 - 1
A45: Araznaroth | M45: R6, 0.5 - 0.5 | Q45: R1, 0 - 1 | AT45: R2, 0.5 - 0.5 | BD45: R8, 1 - 0 | BG45: R5, 0 - 1 | BW45: R7, 0.5 - 0.5 | CQ45: R3, 0.5 - 0.5 | CV45: R4, 1 - 0 | CY45: R4, 0.5 - 0.5 | DA45: R6, 0.5 - 0.5 | DB45: R3, 0.5 - 0.5 | DD45: R1, 1 - 0 | DE45: R4, 0.5 - 0.5 | DG45: R1, 1 - 0 | DJ45: R6, 1 - 0 | DK45: R1, 0.5 - 0.5 | DL45: R4, 0.5 - 0.5 | DM45: R3, 0 - 1 | DN45: R5, 1 - 0 | DO45: R2, 1 - 0 | DP45: R2, 1 - 0 | DR45: R5, 1 - 0 | DS45: R4, 1 - 0 | DT45: R2, 1 - 0 | DU45: R3, 0 - 1 | DV45: R1, 0.5 - 0.5 | DW45: R2, 1 - 0 | DX45: R1, 1 - 0
A46: JimJimany | N46: R3, 1 - 0 | Y46: R5, 0 - 1 | AC46: R7, 0 - 1 | AS46: R2, 0.5 - 0.5 | BT46: R1, 0 - 1 | CC46: R6, 1 - 0 | CP46: R4, 0 - 1 | CW46: R6, 0.5 - 0.5 | CX46: R6, 0.5 - 0.5 | CZ46: R4, 1 - 0 | DA46: R2, 0.5 - 0.5 | DB46: R1, 0 - 1 | DC46: R1, 0 - 1 | DE46: R4, 0 - 1 | DI46: R1, 1 - 0 | DK46: R2, 1 - 0 | DO46: R3, 1 - 0 | DP46: R3, 0.5 - 0.5 | DQ46: R6, 0.5 - 0.5 | DR46: R1, 0 - 1 | DT46: R2, 1 - 0 | DU46: R4, 0 - 1 | DV46: R4, 0.5 - 0.5 | DW46: R8, 0 - 1 | DX46: R2, 0 - 1
A47: zulu | BR47: R5, 1 - 0 | CD47: R8, 0.5 - 0.5 | CW47: R6, 0.5 - 0.5 | CY47: R5, 0.5 - 0.5 | CZ47: R1, 0.5 - 0.5 | DA47: R2, 0 - 1 | DB47: R6, 0.5 - 0.5 | DE47: R1, 0.5 - 0.5 | DF47: R3, 0 - 1 | DG47: R2, 0.5 - 0.5 | DH47: R1, 0 - 1 | DJ47: R2, 0.5 - 0.5 | DK47: R7, 0 - 1 | DN47: R4, 0.5 - 0.5 | DP47: R2, 1 - 0 | DQ47: R5, 0.5 - 0.5 | DR47: R7, 1 - 0 | DT47: R2, 1 - 0 | DU47: R2, 0 - 1 | DW47: R3, 0.5 - 0.5 | DX47: R3, 0 - 1 | DY47: R1, 1 - 0
A48: mynock | B48: R5, 0.5 - 0.5 | J48: R8, 0.5 - 0.5 | AE48: R6, 1 - 0 | BD48: R3, 0.5 - 0.5 | BH48: R7, 1 - 0 | CS48: R2, 0 - 1 | CW48: R1, 0 - 1 | DB48: R1, 0.5 - 0.5 | DC48: R1, 1 - 0 | DE48: R5, 1 - 0 | DG48: R2, 0 - 1 | DI48: R1, 0 - 1 | DJ48: R2, 1 - 0 | DM48: R5, 0.5 - 0.5 | DN48: R6, 1 - 0 | DO48: R4, 1 - 0 | DP48: R2, 0 - 1 | DQ48: R3, 0.5 - 0.5 | DS48: R2, 0.5 - 0.5 | DT48: R1, 1 - 0 | DY48: R2, 1 - 0
A49: Strider84 | K49: R3, 0 - 1 | BX49: R6, 1 - 0 | CU49: R4, 1 - 0 | CX49: R1, 0 - 1 | CY49: R6, 1 - 0 | DD49: R4, 0 - 1 | DE49: R8, 1 - 0 | DG49: R1, 1 - 0 | DH49: R1, 0.5 - 0.5 | DJ49: R4, 0 - 1 | DK49: R3, 0 - 1 | DL49: R6, 0 - 1 | DM49: R2, 0 - 1 | DO49: R3, 1 - 0 | DR49: R2, 0.5 - 0.5 | DT49: R2, 1 - 0 | DU49: R5, 0 - 1 | DV49: R7, 0.5 - 0.5 | DW49: R6, 0 - 1 | DX49: R2, 0.5 - 0.5 | DY49: R4, 0.5 - 0.5
A50: Phifoe | B50: R1, 0.5 - 0.5 | AI50: R6, 0.5 - 0.5 | AK50: R2, 0 - 1 | AL50: R4, 1 - 0 | BA50: R7, 1 - 0 | BV50: R8, 0 - 1 | CR50: R5, 1 - 0 | CW50: R5, 1 - 0 | CY50: R3, 0 - 1 | CZ50: R3, 1 - 0 | DA50: R3, 0.5 - 0.5 | DB50: R1, 0 - 1 | DC50: R2, 0.5 - 0.5 | DD50: R3, 1 - 0 | DF50: R5, 0 - 1 | DG50: R1, 0 - 1 | DI50: R1, 0.5 - 0.5 | DJ50: R6, 0.5 - 0.5 | DK50: R1, 0 - 1 | DN50: R6, 10 - 11 | DO50: R2, 1 - 0 | DP50: R2, 0 - 1 | DQ50: R2, 1 - 0 | DR50: R1, 1 - 0 | DT50: R4, 1 - 0 | DU50: R4, 0 - 1 | DX50: R1, 0 - 1 | DY50: R3, 1 - 0
A51: JohnnyD | N51: R7, 1 - 0 | BF51: R5, 0 - 1 | BR51: R6, 0 - 1 | BY51: R2, 0 - 1 | CX51: R1, 0 - 1 | CY51: R1, 0.5 - 0.5 | DB51: R1, 1 - 0 | DE51: R1, 1 - 0 | DG51: R1, 0.5 - 0.5 | DH51: R8, 1 - 0 | DJ51: R2, 0.5 - 0.5 | DK51: R1, 0 - 1 | DM51: R6, 0 - 1 | DO51: R6, 1 - 0 | DP51: R6, 0.5 - 0.5 | DQ51: R4, 0.5 - 0.5 | DS51: R4, 1 - 0 | DU51: R1, 1 - 0 | DV51: R2, 0 - 1 | DW51: R3, 0.5 - 0.5 | DX51: R4, 1 - 0
A52: Dekra1979 | D52: R2, 0.5 - 0.5 | AR52: R8, 0 - 1 | BL52: R6, 1 - 0 | CK52: R3, 0 - 1 | CW52: R1, 0.5 - 0.5 | CY52: R2, 0 - 1 | DB52: R1, 0.5 - 0.5 | DC52: R4, 1 - 0 | DD52: R1, 1 - 0 | DE52: R1, 0.5 - 0.5 | DF52: R1, 0 - 1 | DG52: R2, 0.5 - 0.5 | DI52: R3, 0 - 1 | DJ52: R1, 0.5 - 0.5 | DL52: R5, 0.5 - 0.5 | DM52: R6, 1 - 0 | DO52: R7, 0 - 1 | DR52: R4, 0.5 - 0.5 | DT52: R6, 0.5 - 0.5 | DU52: R4, 1 - 0 | DW52: R1, 0.5 - 0.5 | DX52: R1, 1 - 0 | DY52: R5, 1 - 0
A53: straume | C53: R8, 1 - 0 | X53: R1, 0.5 - 0.5 | AX53: R7, 0 - 1 | BG53: R2, 0.5 - 0.5 | BW53: R4, 1 - 0 | CF53: R6, 0 - 1 | CN53: R3, 1 - 0 | CW53: R3, 1 - 0 | CX53: R5, 0.5 - 0.5 | CY53: R5, 0 - 1 | CZ53: R3, 0 - 1 | DC53: R1, 0.5 - 0.5 | DD53: R5, 0.5 - 0.5 | DF53: R3, 0 - 1 | DG53: R1, 0.5 - 0.5 | DH53: R1, 1 - 0 | DI53: R1, 1 - 0 | DJ53: R4, 0.5 - 0.5 | DK53: R6, 0.5 - 0.5 | DL53: R2, 0.5 - 0.5 | DN53: R2, 1 - 0 | DO53: R4, 0.5 - 0.5 | DR53: R4, 0 - 1 | DU53: R6, 1 - 0 | DV53: R1, 1 - 0 | DW53: R4, 0.5 - 0.5 | DX53: R2, 0.5 - 0.5 | DY53: R6, 0.5 - 0.5
A54: Barry | D54: R7, 0 - 1 | I54: R3, 0 - 1 | O54: R6, 0 - 1 | Z54: R5, 0.5 - 0.5 | AK54: R4, 0 - 1 | CT54: R8, 1 - 0 | CU54: R1, 1 - 0 | CW54: R3, 0.5 - 0.5 | CX54: R2, 1 - 0 | CZ54: R3, 0 - 1 | DA54: R1, 0 - 1 | DB54: R1, 1 - 0 | DC54: R2, 1 - 0 | DD54: R1, 0 - 1 | DE54: R1, 1 - 0 | DF54: R1, 1 - 0 | DH54: R5, 1 - 0 | DI54: R7, 0.5 - 0.5 | DJ54: R2, 0 - 1 | DN54: R2, 0 - 1 | DP54: R6, 0.5 - 0.5 | DQ54: R1, 0.5 - 0.5 | DR54: R2, 0.5 - 0.5 | DS54: R4, 0 - 1 | DU54: R1, 1 - 0 | DV54: R4, 0.5 - 0.5
A55: Tactel | AM55: R2, 1 - 0 | BR55: R3, 1 - 0 | CD55: R7, 1 - 0 | CF55: R1, 0 - 1 | CS55: R8, 0.5 - 0.5 | CW55: R3, 3 - 20 | CY55: R1, 0.5 - 0.5 | CZ55: R1, 0.5 - 0.5 | DA55: R1, 0 - 1 | DD55: R1, 1 - 0 | DE55: R1, 0.5 - 0.5 | DF55: R1, 1 - 0 | DH55: R3, 1 - 0 | DI55: R5, 1 - 0 | DK55: R5, 1 - 0 | DM55: R6, 1 - 0 | DN55: R6, 0.5 - 0.5 | DP55: R1, 1 - 0 | DR55: R2, 0.5 - 0.5 | DS55: R6, 0 - 1 | DT55: R3, 1 - 0 | DV55: R3, 1 - 0 | DW55: R4, 1 - 0 | DX55: R4, 0 - 1 | DY55: R1, 0 - 1
A56: Pidpad | AM56: R7, 0 - 1 | AS56: R8, 0 - 1 | AV56: R3, 0.5 - 0.5 | BE56: R2, 0 - 1 | BL56: R4, 0.5 - 0.5 | CO56: R6, 0 - 1 | CW56: R1, 1 - 0 | CX56: R3, 1 - 0 | CY56: R3, 0 - 1 | CZ56: R1, 0.5 - 0.5 | DB56: R5, 0.5 - 0.5 | DE56: R3, 0.5 - 0.5 | DF56: R1, 1 - 0 | DG56: R1, 0.5 - 0.5 | DH56: R1, 1 - 0 | DI56: R1, 0 - 1 | DJ56: R1, 0.5 - 0.5 | DK56: R4, 0 - 1 | DN56: R1, 0 - 1 | DQ56: R6, 0 - 1 | DR56: R6, 1 - 0 | DS56: R1, 1 - 0 | DT56: R5, 0 - 1 | DU56: R4, 0.5 - 0.5 | DV56: R4, 0 - 1 | DW56: R1, 1 - 0 | DX56: R6, 5 - 18 | DY56: R2, 0.5 - 0.5
A57: Elrik | E57: R5, 1 - 0 | F57: R7, 1 - 0 | X57: R8, 0.5 - 0.5 | BD57: R2, 1 - 0 | BM57: R1, 1 - 0 | BT57: R3, 0 - 1 | BW57: R6, 1 - 0 | CZ57: R4, 1 - 0 | DA57: R3, 1 - 0 | DB57: R3, 0.5 - 0.5 | DC57: R1, 0.5 - 0.5 | DH57: R1, 1 - 0 | DK57: R2, 0.5 - 0.5 | DL57: R6, 0 - 1 | DM57: R5, 1 - 0 | DR57: R6, 0 - 1 | DS57: R4, 0 - 1 | DT57: R1, 1 - 0 | DV57: R1, 11 - 11 | DX57: R6, 0 - 1 | DY57: R4, 0 - 1
A58: Simon_ACP | C58: R4, 0.5 - 0.5 | AJ58: R2, 0.5 - 0.5 | AN58: R6, 1 - 0 | AY58: R5, 1 - 0 | BO58: R1, 0 - 1 | BY58: R8, 0.5 - 0.5 | CO58: R7, 1 - 0 | CW58: R5, 0.5 - 0.5 | CX58: R6, 1 - 0 | CY58: R4, 0.5 - 0.5 | CZ58: R2, 0.5 - 0.5 | DA58: R2, 0 - 1 | DB58: R1, 0.5 - 0.5 | DC58: R1, 0 - 1 | DD58: R6, 0 - 1 | DE58: R2, 1 - 0 | DG58: R3, 0 - 1 | DH58: R4, 0.5 - 0.5 | DL58: R1, 0.5 - 0.5 | DM58: R1, 0 - 1 | DO58: R3, 0 - 1 | DQ58: R1, 0 - 1 | DR58: R2, 1 - 0 | DU58: R7, 0 - 1 | DV58: R3, 0.5 - 0.5 | DX58: R2, 0 - 1
A59: sann0638 | C59: R6, 1 - 0 | U59: R8, 0.5 - 0.5 | X59: R3, 0.5 - 0.5 | AS59: R5, 1 - 0 | BA59: R2, 0.5 - 0.5 | BI59: R7, 1 - 0 | BK59: R4, 0.5 - 0.5 | CW59: R1, 0 - 1 | CX59: R2, 0.5 - 0.5 | CY59: R2, 0.5 - 0.5 | CZ59: R1, 0.5 - 0.5 | DB59: R2, 0.5 - 0.5 | DC59: R5, 0.5 - 0.5 | DD59: R2, 18 - 4 | DE59: R1, 1 - 0 | DF59: R5, 1 - 0 | DG59: R4, 0.5 - 0.5 | DH59: R2, 0 - 1 | DI59: R1, 0 - 1 | DJ59: R3, 0 - 1 | DK59: R3, 0 - 1 | DN59: R4, 1 - 0 | DO59: R1, 0.5 - 0.5 | DP59: R1, 0.5 - 0.5 | DQ59: R3, 0 - 1 | DR59: R3, 1 - 0 | DS59: R2, 0 - 1 | DT59: R1, 0 - 1 | DU59: R1, 0.5 - 0.5 | DW59: R2, 1 - 0 | DX59: R6, 0.5 - 0.5 | DY59: R2, 0.5 - 0.5
A60: Goss | G60: R1, 1 - 0 | AB60: R6, 1 - 0 | AP60: R4, 0 - 1 | AV60: R7, 0 - 1 | BZ60: R3, 1 - 0 | CB60: R5, 0.5 - 0.5 | CM60: R2, 1 - 0 | CP60: R8, 1 - 0 | CX60: R2, 0 - 1 | CZ60: R5, 0.5 - 0.5 | DA60: R1, 0 - 1 | DC60: R2, 0 - 1 | DD60: R1, 0.5 - 0.5 | DE60: R2, 0.5 - 0.5 | DF60: R2, 21 - 4 | DG60: R1, 0.5 - 0.5 | DI60: R4, 1 - 0 | DJ60: R1, 1 - 0 | DK60: R1, 1 - 0 | DL60: R2, 1 - 0 | DO60: R3, 0.5 - 0.5 | DP60: R3, 0.5 - 0.5 | DR60: R5, 0 - 1 | DS60: R1, 0.5 - 0.5 | DT60: R2, 1 - 0 | DV60: R2, 0.5 - 0.5 | DW60: R6, 0 - 1 | DY60: R2, 0.5 - 0.5
A61: Muadib | D61: R5, 0 - 1 | Z61: R4, 0.5 - 0.5 | AE61: R3, 0.5 - 0.5 | AF61: R6, 1 - 0 | AQ61: R2, 0.5 - 0.5 | BG61: R7, 0 - 1 | CW61: R1, 1 - 0 | CX61: R6, 1 - 0 | CY61: R1, 1 - 0 | CZ61: R5, 0.5 - 0.5 | DA61: R2, 0 - 1 | DC61: R4, 1 - 0 | DD61: R3, 0 - 1 | DF61: R3, 0 - 1 | DG61: R1, 1 - 0 | DH61: R4, 0.5 - 0.5 | DI61: R1, 1 - 0 | DJ61: R2, 0.5 - 0.5 | DL61: R3, 0 - 1 | DN61: R1, 1 - 0 | DP61: R3, 0 - 1 | DQ61: R1, 0.5 - 0.5 | DR61: R5, 0.5 - 0.5 | DS61: R2, 0 - 1 | DT61: R3, 0 - 1 | DU61: R8, 0 - 1 | DV61: R3, 0.5 - 0.5 | DW61: R1, 1 - 0 | DX61: R2, 0 - 1
A62: swifty | G62: R2, 1 - 0 | Y62: R4, 0 - 1 | BL62: R5, 0.5 - 0.5 | BP62: R7, 0 - 1 | CA62: R8, 0.5 - 0.5 | CM62: R1, 0 - 1 | CR62: R6, 0 - 1 | CW62: R2, 1 - 0 | CX62: R1, 1 - 0 | CY62: R2, 0 - 1 | CZ62: R6, 0 - 1 | DA62: R1, 1 - 0 | DB62: R4, 0 - 1 | DC62: R2, 0.5 - 0.5 | DD62: R4, 0.5 - 0.5 | DE62: R1, 1 - 0 | DF62: R4, 1 - 0 | DH62: R3, 1 - 0 | DI62: R5, 0.5 - 0.5 | DJ62: R3, 0 - 1 | DK62: R3, 0 - 1 | DL62: R1, 0.5 - 0.5 | DM62: R3, 1 - 0 | DN62: R2, 0.5 - 0.5 | DO62: R1, 0.5 - 0.5 | DP62: R3, 1 - 0 | DQ62: R5, 0.5 - 0.5 | DS62: R4, 0.5 - 0.5 | DU62: R2, 0.5 - 0.5 | DV62: R2, 1 - 0 | DW62: R7, 0 - 1 | DX62: R1, 1 - 0 | DY62: R3, 0 - 1
A63: Matte8 | AD63: R5, 1 - 0 | BG63: R4, 0.5 - 0.5 | BN63: R8, 0.5 - 0.5 | BS63: R7, 0 - 1 | CG63: R1, 0.5 - 0.5 | CW63: R5, 0 - 1 | CX63: R1, 0.5 - 0.5 | CY63: R2, 0.5 - 0.5 | CZ63: R2, 1 - 0 | DA63: R5, 1 - 0 | DB63: R5, 0 - 1 | DE63: R4, 0.5 - 0.5 | DF63: R1, 0.5 - 0.5 | DH63: R1, 0.5 - 0.5 | DI63: R4, 0 - 1 | DJ63: R6, 0 - 1 | DK63: R1, 0 - 1 | DM63: R1, 0.5 - 0.5 | DN63: R3, 1 - 0 | DO63: R2, 0 - 1 | DR63: R2, 0 - 1 | DS63: R2, 0.5 - 0.5 | DU63: R2, 0 - 1 | DY63: R5, 1 - 0
A64: Joanet | C64: R7, 0.5 - 0.5 | AZ64: R6, 0 - 1 | BD64: R4, 0.5 - 0.5 | BJ64: R5, 0.5 - 0.5 | BM64: R3, 0 - 1 | BQ64: R2, 0 - 1 | CC64: R8, 0.5 - 0.5 | CW64: R4, 0.5 - 0.5 | CY64: R7, 0 - 1 | DA64: R5, 0 - 1 | DB64: R1, 1 - 0 | DC64: R1, 1 - 0 | DD64: R5, 0 - 1 | DF64: R2, 1 - 0 | DG64: R4, 0 - 1 | DH64: R1, 0.5 - 0.5 | DI64: R4, 0 - 1 | DJ64: R1, 1 - 0 | DK64: R3, 1 - 0 | DL64: R3, 1 - 0 | DM64: R2, 0 - 1 | DN64: R1, 1 - 0 | DO64: R5, 0.5 - 0.5 | DQ64: R3, 0.5 - 0.5 | DS64: R3, 0.5 - 0.5 | DT64: R2, 0 - 1 | DV64: R5, 1 - 0 | DW64: R1, 0.5 - 0.5 | DX64: R2, 0 - 1 | DY64: R3, 0 - 1
A65: SpecialOne | K65: R4, 0 - 1 | X65: R7, 0.5 - 0.5 | BE65: R1, 0 - 1 | BL65: R3, 1 - 0 | CM65: R6, 1 - 0 | CW65: R1, 0 - 1 | CX65: R2, 0 - 1 | CY65: R6, 1 - 0 | CZ65: R4, 0.5 - 0.5 | DC65: R4, 1 - 0 | DD65: R1, 1 - 0 | DE65: R5, 1 - 0 | DF65: R1, 0 - 1 | DG65: R2, 1 - 0 | DH65: R2, 4 - 21 | DI65: R4, 0.5 - 0.5 | DJ65: R2, 1 - 0 | DK65: R2, 0.5 - 0.5 | DL65: R1, 1 - 0 | DN65: R3, 0 - 1 | DO65: R8, 1 - 0 | DP65: R3, 0.5 - 0.5 | DS65: R2, 0 - 1 | DU65: R5, 0.5 - 0.5 | DV65: R5, 1 - 0 | DW65: R2, 1 - 0 | DX65: R4, 0.5 - 0.5 | DY65: R2, 0.5 - 0.5
A66: Prince | K66: R2, 0 - 1 | AH66: R4, 0.5 - 0.5 | AM66: R6, 0.5 - 0.5 | BK66: R8, 0.5 - 0.5 | CW66: R1, 0 - 1 | CX66: R1, 0 - 1 | CZ66: R3, 0.5 - 0.5 | DB66: R3, 0 - 1 | DC66: R1, 0.5 - 0.5 | DD66: R2, 0 - 1 | DE66: R3, 1 - 0 | DG66: R7, 1 - 0 | DH66: R5, 0.5 - 0.5 | DI66: R5, 1 - 0 | DJ66: R4, 0 - 1 | DK66: R1, 6 - 22 | DL66: R4, 0.5 - 0.5 | DM66: R1, 0 - 1 | DN66: R2, 0.5 - 0.5 | DO66: R5, 0.5 - 0.5 | DP66: R4, 0.5 - 0.5 | DQ66: R4, 0.5 - 0.5 | DR66: R1, 0 - 1 | DS66: R5, 0 - 1 | DT66: R3, 1 - 0 | DU66: R1, 1 - 0 | DV66: R6, 0 - 1 | DW66: R3, 0 - 1 | DX66: R3, 1 - 0 | DY66: R2, 1 - 0
A67: GreatWhiteHope | D67: R8, 0.5 - 0.5 | I67: R5, 0.5 - 0.5 | AP67: R6, 0.5 - 0.5 | AR67: R3, 1 - 0 | BF67: R1, 1 - 0 | CE67: R4, 0 - 1 | CT67: R2, 1 - 0 | CY67: R6, 0.5 - 0.5 | CZ67: R1, 1 - 0 | DA67: R2, 0 - 1 | DB67: R2, 1 - 0 | DC67: R2, 1 - 0 | DD67: R2, 0 - 1 | DE67: R2, 0 - 1 | DF67: R1, 0.5 - 0.5 | DI67: R4, 0 - 1 | DJ67: R7, 0 - 1 | DK67: R4, 0 - 1 | DL67: R2, 0.5 - 0.5 | DM67: R1, 1 - 0 | DN67: R5, 1 - 0 | DR67: R1, 0 - 1 | DV67: R3, 1 - 0 | DW67: R3, 0 - 1 | DX67: R1, 0.5 - 0.5 | DY67: R7, 0 - 1
A68: Bernuz | M68: R1, 0.5 - 0.5 | Q68: R3, 1 - 0 | AD68: R4, 0.5 - 0.5 | AF68: R8, 0 - 1 | AQ68: R5, 0 - 1 | BJ68: R7, 1 - 0 | CW68: R2, 0 - 1 | CZ68: R1, 1 - 0 | DB68: R2, 0.5 - 0.5 | DC68: R2, 1 - 0 | DD68: R1, 1 - 0 | DE68: R2, 0 - 1 | DI68: R2, 0 - 1 | DJ68: R4, 1 - 0 | DK68: R4, 0.5 - 0.5 | DL68: R4, 0.5 - 0.5 | DN68: R5, 1 - 0 | DO68: R4, 0.5 - 0.5 | DP68: R4, 0.5 - 0.5 | DQ68: R5, 0.5 - 0.5 | DS68: R3, 1 - 0 | DU68: R2, 0.5 - 0.5 | DV68: R3, 1 - 0 | DW68: R6, 0.5 - 0.5 | DX68: R5, 0 - 1
A69: MadeofWelsh | E69: R1, 0.5 - 0.5 | W69: R4, 0.5 - 0.5 | Y69: R6, 1 - 0 | AP69: R8, 0.5 - 0.5 | BL69: R2, 1 - 0 | CD69: R3, 0.5 - 0.5 | CE69: R5, 0 - 1 | CW69: R2, 1 - 0 | CX69: R1, 0.5 - 0.5 | DB69: R2, 0.5 - 0.5 | DC69: R5, 0.5 - 0.5 | DD69: R2, 4 - 21 | DE69: R2, 1 - 0 | DF69: R2, 1 - 0 | DH69: R1, 0.5 - 0.5 | DI69: R4, 1 - 0 | DJ69: R4, 0.5 - 0.5 | DK69: R5, 0 - 1 | DM69: R1, 9 - 10 | DN69: R5, 1 - 0 | DO69: R4, 0 - 1 | DP69: R3, 0.5 - 0.5 | DS69: R1, 0.5 - 0.5 | DT69: R1, 0.5 - 0.5 | DU69: R3, 1 - 0 | DV69: R3, 0 - 1 | DW69: R5, 1 - 0 | DX69: R7, 0.5 - 0.5
A70: Tank | AU70: R5, 0 - 1 | AY70: R6, 1 - 0 | BC70: R3, 0 - 1 | BX70: R8, 0.5 - 0.5 | CA70: R4, 0.5 - 0.5 | CK70: R2, 0.5 - 0.5 | CX70: R3, 0 - 1 | CY70: R2, 0 - 1 | CZ70: R2, 1 - 0 | DA70: R1, 1 - 0 | DB70: R1, 0.5 - 0.5 | DD70: R2, 0 - 1 | DE70: R7, 0 - 1 | DF70: R2, 0.5 - 0.5 | DG70: R2, 0.5 - 0.5 | DH70: R2, 1 - 0 | DJ70: R4, 1 - 0 | DL70: R5, 0 - 1 | DN70: R5, 23 - 4 | DO70: R2, 0 - 1 | DP70: R4, 1 - 0 | DQ70: R4, 1 - 0 | DT70: R3, 0 - 1 | DU70: R3, 0.5 - 0.5 | DV70: R3, 0 - 1 | DW70: R2, 0 - 1 | DX70: R3, 1 - 0 | DY70: R1, 0 - 1
A71: BeerBeer | J71: R1, 1 - 0 | Y71: R2, 0.5 - 0.5 | BK71: R7, 1 - 0 | BY71: R3, 0 - 1 | CF71: R5, 0 - 1 | CO71: R4, 1 - 0 | CW71: R1, 1 - 0 | CX71: R2, 0.5 - 0.5 | CY71: R2, 0.5 - 0.5 | DA71: R3, 0 - 1 | DC71: R2, 0 - 1 | DE71: R6, 0.5 - 0.5 | DF71: R2, 0.5 - 0.5 | DG71: R2, 0.5 - 0.5 | DH71: R7, 0 - 1 | DJ71: R8, 0 - 1 | DK71: R5, 0.5 - 0.5 | DL71: R5, 1 - 0 | DM71: R4, 1 - 0 | DN71: R3, 0 - 1 | DO71: R5, 0 - 1 | DP71: R4, 1 - 0 | DR71: R3, 1 - 0 | DS71: R3, 0 - 1 | DT71: R5, 1 - 0 | DU71: R2, 1 - 0 | DW71: R1, 0.5 - 0.5 | DY71: R3, 0.5 - 0.5
A72: ratogre | I72: R4, 0 - 1 | Q72: R2, 1 - 0 | AP72: R5, 0 - 1 | AT72: R1, 1 - 0 | BE72: R3, 1 - 0 | CK72: R8, 0 - 1 | CP72: R6, 1 - 0 | CY72: R2, 0 - 1 | CZ72: R2, 1 - 0 | DA72: R6, 0.5 - 0.5 | DC72: R5, 0 - 1 | DD72: R2, 1 - 0 | DE72: R5, 1 - 0 | DF72: R2, 1 - 0 | DG72: R1, 1 - 0 | DH72: R2, 1 - 0 | DJ72: R5, 0 - 1 | DK72: R4, 0.5 - 0.5 | DL72: R5, 0.5 - 0.5 | DM72: R5, 1 - 0 | DP72: R6, 1 - 0 | DQ72: R4, 1 - 0 | DR72: R5, 1 - 0 | DT72: R1, 1 - 0 | DU72: R7, 0.5 - 0.5 | DV72: R1, 0.5 - 0.5 | DX72: R5, 0 - 1 | DY72: R3, 1 - 0
A73: BudWiser | G73: R7, 0 - 1 | BW73: R2, 0 - 1 | CA73: R6, 0.5 - 0.5 | CX73: R6, 0.5 - 0.5 | CY73: R3, 0 - 1 | CZ73: R1, 1 - 0 | DA73: R5, 1 - 0 | DB73: R2, 1 - 0 | DE73: R2, 0 - 1 | DF73: R4, 1 - 0 | DG73: R2, 1 - 0 | DI73: R4, 0 - 1 | DL73: R3, 0 - 1 | DM73: R5, 0 - 1 | DO73: R4, 0 - 1 | DP73: R5, 1 - 0 | DQ73: R1, 9 - 11 | DR73: R8, 0 - 1 | DS73: R3, 0 - 1 | DT73: R5, 1 - 0 | DV73: R1, 0.5 - 0.5 | DX73: R3, 0.5 - 0.5 | DY73: R3, 1 - 0
A74: Gros Nain | J74: R4, 1 - 0 | AX74: R8, 1 - 0 | CE74: R2, 0 - 1 | CN74: R5, 0 - 1 | CT74: R3, 0 - 1 | CW74: R4, 0.5 - 0.5 | CX74: R7, 1 - 0 | CY74: R1, 0 - 1 | CZ74: R6, 1 - 0 | DA74: R5, 0 - 1 | DB74: R1, 0.5 - 0.5 | DC74: R3, 1 - 0 | DE74: R1, 1 - 0 | DG74: R2, 1 - 0 | DH74: R4, 0.5 - 0.5 | DL74: R1, 0.5 - 0.5 | DM74: R6, 1 - 0 | DN74: R2, 0.5 - 0.5 | DO74: R6, 0.5 - 0.5 | DP74: R1, 0 - 1 | DS74: R5, 1 - 0 | DW74: R1, 1 - 0 | DX74: R1, 0.5 - 0.5 | DY74: R1, 20 - 5
A75: Warrior1980 | G75: R8, 0.5 - 0.5 | V75: R5, 0 - 1 | AS75: R7, 0.5 - 0.5 | BA75: R4, 0 - 1 | BE75: R6, 0 - 1 | BU75: R2, 1 - 0 | CB75: R3, 0.5 - 0.5 | CX75: R5, 0 - 1 | CY75: R3, 0 - 1 | DA75: R6, 0 - 1 | DB75: R5, 0 - 1 | DD75: R2, 0.5 - 0.5 | DG75: R1, 0.5 - 0.5 | DI75: R6, 1 - 0 | DJ75: R6, 0 - 1 | DK75: R6, 1 - 0 | DL75: R1, 0.5 - 0.5 | DM75: R1, 0 - 1 | DP75: R2, 0.5 - 0.5 | DQ75: R5, 1 - 0 | DT75: R5, 0.5 - 0.5 | DU75: R1, 4 - 20 | DV75: R1, 0.5 - 0.5 | DY75: R1, 1 - 0
A76: Juniooor7 | E76: R3, 0 - 1 | AM76: R5, 0 - 1 | AW76: R6, 0 - 1 | BR76: R8, 0.5 - 0.5 | CC76: R1, 1 - 0 | CW76: R7, 1 - 0 | CX76: R3, 20 - 6 | CY76: R2, 0 - 1 | CZ76: R1, 0.5 - 0.5 | DA76: R3, 0 - 1 | DB76: R1, 0.5 - 0.5 | DC76: R5, 0.5 - 0.5 | DD76: R2, 0 - 1 | DF76: R1, 0 - 1 | DG76: R4, 0.5 - 0.5 | DH76: R2, 1 - 0 | DK76: R2, 1 - 0 | DN76: R6, 0 - 1 | DP76: R6, 0 - 1 | DU76: R1, 1 - 0 | DV76: R5, 1 - 0 | DW76: R4, 0 - 1 | DY76: R2, 0 - 1
A77: Madmatt13 | I77: R1, 0 - 1 | AA77: R5, 0 - 1 | AY77: R2, 1 - 0 | BF77: R8, 0.5 - 0.5 | BS77: R3, 1 - 0 | CW77: R3, 1 - 0 | CX77: R1, 0 - 1 | CY77: R1, 0.5 - 0.5 | CZ77: R6, 1 - 0 | DB77: R4, 0 - 1 | DC77: R2, 1 - 0 | DD77: R1, 0.5 - 0.5 | DF77: R5, 1 - 0 | DH77: R1, 1 - 0 | DK77: R1, 1 - 0 | DM77: R2, 0 - 1 | DN77: R6, 0 - 1 | DO77: R6, 0.5 - 0.5 | DP77: R1, 1 - 0 | DQ77: R6, 0.5 - 0.5 | DR77: R1, 1 - 0 | DT77: R4, 1 - 0 | DU77: R5, 1 - 0 | DW77: R7, 1 - 0 | DX77: R5, 0 - 1
A78: jopotzuki | B78: R4, 0.5 - 0.5 | D78: R1, 1 - 0 | X78: R6, 0.5 - 0.5 | Z78: R8, 1 - 0 | BH78: R3, 0 - 1 | CR78: R7, 1 - 0 | CW78: R2, 1 - 0 | CX78: R6, 1 - 0 | CY78: R3, 0.5 - 0.5 | CZ78: R5, 0.5 - 0.5 | DA78: R1, 0.5 - 0.5 | DB78: R5, 1 - 0 | DC78: R1, 0 - 1 | DE78: R5, 1 - 0 | DF78: R2, 1 - 0 | DG78: R4, 0 - 1 | DI78: R2, 0 - 1 | DJ78: R2, 1 - 0 | DL78: R6, 1 - 0 | DO78: R2, 0 - 1 | DQ78: R1, 0 - 1 | DR78: R4, 0.5 - 0.5 | DT78: R1, 1 - 0 | DW78: R1, 1 - 0 | DX78: R5, 0.5 - 0.5
A79: J-Ho | E79: R7, 0 - 1 | P79: R2, 0.5 - 0.5 | BJ79: R8, 0.5 - 0.5 | BR79: R4, 0.5 - 0.5 | BU79: R6, 0.5 - 0.5 | CH79: R1, 0.5 - 0.5 | CU79: R5, 0.5 - 0.5 | CW79: R6, 1 - 0 | CZ79: R1, 1 - 0 | DC79: R4, 0 - 1 | DD79: R1, 0 - 1 | DE79: R2, 1 - 0 | DH79: R1, 1 - 0 | DI79: R3, 1 - 0 | DK79: R6, 0 - 1 | DL79: R2, 1 - 0 | DN79: R6, 1 - 0 | DQ79: R6, 1 - 0 | DR79: R3, 0 - 1 | DS79: R4, 0 - 1 | DU79: R1, 0.5 - 0.5 | DW79: R1, 20 - 4 | DX79: R1, 1 - 0 | DY79: R1, 1 - 0
A80: Verrinho | K80: R7, 1 - 0 | R80: R6, 0.5 - 0.5 | T80: R4, 1 - 0 | AM80: R1, 1 - 0 | BH80: R5, 0.5 - 0.5 | BW80: R3, 0.5 - 0.5 | CF80: R2, 1 - 0 | CI80: R8, 1 - 0 | CW80: R5, 0.5 - 0.5 | CX80: R1, 0.5 - 0.5 | CY80: R3, 1 - 0 | DA80: R3, 0 - 1 | DD80: R7, 1 - 0 | DE80: R2, 0 - 1 | DF80: R1, 0 - 1 | DI80: R1, 0 - 1 | DJ80: R2, 1 - 0 | DL80: R6, 0 - 1 | DM80: R6, 1 - 0 | DO80: R1, 0.5 - 0.5 | DQ80: R2, 1 - 0 | DR80: R1, 1 - 0 | DS80: R1, 1 - 0 | DT80: R1, 2 - 17 | DY80: R5, 0.5 - 0.5
A81: Valen | F81: R2, 0 - 1 | S81: R4, 0.5 - 0.5 | AT81: R6, 0 - 1 | BL81: R8, 0.5 - 0.5 | BX81: R1, 0 - 1 | CJ81: R7, 0 - 1 | CW81: R5, 1 - 0 | CY81: R4, 0.5 - 0.5 | CZ81: R2, 1 - 0 | DA81: R1, 1 - 0 | DB81: R2, 0.5 - 0.5 | DC81: R6, 1 - 0 | DE81: R1, 0.5 - 0.5 | DH81: R5, 0.5 - 0.5 | DI81: R1, 1 - 0 | DJ81: R1, 0.5 - 0.5 | DL81: R2, 6 - 19 | DP81: R6, 1 - 0 | DQ81: R2, 0 - 1 | DR81: R5, 0 - 1 | DS81: R1, 0.5 - 0.5 | DT81: R3, 0 - 1 | DU81: R6, 0 - 1 | DV81: R1, 1 - 0 | DW81: R5, 1 - 0
A82: Lycos | K82: R1, 1 - 0 | AU82: R8, 0.5 - 0.5 | BC82: R7, 0 - 1 | BQ82: R3, 0.5 - 0.5 | CI82: R5, 0 - 1 | CT82: R6, 1 - 0 | CW82: R2, 20 - 8 | CY82: R1, 1 - 0 | DA82: R1, 0.5 - 0.5 | DC82: R3, 0 - 1 | DD82: R4, 0 - 1 | DE82: R1, 0.5 - 0.5 | DH82: R1, 1 - 0 | DJ82: R1, 0 - 1 | DK82: R6, 0 - 1 | DL82: R2, 0 - 1 | DM82: R2, 0.5 - 0.5 | DN82: R3, 0.5 - 0.5 | DO82: R1, 1 - 0 | DP82: R4, 1 - 0 | DQ82: R7, 1 - 0 | DR82: R2, 0.5 - 0.5 | DS82: R3, 1 - 0 | DU82: R1, 0.5 - 0.5 | DV82: R2, 1 - 0 | DW82: R2, 0.5 - 0.5 | DX82: R6, 0 - 1
A83: Domingo | I83: R8, 0 - 1 | W83: R7, 1 - 0 | BO83: R4, 1 - 0 | BQ83: R5, 1 - 0 | BV83: R2, 1 - 0 | CR83: R3, 1 - 0 | CW83: R6, 1 - 0 | CX83: R1, 1 - 0 | CZ83: R3, 1 - 0 | DB83: R3, 0 - 1 | DD83: R1, 1 - 0 | DE83: R4, 6 - 21 | DF83: R3, 1 - 0 | DI83: R3, 1 - 0 | DK83: R1, 0.5 - 0.5 | DL83: R6, 0 - 1 | DO83: R5, 0 - 1 | DP83: R1, 1 - 0 | DQ83: R1, 0.5 - 0.5 | DR83: R6, 0 - 1 | DS83: R2, 0.5 - 0.5 | DU83: R2, 1 - 0 | DV83: R2, 0.5 - 0.5 | DW83: R2, 0.5 - 0.5 | DY83: R6, 0.5 - 0.5
A84: Mufflo | V84: R8, 0 - 1 | Y84: R3, 1 - 0 | Z84: R7, 0 - 1 | BA84: R6, 1 - 0 | BC84: R1, 1 - 0 | BS84: R5, 1 - 0 | CB84: R2, 0 - 1 | CW84: R5, 0.5 - 0.5 | CX84: R6, 1 - 0 | CY84: R1, 0.5 - 0.5 | DA84: R1, 0.5 - 0.5 | DC84: R1, 1 - 0 | DG84: R1, 0.5 - 0.5 | DH84: R3, 1 - 0 | DI84: R3, 0 - 1 | DL84: R1, 0.5 - 0.5 | DM84: R6, 0.5 - 0.5 | DN84: R3, 0 - 1 | DO84: R6, 0 - 1 | DP84: R6, 0.5 - 0.5 | DQ84: R1, 1 - 0 | DR84: R1, 0.5 - 0.5 | DS84: R6, 1 - 0 | DT84: R1, 1 - 0 | DU84: R2, 1 - 0 | DY84: R4, 0.5 - 0.5
A85: andydavo | M85: R2, 0.5 - 0.5 | AB85: R5, 0 - 1 | AL85: R8, 1 - 0 | BK85: R1, 0.5 - 0.5 | CH85: R3, 0.5 - 0.5 | CM85: R7, 0 - 1 | CW85: R2, 0 - 1 | CX85: R5, 1 - 0 | CZ85: R1, 0 - 1 | DB85: R2, 0.5 - 0.5 | DC85: R3, 1 - 0 | DD85: R3, 0.5 - 0.5 | DF85: R6, 0 - 1 | DG85: R1, 0.5 - 0.5 | DH85: R1, 1 - 0 | DI85: R3, 0 - 1 | DJ85: R1, 1 - 0 | DM85: R4, 0.5 - 0.5 | DN85: R7, 0 - 1 | DO85: R2, 0.5 - 0.5 | DQ85: R1, 0 - 1 | DR85: R1, 0 - 1 | DT85: R6, 0 - 1 | DU85: R3, 0 - 1 | DW85: R3, 1 - 0 | DX85: R2, 0.5 - 0.5 | DY85: R1, 0 - 1
A86: Geggster | F86: R8, 0.5 - 0.5 | M86: R7, 0.5 - 0.5 | W86: R2, 0 - 1 | CA86: R1, 0.5 - 0.5 | CG86: R3, 0.5 - 0.5 | CW86: R1, 0 - 1 | CX86: R2, 9 - 8 | CY86: R1, 10 - 10 | DA86: R6, 1 - 0 | DB86: R3, 0.5 - 0.5 | DC86: R1, 0.5 - 0.5 | DE86: R1, 1 - 0 | DF86: R5, 0.5 - 0.5 | DG86: R6, 0.5 - 0.5 | DH86: R4, 1 - 0 | DJ86: R6, 0 - 1 | DK86: R1, 1 - 0 | DL86: R4, 0 - 1 | DM86: R2, 0 - 1 | DN86: R1, 1 - 0 | DO86: R6, 0 - 1 | DP86: R1, 0.5 - 0.5 | DQ86: R2, 0.5 - 0.5 | DR86: R2, 1 - 0 | DS86: R2, 1 - 0 | DT86: R4, 0.5 - 0.5 | DU86: R2, 1 - 0 | DV86: R5, 1 - 0 | DX86: R1, 0 - 1 | DY86: R6, 1 - 0
A87: Arioso | O87: R1, 1 - 0 | R87: R4, 0 - 1 | V87: R6, 0.5 - 0.5 | AP87: R3, 0.5 - 0.5 | CB87: R8, 0 - 1 | CD87: R5, 1 - 0 | CS87: R7, 0.5 - 0.5 | CW87: R1, 1 - 0 | CX87: R1, 0.5 - 0.5 | CY87: R5, 0.5 - 0.5 | CZ87: R2, 1 - 0 | DB87: R3, 0 - 1 | DC87: R4, 0 - 1 | DG87: R3, 1 - 0 | DH87: R3, 0 - 1 | DI87: R1, 0.5 - 0.5 | DJ87: R6, 0 - 1 | DK87: R2, 0 - 1 | DL87: R1, 0.5 - 0.5 | DM87: R1, 0 - 1 | DN87: R6, 0 - 1 | DO87: R1, 1 - 0 | DP87: R3, 1 - 0 | DS87: R2, 1 - 0 | DT87: R3, 0.5 - 0.5 | DU87: R2, 0 - 1 | DV87: R3, 1 - 0 | DX87: R2, 0 - 1 | DY87: R2, 0.5 - 0.5
A88: Gaunab | E88: R8, 1 - 0 | AG88: R1, 1 - 0 | AN88: R2, 0 - 1 | CC88: R7, 1 - 0 | CK88: R4, 0.5 - 0.5 | CX88: R1, 0 - 1 | CY88: R5, 0 - 1 | CZ88: R1, 0 - 1 | DA88: R1, 11 - 11 | DC88: R6, 0 - 1 | DD88: R3, 1 - 0 | DF88: R1, 0.5 - 0.5 | DG88: R5, 1 - 0 | DI88: R1, 0.5 - 0.5 | DJ88: R3, 1 - 0 | DK88: R1, 1 - 0 | DL88: R3, 0.5 - 0.5 | DN88: R1, 1 - 0 | DO88: R1, 0 - 1 | DQ88: R2, 0 - 1 | DR88: R2, 1 - 0 | DS88: R3, 0 - 1 | DT88: R2, 0 - 1 | DU88: R2, 0 - 1 | DV88: R2, 0.5 - 0.5 | DW88: R6, 0.5 - 0.5 | DX88: R2, 0.5 - 0.5 | DY88: R3, 0 - 1
A89: Alex05 | AA89: R6, 1 - 0 | AC89: R5, 1 - 0 | AZ89: R3, 1 - 0 | BR89: R2, 0.5 - 0.5 | BT89: R8, 1 - 0 | CJ89: R4, 0.5 - 0.5 | CN89: R1, 0 - 1 | CZ89: R1, 1 - 0 | DA89: R2, 0 - 1 | DB89: R7, 1 - 0 | DC89: R3, 0 - 1 | DD89: R1, 0 - 1 | DE89: R3, 0 - 1 | DG89: R3, 1 - 0 | DH89: R6, 1 - 0 | DJ89: R1, 1 - 0 | DL89: R6, 0.5 - 0.5 | DM89: R1, 0.5 - 0.5 | DO89: R3, 0.5 - 0.5 | DP89: R1, 1 - 0 | DS89: R4, 0.5 - 0.5 | DT89: R2, 1 - 0 | DV89: R7, 0 - 1 | DW89: R2, 0.5 - 0.5 | DX89: R3, 0.5 - 0.5 | DY89: R2, 0.5 - 0.5
A90: Beppe | V90: R1, 1 - 0 | Y90: R8, 0 - 1 | Z90: R6, 0 - 1 | AI90: R3, 1 - 0 | AP90: R2, 0.5 - 0.5 | AQ90: R7, 1 - 0 | CS90: R4, 1 - 0 | CW90: R3, 0 - 1 | CX90: R3, 0 - 1 | CY90: R1, 0 - 1 | CZ90: R2, 0.5 - 0.5 | DA90: R3, 1 - 0 | DC90: R4, 0 - 1 | DF90: R5, 0.5 - 0.5 | DG90: R4, 0.5 - 0.5 | DK90: R6, 1 - 0 | DL90: R2, 0 - 1 | DM90: R1, 0.5 - 0.5 | DO90: R1, 0 - 1 | DP90: R4, 1 - 0 | DS90: R3, 12 - 15 | DT90: R7, 0 - 1 | DV90: R1, 0 - 1 | DW90: R1, 1 - 0 | DY90: R5, 0 - 1
A91: Melisqus | F91: R3, 0.5 - 0.5 | M91: R4, 1 - 0 | X91: R5, 0.5 - 0.5 | BH91: R2, 0 - 1 | BJ91: R1, 1 - 0 | BM91: R6, 0 - 1 | CG91: R7, 1 - 0 | CX91: R3, 1 - 0 | CY91: R2, 1 - 0 | CZ91: R1, 0.5 - 0.5 | DA91: R2, 1 - 0 | DC91: R4, 0 - 1 | DD91: R1, 1 - 0 | DI91: R1, 1 - 0 | DJ91: R2, 1 - 0 | DK91: R1, 0.5 - 0.5 | DL91: R4, 1 - 0 | DM91: R8, 0 - 1 | DQ91: R1, 0 - 1 | DR91: R1, 1 - 0 | DS91: R7, 0 - 1 | DV91: R2, 1 - 0 | DW91: R4, 0 - 1 | DY91: R3, 19 - 4
A92: Dragons | B92: R6, 1 - 0 | W92: R8, 0 - 1 | AC92: R4, 1 - 0 | AF92: R7, 1 - 0 | BA92: R3, 0 - 1 | BV92: R5, 1 - 0 | CK92: R1, 1 - 0 | CX92: R2, 0 - 1 | CY92: R2, 1 - 0 | CZ92: R1, 0 - 1 | DB92: R7, 1 - 0 | DF92: R6, 0.5 - 0.5 | DG92: R6, 0 - 1 | DH92: R1, 0 - 1 | DJ92: R1, 0 - 1 | DK92: R4, 1 - 0 | DL92: R1, 0.5 - 0.5 | DQ92: R6, 0.5 - 0.5 | DR92: R6, 0 - 1 | DS92: R4, 0 - 1 | DT92: R1, 1 - 0 | DU92: R1, 0.5 - 0.5 | DV92: R3, 22 - 2 | DY92: R2, 0 - 1
A93: Jaqra | F93: R5, 0.5 - 0.5 | M93: R3, 0.5 - 0.5 | Z93: R2, 0 - 1 | AJ93: R8, 1 - 0 | BD93: R6, 1 - 0 | BF93: R7, 0 - 1 | BS93: R4, 0 - 1 | CW93: R1, 0.5 - 0.5 | CX93: R2, 1 - 0 | CY93: R2, 1 - 0 | CZ93: R2, 0.5 - 0.5 | DE93: R5, 0.5 - 0.5 | DG93: R1, 0.5 - 0.5 | DI93: R6, 0.5 - 0.5 | DJ93: R6, 0.5 - 0.5 | DM93: R2, 0.5 - 0.5 | DN93: R2, 0.5 - 0.5 | DO93: R1, 0 - 1 | DQ93: R4, 1 - 0 | DR93: R1, 1 - 0 | DS93: R5, 0 - 1 | DT93: R4, 0.5 - 0.5 | DU93: R1, 1 - 0 | DV93: R4, 0 - 1 | DW93: R1, 1 - 0
A94: Harti | B94: R7, 1 - 0 | L94: R1, 0.5 - 0.5 | AI94: R2, 0.5 - 0.5 | AT94: R4, 1 - 0 | BH94: R8, 0 - 1 | BT94: R6, 0 - 1 | CW94: R2, 0.5 - 0.5 | CX94: R1, 0.5 - 0.5 | CZ94: R3, 0 - 1 | DA94: R2, 0 - 1 | DC94: R6, 0.5 - 0.5 | DD94: R3, 0 - 1 | DF94: R1, 1 - 0 | DI94: R5, 0 - 1 | DK94: R1, 1 - 0 | DL94: R1, 1 - 0 | DM94: R4, 0.5 - 0.5 | DN94: R1, 0 - 1 | DP94: R3, 1 - 0 | DQ94: R2, 1 - 0 | DR94: R4, 0.5 - 0.5 | DS94: R1, 0 - 1 | DT94: R6, 0.5 - 0.5 | DV94: R1, 1 - 0 | DX94: R5, 0 - 1
A95: Favi | B95: R2, 0 - 1 | M95: R5, 0.5 - 0.5 | P95: R4, 0.5 - 0.5 | S95: R6, 0.5 - 0.5 | AK95: R1, 0.5 - 0.5 | AS95: R3, 0.5 - 0.5 | CU95: R7, 0.5 - 0.5 | CW95: R3, 1 - 0 | CX95: R1, 1 - 0 | CY95: R2, 0 - 1 | CZ95: R8, 0 - 1 | DA95: R3, 0.5 - 0.5 | DC95: R5, 1 - 0 | DI95: R1, 0.5 - 0.5 | DJ95: R1, 1 - 0 | DK95: R1, 0 - 1 | DN95: R4, 0 - 1 | DP95: R6, 1 - 0 | DT95: R1, 1 - 0 | DW95: R6, 1 - 0 | DX95: R1, 0.5 - 0.5 | DY95: R1, 0 - 1
A96: Spartako | AF96: R1, 1 - 0 | AL96: R2, 1 - 0 | AX96: R5, 0 - 1 | BJ96: R6, 1 - 0 | BZ96: R7, 0 - 1 | CE96: R3, 0 - 1 | CT96: R4, 1 - 0 | CW96: R2, 0.5 - 0.5 | CY96: R3, 0.5 - 0.5 | CZ96: R3, 1 - 0 | DA96: R6, 1 - 0 | DB96: R5, 6 - 20 | DE96: R1, 0.5 - 0.5 | DF96: R8, 0 - 1 | DG96: R5, 0.5 - 0.5 | DJ96: R4, 1 - 0 | DM96: R5, 0 - 1 | DN96: R6, 0.5 - 0.5 | DO96: R2, 0 - 1 | DP96: R1, 0.5 - 0.5 | DQ96: R1, 0.5 - 0.5 | DS96: R1, 0 - 1 | DU96: R4, 1 - 0 | DW96: R3, 19 - 5 | DX96: R6, 0 - 1 | DY96: R1, 1 - 0
A97: DonShula | D97: R6, 1 - 0 | W97: R5, 1 - 0 | AV97: R2, 1 - 0 | BC97: R8, 0.5 - 0.5 | CI97: R7, 0.5 - 0.5 | CL97: R4, 0 - 1 | CW97: R3, 1 - 0 | CX97: R7, 1 - 0 | CY97: R6, 1 - 0 | DB97: R1, 1 - 0 | DD97: R3, 1 - 0 | DG97: R4, 0.5 - 0.5 | DH97: R5, 0 - 1 | DM97: R2, 0.5 - 0.5 | DN97: R1, 1 - 0 | DO97: R4, 0.5 - 0.5 | DP97: R2, 0 - 1 | DQ97: R1, 0 - 1 | DS97: R3, 11 - 12 | DU97: R3, 0 - 1 | DV97: R6, 0 - 1 | DX97: R1, 0.5 - 0.5 | DY97: R1, 1 - 0
A98: HumptyTrump | Q98: R7, 0.5 - 0.5 | AJ98: R1, 1 - 0 | BB98: R8, 0 - 1 | BO98: R2, 0 - 1 | BV98: R3, 1 - 0 | CD98: R6, 0 - 1 | CR98: R4, 0 - 1 | CW98: R2, 0.5 - 0.5 | DB98: R2, 0 - 1 | DD98: R3, 0.5 - 0.5 | DE98: R3, 0 - 1 | DF98: R5, 0 - 1 | DG98: R6, 0 - 1 | DI98: R4, 0.5 - 0.5 | DJ98: R1, 0.5 - 0.5 | DK98: R3, 0 - 1 | DL98: R1, 0.5 - 0.5 | DM98: R5, 0 - 1 | DN98: R1, 0.5 - 0.5 | DO98: R2, 0.5 - 0.5 | DP98: R3, 0 - 1 | DS98: R1, 0.5 - 0.5 | DV98: R1, 0 - 1 | DY98: R2, 0 - 1
A99: Purrelito | N99: R8, 0.5 - 0.5 | S99: R2, 1 - 0 | AW99: R4, 0 - 1 | BB99: R1, 0 - 1 | CA99: R5, 0.5 - 0.5 | CQ99: R7, 0.5 - 0.5 | DC99: R5, 1 - 0 | DD99: R3, 0.5 - 0.5 | DE99: R5, 0 - 1 | DF99: R3, 0.5 - 0.5 | DH99: R2, 1 - 0 | DI99: R6, 0.5 - 0.5 | DK99: R1, 0 - 1 | DM99: R3, 0 - 1 | DN99: R5, 0.5 - 0.5 | DO99: R3, 0.5 - 0.5 | DP99: R2, 1 - 0 | DV99: R6, 0 - 1 | DW99: R2, 0 - 1 | DX99: R2, 1 - 0 | DY99: R1, 1 - 0
A100: nonumber | C100: R3, 0.5 - 0.5 | P100: R6, 1 - 0 | AA100: R1, 0.5 - 0.5 | AC100: R2, 0 - 1 | AI100: R5, 0 - 1 | AS100: R4, 0 - 1 | DA100: R7, 0.5 - 0.5 | DB100: R8, 1 - 0 | DD100: R6, 0.5 - 0.5 | DE100: R6, 0.5 - 0.5 | DF100: R4, 1 - 0 | DG100: R2, 0 - 1 | DK100: R1, 0.5 - 0.5 | DL100: R5, 0 - 1 | DM100: R2, 0.5 - 0.5 | DO100: R1, 0.5 - 0.5 | DQ100: R3, 1 - 0 | DR100: R2, 0.5 - 0.5 | DU100: R4, 1 - 0 | DV100: R3, 1 - 0
A101: Driesfield | AH101: R3, 0 - 1 | AM101: R4, 0.5 - 0.5 | BI101: R1, 0 - 1 | BX101: R7, 0 - 1 | CC101: R5, 0 - 1 | CX101: R6, 1 - 0 | CY101: R2, 0 - 1 | CZ101: R7, 0.5 - 0.5 | DA101: R8, 0.5 - 0.5 | DB101: R5, 1 - 0 | DC101: R2, 1 - 0 | DE101: R5, 2 - 18 | DF101: R6, 1 - 0 | DG101: R5, 0 - 1 | DH101: R6, 0 - 1 | DK101: R2, 1 - 0 | DL101: R1, 0 - 1 | DM101: R3, 1 - 0 | DN101: R1, 0.5 - 0.5 | DQ101: R6, 1 - 0 | DR101: R6, 0.5 - 0.5 | DS101: R3, 1 - 0 | DV101: R1, 1 - 0 | DX101: R2, 1 - 0
A102: kfoged | R102: R2, 0.5 - 0.5 | AI102: R8, 0.5 - 0.5 | AK102: R6, 0 - 1 | AN102: R4, 1 - 0 | AO102: R3, 0.5 - 0.5 | AW102: R1, 1 - 0 | BA102: R5, 0.5 - 0.5 | BV102: R7, 0 - 1 | CW102: R6, 0 - 1 | CZ102: R4, 1 - 0 | DA102: R4, 0.5 - 0.5 | DB102: R6, 0 - 1 | DC102: R6, 1 - 0 | DD102: R6, 1 - 0 | DE102: R2, 1 - 0 | DH102: R3, 0 - 1 | DI102: R5, 0.5 - 0.5 | DJ102: R1, 0 - 1 | DK102: R6, 20 - 3 | DN102: R2, 1 - 0 | DQ102: R5, 0 - 1 | DS102: R1, 1 - 0 | DT102: R5, 0.5 - 0.5 | DV102: R2, 1 - 0 | DW102: R1, 1 - 0
A103: Podfrey | L103: R8, 1 - 0 | T103: R6, 0 - 1 | U103: R7, 0 - 1 | X103: R4, 0 - 1 | AF103: R3, 0.5 - 0.5 | AQ103: R1, 0 - 1 | CJ103: R5, 1 - 0 | CW103: R2, 1 - 0 | DA103: R1, 0 - 1 | DB103: R3, 0.5 - 0.5 | DC103: R5, 0.5 - 0.5 | DD103: R2, 0.5 - 0.5 | DE103: R6, 0.5 - 0.5 | DF103: R1, 19 - 5 | DK103: R3, 0 - 1 | DM103: R1, 1 - 0 | DO103: R5, 0 - 1 | DQ103: R1, 0.5 - 0.5 | DR103: R1, 0 - 1 | DT103: R2, 0 - 1 | DY103: R1, 0 - 1
A104: valkohukka | G104: R4, 1 - 0 | AA104: R7, 1 - 0 | AL104: R5, 0.5 - 0.5 | AX104: R3, 0 - 1 | BV104: R6, 0 - 1 | CI104: R2, 0 - 1 | CQ104: R8, 1 - 0 | CW104: R7, 0.5 - 0.5 | CX104: R4, 0 - 1 | DB104: R6, 0 - 1 | DC104: R6, 1 - 0 | DD104: R5, 0.5 - 0.5 | DG104: R1, 11 - 12 | DI104: R1, 1 - 0 | DJ104: R3, 1 - 0 | DM104: R6, 1 - 0 | DN104: R2, 0.5 - 0.5 | DO104: R1, 0.5 - 0.5 | DP104: R1, 0 - 1 | DQ104: R1, 0.5 - 0.5 | DS104: R2, 1 - 0 | DT104: R1, 0 - 1 | DV104: R4, 0 - 1 | DX104: R1, 0.5 - 0.5
A105: Skoberget | G105: R6, 0.5 - 0.5 | L105: R3, 0 - 1 | R105: R1, 0 - 1 | U105: R4, 0 - 1 | BU105: R5, 0 - 1 | CV105: R7, 0.5 - 0.5 | CW105: R8, 0.5 - 0.5 | CX105: R4, 0.5 - 0.5 | CY105: R1, 1 - 0 | DB105: R5, 0 - 1 | DE105: R2, 0 - 1 | DF105: R2, 1 - 0 | DG105: R6, 1 - 0 | DH105: R5, 1 - 0 | DI105: R2, 0 - 1 | DJ105: R5, 0.5 - 0.5 | DK105: R3, 10 - 10 | DL105: R6, 0.5 - 0.5 | DM105: R1, 0.5 - 0.5 | DP105: R1, 0.5 - 0.5 | DQ105: R2, 13 - 15 | DR105: R2, 0.5 - 0.5 | DT105: R1, 0.5 - 0.5 | DU105: R2, 1 - 0
A106: brocCooli | E106: R2, 1 - 0 | AU106: R6, 0.5 - 0.5 | BL106: R1, 0 - 1 | BN106: R3, 1 - 0 | BY106: R4, 1 - 0 | BZ106: R5, 0 - 1 | CK106: R7, 0 - 1 | CV106: R8, 0 - 1 | CW106: R5, 0 - 1 | CX106: R6, 1 - 0 | CY106: R3, 0.5 - 0.5 | CZ106: R6, 1 - 0 | DA106: R5, 1 - 0 | DC106: R1, 1 - 0 | DH106: R2, 0.5 - 0.5 | DJ106: R4, 1 - 0 | DK106: R6, 0 - 1 | DL106: R5, 1 - 0 | DM106: R2, 1 - 0 | DN106: R6, 0 - 1 | DO106: R1, 0.5 - 0.5 | DP106: R1, 1 - 0 | DQ106: R2, 0 - 1 | DS106: R2, 1 - 0 | DT106: R6, 1 - 0 | DU106: R3, 1 - 0 | DV106: R2, 0.5 - 0.5 | DW106: R6, 0.5 - 0.5 | DX106: R6, 0.5 - 0.5 | DY106: R1, 0.5 - 0.5
A107: Ploppy_McPloppy | D107: R3, 0 - 1 | S107: R1, 1 - 0 | AE107: R8, 0.5 - 0.5 | AR107: R7, 1 - 0 | AZ107: R4, 0 - 1 | BB107: R2, 0 - 1 | CJ107: R6, 1 - 0 | CW107: R2, 0 - 1 | CX107: R6, 0 - 1 | CY107: R5, 0.5 - 0.5 | CZ107: R6, 0 - 1 | DB107: R1, 0 - 1 | DJ107: R3, 0 - 1 | DK107: R2, 0.5 - 0.5 | DL107: R1, 0.5 - 0.5 | DN107: R3, 0.5 - 0.5 | DO107: R5, 0.5 - 0.5 | DP107: R2, 0 - 1 | DR107: R3, 0.5 - 0.5 | DT107: R1, 1 - 0 | DU107: R6, 1 - 0 | DW107: R2, 0.5 - 0.5 | DX107: R6, 0.5 - 0.5 | DY107: R5, 1 - 0
A108: BiBi | F108: R1, 1 - 0 | I108: R7, 0.5 - 0.5 | K108: R6, 0.5 - 0.5 | AK108: R5, 1 - 0 | BX108: R2, 1 - 0 | CD108: R4, 1 - 0 | CS108: R3, 0 - 1 | CX108: R6, 0 - 1 | CY108: R2, 0.5 - 0.5 | CZ108: R5, 0.5 - 0.5 | DE108: R6, 10 - 11 | DG108: R5, 19 - 4 | DJ108: R2, 0.5 - 0.5 | DL108: R2, 0.5 - 0.5 | DM108: R4, 1 - 0 | DN108: R1, 0 - 1 | DO108: R1, 0 - 1 | DP108: R2, 1 - 0 | DQ108: R5, 0.5 - 0.5 | DS108: R1, 0 - 1 | DT108: R1, 1 - 0 | DU108: R6, 0.5 - 0.5 | DV108: R3, 0.5 - 0.5 | DW108: R6, 0 - 1 | DY108: R8, 1 - 0
A109: Matt le fou | D109: R4, 0.5 - 0.5 | T109: R3, 0 - 1 | AB109: R2, 1 - 0 | AR109: R5, 0 - 1 | AU109: R1, 0.5 - 0.5 | AW109: R8, 0 - 1 | BR109: R7, 1 - 0 | BS109: R6, 0.5 - 0.5 | CW109: R5, 18 - 2 | CX109: R2, 0 - 1 | CY109: R6, 0.5 - 0.5 | DA109: R2, 1 - 0 | DD109: R6, 11 - 10 | DF109: R2, 1 - 0 | DG109: R1, 0.5 - 0.5 | DK109: R2, 1 - 0 | DL109: R1, 0.5 - 0.5 | DM109: R1, 0 - 1 | DN109: R1, 0 - 1 | DO109: R2, 0 - 1 | DQ109: R1, 1 - 0 | DR109: R4, 0 - 1 | DS109: R6, 1 - 0 | DT109: R6, 0.5 - 0.5 | DU109: R1, 1 - 0 | DV109: R1, 0 - 1 | DY109: R3, 0.5 - 0.5
A110: Candlejack | AZ110: R1, 1 - 0 | BZ110: R2, 0 - 1 | CG110: R6, 1 - 0 | CH110: R5, 0.5 - 0.5 | CR110: R8, 1 - 0 | CU110: R3, 0.5 - 0.5 | CW110: R6, 0 - 1 | CY110: R1, 5 - 19 | DA110: R2, 0 - 1 | DE110: R2, 0 - 1 | DH110: R2, 0 - 1 | DI110: R6, 0 - 1 | DJ110: R5, 0 - 1 | DK110: R4, 0.5 - 0.5 | DL110: R7, 0 - 1 | DM110: R1, 1 - 0 | DN110: R1, 0 - 1 | DO110: R1, 0.5 - 0.5 | DP110: R5, 0 - 1 | DQ110: R1, 0.5 - 0.5 | DR110: R6, 1 - 0 | DS110: R6, 22 - 5 | DT110: R6, 1 - 0 | DV110: R1, 1 - 0 | DW110: R1, 1 - 0 | DX110: R5, 0.5 - 0.5 | DY110: R7, 0.5 - 0.5
A111: Purdindas | AA111: R4, 0 - 1 | AB111: R1, 0 - 1 | AC111: R8, 0.5 - 0.5 | AG111: R5, 0 - 1 | AU111: R2, 0.5 - 0.5 | BF111: R3, 1 - 0 | BN111: R7, 0 - 1 | CH111: R6, 0.5 - 0.5 | CW111: R5, 1 - 0 | CZ111: R1, 12 - 11 | DA111: R6, 0 - 1 | DD111: R5, 4 - 19 | DE111: R1, 0.5 - 0.5 | DH111: R5, 1 - 0 | DJ111: R3, 0.5 - 0.5 | DK111: R1, 1 - 0 | DL111: R2, 0 - 1 | DM111: R2, 1 - 0 | DN111: R2, 1 - 0 | DO111: R1, 0.5 - 0.5 | DP111: R5, 0 - 1 | DR111: R6, 0.5 - 0.5 | DS111: R3, 0 - 1 | DT111: R4, 1 - 0 | DW111: R3, 0 - 1 | DX111: R2, 1 - 0 | DY111: R2, 0 - 1
A112: JJ | J112: R2, 0.5 - 0.5 | V112: R4, 0 - 1 | Y112: R1, 0 - 1 | AC112: R6, 1 - 0 | AJ112: R7, 0.5 - 0.5 | AY112: R8, 0 - 1 | BJ112: R3, 0 - 1 | CW112: R6, 1 - 0 | CX112: R3, 1 - 0 | DA112: R5, 0 - 1 | DB112: R2, 0.5 - 0.5 | DF112: R2, 1 - 0 | DG112: R5, 0 - 1 | DJ112: R1, 0 - 1 | DK112: R1, 0 - 1 | DM112: R4, 1 - 0 | DN112: R5, 0.5 - 0.5 | DO112: R2, 1 - 0 | DP112: R5, 1 - 0 | DQ112: R2, 0.5 - 0.5 | DR112: R1, 1 - 0 | DS112: R6, 0.5 - 0.5 | DT112: R5, 1 - 0 | DU112: R4, 0.5 - 0.5 | DW112: R1, 1 - 0 | DX112: R3, 0 - 1 | DY112: R6, 0.5 - 0.5
A113: Wilzif | O113: R2, 0 - 1 | V113: R3, 0 - 1 | BN113: R5, 0 - 1 | BU113: R4, 1 - 0 | CX113: R5, 0.5 - 0.5 | CZ113: R1, 0 - 1 | DA113: R2, 1 - 0 | DF113: R6, 1 - 0 | DJ113: R1, 0.5 - 0.5 | DM113: R5, 0.5 - 0.5 | DN113: R2, 0.5 - 0.5 | DO113: R1, 0.5 - 0.5 | DP113: R6, 1 - 0 | DQ113: R7, 1 - 0 | DS113: R3, 0.5 - 0.5 | DU113: R5, 1 - 0 | DV113: R8, 0.5 - 0.5 | DW113: R4, 1 - 0 | DY113: R3, 0.5 - 0.5
A114: noraal | Q114: R4, 1 - 0 | U114: R5, 0.5 - 0.5 | AE114: R7, 0 - 1 | AG114: R3, 1 - 0 | BD114: R1, 0.5 - 0.5 | BK114: R6, 1 - 0 | BM114: R2, 0 - 1 | BS114: R8, 1 - 0 | CX114: R1, 1 - 0 | CZ114: R3, 0 - 1 | DA114: R5, 0.5 - 0.5 | DB114: R4, 0 - 1 | DC114: R3, 1 - 0 | DD114: R2, 0.5 - 0.5 | DF114: R5, 1 - 0 | DG114: R3, 0.5 - 0.5 | DH114: R1, 1 - 0 | DI114: R1, 0.5 - 0.5 | DL114: R3, 1 - 0 | DN114: R3, 20 - 3 | DU114: R2, 0.5 - 0.5 | DV114: R1, 0.5 - 0.5 | DW114: R2, 1 - 0 | DY114: R1, 0 - 1
A115: cz | E115: R6, 0.5 - 0.5 | I115: R2, 0 - 1 | O115: R3, 0.5 - 0.5 | AQ115: R8, 0 - 1 | AY115: R1, 1 - 0 | BC115: R5, 0 - 1 | CW115: R2, 0 - 1 | CX115: R6, 3 - 20 | CY115: R3, 1 - 0 | DA115: R3, 10 - 10 | DB115: R6, 1 - 0 | DC115: R2, 0.5 - 0.5 | DE115: R2, 0 - 1 | DF115: R4, 0.5 - 0.5 | DG115: R1, 0 - 1 | DH115: R1, 1 - 0 | DS115: R7, 0 - 1 | DT115: R1, 0.5 - 0.5 | DU115: R2, 1 - 0 | DV115: R6, 1 - 0 | DX115: R2, 0.5 - 0.5
A116: Loki | E116: R4, 0.5 - 0.5 | J116: R6, 0 - 1 | M116: R8, 0.5 - 0.5 | AZ116: R5, 0.5 - 0.5 | BU116: R3, 1 - 0 | BW116: R1, 0.5 - 0.5 | CW116: R1, 1 - 0 | DA116: R6, 0.5 - 0.5 | DB116: R5, 0 - 1 | DC116: R1, 0.5 - 0.5 | DD116: R2, 0.5 - 0.5 | DE116: R1, 0.5 - 0.5 | DF116: R7, 1 - 0 | DG116: R2, 1 - 0 | DJ116: R3, 0 - 1 | DM116: R3, 0 - 1 | DQ116: R5, 0 - 1 | DR116: R2, 0.5 - 0.5 | DS116: R6, 0 - 1 | DV116: R2, 0 - 1 | DW116: R1, 1 - 0 | DY116: R4, 0 - 1
A117: gninocker | R117: R3, 0 - 1 | BC117: R6, 0 - 1 | BN117: R1, 1 - 0 | CD117: R2, 0.5 - 0.5 | CG117: R4, 0.5 - 0.5 | CM117: R8, 1 - 0 | CT117: R5, 1 - 0 | CW117: R3, 0 - 1 | CY117: R1, 0 - 1 | CZ117: R6, 0 - 1 | DA117: R1, 0.5 - 0.5 | DB117: R2, 0 - 1 | DD117: R4, 0 - 1 | DE117: R1, 1 - 0 | DF117: R1, 0 - 1 | DG117: R2, 0 - 1 | DH117: R4, 0 - 1 | DI117: R5, 0.5 - 0.5 | DL117: R3, 1 - 0 | DN117: R7, 0 - 1 | DP117: R2, 1 - 0 | DR117: R2, 1 - 0 | DS117: R2, 1 - 0 | DU117: R6, 0 - 1 | DV117: R5, 22 - 8 | DW117: R4, 0 - 1 | DY117: R1, 1 - 0
A118: Mewash | B118: R8, 0 - 1 | N118: R5, 0.5 - 0.5 | AU118: R4, 0.5 - 0.5 | BK118: R3, 0 - 1 | BY118: R6, 1 - 0 | CS118: R1, 0 - 1 | CW118: R1, 0.5 - 0.5 | CX118: R2, 0 - 1 | CZ118: R2, 0.5 - 0.5 | DB118: R6, 1 - 0 | DC118: R3, 0.5 - 0.5 | DD118: R1, 1 - 0 | DE118: R1, 1 - 0 | DF118: R1, 1 - 0 | DG118: R2, 0 - 1 | DH118: R5, 0.5 - 0.5 | DI118: R2, 0.5 - 0.5 | DJ118: R3, 3 - 20 | DM118: R7, 1 - 0 | DR118: R1, 0 - 1 | DS118: R3, 0 - 1 | DT118: R2, 1 - 0 | DV118: R4, 0.5 - 0.5 | DW118: R6, 0.5 - 0.5 | DX118: R2, 0.5 - 0.5 | DY118: R4, 1 - 0
A119: Leonek | X119: R2, 0.5 - 0.5 | AA119: R3, 0.5 - 0.5 | AD119: R6, 1 - 0 | AV119: R4, 0 - 1 | AZ119: R7, 1 - 0 | BG119: R1, 0.5 - 0.5 | BM119: R8, 0 - 1 | CY119: R5, 1 - 0 | CZ119: R1, 0.5 - 0.5 | DB119: R1, 0.5 - 0.5 | DC119: R5, 0.5 - 0.5 | DD119: R1, 1 - 0 | DE119: R2, 1 - 0 | DF119: R1, 0.5 - 0.5 | DG119: R1, 0.5 - 0.5 | DH119: R2, 0 - 1 | DI119: R1, 0.5 - 0.5 | DQ119: R4, 19 - 2 | DR119: R2, 1 - 0 | DS119: R1, 0 - 1 | DT119: R2, 1 - 0 | DX119: R1, 1 - 0
A120: JamesEs | P120: R7, 0 - 1 | CE120: R1, 0 - 1 | CP120: R3, 0 - 1 | CZ120: R1, 1 - 0 | DA120: R1, 0.5 - 0.5 | DB120: R1, 0 - 1 | DC120: R2, 1 - 0 | DD120: R2, 0 - 1 | DF120: R5, 1 - 0 | DG120: R5, 1 - 0 | DH120: R5, 0 - 1 | DI120: R6, 0 - 1 | DM120: R2, 0 - 1 | DQ120: R8, 0.5 - 0.5 | DS120: R2, 0 - 1 | DU120: R4, 0 - 1 | DV120: R2, 0 - 1 | DW120: R2, 1 - 0 | DX120: R6, 0 - 1
A121: Duke_Luthor_Von_Hawkfire | G121: R3, 0 - 1 | AF121: R2, 0 - 1 | AH121: R5, 0 - 1 | AL121: R1, 0 - 1 | AY121: R4, 0.5 - 0.5 | CW121: R6, 0 - 1 | CX121: R5, 1 - 0 | CY121: R1, 0.5 - 0.5 | CZ121: R1, 0.5 - 0.5 | DA121: R2, 15 - 13 | DB121: R2, 1 - 0 | DD121: R5, 0.5 - 0.5 | DE121: R1, 0 - 1 | DF121: R1, 0.5 - 0.5 | DH121: R2, 0.5 - 0.5 | DI121: R7, 0 - 1 | DL121: R5, 1 - 0 | DO121: R4, 2 - 19 | DP121: R8, 0.5 - 0.5 | DR121: R6, 0 - 1 | DS121: R6, 1 - 0 | DT121: R4, 0 - 1 | DU121: R1, 0.5 - 0.5 | DV121: R3, 0 - 1 | DY121: R2, 0 - 1
A122: Jokaero | S122: R5, 0.5 - 0.5 | AE122: R4, 0 - 1 | AJ122: R6, 0.5 - 0.5 | AU122: R7, 0 - 1 | BU122: R8, 1 - 0 | CA122: R3, 1 - 0 | CO122: R1, 0 - 1 | CW122: R6, 0.5 - 0.5 | CY122: R1, 1 - 0 | DA122: R2, 0.5 - 0.5 | DC122: R3, 0.5 - 0.5 | DE122: R4, 1 - 0 | DF122: R6, 0 - 1 | DG122: R6, 0.5 - 0.5 | DH122: R1, 0 - 1 | DL122: R2, 0.5 - 0.5 | DM122: R2, 0 - 1 | DN122: R1, 1 - 0 | DO122: R2, 0 - 1 | DQ122: R6, 1 - 0 | DT122: R6, 10 - 10
A123: Duckwing | F123: R6, 0 - 1 | K123: R5, 0 - 1 | AM123: R8, 0 - 1 | AO123: R1, 0.5 - 0.5 | BE123: R4, 1 - 0 | BK123: R2, 0.5 - 0.5 | CJ123: R3, 1 - 0 | CW123: R3, 0 - 1 | CX123: R1, 0 - 1 | CZ123: R2, 0 - 1 | DB123: R2, 0 - 1 | DD123: R1, 1 - 0 | DE123: R6, 0 - 1 | DF123: R6, 5 - 22 | DG123: R3, 1 - 0 | DH123: R6, 0.5 - 0.5 | DI123: R3, 0.5 - 0.5 | DK123: R7, 1 - 0 | DL123: R6, 1 - 0 | DM123: R2, 0 - 1 | DN123: R3, 1 - 0 | DO123: R1, 1 - 0 | DP123: R2, 1 - 0 | DQ123: R6, 0 - 1 | DT123: R5, 0 - 1 | DY123: R6, 0.5 - 0.5
A124: Justicium | H124: R7, 1 - 0 | AD124: R8, 0.5 - 0.5 | AQ124: R6, 0.5 - 0.5 | AV124: R1, 0 - 1 | BD124: R5, 1 - 0 | CC124: R3, 1 - 0 | CH124: R4, 0.5 - 0.5 | CX124: R5, 0.5 - 0.5 | CY124: R2, 1 - 0 | CZ124: R1, 1 - 0 | DA124: R1, 0.5 - 0.5 | DB124: R6, 0 - 1 | DC124: R1, 0 - 1 | DD124: R1, 0 - 1 | DE124: R6, 0.5 - 0.5 | DF124: R6, 0 - 1 | DG124: R4, 0 - 1 | DH124: R5, 0 - 1 | DK124: R1, 0.5 - 0.5 | DN124: R2, 0 - 1 | DO124: R2, 0 - 1 | DQ124: R4, 1 - 0 | DR124: R6, 10 - 10 | DS124: R5, 1 - 0
A125: Liam | N125: R1, 0.5 - 0.5 | AB125: R3, 0 - 1 | AH125: R6, 1 - 0 | AW125: R5, 1 - 0 | BI125: R8, 1 - 0 | BP125: R2, 0.5 - 0.5 | BT125: R7, 0.5 - 0.5 | DA125: R2, 0 - 1 | DB125: R3, 0 - 1 | DC125: R6, 0 - 1 | DD125: R6, 0.5 - 0.5 | DE125: R1, 0 - 1 | DH125: R4, 0.5 - 0.5 | DI125: R5, 0 - 1 | DJ125: R2, 0.5 - 0.5 | DK125: R2, 0 - 1 | DM125: R6, 1 - 0 | DP125: R4, 1 - 0 | DQ125: R1, 0.5 - 0.5
A126: Endalos | AJ126: R4, 0.5 - 0.5 | AK126: R3, 0 - 1 | AW126: R7, 0.5 - 0.5 | BM126: R5, 0 - 1 | BU126: R1, 0.5 - 0.5 | CU126: R6, 1 - 0 | CW126: R1, 0 - 1 | CX126: R2, 0 - 1 | CZ126: R4, 1 - 0 | DB126: R2, 0.5 - 0.5 | DD126: R3, 0.5 - 0.5 | DE126: R1, 1 - 0 | DF126: R1, 0 - 1 | DI126: R8, 0.5 - 0.5 | DJ126: R1, 0.5 - 0.5 | DK126: R6, 0 - 1 | DL126: R2, 1 - 0 | DM126: R5, 8 - 22 | DN126: R4, 0.5 - 0.5 | DP126: R2, 1 - 0 | DQ126: R3, 1 - 0 | DW126: R6, 0.5 - 0.5
A127: bothun | G127: R5, 1 - 0 | AT127: R8, 1 - 0 | AY127: R3, 0.5 - 0.5 | BP127: R6, 0.5 - 0.5 | BV127: R1, 0 - 1 | BX127: R4, 1 - 0 | BY127: R7, 0 - 1 | CX127: R1, 0 - 1 | DB127: R6, 0.5 - 0.5 | DC127: R2, 0.5 - 0.5 | DD127: R6, 1 - 0 | DF127: R1, 0 - 1 | DG127: R3, 1 - 0 | DH127: R1, 0 - 1 | DI127: R4, 0 - 1 | DJ127: R2, 0 - 1 | DL127: R1, 0 - 1 | DM127: R4, 1 - 0 | DN127: R6, 0.5 - 0.5 | DP127: R2, 0 - 1 | DV127: R6, 0.5 - 0.5 | DX127: R3, 1 - 0
A128: Inforthepain | I128: R6, 0.5 - 0.5 | O128: R8, 1 - 0 | Z128: R1, 0.5 - 0.5 | AU128: R3, 1 - 0 | AW128: R2, 0.5 - 0.5 | BC128: R4, 1 - 0 | BQ128: R7, 0.5 - 0.5 | CP128: R5, 1 - 0 | CW128: R2, 0 - 1 | CZ128: R1, 0.5 - 0.5 | DB128: R6, 0.5 - 0.5 | DC128: R6, 0.5 - 0.5 | DF128: R5, 0.5 - 0.5 | DG128: R2, 0 - 1 | DH128: R3, 1 - 0 | DK128: R2, 0.5 - 0.5 | DN128: R2, 0.5 - 0.5 | DO128: R1, 0 - 1 | DP128: R6, 1 - 0 | DW128: R3, 0 - 1
A129: sigu70 | AN129: R3, 1 - 0 | BO129: R7, 1 - 0 | BR129: R1, 1 - 0 | CE129: R6, 0.5 - 0.5 | CF129: R4, 0.5 - 0.5 | CL129: R5, 1 - 0 | CN129: R2, 1 - 0 | CY129: R1, 1 - 0 | DB129: R1, 0.5 - 0.5 | DC129: R5, 0 - 1 | DD129: R8, 0 - 1 | DE129: R3, 0.5 - 0.5 | DF129: R7, 0.5 - 0.5 | DG129: R2, 1 - 0 | DH129: R6, 0.5 - 0.5 | DI129: R3, 0.5 - 0.5 | DJ129: R1, 1 - 0 | DL129: R4, 1 - 0 | DM129: R1, 0 - 1 | DN129: R4, 0 - 1 | DQ129: R2, 1 - 0 | DS129: R6, 0.5 - 0.5

Sheet Round1
B1: Home Player | C1: Away Player | D1: Home Points | E1: Away Points | F1: Home TD | G1: Away TD | H1: Home Cas | I1: Away Cas | J1: Home Bonus1 | K1: Away Bonus1 | L1: Home Bonus2 | M1: Away Bonus2 | N1: Home Group | O1: Away Group | S1: Points Before Games | V1: Points After Games | Y1: Group Results | Z1: Group | AA1: Points | AC1: Group Points Before Games | AF1: Group Points After Games
B2: Leonek | C2: sann0638 | D2: =fctScore(F2,G2,H2,J2,L2) -> 0.5 | E2: =fctScore(G2,F2,I2,K2,M2) -> 0.5 | F2: 2 | G2: 2 | H2: 2 | I2: 1 | J2: 1 | K2: 2 | L2: 0 | M2: 2 | N2: Poland | O2: Scotland | S2: Alex05 | T2: 0 | V2: Domingo | W2: 1 | Z2: Belgium | AA2: 2 | AC2: Poland | AD2: 0 | AF2: Finland | AG2: 7.5
B3: Warrior1980 | C3: Loki | D3: =fctScore(F3,G3,H3,J3,L3) -> 0.5 | E3: =fctScore(G3,F3,I3,K3,M3) -> 0.5 | F3: 2 | G3: 2 | H3: 0 | I3: 1 | J3: 3 | K3: 2 | L3: 1 | M3: 3 | N3: Poland | O3: Scotland | S3: MissSweden | T3: 0 | V3: Muadib | W3: 1 | Z3: Denmark | AA3: 3.5 | AC3: Scotland | AD3: 0 | AF3: Germany | AG3: 7
B4: Domingo | C4: JamesEs | D4: 1 | E4: 0 | F4: 3 | G4: 0 | H4: 3 | I4: 1 | J4: 2 | K4: 2 | L4: 0 | M4: 2 | N4: Poland | O4: Scotland | S4: MacWitt | T4: 0 | V4: Goss | W4: 1 | Z4: England | AA4: 1.5 | AC4: Spain | AD4: 0 | AF4: Italy | AG4: 6
B5: Reszka | C5: Garrick | D5: 0.5 | E5: 0.5 | F5: 1 | G5: 1 | H5: 2 | I5: 2 | J5: 1 | K5: 1 | L5: 2 | M5: 2 | N5: Poland | O5: Scotland | S5: kfoged | T5: 0 | V5: Arioso | W5: 1 | Z5: Finland | AA5: 7.5 | AC5: Viking | AD5: 0 | AF5: Viking | AG5: 5.5
B6: Slimaq | C6: HumptyTrump | D6: 0 | E6: 1 | F6: 2 | G6: 3 | H6: 3 | I6: 1 | J6: 2 | K6: 3 | L6: 1 | M6: 2 | N6: Poland | O6: Scotland | S6: BiBi | T6: 0 | V6: DonShula | W6: 1 | Z6: France | AA6: 4.5 | AC6: Finland | AD6: 0 | AF6: Switzerland | AG6: 5.5
B7: Mewash | C7: DonShula | D7: 0 | E7: 1 | F7: 0 | G7: 3 | H7: 2 | I7: 0 | J7: 2 | K7: 0 | L7: 0 | M7: 2 | N7: Poland | O7: Scotland | S7: Macabeo | T7: 0 | V7: Faccko | W7: 1 | Z7: Germany | AA7: 7 | AC7: England | AD7: 0 | AF7: Sweden | AG7: 5.5
B8: Juniooor7 | C8: Valen | D8: 1 | E8: 0 | F8: 1 | G8: 0 | H8: 1 | I8: 1 | J8: 1 | K8: 3 | L8: 3 | M8: 1 | N8: Poland | O8: Scotland | S8: Strider84 | T8: 0 | V8: Mufflo | W8: 1 | Z8: Hungary | AA8: 3.5 | AC8: Wales | AD8: 0 | AF8: Poland | AG8: 5.5
B9: Shawass | C9: Purdindas | D9: 1 | E9: 0 | F9: 1 | G9: 0 | H9: 0 | I9: 2 | J9: 1 | K9: 1 | L9: 2 | M9: 1 | N9: Poland | O9: Scotland | S9: Gros Nain | T9: 0 | V9: DocMaxx | W9: 1 | Z9: Italy | AA9: 6 | AC9: Italy | AD9: 0 | AF9: France | AG9: 4.5
B10: Barry | C10: Purrelito | D10: 1 | E10: 0 | F10: 2 | G10: 1 | H10: 1 | I10: 2 | J10: 0 | K10: 1 | L10: 3 | M10: 1 | N10: Spain | O10: Viking | S10: sigu70 | T10: 0 | V10: Lycos | W10: 1 | Z10: Norway | AA10: 4.5 | AC10: Denmark | AD10: 0 | AF10: Norway | AG10: 4.5
B11: Joanet | C11: brocCooli | D11: 1 | E11: 0 | F11: 2 | G11: 1 | H11: 1 | I11: 3 | J11: 2 | K11: 2 | L11: 1 | M11: 0 | N11: Spain | O11: Viking | S11: Leonek | T11: 0 | V11: Beppe | W11: 1 | Z11: Poland | AA11: 5.5 | AC11: Switzerland | AD11: 0 | AF11: Scotland | AG11: 3.5
B12: Idroj | C12: Duckwing | D12: 0.5 | E12: 0.5 | F12: 2 | G12: 2 | H12: 3 | I12: 3 | J12: 0 | K12: 2 | L12: 3 | M12: 1 | N12: Spain | O12: Viking | S12: Harti | T12: 0 | V12: Gaunab | W12: 1 | Z12: Scotland | AA12: 3.5 | AC12: Germany | AD12: 0 | AF12: Hungary | AG12: 3.5
B13: Malasnoticias | C13: Corwin | D13: 0.5 | E13: 0.5 | F13: 2 | G13: 2 | H13: 2 | I13: 1 | J13: 1 | K13: 1 | L13: 1 | M13: 0 | N13: Spain | O13: Viking | S13: Warrior1980 | T13: 0 | V13: Melisqus | W13: 1 | Z13: Spain | AA13: 3.5 | AC13: Belgium | AD13: 0 | AF13: Denmark | AG13: 3.5
B14: Tactel | C14: Mufflo | D14: 0 | E14: 1 | F14: 1 | G14: 3 | H14: 0 | I14: 1 | J14: 1 | K14: 1 | L14: 0 | M14: 1 | N14: Spain | O14: Viking | S14: Ploppy_McPloppy | T14: 0 | V14: MacWitt | W14: 1 | Z14: Sweden | AA14: 5.5 | AC14: Norway | AD14: 0 | AF14: Spain | AG14: 3.5
B15: Duke_Luthor_Von_Hawkfire | C15: Balder | D15: 0 | E15: 1 | F15: 1 | G15: 2 | H15: 2 | I15: 0 | J15: 3 | K15: 2 | L15: 2 | M15: 1 | N15: Spain | O15: Viking | S15: Tank | T15: 0 | V15: Gros Nain | W15: 1 | Z15: Switzerland | AA15: 5.5 | AC15: France | AD15: 0 | AF15: Wales | AG15: 3
B16: Dark Duke | C16: Faccko | D16: 0 | E16: 1 | F16: 0 | G16: 2 | H16: 1 | I16: 2 | J16: 2 | K16: 2 | L16: 0 | M16: 1 | N16: Spain | O16: Viking | S16: jopotzuki | T16: 0 | V16: valkohukka | W16: 1 | Z16: Viking | AA16: 5.5 | AC16: Sweden | AD16: 0 | AF16: Belgium | AG16: 2
B17: Obeliz | C17: Bernuz | D17: 0.5 | E17: 0.5 | F17: 0 | G17: 0 | H17: 1 | I17: 0 | J17: 0 | K17: 2 | L17: 2 | M17: 2 | N17: Spain | O17: Viking | S17: Purrelito | T17: 0 | V17: Verrinho | W17: 1 | Z17: Wales | AA17: 3 | AC17: Hungary | AD17: 0 | AF17: England | AG17: 1.5
B18: MacWitt | C18: Podfrey | D18: 1 | E18: 0 | F18: 2 | G18: 0 | H18: 1 | I18: 2 | J18: 1 | K18: 1 | L18: 0 | M18: 2 | N18: Finland | O18: England | S18: The_Ref | T18: 0 | V18: mynock | W18: 1
B19: jopotzuki | C19: Mubo | D19: 1 | E19: 0 | F19: 3 | G19: 2 | H19: 0 | I19: 2 | J19: 1 | K19: 1 | L19: 1 | M19: 1 | N19: Finland | O19: England | S19: brocCooli | T19: 0 | V19: BeerBeer | W19: 1
B20: BeerBeer | C20: Joemanji | D20: 1 | E20: 0 | F20: 1 | G20: 0 | H20: 2 | I20: 1 | J20: 3 | K20: 0 | L20: 1 | M20: 1 | N20: Finland | O20: England | S20: sann0638 | T20: 0 | V20: GreatWhiteHope | W20: 1
B21: ratogre | C21: JimJimany | D21: 1 | E21: 0 | F21: 3 | G21: 2 | H21: 1 | I21: 2 | J21: 1 | K21: 0 | L21: 0 | M21: 1 | N21: Finland | O21: England | S21: Niebling | T21: 0 | V21: sigu70 | W21: 1
B22: Harza | C22: PurpleGoo | D22: 1 | E22: 0 | F22: 2 | G22: 1 | H22: 1 | I22: 1 | J22: 1 | K22: 1 | L22: 0 | M22: 1 | N22: Finland | O22: England | S22: Araznaroth | T22: 0 | V22: gninocker | W22: 1
B23: edheim | C23: Lycos | D23: 0 | E23: 1 | F23: 1 | G23: 3 | H23: 2 | I23: 2 | J23: 3 | K23: 1 | L23: 2 | M23: 0 | N23: Finland | O23: England | S23: swifty | T23: 0 | V23: Topper | W23: 1
B24: valkohukka | C24: Wilzif | D24: 1 | E24: 0 | F24: 2 | G24: 1 | H24: 3 | I24: 0 | J24: 3 | K24: 2 | L24: 1 | M24: 0 | N24: Finland | O24: England | S24: Podfrey | T24: 0 | V24: cz | W24: 1
B25: J-Ho | C25: Geggster | D25: 0.5 | E25: 0.5 | F25: 1 | G25: 1 | H25: 3 | I25: 0 | J25: 0 | K25: 1 | L25: 2 | M25: 3 | N25: Finland | O25: England | S25: cz | T25: 0 | V25: Malodoror | W25: 1
B26: Ploppy_McPloppy | C26: Farina | D26: 1 | E26: 0 | F26: 2 | G26: 1 | H26: 3 | I26: 2 | J26: 2 | K26: 2 | L26: 3 | M26: 1 | N26: Wales | O26: Italy | S26: Loki | T26: 0 | V26: Ploppy_McPloppy | W26: 1
B27: MadeofWelsh | C27: Dirold | D27: 0.5 | E27: 0.5 | F27: 1 | G27: 1 | H27: 2 | I27: 1 | J27: 1 | K27: 2 | L27: 2 | M27: 2 | N27: Wales | O27: Italy | S27: noraal | T27: 0 | V27: Spartako | W27: 1
B28: SFisher91 | C28: Spartako | D28: 0 | E28: 1 | F28: 1 | G28: 2 | H28: 1 | I28: 2 | J28: 1 | K28: 2 | L28: 3 | M28: 1 | N28: Wales | O28: Italy | S28: bothun | T28: 0 | V28: Macabeo | W28: 1
B29: andydavo | C29: Matte8 | D29: 0.5 | E29: 0.5 | F29: 1 | G29: 1 | H29: 0 | I29: 2 | J29: 1 | K29: 2 | L29: 1 | M29: 3 | N29: Wales | O29: Italy | S29: Mubo | T29: 0 | V29: Harza | W29: 1
B30: nonumber | C30: Kaltenland | D30: 0.5 | E30: 0.5 | F30: 1 | G30: 1 | H30: 2 | I30: 2 | J30: 2 | K30: 2 | L30: 0 | M30: 2 | N30: Wales | O30: Italy | S30: Favi | T30: 0 | V30: kfoged | W30: 1
B31: 20Phoenix | C31: Beppe | D31: 0 | E31: 1 | F31: 1 | G31: 3 | H31: 0 | I31: 0 | J31: 2 | K31: 1 | L31: 1 | M31: 0 | N31: Wales | O31: Italy | S31: Itzla | T31: 0 | V31: Juniooor7 | W31: 1
B32: Dionysian | C32: Verrinho | D32: 0 | E32: 1 | F32: 0 | G32: 1 | H32: 0 | I32: 2 | J32: 2 | K32: 2 | L32: 1 | M32: 1 | N32: Wales | O32: Italy | S32: Joemanji | T32: 0 | V32: Itzla | W32: 1
B33: Northernknight | C33: Liam | D33: 0.5 | E33: 0.5 | F33: 2 | G33: 2 | H33: 1 | I33: 3 | J33: 2 | K33: 0 | L33: 2 | M33: 2 | N33: Wales | O33: Italy | S33: FrankPedersen | T33: 0 | V33: Dragons | W33: 1
B34: MissSweden | C34: Macabeo | D34: 0 | E34: 1 | F34: 0 | G34: 1 | H34: 1 | I34: 1 | J34: 3 | K34: 2 | L34: 2 | M34: 1 | N34: Denmark | O34: Switzerland | S34: Jonny_Kanone | T34: 0 | V34: Jaqra | W34: 1
B35: kfoged | C35: Strider84 | D35: 1 | E35: 0 | F35: 2 | G35: 1 | H35: 1 | I35: 1 | J35: 3 | K35: 0 | L35: 2 | M35: 1 | N35: Denmark | O35: Switzerland | S35: Duckwing | T35: 0 | V35: Jonny_Kanone | W35: 1
B36: Tank | C36: sigu70 | D36: 0 | E36: 1 | F36: 0 | G36: 1 | H36: 0 | I36: 1 | J36: 3 | K36: 2 | L36: 1 | M36: 3 | N36: Denmark | O36: Switzerland | S36: mynock | T36: 0 | V36: Pellevin | W36: 1
B37: Niebling | C37: Phifoe | D37: 0.5 | E37: 0.5 | F37: 1 | G37: 1 | H37: 1 | I37: 1 | J37: 2 | K37: 0 | L37: 2 | M37: 3 | N37: Denmark | O37: Switzerland | S37: Barry | T37: 0 | V37: BiBi | W37: 1
B38: SpecialOne | C38: Elrik | D38: 0 | E38: 1 | F38: 2 | G38: 3 | H38: 2 | I38: 1 | J38: 2 | K38: 0 | L38: 2 | M38: 2 | N38: Denmark | O38: Switzerland | S38: Dragons | T38: 0 | V38: Elrik | W38: 1
B39: Jaqra | C39: Jokaero | D39: 1 | E39: 0 | F39: 1 | G39: 0 | H39: 1 | I39: 1 | J39: 2 | K39: 0 | L39: 2 | M39: 2 | N39: Denmark | O39: Switzerland | S39: BeerBeer | T39: 0 | V39: ratogre | W39: 1
B40: Topper | C40: Madmatt13 | D40: 1 | E40: 0 | F40: 2 | G40: 1 | H40: 3 | I40: 2 | J40: 2 | K40: 3 | L40: 3 | M40: 1 | N40: Denmark | O40: Switzerland | S40: Farina | T40: 0 | V40: Barry | W40: 1
B41: Tripleskull | C41: Goss | D41: 0 | E41: 1 | F41: 0 | G41: 3 | H41: 2 | I41: 2 | J41: 1 | K41: 0 | L41: 1 | M41: 0 | N41: Denmark | O41: Switzerland | S41: Gaunab | T41: 0 | V41: HumptyTrump | W41: 1
B42: Jonny_Kanone | C42: Araznaroth | D42: 1 | E42: 0 | F42: 2 | G42: 1 | H42: 0 | I42: 1 | J42: 2 | K42: 3 | L42: 1 | M42: 1 | N42: Germany | O42: Belgium | S42: Melisqus | T42: 0 | V42: Balder | W42: 1
B43: Gaunab | C43: Phoenix11 | D43: 1 | E43: 0 | F43: 3 | G43: 1 | H43: 1 | I43: 2 | J43: 1 | K43: 1 | L43: 1 | M43: 3 | N43: Germany | O43: Belgium | S43: SpecialOne | T43: 0 | V43: Shawass | W43: 1
B44: Candlejack | C44: Dekra1979 | D44: 1 | E44: 0 | F44: 2 | G44: 1 | H44: 1 | I44: 3 | J44: 2 | K44: 3 | L44: 2 | M44: 1 | N44: Germany | O44: Belgium | S44: Dirold | T44: 0 | V44: Joanet | W44: 1
B45: DocMaxx | C45: JJ | D45: 1 | E45: 0 | F45: 3 | G45: 1 | H45: 1 | I45: 1 | J45: 1 | K45: 0 | L45: 2 | M45: 3 | N45: Germany | O45: Belgium | S45: JohnnyD | T45: 0 | V45: jopotzuki | W45: 1
B46: RoterSternHochdahl | C46: Malodoror | D46: 0 | E46: 1 | F46: 1 | G46: 2 | H46: 1 | I46: 2 | J46: 2 | K46: 1 | L46: 0 | M46: 1 | N46: Germany | O46: Belgium | S46: JamesEs | T46: 0 | V46: Candlejack | W46: 1
B47: Prince | C47: gninocker | D47: 0 | E47: 1 | F47: 1 | G47: 2 | H47: 1 | I47: 2 | J47: 0 | K47: 2 | L47: 3 | M47: 1 | N47: Germany | O47: Belgium | S47: Justicium | T47: 0 | V47: J-Ho | W47: 0.5
B48: Muadib | C48: Driesfield | D48: 1 | E48: 0 | F48: 3 | G48: 0 | H48: 3 | I48: 2 | J48: 2 | K48: 3 | L48: 2 | M48: 1 | N48: Germany | O48: Belgium | S48: Garrick | T48: 0 | V48: Matte8 | W48: 0.5
B49: Arioso | C49: Woete | D49: 1 | E49: 0 | F49: 3 | G49: 0 | H49: 1 | I49: 2 | J49: 1 | K49: 1 | L49: 1 | M49: 2 | N49: Germany | O49: Belgium | S49: Pidpad | T49: 0 | V49: Liam | W49: 0.5
B50: The_Ref | C50: BiBi | D50: 0 | E50: 1 | F50: 1 | G50: 2 | H50: 1 | I50: 0 | J50: 3 | K50: 0 | L50: 2 | M50: 3 | N50: Norway | O50: France | S50: Spartako | T50: 0 | V50: Pidpad | W50: 0.5
B51: bothun | C51: Gros Nain | D51: 0 | E51: 1 | F51: 1 | G51: 3 | H51: 3 | I51: 1 | J51: 1 | K51: 2 | L51: 3 | M51: 1 | N51: Norway | O51: France | S51: Corwin | T51: 0 | V51: BlackOrc | W51: 0.5
B52: FrankPedersen | C52: Harti | D52: 0.5 | E52: 0.5 | F52: 1 | G52: 1 | H52: 1 | I52: 0 | J52: 2 | K52: 0 | L52: 1 | M52: 2 | N52: Norway | O52: France | S52: Joanet | T52: 0 | V52: Loki | W52: 0.5
B53: mynock | C53: Justicium | D53: 1 | E53: 0 | F53: 2 | G53: 1 | H53: 3 | I53: 1 | J53: 0 | K53: 1 | L53: 1 | M53: 2 | N53: Norway | O53: France | S53: Phoenix11 | T53: 0 | V53: Leonek | W53: 0.5
B54: GreatWhiteHope | C54: Simon_ACP | D54: 1 | E54: 0 | F54: 3 | G54: 2 | H54: 1 | I54: 0 | J54: 0 | K54: 0 | L54: 1 | M54: 1 | N54: Norway | O54: France | S54: JimJimany | T54: 0 | V54: Endalos | W54: 0.5
B55: zulu | C55: Matt le fou | D55: 0.5 | E55: 0.5 | F55: 3 | G55: 3 | H55: 2 | I55: 2 | J55: 0 | K55: 1 | L55: 0 | M55: 2 | N55: Norway | O55: France | S55: GreatWhiteHope | T55: 0 | V55: MadeofWelsh | W55: 0.5
B56: straume | C56: Bouzzy | D56: 0.5 | E56: 0.5 | F56: 2 | G56: 2 | H56: 1 | I56: 1 | J56: 2 | K56: 2 | L56: 2 | M56: 1 | N56: Norway | O56: France | S56: Phifoe | T56: 0 | V56: FrankPedersen | W56: 0.5
B57: Endalos | C57: BudWiser | D57: 0.5 | E57: 0.5 | F57: 1 | G57: 1 | H57: 2 | I57: 1 | J57: 2 | K57: 1 | L57: 2 | M57: 0 | N57: Norway | O57: France | S57: PurpleGoo | T57: 0 | V57: Malasnoticias | W57: 0.5
B58: Dragons | C58: Alex05 | D58: 1 | E58: 0 | F58: 2 | G58: 1 | H58: 3 | I58: 3 | J58: 3 | K58: 3 | L58: 1 | M58: 2 | N58: Sweden | O58: Hungary | S58: BlackOrc | T58: 0 | V58: Obeliz | W58: 0.5
B59: Melisqus | C59: swifty | D59: 1 | E59: 0 | F59: 3 | G59: 1 | H59: 1 | I59: 2 | J59: 0 | K59: 1 | L59: 2 | M59: 0 | N59: Sweden | O59: Hungary | S59: ratogre | T59: 0 | V59: Favi | W59: 0.5
B60: JohnnyD | C60: cz | D60: 0 | E60: 1 | F60: 0 | G60: 1 | H60: 1 | I60: 2 | J60: 1 | K60: 1 | L60: 2 | M60: 1 | N60: Sweden | O60: Hungary | S60: Dekra1979 | T60: 0 | V60: Idroj | W60: 0.5
B61: Pidpad | C61: noraal | D61: 0.5 | E61: 0.5 | F61: 1 | G61: 1 | H61: 3 | I61: 1 | J61: 2 | K61: 2 | L61: 1 | M61: 3 | N61: Sweden | O61: Hungary | S61: Domingo | T61: 0 | V61: Duckwing | W61: 0.5
B62: Skuld | C62: Favi | D62: 0.5 | E62: 0.5 | F62: 2 | G62: 2 | H62: 1 | I62: 2 | J62: 2 | K62: 1 | L62: 3 | M62: 1 | N62: Sweden | O62: Hungary | S62: Lycos | T62: 0 | V62: straume | W62: 0.5
B63: Skoberget | C63: Itzla | D63: 0 | E63: 1 | F63: 2 | G63: 3 | H63: 1 | I63: 1 | J63: 0 | K63: 1 | L63: 3 | M63: 2 | N63: Sweden | O63: Hungary | S63: JJ | T63: 0 | V63: Garrick | W63: 0.5
B64: Inforthepain | C64: BlackOrc | D64: 0.5 | E64: 0.5 | F64: 2 | G64: 2 | H64: 1 | I64: 2 | J64: 2 | K64: 3 | L64: 0 | M64: 2 | N64: Sweden | O64: Hungary | S64: Reszka | T64: 0 | V64: nonumber | W64: 0.5
B65: Pellevin | C65: Wolio | D65: 1 | E65: 0 | F65: 1 | G65: 0 | H65: 1 | I65: 2 | J65: 1 | K65: 1 | L65: 3 | M65: 3 | N65: Sweden | O65: Hungary | S65: Matte8 | T65: 0 | V65: zulu | W65: 0.5
S66: Kaltenland | T66: 0 | V66: Niebling | W66: 0.5
S67: Malodoror | T67: 0 | V67: Reszka | W67: 0.5
S68: Skuld | T68: 0 | V68: Phifoe | W68: 0.5
S69: Beppe | T69: 0 | V69: Matt le fou | W69: 0.5
S70: MadeofWelsh | T70: 0 | V70: Kaltenland | W70: 0.5
S71: Jaqra | T71: 0 | V71: Bouzzy | W71: 0.5
S72: Slimaq | T72: 0 | V72: Harti | W72: 0.5
S73: Simon_ACP | T73: 0 | V73: Skuld | W73: 0.5
S74: Candlejack | T74: 0 | V74: Inforthepain | W74: 0.5
S75: Elrik | T75: 0 | V75: Warrior1980 | W75: 0.5
S76: SFisher91 | T76: 0 | V76: Bernuz | W76: 0.5
S77: Idroj | T77: 0 | V77: BudWiser | W77: 0.5
S78: Malasnoticias | T78: 0 | V78: sann0638 | W78: 0.5
S79: DocMaxx | T79: 0 | V79: Corwin | W79: 0.5
S80: gninocker | T80: 0 | V80: Dirold | W80: 0.5
S81: RoterSternHochdahl | T81: 0 | V81: andydavo | W81: 0.5
S82: Prince | T82: 0 | V82: noraal | W82: 0.5
S83: Skoberget | T83: 0 | V83: Northernknight | W83: 0.5
S84: Matt le fou | T84: 0 | V84: Geggster | W84: 0.5
S85: zulu | T85: 0 | V85: Slimaq | W85: 0
S86: HumptyTrump | T86: 0 | V86: Mubo | W86: 0
S87: Harza | T87: 0 | V87: Purdindas | W87: 0
S88: edheim | T88: 0 | V88: brocCooli | W88: 0
S89: Topper | T89: 0 | V89: Duke_Luthor_Von_Hawkfire | W89: 0
S90: Mufflo | T90: 0 | V90: Dekra1979 | W90: 0
S91: Mewash | T91: 0 | V91: Purrelito | W91: 0
S92: Bouzzy | T92: 0 | V92: SpecialOne | W92: 0
S93: Jokaero | T93: 0 | V93: The_Ref | W93: 0
S94: andydavo | T94: 0 | V94: Wolio | W94: 0
S95: Tripleskull | T95: 0 | V95: Araznaroth | W95: 0
S96: valkohukka | T96: 0 | V96: JimJimany | W96: 0
S97: straume | T97: 0 | V97: Skoberget | W97: 0
S98: Wilzif | T98: 0 | V98: Strider84 | W98: 0
S99: Verrinho | T99: 0 | V99: MissSweden | W99: 0
S100: Balder | T100: 0 | V100: Jokaero | W100: 0
S101: Driesfield | T101: 0 | V101: Alex05 | W101: 0
S102: DonShula | T102: 0 | V102: PurpleGoo | W102: 0
S103: Endalos | T103: 0 | V103: Valen | W103: 0
S104: Liam | T104: 0 | V104: Joemanji | W104: 0
S105: Juniooor7 | T105: 0 | V105: SFisher91 | W105: 0
S106: Wolio | T106: 0 | V106: Simon_ACP | W106: 0
S107: Woete | T107: 0 | V107: RoterSternHochdahl | W107: 0
S108: Tactel | T108: 0 | V108: JohnnyD | W108: 0
S109: Duke_Luthor_Von_Hawkfire | T109: 0 | V109: Madmatt13 | W109: 0
S110: Madmatt13 | T110: 0 | V110: Farina | W110: 0
S111: nonumber | T111: 0 | V111: Prince | W111: 0
S112: Shawass | T112: 0 | V112: Tank | W112: 0
S113: Faccko | T113: 0 | V113: Justicium | W113: 0
S114: J-Ho | T114: 0 | V114: Dionysian | W114: 0
S115: Dark Duke | T115: 0 | V115: Wilzif | W115: 0
S116: Obeliz | T116: 0 | V116: bothun | W116: 0
S117: 20Phoenix | T117: 0 | V117: Podfrey | W117: 0
S118: Muadib | T118: 0 | V118: Phoenix11 | W118: 0
S119: Geggster | T119: 0 | V119: swifty | W119: 0
S120: Valen | T120: 0 | V120: edheim | W120: 0
S121: BudWiser | T121: 0 | V121: JJ | W121: 0
S122: Inforthepain | T122: 0 | V122: 20Phoenix | W122: 0
S123: Pellevin | T123: 0 | V123: Tactel | W123: 0
S124: Purdindas | T124: 0 | V124: Dark Duke | W124: 0
S125: Goss | T125: 0 | V125: Mewash | W125: 0
S126: Arioso | T126: 0 | V126: Woete | W126: 0
S127: Dionysian | T127: 0 | V127: Tripleskull | W127: 0
S128: Northernknight | T128: 0 | V128: Driesfield | W128: 0
S129: Bernuz | T129: 0 | V129: JamesEs | W129: 0

Sheet Round2
B1: Home Player | C1: Away Player | D1: Home Points | E1: Away Points | F1: Home TD | G1: Away TD | H1: Home Cas | I1: Away Cas | J1: Home Bonus1 | K1: Away Bonus1 | L1: Home Bonus2 | M1: Away Bonus2 | N1: Home Group | O1: Away Group | S1: Points Before Games | V1: Points After Games | Y1: Group Results | Z1: Group | AA1: Points | AC1: Group Points Before Games | AF1: Group Points After Games
B2: MacWitt | C2: Muadib | D2: =fctScore(F2,G2,H2,J2,L2) -> 0.5 | E2: =fctScore(G2,F2,I2,K2,M2) -> 0.5 | F2: 2 | G2: 2 | H2: 2 | I2: 0 | J2: 1 | K2: 1 | L2: 0 | M2: 0 | N2: Finland | O2: Germany | S2: Domingo | T2: 1 | V2: DonShula | W2: 2 | Z2: Belgium | AA2: 5.5 | AC2: Finland | AD2: 7.5 | AF2: Finland | AG2: 14
B3: valkohukka | C3: Arioso | D3: =fctScore(F3,G3,H3,J3,L3) -> 0 | E3: =fctScore(G3,F3,I3,K3,M3) -> 1 | F3: 1 | G3: 2 | H3: 2 | I3: 2 | J3: 0 | K3: 1 | L3: 0 | M3: 1 | N3: Finland | O3: Germany | S3: Muadib | T3: 1 | V3: Domingo | W3: 2 | Z3: Denmark | AA3: 6 | AC3: Germany | AD3: 7 | AF3: Switzerland | AG3: 11.5
B4: BeerBeer | C4: DocMaxx | D4: 0.5 | E4: 0.5 | F4: 2 | G4: 2 | H4: 2 | I4: 1 | J4: 3 | K4: 2 | L4: 2 | M4: 1 | N4: Finland | O4: Germany | S4: Goss | T4: 1 | V4: Arioso | W4: 2 | Z4: England | AA4: 3.5 | AC4: Italy | AD4: 6 | AF4: Poland | AG4: 11
B5: Harza | C5: Gaunab | D5: 1 | E5: 0 | F5: 2 | G5: 0 | H5: 0 | I5: 1 | J5: 2 | K5: 3 | L5: 1 | M5: 2 | N5: Finland | O5: Germany | S5: Arioso | T5: 1 | V5: Spartako | W5: 2 | Z5: Finland | AA5: 6.5 | AC5: Viking | AD5: 5.5 | AF5: Italy | AG5: 10.5
B6: ratogre | C6: Jonny_Kanone | D6: 1 | E6: 0 | F6: 2 | G6: 0 | H6: 2 | I6: 1 | J6: 1 | K6: 2 | L6: 3 | M6: 3 | N6: Finland | O6: Germany | S6: DonShula | T6: 1 | V6: Barry | W6: 2 | Z6: France | AA6: 3.5 | AC6: Switzerland | AD6: 5.5 | AF6: Viking | AG6: 10
B7: jopotzuki | C7: Candlejack | D7: 1 | E7: 0 | F7: 2 | G7: 0 | H7: 2 | I7: 3 | J7: 0 | K7: 3 | L7: 0 | M7: 1 | N7: Finland | O7: Germany | S7: Faccko | T7: 1 | V7: Topper | W7: 2 | Z7: Germany | AA7: 2.5 | AC7: Sweden | AD7: 5.5 | AF7: Spain | AG7: 10
B8: J-Ho | C8: RoterSternHochdahl | D8: 0.5 | E8: 0.5 | F8: 2 | G8: 2 | H8: 0 | I8: 0 | J8: 2 | K8: 1 | L8: 1 | M8: 2 | N8: Finland | O8: Germany | S8: Mufflo | T8: 1 | V8: BiBi | W8: 2 | Z8: Hungary | AA8: 3 | AC8: Poland | AD8: 5.5 | AF8: Germany | AG8: 9.5
B9: edheim | C9: Prince | D9: 1 | E9: 0 | F9: 2 | G9: 1 | H9: 1 | I9: 0 | J9: 1 | K9: 2 | L9: 2 | M9: 2 | N9: Finland | O9: Germany | S9: DocMaxx | T9: 1 | V9: ratogre | W9: 2 | Z9: Italy | AA9: 4.5 | AC9: France | AD9: 4.5 | AF9: Denmark | AG9: 9.5
B10: Beppe | C10: Faccko | D10: 0.5 | E10: 0.5 | F10: 2 | G10: 2 | H10: 1 | I10: 2 | J10: 2 | K10: 2 | L10: 2 | M10: 1 | N10: Italy | O10: Viking | S10: Lycos | T10: 1 | V10: Elrik | W10: 2 | Z10: Norway | AA10: 4.5 | AC10: Norway | AD10: 4.5 | AF10: Norway | AG10: 9
B11: Verrinho | C11: Mufflo | D11: 1 | E11: 0 | F11: 2 | G11: 0 | H11: 1 | I11: 3 | J11: 2 | K11: 1 | L11: 1 | M11: 1 | N11: Italy | O11: Viking | S11: Beppe | T11: 1 | V11: Harza | W11: 2 | Z11: Poland | AA11: 5.5 | AC11: Scotland | AD11: 3.5 | AF11: Sweden | AG11: 8.5
B12: Spartako | C12: Balder | D12: 1 | E12: 0 | F12: 3 | G12: 1 | H12: 1 | I12: 2 | J12: 2 | K12: 2 | L12: 2 | M12: 1 | N12: Italy | O12: Viking | S12: Gaunab | T12: 1 | V12: jopotzuki | W12: 2 | Z12: Scotland | AA12: 4.5 | AC12: Hungary | AD12: 3.5 | AF12: Scotland | AG12: 8
B13: Matte8 | C13: Duckwing | D13: 0.5 | E13: 0.5 | F13: 2 | G13: 2 | H13: 3 | I13: 1 | J13: 1 | K13: 2 | L13: 1 | M13: 1 | N13: Italy | O13: Viking | S13: Melisqus | T13: 1 | V13: GreatWhiteHope | W13: 2 | Z13: Spain | AA13: 6.5 | AC13: Denmark | AD13: 3.5 | AF13: France | AG13: 8
B14: Liam | C14: Bernuz | D14: 0.5 | E14: 0.5 | F14: 2 | G14: 2 | H14: 0 | I14: 0 | J14: 2 | K14: 3 | L14: 2 | M14: 1 | N14: Italy | O14: Viking | S14: MacWitt | T14: 1 | V14: sigu70 | W14: 2 | Z14: Sweden | AA14: 3 | AC14: Spain | AD14: 3.5 | AF14: Belgium | AG14: 7.5
B15: Kaltenland | C15: Corwin | D15: 0.5 | E15: 0.5 | F15: 1 | G15: 1 | H15: 3 | I15: 2 | J15: 1 | K15: 1 | L15: 2 | M15: 2 | N15: Italy | O15: Viking | S15: Gros Nain | T15: 1 | V15: Goss | W15: 2 | Z15: Switzerland | AA15: 6 | AC15: Wales | AD15: 3 | AF15: Hungary | AG15: 6.5
B16: Dirold | C16: brocCooli | D16: 0 | E16: 1 | F16: 0 | G16: 2 | H16: 3 | I16: 1 | J16: 0 | K16: 1 | L16: 2 | M16: 1 | N16: Italy | O16: Viking | S16: valkohukka | T16: 1 | V16: Verrinho | W16: 2 | Z16: Viking | AA16: 4.5 | AC16: Belgium | AD16: 2 | AF16: Wales | AG16: 5.5
B17: Farina | C17: Purrelito | D17: 0 | E17: 1 | F17: 1 | G17: 2 | H17: 1 | I17: 2 | J17: 2 | K17: 1 | L17: 1 | M17: 0 | N17: Italy | O17: Viking | S17: Verrinho | T17: 1 | V17: Malodoror | W17: 2 | Z17: Wales | AA17: 2.5 | AC17: England | AD17: 1.5 | AF17: England | AG17: 5
B18: Goss | C18: Melisqus | D18: 1 | E18: 0 | F18: 3 | G18: 1 | H18: 2 | I18: 1 | J18: 3 | K18: 1 | L18: 2 | M18: 1 | N18: Switzerland | O18: Sweden | S18: mynock | T18: 1 | V18: Pellevin | W18: 2
B19: sigu70 | C19: Dragons | D19: 1 | E19: 0 | F19: 1 | G19: 0 | H19: 1 | I19: 1 | J19: 2 | K19: 0 | L19: 1 | M19: 0 | N19: Switzerland | O19: Sweden | S19: BeerBeer | T19: 1 | V19: Faccko | W19: 1.5
B20: Macabeo | C20: Pellevin | D20: 0 | E20: 1 | F20: 1 | G20: 2 | H20: 2 | I20: 3 | J20: 2 | K20: 2 | L20: 2 | M20: 1 | N20: Switzerland | O20: Sweden | S20: GreatWhiteHope | T20: 1 | V20: MacWitt | W20: 1.5
B21: Elrik | C21: Pidpad | D21: 1 | E21: 0 | F21: 3 | G21: 1 | H21: 2 | I21: 2 | J21: 2 | K21: 2 | L21: 2 | M21: 2 | N21: Switzerland | O21: Sweden | S21: sigu70 | T21: 1 | V21: Lycos | W21: 1.5
B22: Phifoe | C22: Skuld | D22: 0 | E22: 1 | F22: 1 | G22: 2 | H22: 2 | I22: 2 | J22: 1 | K22: 1 | L22: 1 | M22: 3 | N22: Switzerland | O22: Sweden | S22: gninocker | T22: 1 | V22: DocMaxx | W22: 1.5
B23: Strider84 | C23: Inforthepain | D23: 0.5 | E23: 0.5 | F23: 2 | G23: 2 | H23: 1 | I23: 0 | J23: 1 | K23: 0 | L23: 2 | M23: 0 | N23: Switzerland | O23: Sweden | S23: Topper | T23: 1 | V23: BeerBeer | W23: 1.5
B24: Jokaero | C24: Skoberget | D24: 0.5 | E24: 0.5 | F24: 1 | G24: 1 | H24: 0 | I24: 2 | J24: 2 | K24: 1 | L24: 1 | M24: 1 | N24: Switzerland | O24: Sweden | S24: cz | T24: 1 | V24: BlackOrc | W24: 1.5
B25: Madmatt13 | C25: JohnnyD | D25: 1 | E25: 0 | F25: 2 | G25: 1 | H25: 0 | I25: 3 | J25: 0 | K25: 1 | L25: 2 | M25: 2 | N25: Switzerland | O25: Sweden | S25: Malodoror | T25: 1 | V25: kfoged | W25: 1.5
B26: Domingo | C26: Gros Nain | D26: 1 | E26: 0 | F26: 2 | G26: 1 | H26: 1 | I26: 3 | J26: 2 | K26: 1 | L26: 1 | M26: 1 | N26: Poland | O26: France | S26: Ploppy_McPloppy | T26: 1 | V26: Itzla | W26: 1.5
B27: Juniooor7 | C27: BiBi | D27: 0 | E27: 1 | F27: 1 | G27: 2 | H27: 2 | I27: 2 | J27: 2 | K27: 0 | L27: 2 | M27: 1 | N27: Poland | O27: France | S27: Spartako | T27: 1 | V27: Matt le fou | W27: 1.5
B28: Shawass | C28: Matt le fou | D28: 0 | E28: 1 | F28: 0 | G28: 1 | H28: 3 | I28: 1 | J28: 2 | K28: 1 | L28: 1 | M28: 1 | N28: Poland | O28: France | S28: Macabeo | T28: 1 | V28: MadeofWelsh | W28: 1.5
B29: Leonek | C29: Bouzzy | D29: 0.5 | E29: 0.5 | F29: 1 | G29: 1 | H29: 1 | I29: 2 | J29: 1 | K29: 2 | L29: 2 | M29: 2 | N29: Poland | O29: France | S29: Harza | T29: 1 | V29: Muadib | W29: 1.5
B30: Reszka | C30: Harti | D30: 0.5 | E30: 0.5 | F30: 0 | G30: 0 | H30: 0 | I30: 1 | J30: 1 | K30: 2 | L30: 1 | M30: 3 | N30: Poland | O30: France | S30: kfoged | T30: 1 | V30: Garrick | W30: 1.5
B31: Warrior1980 | C31: BudWiser | D31: 1 | E31: 0 | F31: 3 | G31: 2 | H31: 1 | I31: 0 | J31: 1 | K31: 0 | L31: 2 | M31: 3 | N31: Poland | O31: France | S31: Juniooor7 | T31: 1 | V31: Beppe | W31: 1.5
B32: Slimaq | C32: Simon_ACP | D32: 0.5 | E32: 0.5 | F32: 1 | G32: 1 | H32: 3 | I32: 0 | J32: 2 | K32: 2 | L32: 2 | M32: 2 | N32: Poland | O32: France | S32: Itzla | T32: 1 | V32: Idroj | W32: 1.5
B33: Mewash | C33: Justicium | D33: 1 | E33: 0 | F33: 3 | G33: 0 | H33: 1 | I33: 2 | J33: 1 | K33: 2 | L33: 1 | M33: 3 | N33: Poland | O33: France | S33: Dragons | T33: 1 | V33: gninocker | W33: 1.5
B34: mynock | C34: DonShula | D34: 0 | E34: 1 | F34: 1 | G34: 3 | H34: 1 | I34: 2 | J34: 3 | K34: 1 | L34: 3 | M34: 3 | N34: Norway | O34: Scotland | S34: Jaqra | T34: 1 | V34: Malasnoticias | W34: 1.5
B35: GreatWhiteHope | C35: HumptyTrump | D35: 1 | E35: 0 | F35: 3 | G35: 2 | H35: 2 | I35: 1 | J35: 0 | K35: 2 | L35: 2 | M35: 3 | N35: Norway | O35: Scotland | S35: Jonny_Kanone | T35: 1 | V35: Endalos | W35: 1.5
B36: Endalos | C36: Loki | D36: 1 | E36: 0 | F36: 1 | G36: 0 | H36: 2 | I36: 0 | J36: 1 | K36: 1 | L36: 1 | M36: 3 | N36: Norway | O36: Scotland | S36: Pellevin | T36: 1 | V36: Niebling | W36: 1.5
B37: FrankPedersen | C37: Garrick | D37: 0 | E37: 1 | F37: 0 | G37: 2 | H37: 2 | I37: 2 | J37: 0 | K37: 2 | L37: 1 | M37: 3 | N37: Norway | O37: Scotland | S37: BiBi | T37: 1 | V37: Warrior1980 | W37: 1.5
B38: straume | C38: sann0638 | D38: 0.5 | E38: 0.5 | F38: 1 | G38: 1 | H38: 1 | I38: 1 | J38: 1 | K38: 2 | L38: 2 | M38: 1 | N38: Norway | O38: Scotland | S38: Elrik | T38: 1 | V38: Skuld | W38: 1.5
B39: zulu | C39: Purdindas | D39: 0.5 | E39: 0.5 | F39: 2 | G39: 2 | H39: 3 | I39: 3 | J39: 1 | K39: 2 | L39: 2 | M39: 1 | N39: Norway | O39: Scotland | S39: ratogre | T39: 1 | V39: Mufflo | W39: 1
B40: The_Ref | C40: Valen | D40: 1 | E40: 0 | F40: 2 | G40: 1 | H40: 1 | I40: 0 | J40: 3 | K40: 1 | L40: 2 | M40: 2 | N40: Norway | O40: Scotland | S40: Barry | T40: 1 | V40: Macabeo | W40: 1
B41: bothun | C41: JamesEs | D41: 0 | E41: 1 | F41: 0 | G41: 2 | H41: 2 | I41: 2 | J41: 1 | K41: 0 | L41: 1 | M41: 2 | N41: Norway | O41: Scotland | S41: HumptyTrump | T41: 1 | V41: Melisqus | W41: 1
B42: cz | C42: Topper | D42: 0 | E42: 1 | F42: 0 | G42: 1 | H42: 0 | I42: 0 | J42: 1 | K42: 3 | L42: 2 | M42: 1 | N42: Hungary | O42: Denmark | S42: Balder | T42: 1 | V42: SpecialOne | W42: 1
B43: Itzla | C43: kfoged | D43: 0.5 | E43: 0.5 | F43: 1 | G43: 1 | H43: 0 | I43: 1 | J43: 1 | K43: 3 | L43: 1 | M43: 1 | N43: Hungary | O43: Denmark | S43: Shawass | T43: 1 | V43: Dragons | W43: 1
B44: BlackOrc | C44: Jaqra | D44: 1 | E44: 0 | F44: 2 | G44: 1 | H44: 2 | I44: 1 | J44: 1 | K44: 0 | L44: 2 | M44: 1 | N44: Hungary | O44: Denmark | S44: Joanet | T44: 1 | V44: Gaunab | W44: 1
B45: Favi | C45: Niebling | D45: 0 | E45: 1 | F45: 2 | G45: 3 | H45: 1 | I45: 2 | J45: 1 | K45: 0 | L45: 0 | M45: 0 | N45: Hungary | O45: Denmark | S45: jopotzuki | T45: 1 | V45: Reszka | W45: 1
B46: noraal | C46: SpecialOne | D46: 0 | E46: 1 | F46: 0 | G46: 2 | H46: 1 | I46: 0 | J46: 0 | K46: 2 | L46: 3 | M46: 2 | N46: Hungary | O46: Denmark | S46: Candlejack | T46: 1 | V46: Corwin | W46: 1
B47: Wolio | C47: MissSweden | D47: 0 | E47: 1 | F47: 2 | G47: 3 | H47: 2 | I47: 0 | J47: 2 | K47: 1 | L47: 1 | M47: 2 | N47: Hungary | O47: Denmark | S47: J-Ho | T47: 0.5 | V47: Duckwing | W47: 1
B48: Alex05 | C48: Tank | D48: 0.5 | E48: 0.5 | F48: 1 | G48: 1 | H48: 1 | I48: 3 | J48: 0 | K48: 1 | L48: 2 | M48: 2 | N48: Hungary | O48: Denmark | S48: Matte8 | T48: 0.5 | V48: HumptyTrump | W48: 1
B49: swifty | C49: Tripleskull | D49: 1 | E49: 0 | F49: 2 | G49: 0 | H49: 1 | I49: 0 | J49: 2 | K49: 3 | L49: 1 | M49: 1 | N49: Hungary | O49: Denmark | S49: Liam | T49: 0.5 | V49: Candlejack | W49: 1
B50: Barry | C50: Ploppy_McPloppy | D50: 1 | E50: 0 | F50: 3 | G50: 1 | H50: 1 | I50: 1 | J50: 1 | K50: 3 | L50: 2 | M50: 2 | N50: Spain | O50: Wales | S50: Pidpad | T50: 0.5 | V50: Jonny_Kanone | W50: 1
B51: Joanet | C51: MadeofWelsh | D51: 0 | E51: 1 | F51: 0 | G51: 3 | H51: 0 | I51: 2 | J51: 2 | K51: 1 | L51: 3 | M51: 1 | N51: Spain | O51: Wales | S51: BlackOrc | T51: 0.5 | V51: Joanet | W51: 1
B52: Malasnoticias | C52: nonumber | D52: 1 | E52: 0 | F52: 2 | G52: 1 | H52: 1 | I52: 2 | J52: 2 | K52: 1 | L52: 2 | M52: 2 | N52: Spain | O52: Wales | S52: Loki | T52: 0.5 | V52: Gros Nain | W52: 1
B53: Obeliz | C53: andydavo | D53: 0.5 | E53: 0.5 | F53: 0 | G53: 0 | H53: 0 | I53: 0 | J53: 2 | K53: 3 | L53: 1 | M53: 1 | N53: Spain | O53: Wales | S53: Leonek | T53: 0.5 | V53: Matte8 | W53: 1
B54: Idroj | C54: Northernknight | D54: 1 | E54: 0 | F54: 3 | G54: 1 | H54: 1 | I54: 3 | J54: 0 | K54: 0 | L54: 3 | M54: 3 | N54: Spain | O54: Wales | S54: Endalos | T54: 0.5 | V54: valkohukka | W54: 1
B55: Duke_Luthor_Von_Hawkfire | C55: SFisher91 | D55: 0 | E55: 1 | F55: 2 | G55: 3 | H55: 1 | I55: 2 | J55: 2 | K55: 3 | L55: 1 | M55: 0 | N55: Spain | O55: Wales | S55: MadeofWelsh | T55: 0.5 | V55: Purrelito | W55: 1
B56: Tactel | C56: Dionysian | D56: 1 | E56: 0 | F56: 3 | G56: 0 | H56: 1 | I56: 2 | J56: 1 | K56: 2 | L56: 3 | M56: 2 | N56: Spain | O56: Wales | S56: FrankPedersen | T56: 0.5 | V56: The_Ref | W56: 1
B57: Dark Duke | C57: 20Phoenix | D57: 1 | E57: 0 | F57: 3 | G57: 2 | H57: 1 | I57: 2 | J57: 2 | K57: 1 | L57: 0 | M57: 0 | N57: Spain | O57: Wales | S57: Malasnoticias | T57: 0.5 | V57: Bouzzy | W57: 1
B58: gninocker | C58: Lycos | D58: 0.5 | E58: 0.5 | F58: 1 | G58: 1 | H58: 1 | I58: 2 | J58: 1 | K58: 1 | L58: 0 | M58: 3 | N58: Belgium | O58: England | S58: Obeliz | T58: 0.5 | V58: cz | W58: 1
B59: Malodoror | C59: Geggster | D59: 1 | E59: 0 | F59: 1 | G59: 0 | H59: 2 | I59: 2 | J59: 1 | K59: 2 | L59: 3 | M59: 3 | N59: Belgium | O59: England | S59: Favi | T59: 0.5 | V59: Obeliz | W59: 1
B60: Dekra1979 | C60: Mubo | D60: 0.5 | E60: 0.5 | F60: 1 | G60: 1 | H60: 3 | I60: 3 | J60: 2 | K60: 3 | L60: 2 | M60: 1 | N60: Belgium | O60: England | S60: Idroj | T60: 0.5 | V60: Mewash | W60: 1
B61: Araznaroth | C61: JimJimany | D61: 0.5 | E61: 0.5 | F61: 2 | G61: 2 | H61: 3 | I61: 0 | J61: 2 | K61: 2 | L61: 3 | M61: 3 | N61: Belgium | O61: England | S61: Duckwing | T61: 0.5 | V61: straume | W61: 1
B62: Phoenix11 | C62: PurpleGoo | D62: 0.5 | E62: 0.5 | F62: 2 | G62: 2 | H62: 1 | I62: 2 | J62: 2 | K62: 0 | L62: 1 | M62: 1 | N62: Belgium | O62: England | S62: straume | T62: 0.5 | V62: SFisher91 | W62: 1
B63: JJ | C63: Joemanji | D63: 0.5 | E63: 0.5 | F63: 3 | G63: 3 | H63: 1 | I63: 3 | J63: 2 | K63: 3 | L63: 1 | M63: 2 | N63: Belgium | O63: England | S63: Garrick | T63: 0.5 | V63: Shawass | W63: 1
B64: Woete | C64: Wilzif | D64: 1 | E64: 0 | F64: 1 | G64: 0 | H64: 3 | I64: 2 | J64: 3 | K64: 2 | L64: 2 | M64: 3 | N64: Belgium | O64: England | S64: nonumber | T64: 0.5 | V64: Leonek | W64: 1
B65: Driesfield | C65: Podfrey | D65: 0 | E65: 1 | F65: 0 | G65: 2 | H65: 1 | I65: 1 | J65: 0 | K65: 3 | L65: 3 | M65: 1 | N65: Belgium | O65: England | S65: zulu | T65: 0.5 | V65: zulu | W65: 1
S66: Niebling | T66: 0.5 | V66: Juniooor7 | W66: 1
S67: Reszka | T67: 0.5 | V67: Jaqra | W67: 1
S68: Phifoe | T68: 0.5 | V68: Bernuz | W68: 1
S69: Matt le fou | T69: 0.5 | V69: sann0638 | W69: 1
S70: Kaltenland | T70: 0.5 | V70: Inforthepain | W70: 1
S71: Bouzzy | T71: 0.5 | V71: andydavo | W71: 1
S72: Harti | T72: 0.5 | V72: Madmatt13 | W72: 1
S73: Skuld | T73: 0.5 | V73: mynock | W73: 1
S74: Inforthepain | T74: 0.5 | V74: Ploppy_McPloppy | W74: 1
S75: Warrior1980 | T75: 0.5 | V75: Balder | W75: 1
S76: Bernuz | T76: 0.5 | V76: JamesEs | W76: 1
S77: BudWiser | T77: 0.5 | V77: Woete | W77: 1
S78: sann0638 | T78: 0.5 | V78: brocCooli | W78: 1
S79: Corwin | T79: 0.5 | V79: Liam | W79: 1
S80: Dirold | T80: 0.5 | V80: Podfrey | W80: 1
S81: andydavo | T81: 0.5 | V81: Kaltenland | W81: 1
S82: noraal | T82: 0.5 | V82: Harti | W82: 1
S83: Northernknight | T83: 0.5 | V83: edheim | W83: 1
S84: Geggster | T84: 0.5 | V84: Dark Duke | W84: 1
S85: Slimaq | T85: 0 | V85: Tactel | W85: 1
S86: Mubo | T86: 0 | V86: J-Ho | W86: 1
S87: Purdindas | T87: 0 | V87: swifty | W87: 1
S88: brocCooli | T88: 0 | V88: MissSweden | W88: 1
S89: Duke_Luthor_Von_Hawkfire | T89: 0 | V89: Favi | W89: 0.5
S90: Dekra1979 | T90: 0 | V90: Phifoe | W90: 0.5
S91: Purrelito | T91: 0 | V91: Loki | W91: 0.5
S92: SpecialOne | T92: 0 | V92: RoterSternHochdahl | W92: 0.5
S93: The_Ref | T93: 0 | V93: BudWiser | W93: 0.5
S94: Wolio | T94: 0 | V94: Geggster | W94: 0.5
S95: Araznaroth | T95: 0 | V95: Mubo | W95: 0.5
S96: JimJimany | T96: 0 | V96: Tank | W96: 0.5
S97: Skoberget | T97: 0 | V97: Strider84 | W97: 0.5
S98: Strider84 | T98: 0 | V98: PurpleGoo | W98: 0.5
S99: MissSweden | T99: 0 | V99: nonumber | W99: 0.5
S100: Jokaero | T100: 0 | V100: JimJimany | W100: 0.5
S101: Alex05 | T101: 0 | V101: Simon_ACP | W101: 0.5
S102: PurpleGoo | T102: 0 | V102: Pidpad | W102: 0.5
S103: Valen | T103: 0 | V103: FrankPedersen | W103: 0.5
S104: Joemanji | T104: 0 | V104: Dirold | W104: 0.5
S105: SFisher91 | T105: 0 | V105: Northernknight | W105: 0.5
S106: Simon_ACP | T106: 0 | V106: Purdindas | W106: 0.5
S107: RoterSternHochdahl | T107: 0 | V107: Skoberget | W107: 0.5
S108: JohnnyD | T108: 0 | V108: Joemanji | W108: 0.5
S109: Madmatt13 | T109: 0 | V109: JJ | W109: 0.5
S110: Farina | T110: 0 | V110: Slimaq | W110: 0.5
S111: Prince | T111: 0 | V111: Araznaroth | W111: 0.5
S112: Tank | T112: 0 | V112: Dekra1979 | W112: 0.5
S113: Justicium | T113: 0 | V113: Jokaero | W113: 0.5
S114: Dionysian | T114: 0 | V114: Alex05 | W114: 0.5
S115: Wilzif | T115: 0 | V115: Phoenix11 | W115: 0.5
S116: bothun | T116: 0 | V116: noraal | W116: 0.5
S117: Podfrey | T117: 0 | V117: Wolio | W117: 0
S118: Phoenix11 | T118: 0 | V118: Dionysian | W118: 0
S119: swifty | T119: 0 | V119: Tripleskull | W119: 0
S120: edheim | T120: 0 | V120: Prince | W120: 0
S121: JJ | T121: 0 | V121: 20Phoenix | W121: 0
S122: 20Phoenix | T122: 0 | V122: Driesfield | W122: 0
S123: Tactel | T123: 0 | V123: JohnnyD | W123: 0
S124: Dark Duke | T124: 0 | V124: Duke_Luthor_Von_Hawkfire | W124: 0
S125: Mewash | T125: 0 | V125: Valen | W125: 0
S126: Woete | T126: 0 | V126: Farina | W126: 0
S127: Tripleskull | T127: 0 | V127: Wilzif | W127: 0
S128: Driesfield | T128: 0 | V128: bothun | W128: 0
S129: JamesEs | T129: 0 | V129: Justicium | W129: 0

Sheet Round3
B1: Home Player | C1: Away Player | D1: Home Points | E1: Away Points | F1: Home TD | G1: Away TD | H1: Home Cas | I1: Away Cas | J1: Home Bonus1 | K1: Away Bonus1 | L1: Home Bonus2 | M1: Away Bonus2 | N1: Home Group | O1: Away Group | S1: Points Before Games | V1: Points After Games | Y1: Group Results | Z1: Group | AA1: Points | AC1: Group Points Before Games | AF1: Group Points After Games
B2: ratogre | C2: Elrik | D2: =fctScore(F2,G2,H2,J2,L2) -> 1 | E2: =fctScore(G2,F2,I2,K2,M2) -> 0 | F2: 2 | G2: 1 | H2: 1 | I2: 1 | J2: 0 | K2: 2 | L2: 2 | M2: 3 | N2: Finland | O2: Switzerland | S2: DonShula | T2: 2 | V2: Topper | W2: 3 | Z2: Belgium | AA2: 1.5 | AC2: Finland | AD2: 14 | AF2: Switzerland | AG2: 18.5
B3: Harza | C3: sigu70 | D3: =fctScore(F3,G3,H3,J3,L3) -> 0 | E3: =fctScore(G3,F3,I3,K3,M3) -> 1 | F3: 0 | G3: 1 | H3: 2 | I3: 1 | J3: 1 | K3: 3 | L3: 1 | M3: 3 | N3: Finland | O3: Switzerland | S3: Domingo | T3: 2 | V3: Goss | W3: 3 | Z3: Denmark | AA3: 7 | AC3: Switzerland | AD3: 11.5 | AF3: Viking | AG3: 17.5
B4: jopotzuki | C4: Goss | D4: 0 | E4: 1 | F4: 1 | G4: 2 | H4: 2 | I4: 2 | J4: 1 | K4: 2 | L4: 2 | M4: 2 | N4: Finland | O4: Switzerland | S4: Arioso | T4: 2 | V4: DonShula | W4: 3 | Z4: England | AA4: 6 | AC4: Poland | AD4: 11 | AF4: Denmark | AG4: 16.5
B5: MacWitt | C5: Macabeo | D5: 0 | E5: 1 | F5: 0 | G5: 3 | H5: 0 | I5: 0 | J5: 1 | K5: 1 | L5: 1 | M5: 3 | N5: Finland | O5: Switzerland | S5: Spartako | T5: 2 | V5: GreatWhiteHope | W5: 3 | Z5: Finland | AA5: 2 | AC5: Italy | AD5: 10.5 | AF5: Finland | AG5: 16
B6: BeerBeer | C6: Madmatt13 | D6: 0 | E6: 1 | F6: 0 | G6: 3 | H6: 1 | I6: 0 | J6: 2 | K6: 0 | L6: 0 | M6: 2 | N6: Finland | O6: Switzerland | S6: Barry | T6: 2 | V6: ratogre | W6: 3 | Z6: France | AA6: 2.5 | AC6: Viking | AD6: 10 | AF6: Poland | AG6: 15.5
B7: valkohukka | C7: Phifoe | D7: 0 | E7: 1 | F7: 1 | G7: 3 | H7: 1 | I7: 1 | J7: 2 | K7: 2 | L7: 2 | M7: 0 | N7: Finland | O7: Switzerland | S7: Topper | T7: 2 | V7: Domingo | W7: 3 | Z7: Germany | AA7: 1.5 | AC7: Spain | AD7: 10 | AF7: Italy | AG7: 15
B8: edheim | C8: Strider84 | D8: 1 | E8: 0 | F8: 3 | G8: 1 | H8: 1 | I8: 0 | J8: 3 | K8: 1 | L8: 1 | M8: 3 | N8: Finland | O8: Switzerland | S8: BiBi | T8: 2 | V8: sigu70 | W8: 3 | Z8: Hungary | AA8: 7.5 | AC8: Germany | AD8: 9.5 | AF8: Scotland | AG8: 14.5
B9: J-Ho | C9: Jokaero | D9: 0 | E9: 1 | F9: 1 | G9: 2 | H9: 0 | I9: 2 | J9: 1 | K9: 2 | L9: 1 | M9: 0 | N9: Finland | O9: Switzerland | S9: ratogre | T9: 2 | V9: Arioso | W9: 2.5 | Z9: Italy | AA9: 4.5 | AC9: Denmark | AD9: 9.5 | AF9: Norway | AG9: 14.5
B10: Domingo | C10: Spartako | D10: 1 | E10: 0 | F10: 2 | G10: 1 | H10: 1 | I10: 1 | J10: 1 | K10: 2 | L10: 0 | M10: 1 | N10: Poland | O10: Italy | S10: Elrik | T10: 2 | V10: Garrick | W10: 2.5 | Z10: Norway | AA10: 5.5 | AC10: Norway | AD10: 9 | AF10: Hungary | AG10: 14
B11: Warrior1980 | C11: Verrinho | D11: 0.5 | E11: 0.5 | F11: 2 | G11: 2 | H11: 2 | I11: 1 | J11: 0 | K11: 2 | L11: 2 | M11: 2 | N11: Poland | O11: Italy | S11: Harza | T11: 2 | V11: Beppe | W11: 2.5 | Z11: Poland | AA11: 4.5 | AC11: Sweden | AD11: 8.5 | AF11: Sweden | AG11: 12
B12: Reszka | C12: Beppe | D12: 0 | E12: 1 | F12: 1 | G12: 2 | H12: 0 | I12: 3 | J12: 1 | K12: 2 | L12: 0 | M12: 1 | N12: Poland | O12: Italy | S12: jopotzuki | T12: 2 | V12: Skuld | W12: 2.5 | Z12: Scotland | AA12: 6.5 | AC12: Scotland | AD12: 8 | AF12: Spain | AG12: 12
B13: Mewash | C13: Matte8 | D13: 0 | E13: 1 | F13: 0 | G13: 2 | H13: 3 | I13: 1 | J13: 1 | K13: 2 | L13: 0 | M13: 2 | N13: Poland | O13: Italy | S13: GreatWhiteHope | T13: 2 | V13: Verrinho | W13: 2.5 | Z13: Spain | AA13: 2 | AC13: France | AD13: 8 | AF13: Germany | AG13: 11
B14: Shawass | C14: Liam | D14: 1 | E14: 0 | F14: 3 | G14: 0 | H14: 2 | I14: 0 | J14: 3 | K14: 3 | L14: 2 | M14: 2 | N14: Poland | O14: Italy | S14: sigu70 | T14: 2 | V14: Itzla | W14: 2.5 | Z14: Sweden | AA14: 3.5 | AC14: Belgium | AD14: 7.5 | AF14: England | AG14: 11
B15: Leonek | C15: Kaltenland | D15: 0.5 | E15: 0.5 | F15: 1 | G15: 1 | H15: 3 | I15: 2 | J15: 3 | K15: 0 | L15: 0 | M15: 1 | N15: Poland | O15: Italy | S15: Goss | T15: 2 | V15: Niebling | W15: 2.5 | Z15: Switzerland | AA15: 7 | AC15: Hungary | AD15: 6.5 | AF15: France | AG15: 10.5
B16: Juniooor7 | C16: Dirold | D16: 0 | E16: 1 | F16: 0 | G16: 1 | H16: 3 | I16: 1 | J16: 2 | K16: 2 | L16: 0 | M16: 2 | N16: Poland | O16: Italy | S16: Verrinho | T16: 2 | V16: Malodoror | W16: 2.5 | Z16: Viking | AA16: 7.5 | AC16: Wales | AD16: 5.5 | AF16: Belgium | AG16: 9
B17: Slimaq | C17: Farina | D17: 1 | E17: 0 | F17: 2 | G17: 1 | H17: 0 | I17: 2 | J17: 0 | K17: 2 | L17: 1 | M17: 3 | N17: Poland | O17: Italy | S17: Malodoror | T17: 2 | V17: Spartako | W17: 2 | Z17: Wales | AA17: 3 | AC17: England | AD17: 5 | AF17: Wales | AG17: 8.5
B18: Faccko | C18: Arioso | D18: 0.5 | E18: 0.5 | F18: 1 | G18: 1 | H18: 2 | I18: 1 | J18: 1 | K18: 0 | L18: 0 | M18: 3 | N18: Viking | O18: Germany | S18: Pellevin | T18: 2 | V18: Faccko | W18: 2
B19: Mufflo | C19: DocMaxx | D19: 1 | E19: 0 | F19: 2 | G19: 1 | H19: 1 | I19: 1 | J19: 3 | K19: 1 | L19: 2 | M19: 1 | N19: Viking | O19: Germany | S19: Faccko | T19: 1.5 | V19: Elrik | W19: 2
B20: Corwin | C20: Muadib | D20: 0.5 | E20: 0.5 | F20: 1 | G20: 1 | H20: 1 | I20: 0 | J20: 2 | K20: 2 | L20: 1 | M20: 1 | N20: Viking | O20: Germany | S20: MacWitt | T20: 1.5 | V20: jopotzuki | W20: 2
B21: Duckwing | C21: Gaunab | D21: 1 | E21: 0 | F21: 3 | G21: 2 | H21: 1 | I21: 3 | J21: 1 | K21: 0 | L21: 3 | M21: 2 | N21: Viking | O21: Germany | S21: Lycos | T21: 1.5 | V21: BlackOrc | W21: 2
B22: Purrelito | C22: Candlejack | D22: 0.5 | E22: 0.5 | F22: 2 | G22: 2 | H22: 1 | I22: 3 | J22: 1 | K22: 1 | L22: 1 | M22: 2 | N22: Viking | O22: Germany | S22: DocMaxx | T22: 1.5 | V22: Mufflo | W22: 2
B23: Bernuz | C23: Jonny_Kanone | D23: 1 | E23: 0 | F23: 3 | G23: 0 | H23: 3 | I23: 2 | J23: 3 | K23: 2 | L23: 1 | M23: 2 | N23: Viking | O23: Germany | S23: BeerBeer | T23: 1.5 | V23: Pellevin | W23: 2
B24: Balder | C24: RoterSternHochdahl | D24: 1 | E24: 0 | F24: 2 | G24: 0 | H24: 2 | I24: 1 | J24: 2 | K24: 0 | L24: 0 | M24: 3 | N24: Viking | O24: Germany | S24: BlackOrc | T24: 1.5 | V24: Macabeo | W24: 2
B25: brocCooli | C25: Prince | D25: 1 | E25: 0 | F25: 3 | G25: 0 | H25: 2 | I25: 3 | J25: 0 | K25: 1 | L25: 1 | M25: 3 | N25: Viking | O25: Germany | S25: kfoged | T25: 1.5 | V25: Lycos | W25: 2
B26: Barry | C26: Topper | D26: 0 | E26: 1 | F26: 1 | G26: 2 | H26: 2 | I26: 1 | J26: 0 | K26: 3 | L26: 1 | M26: 2 | N26: Spain | O26: Denmark | S26: Itzla | T26: 1.5 | V26: Barry | W26: 2
B27: Idroj | C27: kfoged | D27: 0.5 | E27: 0.5 | F27: 0 | G27: 0 | H27: 3 | I27: 1 | J27: 3 | K27: 1 | L27: 1 | M27: 1 | N27: Spain | O27: Denmark | S27: Matt le fou | T27: 1.5 | V27: BiBi | W27: 2
B28: Malasnoticias | C28: Niebling | D28: 0 | E28: 1 | F28: 2 | G28: 3 | H28: 1 | I28: 1 | J28: 3 | K28: 3 | L28: 1 | M28: 2 | N28: Spain | O28: Denmark | S28: MadeofWelsh | T28: 1.5 | V28: HumptyTrump | W28: 2
B29: Joanet | C29: SpecialOne | D29: 0 | E29: 1 | F29: 1 | G29: 3 | H29: 1 | I29: 0 | J29: 1 | K29: 2 | L29: 1 | M29: 2 | N29: Spain | O29: Denmark | S29: Muadib | T29: 1.5 | V29: Madmatt13 | W29: 2
B30: Obeliz | C30: Jaqra | D30: 0.5 | E30: 0.5 | F30: 2 | G30: 2 | H30: 1 | I30: 0 | J30: 1 | K30: 1 | L30: 3 | M30: 1 | N30: Spain | O30: Denmark | S30: Garrick | T30: 1.5 | V30: Harza | W30: 2
B31: Dark Duke | C31: MissSweden | D31: 0 | E31: 1 | F31: 2 | G31: 3 | H31: 1 | I31: 1 | J31: 2 | K31: 2 | L31: 1 | M31: 0 | N31: Spain | O31: Denmark | S31: Beppe | T31: 1.5 | V31: kfoged | W31: 2
B32: Tactel | C32: Tank | D32: 1 | E32: 0 | F32: 2 | G32: 0 | H32: 1 | I32: 3 | J32: 2 | K32: 1 | L32: 2 | M32: 1 | N32: Spain | O32: Denmark | S32: Idroj | T32: 1.5 | V32: Duckwing | W32: 2
B33: Duke_Luthor_Von_Hawkfire | C33: Tripleskull | D33: 0 | E33: 1 | F33: 0 | G33: 1 | H33: 3 | I33: 0 | J33: 3 | K33: 0 | L33: 2 | M33: 1 | N33: Spain | O33: Denmark | S33: gninocker | T33: 1.5 | V33: MadeofWelsh | W33: 2
B34: GreatWhiteHope | C34: Pellevin | D34: 1 | E34: 0 | F34: 3 | G34: 0 | H34: 2 | I34: 1 | J34: 3 | K34: 1 | L34: 2 | M34: 2 | N34: Norway | O34: Sweden | S34: Malasnoticias | T34: 1.5 | V34: SpecialOne | W34: 2
B35: Endalos | C35: Skuld | D35: 0 | E35: 1 | F35: 0 | G35: 2 | H35: 2 | I35: 2 | J35: 1 | K35: 3 | L35: 0 | M35: 2 | N35: Norway | O35: Sweden | S35: Endalos | T35: 1.5 | V35: Matte8 | W35: 2
B36: The_Ref | C36: Melisqus | D36: 0.5 | E36: 0.5 | F36: 2 | G36: 2 | H36: 1 | I36: 3 | J36: 3 | K36: 1 | L36: 2 | M36: 1 | N36: Norway | O36: Sweden | S36: Niebling | T36: 1.5 | V36: Idroj | W36: 2
B37: straume | C37: Dragons | D37: 1 | E37: 0 | F37: 3 | G37: 2 | H37: 1 | I37: 0 | J37: 2 | K37: 0 | L37: 2 | M37: 1 | N37: Norway | O37: Sweden | S37: Warrior1980 | T37: 1.5 | V37: Warrior1980 | W37: 2
B38: zulu | C38: Inforthepain | D38: 0 | E38: 1 | F38: 0 | G38: 2 | H38: 2 | I38: 2 | J38: 3 | K38: 3 | L38: 1 | M38: 0 | N38: Norway | O38: Sweden | S38: Skuld | T38: 1.5 | V38: Shawass | W38: 2
B39: mynock | C39: Pidpad | D39: 0.5 | E39: 0.5 | F39: 2 | G39: 2 | H39: 1 | I39: 3 | J39: 2 | K39: 1 | L39: 2 | M39: 1 | N39: Norway | O39: Sweden | S39: Mufflo | T39: 1 | V39: straume | W39: 2
B40: FrankPedersen | C40: Skoberget | D40: 1 | E40: 0 | F40: 2 | G40: 1 | H40: 2 | I40: 2 | J40: 1 | K40: 1 | L40: 3 | M40: 1 | N40: Norway | O40: Sweden | S40: Macabeo | T40: 1 | V40: MissSweden | W40: 2
B41: bothun | C41: JohnnyD | D41: 0.5 | E41: 0.5 | F41: 0 | G41: 0 | H41: 1 | I41: 1 | J41: 2 | K41: 3 | L41: 1 | M41: 1 | N41: Norway | O41: Sweden | S41: Melisqus | T41: 1 | V41: Bernuz | W41: 2
B42: DonShula | C42: BiBi | D42: 1 | E42: 0 | F42: 2 | G42: 1 | H42: 2 | I42: 1 | J42: 0 | K42: 3 | L42: 1 | M42: 2 | N42: Scotland | O42: France | S42: SpecialOne | T42: 1 | V42: Harti | W42: 2
B43: Garrick | C43: Matt le fou | D43: 1 | E43: 0 | F43: 3 | G43: 1 | H43: 1 | I43: 1 | J43: 2 | K43: 1 | L43: 3 | M43: 2 | N43: Scotland | O43: France | S43: Dragons | T43: 1 | V43: Inforthepain | W43: 2
B44: HumptyTrump | C44: Gros Nain | D44: 1 | E44: 0 | F44: 1 | G44: 0 | H44: 1 | I44: 1 | J44: 3 | K44: 0 | L44: 1 | M44: 2 | N44: Scotland | O44: France | S44: Gaunab | T44: 1 | V44: Muadib | W44: 2
B45: sann0638 | C45: Bouzzy | D45: 0.5 | E45: 0.5 | F45: 1 | G45: 1 | H45: 0 | I45: 1 | J45: 1 | K45: 3 | L45: 0 | M45: 2 | N45: Scotland | O45: France | S45: Reszka | T45: 1 | V45: swifty | W45: 2
B46: JamesEs | C46: Harti | D46: 0 | E46: 1 | F46: 0 | G46: 2 | H46: 2 | I46: 2 | J46: 1 | K46: 2 | L46: 1 | M46: 3 | N46: Scotland | O46: France | S46: Corwin | T46: 1 | V46: brocCooli | W46: 2
B47: Loki | C47: BudWiser | D47: 1 | E47: 0 | F47: 1 | G47: 0 | H47: 1 | I47: 2 | J47: 0 | K47: 3 | L47: 0 | M47: 1 | N47: Scotland | O47: France | S47: Duckwing | T47: 1 | V47: Tactel | W47: 2
B48: Purdindas | C48: Simon_ACP | D48: 1 | E48: 0 | F48: 3 | G48: 1 | H48: 3 | I48: 1 | J48: 2 | K48: 2 | L48: 1 | M48: 0 | N48: Scotland | O48: France | S48: HumptyTrump | T48: 1 | V48: edheim | W48: 2
B49: Valen | C49: Justicium | D49: 0 | E49: 1 | F49: 2 | G49: 3 | H49: 2 | I49: 2 | J49: 1 | K49: 1 | L49: 2 | M49: 1 | N49: Scotland | O49: France | S49: Candlejack | T49: 1 | V49: Balder | W49: 2
B50: Malodoror | C50: BlackOrc | D50: 0.5 | E50: 0.5 | F50: 2 | G50: 2 | H50: 1 | I50: 3 | J50: 2 | K50: 2 | L50: 0 | M50: 1 | N50: Belgium | O50: Hungary | S50: Jonny_Kanone | T50: 1 | V50: Melisqus | W50: 1.5
B51: gninocker | C51: Itzla | D51: 0 | E51: 1 | F51: 0 | G51: 2 | H51: 2 | I51: 1 | J51: 0 | K51: 2 | L51: 2 | M51: 3 | N51: Belgium | O51: Hungary | S51: Joanet | T51: 1 | V51: Phifoe | W51: 1.5
B52: Woete | C52: cz | D52: 0.5 | E52: 0.5 | F52: 1 | G52: 1 | H52: 2 | I52: 1 | J52: 2 | K52: 2 | L52: 2 | M52: 0 | N52: Belgium | O52: Hungary | S52: Gros Nain | T52: 1 | V52: MacWitt | W52: 1.5
B53: JJ | C53: swifty | D53: 0 | E53: 1 | F53: 2 | G53: 3 | H53: 2 | I53: 3 | J53: 0 | K53: 1 | L53: 2 | M53: 1 | N53: Belgium | O53: Hungary | S53: Matte8 | T53: 1 | V53: Matt le fou | W53: 1.5
B54: Araznaroth | C54: Favi | D54: 0.5 | E54: 0.5 | F54: 3 | G54: 3 | H54: 3 | I54: 3 | J54: 1 | K54: 3 | L54: 0 | M54: 2 | N54: Belgium | O54: Hungary | S54: valkohukka | T54: 1 | V54: Bouzzy | W54: 1.5
B55: Dekra1979 | C55: Alex05 | D55: 0 | E55: 1 | F55: 2 | G55: 3 | H55: 1 | I55: 3 | J55: 1 | K55: 1 | L55: 1 | M55: 2 | N55: Belgium | O55: Hungary | S55: Purrelito | T55: 1 | V55: Obeliz | W55: 1.5
B56: Phoenix11 | C56: noraal | D56: 0 | E56: 1 | F56: 0 | G56: 1 | H56: 2 | I56: 0 | J56: 1 | K56: 0 | L56: 3 | M56: 1 | N56: Belgium | O56: Hungary | S56: The_Ref | T56: 1 | V56: Malasnoticias | W56: 1.5
B57: Driesfield | C57: Wolio | D57: 0 | E57: 1 | F57: 2 | G57: 3 | H57: 2 | I57: 1 | J57: 2 | K57: 1 | L57: 0 | M57: 1 | N57: Belgium | O57: Hungary | S57: Bouzzy | T57: 1 | V57: cz | W57: 1.5
B58: MadeofWelsh | C58: Lycos | D58: 0.5 | E58: 0.5 | F58: 1 | G58: 1 | H58: 1 | I58: 2 | J58: 1 | K58: 3 | L58: 1 | M58: 1 | N58: Wales | O58: England | S58: cz | T58: 1 | V58: Corwin | W58: 1.5
B59: SFisher91 | C59: Podfrey | D59: 0.5 | E59: 0.5 | F59: 2 | G59: 2 | H59: 3 | I59: 0 | J59: 2 | K59: 0 | L59: 2 | M59: 1 | N59: Wales | O59: England | S59: Obeliz | T59: 1 | V59: sann0638 | W59: 1.5
B60: andydavo | C60: Geggster | D60: 0.5 | E60: 0.5 | F60: 1 | G60: 1 | H60: 3 | I60: 2 | J60: 2 | K60: 1 | L60: 3 | M60: 3 | N60: Wales | O60: England | S60: Mewash | T60: 1 | V60: Jaqra | W60: 1.5
B61: Ploppy_McPloppy | C61: Mubo | D61: 0 | E61: 1 | F61: 1 | G61: 3 | H61: 2 | I61: 1 | J61: 3 | K61: 1 | L61: 3 | M61: 0 | N61: Wales | O61: England | S61: straume | T61: 1 | V61: FrankPedersen | W61: 1.5
B62: nonumber | C62: PurpleGoo | D62: 0.5 | E62: 0.5 | F62: 3 | G62: 3 | H62: 1 | I62: 1 | J62: 1 | K62: 2 | L62: 1 | M62: 3 | N62: Wales | O62: England | S62: SFisher91 | T62: 1 | V62: Dirold | W62: 1.5
B63: Northernknight | C63: JimJimany | D63: 0 | E63: 1 | F63: 1 | G63: 2 | H63: 0 | I63: 3 | J63: 0 | K63: 1 | L63: 1 | M63: 0 | N63: Wales | O63: England | S63: Shawass | T63: 1 | V63: mynock | W63: 1.5
B64: Dionysian | C64: Joemanji | D64: 0 | E64: 1 | F64: 0 | G64: 1 | H64: 0 | I64: 3 | J64: 3 | K64: 2 | L64: 0 | M64: 2 | N64: Wales | O64: England | S64: Leonek | T64: 1 | V64: BeerBeer | W64: 1.5
B65: 20Phoenix | C65: Wilzif | D65: 1 | E65: 0 | F65: 2 | G65: 1 | H65: 2 | I65: 0 | J65: 2 | K65: 1 | L65: 2 | M65: 3 | N65: Wales | O65: England | S65: zulu | T65: 1 | V65: Leonek | W65: 1.5
S66: Juniooor7 | T66: 1 | V66: JimJimany | W66: 1.5
S67: Jaqra | T67: 1 | V67: andydavo | W67: 1.5
S68: Bernuz | T68: 1 | V68: Endalos | W68: 1.5
S69: sann0638 | T69: 1 | V69: gninocker | W69: 1.5
S70: Inforthepain | T70: 1 | V70: DocMaxx | W70: 1.5
S71: andydavo | T71: 1 | V71: Kaltenland | W71: 1.5
S72: Madmatt13 | T72: 1 | V72: Loki | W72: 1.5
S73: mynock | T73: 1 | V73: Candlejack | W73: 1.5
S74: Ploppy_McPloppy | T74: 1 | V74: Woete | W74: 1.5
S75: Balder | T75: 1 | V75: Purdindas | W75: 1.5
S76: JamesEs | T76: 1 | V76: Mubo | W76: 1.5
S77: Woete | T77: 1 | V77: SFisher91 | W77: 1.5
S78: brocCooli | T78: 1 | V78: Purrelito | W78: 1.5
S79: Liam | T79: 1 | V79: The_Ref | W79: 1.5
S80: Podfrey | T80: 1 | V80: noraal | W80: 1.5
S81: Kaltenland | T81: 1 | V81: Jokaero | W81: 1.5
S82: Harti | T82: 1 | V82: Podfrey | W82: 1.5
S83: edheim | T83: 1 | V83: Slimaq | W83: 1.5
S84: Dark Duke | T84: 1 | V84: Joemanji | W84: 1.5
S85: Tactel | T85: 1 | V85: Alex05 | W85: 1.5
S86: J-Ho | T86: 1 | V86: Reszka | W86: 1
S87: swifty | T87: 1 | V87: Dragons | W87: 1
S88: MissSweden | T88: 1 | V88: Favi | W88: 1
S89: Favi | T89: 0.5 | V89: Mewash | W89: 1
S90: Phifoe | T90: 0.5 | V90: Jonny_Kanone | W90: 1
S91: Loki | T91: 0.5 | V91: Joanet | W91: 1
S92: RoterSternHochdahl | T92: 0.5 | V92: Gros Nain | W92: 1
S93: BudWiser | T93: 0.5 | V93: JamesEs | W93: 1
S94: Geggster | T94: 0.5 | V94: Geggster | W94: 1
S95: Mubo | T95: 0.5 | V95: Pidpad | W95: 1
S96: Tank | T96: 0.5 | V96: zulu | W96: 1
S97: Strider84 | T97: 0.5 | V97: Dark Duke | W97: 1
S98: PurpleGoo | T98: 0.5 | V98: Tripleskull | W98: 1
S99: nonumber | T99: 0.5 | V99: Gaunab | W99: 1
S100: JimJimany | T100: 0.5 | V100: Liam | W100: 1
S101: Simon_ACP | T101: 0.5 | V101: Wolio | W101: 1
S102: Pidpad | T102: 0.5 | V102: nonumber | W102: 1
S103: FrankPedersen | T103: 0.5 | V103: valkohukka | W103: 1
S104: Dirold | T104: 0.5 | V104: Araznaroth | W104: 1
S105: Northernknight | T105: 0.5 | V105: Juniooor7 | W105: 1
S106: Purdindas | T106: 0.5 | V106: PurpleGoo | W106: 1
S107: Skoberget | T107: 0.5 | V107: 20Phoenix | W107: 1
S108: Joemanji | T108: 0.5 | V108: Ploppy_McPloppy | W108: 1
S109: JJ | T109: 0.5 | V109: J-Ho | W109: 1
S110: Slimaq | T110: 0.5 | V110: Justicium | W110: 1
S111: Araznaroth | T111: 0.5 | V111: Tank | W111: 0.5
S112: Dekra1979 | T112: 0.5 | V112: Strider84 | W112: 0.5
S113: Jokaero | T113: 0.5 | V113: Simon_ACP | W113: 0.5
S114: Alex05 | T114: 0.5 | V114: Skoberget | W114: 0.5
S115: Phoenix11 | T115: 0.5 | V115: RoterSternHochdahl | W115: 0.5
S116: noraal | T116: 0.5 | V116: BudWiser | W116: 0.5
S117: Wolio | T117: 0 | V117: JJ | W117: 0.5
S118: Dionysian | T118: 0 | V118: Dekra1979 | W118: 0.5
S119: Tripleskull | T119: 0 | V119: Northernknight | W119: 0.5
S120: Prince | T120: 0 | V120: JohnnyD | W120: 0.5
S121: 20Phoenix | T121: 0 | V121: Phoenix11 | W121: 0.5
S122: Driesfield | T122: 0 | V122: bothun | W122: 0.5
S123: JohnnyD | T123: 0 | V123: Dionysian | W123: 0
S124: Duke_Luthor_Von_Hawkfire | T124: 0 | V124: Prince | W124: 0
S125: Valen | T125: 0 | V125: Duke_Luthor_Von_Hawkfire | W125: 0
S126: Farina | T126: 0 | V126: Driesfield | W126: 0
S127: Wilzif | T127: 0 | V127: Farina | W127: 0
S128: bothun | T128: 0 | V128: Valen | W128: 0
S129: Justicium | T129: 0 | V129: Wilzif | W129: 0

Sheet Round4
B1: Home Player | C1: Away Player | D1: Home Points | E1: Away Points | F1: Home TD | G1: Away TD | H1: Home Cas | I1: Away Cas | J1: Home Bonus1 | K1: Away Bonus1 | L1: Home Bonus2 | M1: Away Bonus2 | N1: Home Group | O1: Away Group | S1: Points Before Games | V1: Points After Games | Y1: Group Results | Z1: Group | AA1: Points | AC1: Group Points Before Games | AF1: Group Points After Games
B2: Goss | C2: Faccko | D2: =fctScore(F2,G2,H2,J2,L2) -> 0 | E2: =fctScore(G2,F2,I2,K2,M2) -> 1 | F2: 2 | G2: 3 | H2: 1 | I2: 2 | J2: 0 | K2: 2 | L2: 2 | M2: 3 | N2: Switzerland | O2: Viking | S2: Topper | T2: 3 | V2: Domingo | W2: 4 | Z2: Belgium | AA2: 6.5 | AC2: Switzerland | AD2: 18.5 | AF2: Viking | AG2: 23.5
B3: sigu70 | C3: Mufflo | D3: =fctScore(F3,G3,H3,J3,L3) -> 0.5 | E3: =fctScore(G3,F3,I3,K3,M3) -> 0.5 | F3: 2 | G3: 2 | H3: 1 | I3: 1 | J3: 2 | K3: 0 | L3: 0 | M3: 3 | N3: Switzerland | O3: Viking | S3: Goss | T3: 3 | V3: Topper | W3: 4 | Z3: Denmark | AA3: 3.5 | AC3: Viking | AD3: 17.5 | AF3: Italy | AG3: 22.5
B4: Elrik | C4: Duckwing | D4: 0 | E4: 1 | F4: 1 | G4: 3 | H4: 2 | I4: 1 | J4: 3 | K4: 1 | L4: 1 | M4: 0 | N4: Switzerland | O4: Viking | S4: DonShula | T4: 3 | V4: Beppe | W4: 3.5 | Z4: England | AA4: 2.5 | AC4: Denmark | AD4: 16.5 | AF4: Switzerland | AG4: 21.5
B5: Macabeo | C5: Bernuz | D5: 0.5 | E5: 0.5 | F5: 1 | G5: 1 | H5: 2 | I5: 1 | J5: 3 | K5: 2 | L5: 0 | M5: 1 | N5: Switzerland | O5: Viking | S5: GreatWhiteHope | T5: 3 | V5: Skuld | W5: 3.5 | Z5: Finland | AA5: 5.5 | AC5: Finland | AD5: 16 | AF5: Finland | AG5: 21.5
B6: Madmatt13 | C6: brocCooli | D6: 0 | E6: 1 | F6: 1 | G6: 2 | H6: 1 | I6: 3 | J6: 1 | K6: 1 | L6: 3 | M6: 2 | N6: Switzerland | O6: Viking | S6: ratogre | T6: 3 | V6: Itzla | W6: 3.5 | Z6: France | AA6: 6.5 | AC6: Poland | AD6: 15.5 | AF6: Norway | AG6: 20.5
B7: Phifoe | C7: Balder | D7: 1 | E7: 0 | F7: 3 | G7: 1 | H7: 1 | I7: 2 | J7: 0 | K7: 0 | L7: 2 | M7: 1 | N7: Switzerland | O7: Viking | S7: Domingo | T7: 3 | V7: Verrinho | W7: 3.5 | Z7: Germany | AA7: 3.5 | AC7: Italy | AD7: 15 | AF7: Denmark | AG7: 20
B8: Jokaero | C8: Corwin | D8: 0 | E8: 1 | F8: 1 | G8: 2 | H8: 1 | I8: 1 | J8: 1 | K8: 1 | L8: 3 | M8: 2 | N8: Switzerland | O8: Viking | S8: sigu70 | T8: 3 | V8: sigu70 | W8: 3.5 | Z8: Hungary | AA8: 5.5 | AC8: Scotland | AD8: 14.5 | AF8: Hungary | AG8: 19.5
B9: Strider84 | C9: Purrelito | D9: 1 | E9: 0 | F9: 2 | G9: 1 | H9: 1 | I9: 3 | J9: 2 | K9: 1 | L9: 2 | M9: 0 | N9: Switzerland | O9: Viking | S9: Arioso | T9: 2.5 | V9: Faccko | W9: 3 | Z9: Italy | AA9: 7.5 | AC9: Norway | AD9: 14.5 | AF9: Poland | AG9: 18.5
B10: Topper | C10: ratogre | D10: 1 | E10: 0 | F10: 3 | G10: 1 | H10: 2 | I10: 0 | J10: 1 | K10: 2 | L10: 0 | M10: 3 | N10: Denmark | O10: Finland | S10: Garrick | T10: 2.5 | V10: DonShula | W10: 3 | Z10: Norway | AA10: 6 | AC10: Hungary | AD10: 14 | AF10: Sweden | AG10: 18
B11: Niebling | C11: jopotzuki | D11: 0.5 | E11: 0.5 | F11: 3 | G11: 3 | H11: 3 | I11: 3 | J11: 1 | K11: 3 | L11: 1 | M11: 1 | N11: Denmark | O11: Finland | S11: Beppe | T11: 2.5 | V11: kfoged | W11: 3 | Z11: Poland | AA11: 3 | AC11: Sweden | AD11: 12 | AF11: France | AG11: 17
B12: kfoged | C12: Harza | D12: 1 | E12: 0 | F12: 3 | G12: 2 | H12: 2 | I12: 1 | J12: 0 | K12: 2 | L12: 0 | M12: 0 | N12: Denmark | O12: Finland | S12: Skuld | T12: 2.5 | V12: Spartako | W12: 3 | Z12: Scotland | AA12: 1.5 | AC12: Spain | AD12: 12 | AF12: Scotland | AG12: 16
B13: SpecialOne | C13: edheim | D13: 0 | E13: 1 | F13: 1 | G13: 2 | H13: 1 | I13: 2 | J13: 2 | K13: 1 | L13: 1 | M13: 1 | N13: Denmark | O13: Finland | S13: Verrinho | T13: 2.5 | V13: Goss | W13: 3 | Z13: Spain | AA13: 3 | AC13: Germany | AD13: 11 | AF13: Belgium | AG13: 15.5
B14: MissSweden | C14: MacWitt | D14: 0.5 | E14: 0.5 | F14: 1 | G14: 1 | H14: 3 | I14: 1 | J14: 1 | K14: 3 | L14: 1 | M14: 1 | N14: Denmark | O14: Finland | S14: Itzla | T14: 2.5 | V14: GreatWhiteHope | W14: 3 | Z14: Sweden | AA14: 6 | AC14: England | AD14: 11 | AF14: Spain | AG14: 15
B15: Jaqra | C15: BeerBeer | D15: 0 | E15: 1 | F15: 1 | G15: 2 | H15: 2 | I15: 3 | J15: 1 | K15: 2 | L15: 1 | M15: 1 | N15: Denmark | O15: Finland | S15: Niebling | T15: 2.5 | V15: Duckwing | W15: 3 | Z15: Switzerland | AA15: 3 | AC15: France | AD15: 10.5 | AF15: Germany | AG15: 14.5
B16: Tripleskull | C16: valkohukka | D16: 0 | E16: 1 | F16: 0 | G16: 2 | H16: 1 | I16: 1 | J16: 1 | K16: 0 | L16: 3 | M16: 2 | N16: Denmark | O16: Finland | S16: Malodoror | T16: 2.5 | V16: Idroj | W16: 3 | Z16: Viking | AA16: 6 | AC16: Belgium | AD16: 9 | AF16: England | AG16: 13.5
B17: Tank | C17: J-Ho | D17: 0.5 | E17: 0.5 | F17: 1 | G17: 1 | H17: 1 | I17: 3 | J17: 2 | K17: 3 | L17: 1 | M17: 0 | N17: Denmark | O17: Finland | S17: Spartako | T17: 2 | V17: straume | W17: 3 | Z17: Wales | AA17: 2.5 | AC17: Wales | AD17: 8.5 | AF17: Wales | AG17: 11
B18: Domingo | C18: GreatWhiteHope | D18: 1 | E18: 0 | F18: 1 | G18: 0 | H18: 0 | I18: 1 | J18: 3 | K18: 2 | L18: 2 | M18: 0 | N18: Poland | O18: Norway | S18: Faccko | T18: 2 | V18: ratogre | W18: 3
B19: Warrior1980 | C19: straume | D19: 0 | E19: 1 | F19: 1 | G19: 2 | H19: 3 | I19: 2 | J19: 1 | K19: 2 | L19: 2 | M19: 3 | N19: Poland | O19: Norway | S19: Elrik | T19: 2 | V19: Niebling | W19: 3
B20: Shawass | C20: FrankPedersen | D20: 0.5 | E20: 0.5 | F20: 2 | G20: 2 | H20: 1 | I20: 1 | J20: 2 | K20: 3 | L20: 2 | M20: 3 | N20: Poland | O20: Norway | S20: jopotzuki | T20: 2 | V20: BiBi | W20: 3
B21: Leonek | C21: mynock | D21: 0 | E21: 1 | F21: 0 | G21: 3 | H21: 3 | I21: 1 | J21: 3 | K21: 1 | L21: 2 | M21: 2 | N21: Poland | O21: Norway | S21: BlackOrc | T21: 2 | V21: Inforthepain | W21: 3
B22: Slimaq | C22: Endalos | D22: 0.5 | E22: 0.5 | F22: 1 | G22: 1 | H22: 2 | I22: 2 | J22: 2 | K22: 0 | L22: 2 | M22: 3 | N22: Poland | O22: Norway | S22: Mufflo | T22: 2 | V22: Malodoror | W22: 3
B23: Reszka | C23: The_Ref | D23: 0.5 | E23: 0.5 | F23: 1 | G23: 1 | H23: 3 | I23: 2 | J23: 1 | K23: 1 | L23: 2 | M23: 1 | N23: Poland | O23: Norway | S23: Pellevin | T23: 2 | V23: brocCooli | W23: 3
B24: Mewash | C24: zulu | D24: 0.5 | E24: 0.5 | F24: 2 | G24: 2 | H24: 0 | I24: 2 | J24: 1 | K24: 2 | L24: 1 | M24: 2 | N24: Poland | O24: Norway | S24: Macabeo | T24: 2 | V24: Harti | W24: 3
B25: Juniooor7 | C25: bothun | D25: 0 | E25: 1 | F25: 1 | G25: 2 | H25: 2 | I25: 1 | J25: 1 | K25: 0 | L25: 2 | M25: 1 | N25: Poland | O25: Norway | S25: Lycos | T25: 2 | V25: edheim | W25: 3
B26: Beppe | C26: DonShula | D26: 1 | E26: 0 | F26: 2 | G26: 1 | H26: 1 | I26: 3 | J26: 1 | K26: 1 | L26: 0 | M26: 1 | N26: Italy | O26: Scotland | S26: Barry | T26: 2 | V26: Mufflo | W26: 2.5
B27: Verrinho | C27: Garrick | D27: 1 | E27: 0 | F27: 3 | G27: 0 | H27: 3 | I27: 1 | J27: 1 | K27: 2 | L27: 1 | M27: 2 | N27: Italy | O27: Scotland | S27: BiBi | T27: 2 | V27: Arioso | W27: 2.5
B28: Spartako | C28: HumptyTrump | D28: 1 | E28: 0 | F28: 2 | G28: 1 | H28: 0 | I28: 2 | J28: 0 | K28: 0 | L28: 0 | M28: 1 | N28: Italy | O28: Scotland | S28: HumptyTrump | T28: 2 | V28: Phifoe | W28: 2.5
B29: Matte8 | C29: sann0638 | D29: 0.5 | E29: 0.5 | F29: 1 | G29: 1 | H29: 2 | I29: 2 | J29: 1 | K29: 1 | L29: 2 | M29: 3 | N29: Italy | O29: Scotland | S29: Madmatt13 | T29: 2 | V29: jopotzuki | W29: 2.5
B30: Dirold | C30: Loki | D30: 0.5 | E30: 0.5 | F30: 1 | G30: 1 | H30: 2 | I30: 1 | J30: 0 | K30: 2 | L30: 1 | M30: 2 | N30: Italy | O30: Scotland | S30: Harza | T30: 2 | V30: BlackOrc | W30: 2.5
B31: Kaltenland | C31: Purdindas | D31: 1 | E31: 0 | F31: 1 | G31: 0 | H31: 2 | I31: 2 | J31: 1 | K31: 1 | L31: 2 | M31: 2 | N31: Italy | O31: Scotland | S31: kfoged | T31: 2 | V31: Macabeo | W31: 2.5
B32: Liam | C32: JamesEs | D32: 1 | E32: 0 | F32: 3 | G32: 2 | H32: 1 | I32: 3 | J32: 2 | K32: 0 | L32: 0 | M32: 0 | N32: Italy | O32: Scotland | S32: Duckwing | T32: 2 | V32: Garrick | W32: 2.5
B33: Farina | C33: Valen | D33: 0.5 | E33: 0.5 | F33: 1 | G33: 1 | H33: 0 | I33: 2 | J33: 1 | K33: 1 | L33: 2 | M33: 0 | N33: Italy | O33: Scotland | S33: MadeofWelsh | T33: 2 | V33: MadeofWelsh | W33: 2.5
B34: Itzla | C34: Arioso | D34: 1 | E34: 0 | F34: 1 | G34: 0 | H34: 2 | I34: 2 | J34: 3 | K34: 1 | L34: 1 | M34: 3 | N34: Hungary | O34: Germany | S34: SpecialOne | T34: 2 | V34: Matte8 | W34: 2.5
B35: BlackOrc | C35: Muadib | D35: 0.5 | E35: 0.5 | F35: 1 | G35: 1 | H35: 3 | I35: 1 | J35: 2 | K35: 0 | L35: 1 | M35: 2 | N35: Hungary | O35: Germany | S35: Matte8 | T35: 2 | V35: Melisqus | W35: 2.5
B36: swifty | C36: DocMaxx | D36: 0 | E36: 1 | F36: 0 | G36: 1 | H36: 0 | I36: 1 | J36: 1 | K36: 2 | L36: 2 | M36: 3 | N36: Hungary | O36: Germany | S36: Idroj | T36: 2 | V36: Bouzzy | W36: 2.5
B37: cz | C37: Candlejack | D37: 0.5 | E37: 0.5 | F37: 2 | G37: 2 | H37: 2 | I37: 3 | J37: 1 | K37: 1 | L37: 2 | M37: 3 | N37: Hungary | O37: Germany | S37: Warrior1980 | T37: 2 | V37: MissSweden | W37: 2.5
B38: noraal | C38: Jonny_Kanone | D38: 1 | E38: 0 | F38: 3 | G38: 2 | H38: 1 | I38: 0 | J38: 2 | K38: 0 | L38: 1 | M38: 1 | N38: Hungary | O38: Germany | S38: Shawass | T38: 2 | V38: Corwin | W38: 2.5
B39: Alex05 | C39: Gaunab | D39: 0.5 | E39: 0.5 | F39: 3 | G39: 3 | H39: 1 | I39: 0 | J39: 1 | K39: 2 | L39: 3 | M39: 2 | N39: Hungary | O39: Germany | S39: straume | T39: 2 | V39: Shawass | W39: 2.5
B40: Favi | C40: RoterSternHochdahl | D40: 0.5 | E40: 0.5 | F40: 1 | G40: 1 | H40: 1 | I40: 2 | J40: 2 | K40: 0 | L40: 2 | M40: 0 | N40: Hungary | O40: Germany | S40: MissSweden | T40: 2 | V40: Muadib | W40: 2.5
B41: Wolio | C41: Prince | D41: 0.5 | E41: 0.5 | F41: 1 | G41: 1 | H41: 1 | I41: 3 | J41: 2 | K41: 2 | L41: 3 | M41: 1 | N41: Hungary | O41: Germany | S41: Bernuz | T41: 2 | V41: DocMaxx | W41: 2.5
B42: Barry | C42: Skuld | D42: 0 | E42: 1 | F42: 1 | G42: 3 | H42: 2 | I42: 2 | J42: 3 | K42: 2 | L42: 2 | M42: 1 | N42: Spain | O42: Sweden | S42: Harti | T42: 2 | V42: mynock | W42: 2.5
B43: Idroj | C43: Pellevin | D43: 1 | E43: 0 | F43: 2 | G43: 0 | H43: 1 | I43: 2 | J43: 0 | K43: 1 | L43: 0 | M43: 2 | N43: Spain | O43: Sweden | S43: Inforthepain | T43: 2 | V43: BeerBeer | W43: 2.5
B44: Tactel | C44: Inforthepain | D44: 0 | E44: 1 | F44: 1 | G44: 2 | H44: 1 | I44: 1 | J44: 2 | K44: 2 | L44: 2 | M44: 1 | N44: Spain | O44: Sweden | S44: Muadib | T44: 2 | V44: Bernuz | W44: 2.5
B45: Obeliz | C45: Melisqus | D45: 0 | E45: 1 | F45: 0 | G45: 2 | H45: 1 | I45: 1 | J45: 2 | K45: 2 | L45: 2 | M45: 2 | N45: Spain | O45: Sweden | S45: swifty | T45: 2 | V45: Woete | W45: 2.5
B46: Malasnoticias | C46: Dragons | D46: 0 | E46: 1 | F46: 0 | G46: 1 | H46: 2 | I46: 2 | J46: 2 | K46: 2 | L46: 0 | M46: 2 | N46: Spain | O46: Sweden | S46: brocCooli | T46: 2 | V46: Kaltenland | W46: 2.5
B47: Joanet | C47: Pidpad | D47: 0.5 | E47: 0.5 | F47: 3 | G47: 3 | H47: 2 | I47: 2 | J47: 2 | K47: 1 | L47: 2 | M47: 1 | N47: Spain | O47: Sweden | S47: Tactel | T47: 2 | V47: noraal | W47: 2.5
B48: Dark Duke | C48: Skoberget | D48: 1 | E48: 0 | F48: 2 | G48: 1 | H48: 1 | I48: 1 | J48: 1 | K48: 3 | L48: 1 | M48: 0 | N48: Spain | O48: Sweden | S48: edheim | T48: 2 | V48: Madmatt13 | W48: 2
B49: Duke_Luthor_Von_Hawkfire | C49: JohnnyD | D49: 0.5 | E49: 0.5 | F49: 2 | G49: 2 | H49: 2 | I49: 1 | J49: 0 | K49: 1 | L49: 2 | M49: 2 | N49: Spain | O49: Sweden | S49: Balder | T49: 2 | V49: Lycos | W49: 2
B50: Lycos | C50: BiBi | D50: 0 | E50: 1 | F50: 2 | G50: 3 | H50: 2 | I50: 3 | J50: 1 | K50: 0 | L50: 0 | M50: 2 | N50: England | O50: France | S50: Melisqus | T50: 1.5 | V50: Barry | W50: 2
B51: JimJimany | C51: Harti | D51: 0 | E51: 1 | F51: 0 | G51: 1 | H51: 0 | I51: 1 | J51: 1 | K51: 2 | L51: 3 | M51: 2 | N51: England | O51: France | S51: Phifoe | T51: 1.5 | V51: Dragons | W51: 2
B52: Mubo | C52: Matt le fou | D52: 0.5 | E52: 0.5 | F52: 3 | G52: 3 | H52: 2 | I52: 1 | J52: 2 | K52: 2 | L52: 1 | M52: 3 | N52: England | O52: France | S52: MacWitt | T52: 1.5 | V52: HumptyTrump | W52: 2
B53: Podfrey | C53: Bouzzy | D53: 0 | E53: 1 | F53: 1 | G53: 2 | H53: 0 | I53: 0 | J53: 2 | K53: 1 | L53: 2 | M53: 1 | N53: England | O53: France | S53: Matt le fou | T53: 1.5 | V53: Pellevin | W53: 2
B54: Joemanji | C54: Gros Nain | D54: 0 | E54: 1 | F54: 0 | G54: 1 | H54: 0 | I54: 1 | J54: 1 | K54: 2 | L54: 2 | M54: 0 | N54: England | O54: France | S54: Bouzzy | T54: 1.5 | V54: Harza | W54: 2
B55: Geggster | C55: Justicium | D55: 0.5 | E55: 0.5 | F55: 2 | G55: 2 | H55: 1 | I55: 1 | J55: 2 | K55: 3 | L55: 3 | M55: 1 | N55: England | O55: France | S55: Obeliz | T55: 1.5 | V55: Elrik | W55: 2
B56: PurpleGoo | C56: Simon_ACP | D56: 0.5 | E56: 0.5 | F56: 1 | G56: 1 | H56: 2 | I56: 3 | J56: 1 | K56: 1 | L56: 1 | M56: 1 | N56: England | O56: France | S56: Malasnoticias | T56: 1.5 | V56: cz | W56: 2
B57: Wilzif | C57: BudWiser | D57: 1 | E57: 0 | F57: 2 | G57: 0 | H57: 2 | I57: 2 | J57: 3 | K57: 3 | L57: 2 | M57: 3 | N57: England | O57: France | S57: cz | T57: 1.5 | V57: sann0638 | W57: 2
B58: Malodoror | C58: MadeofWelsh | D58: 0.5 | E58: 0.5 | F58: 1 | G58: 1 | H58: 3 | I58: 3 | J58: 2 | K58: 0 | L58: 1 | M58: 1 | N58: Belgium | O58: Wales | S58: Corwin | T58: 1.5 | V58: SpecialOne | W58: 2
B59: gninocker | C59: andydavo | D59: 0.5 | E59: 0.5 | F59: 0 | G59: 0 | H59: 2 | I59: 2 | J59: 3 | K59: 0 | L59: 3 | M59: 2 | N59: Belgium | O59: Wales | S59: sann0638 | T59: 1.5 | V59: Gros Nain | W59: 2
B60: Woete | C60: SFisher91 | D60: 1 | E60: 0 | F60: 2 | G60: 1 | H60: 2 | I60: 2 | J60: 0 | K60: 1 | L60: 2 | M60: 2 | N60: Belgium | O60: Wales | S60: Jaqra | T60: 1.5 | V60: Warrior1980 | W60: 2
B61: Araznaroth | C61: nonumber | D61: 1 | E61: 0 | F61: 3 | G61: 2 | H61: 2 | I61: 2 | J61: 0 | K61: 0 | L61: 2 | M61: 2 | N61: Belgium | O61: Wales | S61: FrankPedersen | T61: 1.5 | V61: MacWitt | W61: 2
B62: JJ | C62: 20Phoenix | D62: 0 | E62: 1 | F62: 1 | G62: 2 | H62: 2 | I62: 3 | J62: 1 | K62: 0 | L62: 2 | M62: 2 | N62: Belgium | O62: Wales | S62: Dirold | T62: 1.5 | V62: FrankPedersen | W62: 2
B63: Dekra1979 | C63: Ploppy_McPloppy | D63: 1 | E63: 0 | F63: 2 | G63: 1 | H63: 1 | I63: 0 | J63: 2 | K63: 2 | L63: 0 | M63: 2 | N63: Belgium | O63: Wales | S63: mynock | T63: 1.5 | V63: Dirold | W63: 2
B64: Phoenix11 | C64: Northernknight | D64: 1 | E64: 0 | F64: 3 | G64: 1 | H64: 2 | I64: 2 | J64: 1 | K64: 0 | L64: 2 | M64: 2 | N64: Belgium | O64: Wales | S64: BeerBeer | T64: 1.5 | V64: Matt le fou | W64: 2
B65: Driesfield | C65: Dionysian | D65: 0.5 | E65: 0.5 | F65: 2 | G65: 2 | H65: 1 | I65: 1 | J65: 1 | K65: 1 | L65: 2 | M65: 2 | N65: Belgium | O65: Wales | S65: Leonek | T65: 1.5 | V65: Endalos | W65: 2
S66: JimJimany | T66: 1.5 | V66: gninocker | W66: 2
S67: andydavo | T67: 1.5 | V67: Dark Duke | W67: 2
S68: Endalos | T68: 1.5 | V68: andydavo | W68: 2
S69: gninocker | T69: 1.5 | V69: The_Ref | W69: 2
S70: DocMaxx | T70: 1.5 | V70: Candlejack | W70: 2
S71: Kaltenland | T71: 1.5 | V71: Tactel | W71: 2
S72: Loki | T72: 1.5 | V72: Mubo | W72: 2
S73: Candlejack | T73: 1.5 | V73: valkohukka | W73: 2
S74: Woete | T74: 1.5 | V74: 20Phoenix | W74: 2
S75: Purdindas | T75: 1.5 | V75: Balder | W75: 2
S76: Mubo | T76: 1.5 | V76: swifty | W76: 2
S77: SFisher91 | T77: 1.5 | V77: Loki | W77: 2
S78: Purrelito | T78: 1.5 | V78: Liam | W78: 2
S79: The_Ref | T79: 1.5 | V79: Alex05 | W79: 2
S80: noraal | T80: 1.5 | V80: Slimaq | W80: 2
S81: Jokaero | T81: 1.5 | V81: Araznaroth | W81: 2
S82: Podfrey | T82: 1.5 | V82: Reszka | W82: 1.5
S83: Slimaq | T83: 1.5 | V83: Strider84 | W83: 1.5
S84: Joemanji | T84: 1.5 | V84: Favi | W84: 1.5
S85: Alex05 | T85: 1.5 | V85: Leonek | W85: 1.5
S86: Reszka | T86: 1 | V86: Joanet | W86: 1.5
S87: Dragons | T87: 1 | V87: Gaunab | W87: 1.5
S88: Favi | T88: 1 | V88: Malasnoticias | W88: 1.5
S89: Mewash | T89: 1 | V89: JimJimany | W89: 1.5
S90: Jonny_Kanone | T90: 1 | V90: Pidpad | W90: 1.5
S91: Joanet | T91: 1 | V91: Obeliz | W91: 1.5
S92: Gros Nain | T92: 1 | V92: Mewash | W92: 1.5
S93: JamesEs | T93: 1 | V93: Jaqra | W93: 1.5
S94: Geggster | T94: 1 | V94: Geggster | W94: 1.5
S95: Pidpad | T95: 1 | V95: zulu | W95: 1.5
S96: zulu | T96: 1 | V96: Purdindas | W96: 1.5
S97: Dark Duke | T97: 1 | V97: SFisher91 | W97: 1.5
S98: Tripleskull | T98: 1 | V98: Dekra1979 | W98: 1.5
S99: Gaunab | T99: 1 | V99: Podfrey | W99: 1.5
S100: Liam | T100: 1 | V100: Purrelito | W100: 1.5
S101: Wolio | T101: 1 | V101: Phoenix11 | W101: 1.5
S102: nonumber | T102: 1 | V102: Jokaero | W102: 1.5
S103: valkohukka | T103: 1 | V103: Justicium | W103: 1.5
S104: Araznaroth | T104: 1 | V104: Joemanji | W104: 1.5
S105: Juniooor7 | T105: 1 | V105: PurpleGoo | W105: 1.5
S106: PurpleGoo | T106: 1 | V106: Wolio | W106: 1.5
S107: 20Phoenix | T107: 1 | V107: J-Ho | W107: 1.5
S108: Ploppy_McPloppy | T108: 1 | V108: bothun | W108: 1.5
S109: J-Ho | T109: 1 | V109: JamesEs | W109: 1
S110: Justicium | T110: 1 | V110: Jonny_Kanone | W110: 1
S111: Tank | T111: 0.5 | V111: Tank | W111: 1
S112: Strider84 | T112: 0.5 | V112: RoterSternHochdahl | W112: 1
S113: Simon_ACP | T113: 0.5 | V113: Simon_ACP | W113: 1
S114: Skoberget | T114: 0.5 | V114: nonumber | W114: 1
S115: RoterSternHochdahl | T115: 0.5 | V115: Tripleskull | W115: 1
S116: BudWiser | T116: 0.5 | V116: Wilzif | W116: 1
S117: JJ | T117: 0.5 | V117: Juniooor7 | W117: 1
S118: Dekra1979 | T118: 0.5 | V118: JohnnyD | W118: 1
S119: Northernknight | T119: 0.5 | V119: Ploppy_McPloppy | W119: 1
S120: JohnnyD | T120: 0.5 | V120: Prince | W120: 0.5
S121: Phoenix11 | T121: 0.5 | V121: Skoberget | W121: 0.5
S122: bothun | T122: 0.5 | V122: JJ | W122: 0.5
S123: Dionysian | T123: 0 | V123: Northernknight | W123: 0.5
S124: Prince | T124: 0 | V124: Dionysian | W124: 0.5
S125: Duke_Luthor_Von_Hawkfire | T125: 0 | V125: BudWiser | W125: 0.5
S126: Driesfield | T126: 0 | V126: Driesfield | W126: 0.5
S127: Farina | T127: 0 | V127: Duke_Luthor_Von_Hawkfire | W127: 0.5
S128: Valen | T128: 0 | V128: Valen | W128: 0.5
S129: Wilzif | T129: 0 | V129: Farina | W129: 0.5

Sheet Round5
B1: Home Player | C1: Away Player | D1: Home Points | E1: Away Points | F1: Home TD | G1: Away TD | H1: Home Cas | I1: Away Cas | J1: Home Bonus1 | K1: Away Bonus1 | L1: Home Bonus2 | M1: Away Bonus2 | N1: Home Group | O1: Away Group | S1: Points Before Games | V1: Points After Games | Y1: Group Results | Z1: Group | AA1: Points | AC1: Group Points Before Games | AF1: Group Points After Games
B2: Faccko | C2: ratogre | D2: =fctScore(F2,G2,H2,J2,L2) -> 1 | E2: =fctScore(G2,F2,I2,K2,M2) -> 0 | F2: 2 | G2: 1 | H2: 0 | I2: 1 | J2: 1 | K2: 2 | L2: 1 | M2: 1 | N2: Viking | O2: Finland | S2: Domingo | T2: 4 | V2: Domingo | W2: 5 | Z2: Belgium | AA2: 3.5 | AC2: Viking | AD2: 23.5 | AF2: Viking | AG2: 28
B3: Duckwing | C3: edheim | D3: =fctScore(F3,G3,H3,J3,L3) -> 0 | E3: =fctScore(G3,F3,I3,K3,M3) -> 1 | F3: 2 | G3: 3 | H3: 1 | I3: 2 | J3: 3 | K3: 0 | L3: 1 | M3: 1 | N3: Viking | O3: Finland | S3: Topper | T3: 4 | V3: Topper | W3: 4.5 | Z3: Denmark | AA3: 4.5 | AC3: Italy | AD3: 22.5 | AF3: Italy | AG3: 27
B4: brocCooli | C4: jopotzuki | D4: 0 | E4: 1 | F4: 1 | G4: 2 | H4: 3 | I4: 0 | J4: 1 | K4: 2 | L4: 2 | M4: 2 | N4: Viking | O4: Finland | S4: Beppe | T4: 3.5 | V4: sigu70 | W4: 4.5 | Z4: England | AA4: 5.5 | AC4: Switzerland | AD4: 21.5 | AF4: Switzerland | AG4: 26
B5: Mufflo | C5: BeerBeer | D5: 1 | E5: 0 | F5: 3 | G5: 2 | H5: 2 | I5: 3 | J5: 2 | K5: 3 | L5: 1 | M5: 0 | N5: Viking | O5: Finland | S5: Skuld | T5: 3.5 | V5: Faccko | W5: 4 | Z5: Finland | AA5: 4.5 | AC5: Finland | AD5: 21.5 | AF5: Finland | AG5: 26
B6: Corwin | C6: Harza | D6: 1 | E6: 0 | F6: 2 | G6: 0 | H6: 2 | I6: 0 | J6: 0 | K6: 1 | L6: 1 | M6: 0 | N6: Viking | O6: Finland | S6: Itzla | T6: 3.5 | V6: DonShula | W6: 4 | Z6: France | AA6: 5.5 | AC6: Norway | AD6: 20.5 | AF6: Norway | AG6: 25
B7: Bernuz | C7: MacWitt | D7: 0 | E7: 1 | F7: 2 | G7: 3 | H7: 3 | I7: 2 | J7: 2 | K7: 1 | L7: 1 | M7: 2 | N7: Viking | O7: Finland | S7: Verrinho | T7: 3.5 | V7: Verrinho | W7: 4 | Z7: Germany | AA7: 3.5 | AC7: Denmark | AD7: 20 | AF7: Denmark | AG7: 24.5
B8: Balder | C8: valkohukka | D8: 0.5 | E8: 0.5 | F8: 3 | G8: 3 | H8: 2 | I8: 3 | J8: 2 | K8: 1 | L8: 0 | M8: 2 | N8: Viking | O8: Finland | S8: sigu70 | T8: 3.5 | V8: Idroj | W8: 4 | Z8: Hungary | AA8: 4.5 | AC8: Hungary | AD8: 19.5 | AF8: Hungary | AG8: 24
B9: Purrelito | C9: J-Ho | D9: 0.5 | E9: 0.5 | F9: 1 | G9: 1 | H9: 1 | I9: 1 | J9: 2 | K9: 3 | L9: 1 | M9: 1 | N9: Viking | O9: Finland | S9: Faccko | T9: 3 | V9: BiBi | W9: 4 | Z9: Italy | AA9: 4.5 | AC9: Poland | AD9: 18.5 | AF9: Poland | AG9: 23
B10: Beppe | C10: sigu70 | D10: 0 | E10: 1 | F10: 0 | G10: 1 | H10: 1 | I10: 1 | J10: 0 | K10: 1 | L10: 2 | M10: 3 | N10: Italy | O10: Switzerland | S10: DonShula | T10: 3 | V10: Inforthepain | W10: 4 | Z10: Norway | AA10: 4.5 | AC10: Sweden | AD10: 18 | AF10: France | AG10: 22.5
B11: Verrinho | C11: Goss | D11: 0.5 | E11: 0.5 | F11: 0 | G11: 0 | H11: 1 | I11: 3 | J11: 2 | K11: 3 | L11: 2 | M11: 2 | N11: Italy | O11: Switzerland | S11: kfoged | T11: 3 | V11: edheim | W11: 4 | Z11: Poland | AA11: 4.5 | AC11: France | AD11: 17 | AF11: Sweden | AG11: 21.5
B12: Spartako | C12: Phifoe | D12: 0 | E12: 1 | F12: 1 | G12: 2 | H12: 2 | I12: 1 | J12: 3 | K12: 1 | L12: 2 | M12: 2 | N12: Italy | O12: Switzerland | S12: Spartako | T12: 3 | V12: Beppe | W12: 3.5 | Z12: Scotland | AA12: 5.5 | AC12: Scotland | AD12: 16 | AF12: Scotland | AG12: 21.5
B13: Matte8 | C13: Macabeo | D13: 1 | E13: 0 | F13: 2 | G13: 1 | H13: 1 | I13: 1 | J13: 2 | K13: 3 | L13: 3 | M13: 2 | N13: Italy | O13: Switzerland | S13: Goss | T13: 3 | V13: Mufflo | W13: 3.5 | Z13: Spain | AA13: 4.5 | AC13: Belgium | AD13: 15.5 | AF13: Spain | AG13: 19.5
B14: Kaltenland | C14: Madmatt13 | D14: 1 | E14: 0 | F14: 3 | G14: 1 | H14: 2 | I14: 3 | J14: 2 | K14: 2 | L14: 1 | M14: 0 | N14: Italy | O14: Switzerland | S14: GreatWhiteHope | T14: 3 | V14: GreatWhiteHope | W14: 3.5 | Z14: Sweden | AA14: 3.5 | AC14: Spain | AD14: 15 | AF14: England | AG14: 19
B15: Dirold | C15: Elrik | D15: 0 | E15: 1 | F15: 1 | G15: 3 | H15: 2 | I15: 1 | J15: 0 | K15: 3 | L15: 0 | M15: 1 | N15: Italy | O15: Switzerland | S15: Duckwing | T15: 3 | V15: Goss | W15: 3.5 | Z15: Switzerland | AA15: 4.5 | AC15: Germany | AD15: 14.5 | AF15: Belgium | AG15: 19
B16: Liam | C16: Strider84 | D16: 1 | E16: 0 | F16: 1 | G16: 0 | H16: 2 | I16: 3 | J16: 0 | K16: 0 | L16: 1 | M16: 2 | N16: Italy | O16: Switzerland | S16: Idroj | T16: 3 | V16: jopotzuki | W16: 3.5 | Z16: Viking | AA16: 4.5 | AC16: England | AD16: 13.5 | AF16: Germany | AG16: 18
B17: Farina | C17: Jokaero | D17: 0.5 | E17: 0.5 | F17: 2 | G17: 2 | H17: 0 | I17: 1 | J17: 1 | K17: 3 | L17: 2 | M17: 2 | N17: Italy | O17: Switzerland | S17: straume | T17: 3 | V17: Phifoe | W17: 3.5 | Z17: Wales | AA17: 4.5 | AC17: Wales | AD17: 11 | AF17: Wales | AG17: 15.5
B18: GreatWhiteHope | C18: Topper | D18: 0.5 | E18: 0.5 | F18: 2 | G18: 2 | H18: 1 | I18: 0 | J18: 1 | K18: 0 | L18: 0 | M18: 1 | N18: Norway | O18: Denmark | S18: ratogre | T18: 3 | V18: Arioso | W18: 3.5
B19: straume | C19: kfoged | D19: 0.5 | E19: 0.5 | F19: 2 | G19: 2 | H19: 0 | I19: 1 | J19: 2 | K19: 2 | L19: 1 | M19: 2 | N19: Norway | O19: Denmark | S19: Niebling | T19: 3 | V19: Itzla | W19: 3.5
B20: mynock | C20: Niebling | D20: 0.5 | E20: 0.5 | F20: 2 | G20: 2 | H20: 0 | I20: 1 | J20: 3 | K20: 2 | L20: 1 | M20: 2 | N20: Norway | O20: Denmark | S20: BiBi | T20: 3 | V20: kfoged | W20: 3.5
B21: FrankPedersen | C21: MissSweden | D21: 0 | E21: 1 | F21: 1 | G21: 3 | H21: 3 | I21: 1 | J21: 2 | K21: 1 | L21: 0 | M21: 3 | N21: Norway | O21: Denmark | S21: Inforthepain | T21: 3 | V21: straume | W21: 3.5
B22: Endalos | C22: SpecialOne | D22: 0 | E22: 1 | F22: 0 | G22: 1 | H22: 2 | I22: 2 | J22: 2 | K22: 2 | L22: 2 | M22: 1 | N22: Norway | O22: Denmark | S22: Malodoror | T22: 3 | V22: Skuld | W22: 3.5
B23: The_Ref | C23: Jaqra | D23: 0.5 | E23: 0.5 | F23: 2 | G23: 2 | H23: 1 | I23: 2 | J23: 0 | K23: 1 | L23: 1 | M23: 1 | N23: Norway | O23: Denmark | S23: brocCooli | T23: 3 | V23: Niebling | W23: 3.5
B24: zulu | C24: Tank | D24: 1 | E24: 0 | F24: 1 | G24: 0 | H24: 3 | I24: 3 | J24: 1 | K24: 2 | L24: 0 | M24: 2 | N24: Norway | O24: Denmark | S24: Harti | T24: 3 | V24: Garrick | W24: 3.5
B25: bothun | C25: Tripleskull | D25: 1 | E25: 0 | F25: 2 | G25: 0 | H25: 2 | I25: 0 | J25: 1 | K25: 2 | L25: 2 | M25: 0 | N25: Norway | O25: Denmark | S25: edheim | T25: 3 | V25: Matte8 | W25: 3.5
B26: Itzla | C26: Idroj | D26: 0 | E26: 1 | F26: 0 | G26: 1 | H26: 2 | I26: 3 | J26: 2 | K26: 1 | L26: 1 | M26: 1 | N26: Hungary | O26: Spain | S26: Mufflo | T26: 2.5 | V26: MissSweden | W26: 3.5
B27: BlackOrc | C27: Barry | D27: 0.5 | E27: 0.5 | F27: 3 | G27: 3 | H27: 1 | I27: 1 | J27: 2 | K27: 2 | L27: 2 | M27: 1 | N27: Hungary | O27: Spain | S27: Arioso | T27: 2.5 | V27: DocMaxx | W27: 3.5
B28: noraal | C28: Dark Duke | D28: 0.5 | E28: 0.5 | F28: 1 | G28: 1 | H28: 2 | I28: 1 | J28: 1 | K28: 1 | L28: 1 | M28: 0 | N28: Hungary | O28: Spain | S28: Phifoe | T28: 2.5 | V28: Corwin | W28: 3.5
B29: cz | C29: Tactel | D29: 0 | E29: 1 | F29: 1 | G29: 3 | H29: 2 | I29: 2 | J29: 2 | K29: 3 | L29: 2 | M29: 2 | N29: Hungary | O29: Spain | S29: jopotzuki | T29: 2.5 | V29: Shawass | W29: 3.5
B30: swifty | C30: Joanet | D30: 0.5 | E30: 0.5 | F30: 1 | G30: 1 | H30: 3 | I30: 2 | J30: 0 | K30: 3 | L30: 0 | M30: 2 | N30: Hungary | O30: Spain | S30: BlackOrc | T30: 2.5 | V30: Kaltenland | W30: 3.5
B31: Alex05 | C31: Malasnoticias | D31: 1 | E31: 0 | F31: 1 | G31: 0 | H31: 2 | I31: 2 | J31: 3 | K31: 1 | L31: 2 | M31: 1 | N31: Hungary | O31: Spain | S31: Macabeo | T31: 2.5 | V31: Duckwing | W31: 3
B32: Favi | C32: Obeliz | D32: 0.5 | E32: 0.5 | F32: 1 | G32: 1 | H32: 2 | I32: 1 | J32: 0 | K32: 2 | L32: 0 | M32: 1 | N32: Hungary | O32: Spain | S32: Garrick | T32: 2.5 | V32: Spartako | W32: 3
B33: Wolio | C33: Duke_Luthor_Von_Hawkfire | D33: 1 | E33: 0 | F33: 2 | G33: 0 | H33: 2 | I33: 1 | J33: 1 | K33: 1 | L33: 0 | M33: 0 | N33: Hungary | O33: Spain | S33: MadeofWelsh | T33: 2.5 | V33: Dragons | W33: 3
B34: Skuld | C34: BiBi | D34: 0 | E34: 1 | F34: 0 | G34: 3 | H34: 0 | I34: 3 | J34: 0 | K34: 1 | L34: 1 | M34: 1 | N34: Sweden | O34: France | S34: Matte8 | T34: 2.5 | V34: Pellevin | W34: 3
B35: Inforthepain | C35: Harti | D35: 1 | E35: 0 | F35: 2 | G35: 0 | H35: 3 | I35: 1 | J35: 0 | K35: 0 | L35: 3 | M35: 1 | N35: Sweden | O35: France | S35: Melisqus | T35: 2.5 | V35: sann0638 | W35: 3
B36: Melisqus | C36: Bouzzy | D36: 0.5 | E36: 0.5 | F36: 2 | G36: 2 | H36: 0 | I36: 2 | J36: 3 | K36: 0 | L36: 0 | M36: 2 | N36: Sweden | O36: France | S36: Bouzzy | T36: 2.5 | V36: SpecialOne | W36: 3
B37: Dragons | C37: Gros Nain | D37: 1 | E37: 0 | F37: 2 | G37: 1 | H37: 2 | I37: 0 | J37: 3 | K37: 1 | L37: 0 | M37: 3 | N37: Sweden | O37: France | S37: MissSweden | T37: 2.5 | V37: BlackOrc | W37: 3
B38: Pellevin | C38: Matt le fou | D38: 1 | E38: 0 | F38: 3 | G38: 2 | H38: 2 | I38: 3 | J38: 1 | K38: 0 | L38: 3 | M38: 3 | N38: Sweden | O38: France | S38: Corwin | T38: 2.5 | V38: Bouzzy | W38: 3
B39: Pidpad | C39: Justicium | D39: 0 | E39: 1 | F39: 1 | G39: 2 | H39: 2 | I39: 2 | J39: 0 | K39: 3 | L39: 3 | M39: 1 | N39: Sweden | O39: France | S39: Shawass | T39: 2.5 | V39: ratogre | W39: 3
B40: JohnnyD | C40: Simon_ACP | D40: 0 | E40: 1 | F40: 1 | G40: 3 | H40: 1 | I40: 3 | J40: 1 | K40: 3 | L40: 0 | M40: 1 | N40: Sweden | O40: France | S40: Muadib | T40: 2.5 | V40: Melisqus | W40: 3
B41: Skoberget | C41: BudWiser | D41: 0 | E41: 1 | F41: 1 | G41: 2 | H41: 3 | I41: 3 | J41: 3 | K41: 0 | L41: 3 | M41: 2 | N41: Sweden | O41: France | S41: DocMaxx | T41: 2.5 | V41: mynock | W41: 3
B42: MadeofWelsh | C42: Domingo | D42: 0 | E42: 1 | F42: 0 | G42: 1 | H42: 2 | I42: 2 | J42: 2 | K42: 1 | L42: 1 | M42: 1 | N42: Wales | O42: Poland | S42: mynock | T42: 2.5 | V42: MacWitt | W42: 3
B43: andydavo | C43: Shawass | D43: 0 | E43: 1 | F43: 1 | G43: 2 | H43: 2 | I43: 1 | J43: 1 | K43: 1 | L43: 2 | M43: 3 | N43: Wales | O43: Poland | S43: BeerBeer | T43: 2.5 | V43: Elrik | W43: 3
B44: 20Phoenix | C44: Warrior1980 | D44: 1 | E44: 0 | F44: 2 | G44: 0 | H44: 1 | I44: 3 | J44: 2 | K44: 1 | L44: 1 | M44: 1 | N44: Wales | O44: Poland | S44: Bernuz | T44: 2.5 | V44: Malodoror | W44: 3
B45: SFisher91 | C45: Slimaq | D45: 1 | E45: 0 | F45: 3 | G45: 2 | H45: 1 | I45: 2 | J45: 3 | K45: 0 | L45: 2 | M45: 3 | N45: Wales | O45: Poland | S45: Woete | T45: 2.5 | V45: Tactel | W45: 3
B46: nonumber | C46: Reszka | D46: 0 | E46: 1 | F46: 0 | G46: 2 | H46: 1 | I46: 3 | J46: 1 | K46: 1 | L46: 2 | M46: 2 | N46: Wales | O46: Poland | S46: Kaltenland | T46: 2.5 | V46: Mubo | W46: 3
B47: Ploppy_McPloppy | C47: Leonek | D47: 0.5 | E47: 0.5 | F47: 2 | G47: 2 | H47: 2 | I47: 2 | J47: 1 | K47: 1 | L47: 2 | M47: 3 | N47: Wales | O47: Poland | S47: noraal | T47: 2.5 | V47: brocCooli | W47: 3
B48: Northernknight | C48: Mewash | D48: 0.5 | E48: 0.5 | F48: 0 | G48: 0 | H48: 1 | I48: 1 | J48: 1 | K48: 2 | L48: 0 | M48: 1 | N48: Wales | O48: Poland | S48: Madmatt13 | T48: 2 | V48: Harti | W48: 3
B49: Dionysian | C49: Juniooor7 | D49: 1 | E49: 0 | F49: 2 | G49: 0 | H49: 1 | I49: 2 | J49: 2 | K49: 1 | L49: 1 | M49: 1 | N49: Wales | O49: Poland | S49: Lycos | T49: 2 | V49: gninocker | W49: 3
B50: Malodoror | C50: DonShula | D50: 0 | E50: 1 | F50: 1 | G50: 3 | H50: 1 | I50: 0 | J50: 3 | K50: 1 | L50: 2 | M50: 1 | N50: Belgium | O50: Scotland | S50: Barry | T50: 2 | V50: 20Phoenix | W50: 3
B51: Woete | C51: Garrick | D51: 0 | E51: 1 | F51: 1 | G51: 2 | H51: 3 | I51: 2 | J51: 2 | K51: 2 | L51: 2 | M51: 2 | N51: Belgium | O51: Scotland | S51: Dragons | T51: 2 | V51: noraal | W51: 3
B52: gninocker | C52: HumptyTrump | D52: 1 | E52: 0 | F52: 2 | G52: 1 | H52: 0 | I52: 2 | J52: 2 | K52: 1 | L52: 1 | M52: 3 | N52: Belgium | O52: Scotland | S52: HumptyTrump | T52: 2 | V52: Liam | W52: 3
B53: Araznaroth | C53: sann0638 | D53: 0 | E53: 1 | F53: 0 | G53: 3 | H53: 2 | I53: 2 | J53: 2 | K53: 1 | L53: 1 | M53: 0 | N53: Belgium | O53: Scotland | S53: Pellevin | T53: 2 | V53: Alex05 | W53: 3
B54: Dekra1979 | C54: Loki | D54: 0.5 | E54: 0.5 | F54: 1 | G54: 1 | H54: 2 | I54: 3 | J54: 2 | K54: 3 | L54: 0 | M54: 2 | N54: Belgium | O54: Scotland | S54: Harza | T54: 2 | V54: Macabeo | W54: 2.5
B55: Phoenix11 | C55: Purdindas | D55: 1 | E55: 0 | F55: 2 | G55: 1 | H55: 2 | I55: 1 | J55: 1 | K55: 3 | L55: 3 | M55: 2 | N55: Belgium | O55: Scotland | S55: Elrik | T55: 2 | V55: Barry | W55: 2.5
B56: JJ | C56: JamesEs | D56: 1 | E56: 0 | F56: 2 | G56: 0 | H56: 1 | I56: 3 | J56: 1 | K56: 2 | L56: 1 | M56: 1 | N56: Belgium | O56: Scotland | S56: cz | T56: 2 | V56: MadeofWelsh | W56: 2.5
B57: Driesfield | C57: Valen | D57: 0 | E57: 1 | F57: 2 | G57: 3 | H57: 1 | I57: 3 | J57: 0 | K57: 1 | L57: 3 | M57: 3 | N57: Belgium | O57: Scotland | S57: sann0638 | T57: 2 | V57: Dark Duke | W57: 2.5
B58: Lycos | C58: Arioso | D58: 0 | E58: 1 | F58: 1 | G58: 3 | H58: 3 | I58: 2 | J58: 0 | K58: 0 | L58: 2 | M58: 1 | N58: England | O58: Germany | S58: SpecialOne | T58: 2 | V58: Reszka | W58: 2.5
B59: Mubo | C59: Muadib | D59: 1 | E59: 0 | F59: 2 | G59: 1 | H59: 0 | I59: 2 | J59: 1 | K59: 0 | L59: 2 | M59: 1 | N59: England | O59: Germany | S59: Gros Nain | T59: 2 | V59: BeerBeer | W59: 2.5
B60: JimJimany | C60: DocMaxx | D60: 0 | E60: 1 | F60: 0 | G60: 3 | H60: 2 | I60: 3 | J60: 1 | K60: 2 | L60: 1 | M60: 2 | N60: England | O60: Germany | S60: Warrior1980 | T60: 2 | V60: Muadib | W60: 2.5
B61: Geggster | C61: Candlejack | D61: 0.5 | E61: 0.5 | F61: 2 | G61: 2 | H61: 1 | I61: 1 | J61: 1 | K61: 2 | L61: 2 | M61: 1 | N61: England | O61: Germany | S61: MacWitt | T61: 2 | V61: The_Ref | W61: 2.5
B62: Podfrey | C62: Gaunab | D62: 1 | E62: 0 | F62: 2 | G62: 1 | H62: 2 | I62: 0 | J62: 1 | K62: 0 | L62: 3 | M62: 3 | N62: England | O62: Germany | S62: FrankPedersen | T62: 2 | V62: Woete | W62: 2.5
B63: Joemanji | C63: Jonny_Kanone | D63: 1 | E63: 0 | F63: 3 | G63: 2 | H63: 0 | I63: 2 | J63: 1 | K63: 3 | L63: 1 | M63: 2 | N63: England | O63: Germany | S63: Dirold | T63: 2 | V63: Bernuz | W63: 2.5
B64: PurpleGoo | C64: RoterSternHochdahl | D64: 1 | E64: 0 | F64: 3 | G64: 1 | H64: 0 | I64: 2 | J64: 1 | K64: 2 | L64: 1 | M64: 3 | N64: England | O64: Germany | S64: Matt le fou | T64: 2 | V64: valkohukka | W64: 2.5
B65: Wilzif | C65: Prince | D65: 0 | E65: 1 | F65: 1 | G65: 3 | H65: 3 | I65: 3 | J65: 0 | K65: 1 | L65: 1 | M65: 3 | N65: England | O65: Germany | S65: Endalos | T65: 2 | V65: Candlejack | W65: 2.5
S66: gninocker | T66: 2 | V66: swifty | W66: 2.5
S67: Dark Duke | T67: 2 | V67: SFisher91 | W67: 2.5
S68: andydavo | T68: 2 | V68: Podfrey | W68: 2.5
S69: The_Ref | T69: 2 | V69: zulu | W69: 2.5
S70: Candlejack | T70: 2 | V70: Balder | W70: 2.5
S71: Tactel | T71: 2 | V71: Justicium | W71: 2.5
S72: Mubo | T72: 2 | V72: Phoenix11 | W72: 2.5
S73: valkohukka | T73: 2 | V73: Loki | W73: 2.5
S74: 20Phoenix | T74: 2 | V74: Wolio | W74: 2.5
S75: Balder | T75: 2 | V75: PurpleGoo | W75: 2.5
S76: swifty | T76: 2 | V76: Joemanji | W76: 2.5
S77: Loki | T77: 2 | V77: bothun | W77: 2.5
S78: Liam | T78: 2 | V78: Lycos | W78: 2
S79: Alex05 | T79: 2 | V79: Harza | W79: 2
S80: Slimaq | T80: 2 | V80: Matt le fou | W80: 2
S81: Araznaroth | T81: 2 | V81: Gros Nain | W81: 2
S82: Reszka | T82: 1.5 | V82: Madmatt13 | W82: 2
S83: Strider84 | T83: 1.5 | V83: Warrior1980 | W83: 2
S84: Favi | T84: 1.5 | V84: andydavo | W84: 2
S85: Leonek | T85: 1.5 | V85: FrankPedersen | W85: 2
S86: Joanet | T86: 1.5 | V86: Leonek | W86: 2
S87: Gaunab | T87: 1.5 | V87: HumptyTrump | W87: 2
S88: Malasnoticias | T88: 1.5 | V88: Mewash | W88: 2
S89: JimJimany | T89: 1.5 | V89: cz | W89: 2
S90: Pidpad | T90: 1.5 | V90: Dekra1979 | W90: 2
S91: Obeliz | T91: 1.5 | V91: Endalos | W91: 2
S92: Mewash | T92: 1.5 | V92: Joanet | W92: 2
S93: Jaqra | T93: 1.5 | V93: Favi | W93: 2
S94: Geggster | T94: 1.5 | V94: Jaqra | W94: 2
S95: zulu | T95: 1.5 | V95: Geggster | W95: 2
S96: Purdindas | T96: 1.5 | V96: Dirold | W96: 2
S97: SFisher91 | T97: 1.5 | V97: Obeliz | W97: 2
S98: Dekra1979 | T98: 1.5 | V98: Simon_ACP | W98: 2
S99: Podfrey | T99: 1.5 | V99: Slimaq | W99: 2
S100: Purrelito | T100: 1.5 | V100: Purrelito | W100: 2
S101: Phoenix11 | T101: 1.5 | V101: Jokaero | W101: 2
S102: Jokaero | T102: 1.5 | V102: Araznaroth | W102: 2
S103: Justicium | T103: 1.5 | V103: J-Ho | W103: 2
S104: Joemanji | T104: 1.5 | V104: Strider84 | W104: 1.5
S105: PurpleGoo | T105: 1.5 | V105: Purdindas | W105: 1.5
S106: Wolio | T106: 1.5 | V106: Malasnoticias | W106: 1.5
S107: J-Ho | T107: 1.5 | V107: Pidpad | W107: 1.5
S108: bothun | T108: 1.5 | V108: Prince | W108: 1.5
S109: JamesEs | T109: 1 | V109: Gaunab | W109: 1.5
S110: Jonny_Kanone | T110: 1 | V110: JJ | W110: 1.5
S111: Tank | T111: 1 | V111: JimJimany | W111: 1.5
S112: RoterSternHochdahl | T112: 1 | V112: Dionysian | W112: 1.5
S113: Simon_ACP | T113: 1 | V113: Ploppy_McPloppy | W113: 1.5
S114: nonumber | T114: 1 | V114: BudWiser | W114: 1.5
S115: Tripleskull | T115: 1 | V115: Valen | W115: 1.5
S116: Wilzif | T116: 1 | V116: Tank | W116: 1
S117: Juniooor7 | T117: 1 | V117: JamesEs | W117: 1
S118: JohnnyD | T118: 1 | V118: Northernknight | W118: 1
S119: Ploppy_McPloppy | T119: 1 | V119: Jonny_Kanone | W119: 1
S120: Prince | T120: 0.5 | V120: nonumber | W120: 1
S121: Skoberget | T121: 0.5 | V121: RoterSternHochdahl | W121: 1
S122: JJ | T122: 0.5 | V122: Juniooor7 | W122: 1
S123: Northernknight | T123: 0.5 | V123: Tripleskull | W123: 1
S124: Dionysian | T124: 0.5 | V124: Wilzif | W124: 1
S125: BudWiser | T125: 0.5 | V125: Farina | W125: 1
S126: Driesfield | T126: 0.5 | V126: JohnnyD | W126: 1
S127: Duke_Luthor_Von_Hawkfire | T127: 0.5 | V127: Skoberget | W127: 0.5
S128: Valen | T128: 0.5 | V128: Driesfield | W128: 0.5
S129: Farina | T129: 0.5 | V129: Duke_Luthor_Von_Hawkfire | W129: 0.5

Sheet Round6
B1: Home Player | C1: Away Player | D1: Home Points | E1: Away Points | F1: Home TD | G1: Away TD | H1: Home Cas | I1: Away Cas | J1: Home Bonus1 | K1: Away Bonus1 | L1: Home Bonus2 | M1: Away Bonus2 | N1: Home Group | O1: Away Group | S1: Points Before Games | V1: Points After Games | Y1: Group Results | Z1: Group | AA1: Points | AC1: Group Points Before Games | AF1: Group Points After Games
B2: Faccko | C2: GreatWhiteHope | D2: =fctScore(F2,G2,H2,J2,L2) -> 0.5 | E2: =fctScore(G2,F2,I2,K2,M2) -> 0.5 | F2: 2 | G2: 2 | H2: 1 | I2: 1 | J2: 1 | K2: 1 | L2: 2 | M2: 3 | N2: Viking | O2: Norway | S2: Domingo | T2: 5 | V2: Domingo | W2: 5.5 | Z2: Belgium | AA2: 7.5 | AC2: Viking | AD2: 28 | AF2: Switzerland | AG2: 31.5
B3: Mufflo | C3: straume | D3: =fctScore(F3,G3,H3,J3,L3) -> 1 | E3: =fctScore(G3,F3,I3,K3,M3) -> 0 | F3: 1 | G3: 0 | H3: 1 | I3: 1 | J3: 1 | K3: 3 | L3: 1 | M3: 3 | N3: Viking | O3: Norway | S3: Topper | T3: 4.5 | V3: DonShula | W3: 5 | Z3: Denmark | AA3: 4.5 | AC3: Italy | AD3: 27 | AF3: Norway | AG3: 31.5
B4: Corwin | C4: mynock | D4: 0 | E4: 1 | F4: 0 | G4: 1 | H4: 2 | I4: 1 | J4: 0 | K4: 3 | L4: 1 | M4: 3 | N4: Viking | O4: Norway | S4: sigu70 | T4: 4.5 | V4: sigu70 | W4: 5 | Z4: England | AA4: 5.5 | AC4: Switzerland | AD4: 26 | AF4: Viking | AG4: 30.5
B5: Duckwing | C5: The_Ref | D5: 0 | E5: 1 | F5: 1 | G5: 2 | H5: 1 | I5: 2 | J5: 1 | K5: 2 | L5: 0 | M5: 1 | N5: Viking | O5: Norway | S5: Faccko | T5: 4 | V5: Topper | W5: 5 | Z5: Finland | AA5: 3.5 | AC5: Finland | AD5: 26 | AF5: Italy | AG5: 30.5
B6: brocCooli | C6: zulu | D6: 0.5 | E6: 0.5 | F6: 1 | G6: 1 | H6: 3 | I6: 2 | J6: 3 | K6: 1 | L6: 1 | M6: 2 | N6: Viking | O6: Norway | S6: DonShula | T6: 4 | V6: Mufflo | W6: 4.5 | Z6: France | AA6: 5.5 | AC6: Norway | AD6: 25 | AF6: Finland | AG6: 29.5
B7: Bernuz | C7: bothun | D7: 0.5 | E7: 0.5 | F7: 1 | G7: 1 | H7: 1 | I7: 3 | J7: 1 | K7: 1 | L7: 2 | M7: 1 | N7: Viking | O7: Norway | S7: Verrinho | T7: 4 | V7: Faccko | W7: 4.5 | Z7: Germany | AA7: 4.5 | AC7: Denmark | AD7: 24.5 | AF7: Hungary | AG7: 29.5
B8: Balder | C8: FrankPedersen | D8: 0 | E8: 1 | F8: 1 | G8: 3 | H8: 2 | I8: 3 | J8: 1 | K8: 3 | L8: 2 | M8: 0 | N8: Viking | O8: Norway | S8: Idroj | T8: 4 | V8: Verrinho | W8: 4.5 | Z8: Hungary | AA8: 5.5 | AC8: Hungary | AD8: 24 | AF8: Denmark | AG8: 29
B9: Purrelito | C9: Endalos | D9: 0 | E9: 1 | F9: 1 | G9: 2 | H9: 2 | I9: 3 | J9: 0 | K9: 1 | L9: 2 | M9: 2 | N9: Viking | O9: Norway | S9: BiBi | T9: 4 | V9: Inforthepain | W9: 4.5 | Z9: Italy | AA9: 3.5 | AC9: Poland | AD9: 23 | AF9: France | AG9: 28
B10: Verrinho | C10: Itzla | D10: 0.5 | E10: 0.5 | F10: 1 | G10: 1 | H10: 3 | I10: 2 | J10: 3 | K10: 2 | L10: 2 | M10: 0 | N10: Italy | O10: Hungary | S10: Inforthepain | T10: 4 | V10: BiBi | W10: 4.5 | Z10: Norway | AA10: 6.5 | AC10: France | AD10: 22.5 | AF10: Poland | AG10: 26.5
B11: Beppe | C11: BlackOrc | D11: 0 | E11: 1 | F11: 1 | G11: 3 | H11: 2 | I11: 1 | J11: 1 | K11: 2 | L11: 2 | M11: 3 | N11: Italy | O11: Hungary | S11: edheim | T11: 4 | V11: Goss | W11: 4.5 | Z11: Poland | AA11: 3.5 | AC11: Sweden | AD11: 21.5 | AF11: Belgium | AG11: 26.5
B12: Matte8 | C12: noraal | D12: 0 | E12: 1 | F12: 0 | G12: 2 | H12: 1 | I12: 1 | J12: 3 | K12: 2 | L12: 2 | M12: 3 | N12: Italy | O12: Hungary | S12: Beppe | T12: 3.5 | V12: Skuld | W12: 4.5 | Z12: Scotland | AA12: 3.5 | AC12: Scotland | AD12: 21.5 | AF12: Sweden | AG12: 26
B13: Kaltenland | C13: Alex05 | D13: 0 | E13: 1 | F13: 0 | G13: 2 | H13: 0 | I13: 1 | J13: 3 | K13: 1 | L13: 1 | M13: 3 | N13: Italy | O13: Hungary | S13: Mufflo | T13: 3.5 | V13: edheim | W13: 4.5 | Z13: Spain | AA13: 1.5 | AC13: Spain | AD13: 19.5 | AF13: Scotland | AG13: 25
B14: Spartako | C14: swifty | D14: 1 | E14: 0 | F14: 2 | G14: 1 | H14: 0 | I14: 3 | J14: 1 | K14: 1 | L14: 1 | M14: 1 | N14: Italy | O14: Hungary | S14: GreatWhiteHope | T14: 3.5 | V14: Garrick | W14: 4.5 | Z14: Sweden | AA14: 4.5 | AC14: England | AD14: 19 | AF14: England | AG14: 24.5
B15: Liam | C15: Wolio | D15: 1 | E15: 0 | F15: 2 | G15: 0 | H15: 1 | I15: 1 | J15: 2 | K15: 3 | L15: 1 | M15: 3 | N15: Italy | O15: Hungary | S15: Goss | T15: 3.5 | V15: GreatWhiteHope | W15: 4 | Z15: Switzerland | AA15: 5.5 | AC15: Belgium | AD15: 19 | AF15: Germany | AG15: 22.5
B16: Dirold | C16: cz | D16: 0.5 | E16: 0.5 | F16: 1 | G16: 1 | H16: 1 | I16: 2 | J16: 2 | K16: 3 | L16: 1 | M16: 0 | N16: Italy | O16: Hungary | S16: jopotzuki | T16: 3.5 | V16: jopotzuki | W16: 4 | Z16: Viking | AA16: 2.5 | AC16: Germany | AD16: 18 | AF16: Spain | AG16: 21
B17: Farina | C17: Favi | D17: 0.5 | E17: 0.5 | F17: 1 | G17: 1 | H17: 1 | I17: 1 | J17: 0 | K17: 3 | L17: 1 | M17: 1 | N17: Italy | O17: Hungary | S17: Phifoe | T17: 3.5 | V17: Arioso | W17: 4 | Z17: Wales | AA17: 4.5 | AC17: Wales | AD17: 15.5 | AF17: Wales | AG17: 20
B18: edheim | C18: BiBi | D18: 0.5 | E18: 0.5 | F18: 1 | G18: 1 | H18: 3 | I18: 3 | J18: 0 | K18: 1 | L18: 0 | M18: 1 | N18: Finland | O18: France | S18: Arioso | T18: 3.5 | V18: BlackOrc | W18: 4
B19: jopotzuki | C19: Bouzzy | D19: 0.5 | E19: 0.5 | F19: 1 | G19: 1 | H19: 2 | I19: 1 | J19: 0 | K19: 1 | L19: 1 | M19: 3 | N19: Finland | O19: France | S19: Itzla | T19: 3.5 | V19: ratogre | W19: 4
B20: ratogre | C20: Harti | D20: 1 | E20: 0 | F20: 3 | G20: 2 | H20: 1 | I20: 1 | J20: 0 | K20: 2 | L20: 3 | M20: 3 | N20: Finland | O20: France | S20: kfoged | T20: 3.5 | V20: SpecialOne | W20: 4
B21: MacWitt | C21: Justicium | D21: 0.5 | E21: 0.5 | F21: 2 | G21: 2 | H21: 2 | I21: 1 | J21: 1 | K21: 1 | L21: 3 | M21: 2 | N21: Finland | O21: France | S21: straume | T21: 3.5 | V21: Dragons | W21: 4
B22: BeerBeer | C22: Matt le fou | D22: 0.5 | E22: 0.5 | F22: 2 | G22: 2 | H22: 1 | I22: 0 | J22: 0 | K22: 3 | L22: 1 | M22: 0 | N22: Finland | O22: France | S22: Skuld | T22: 3.5 | V22: Phifoe | W22: 4
B23: valkohukka | C23: Gros Nain | D23: 0 | E23: 1 | F23: 1 | G23: 2 | H23: 2 | I23: 1 | J23: 2 | K23: 1 | L23: 2 | M23: 2 | N23: Finland | O23: France | S23: Niebling | T23: 3.5 | V23: Itzla | W23: 4
B24: Harza | C24: Simon_ACP | D24: 0 | E24: 1 | F24: 0 | G24: 1 | H24: 1 | I24: 2 | J24: 1 | K24: 3 | L24: 1 | M24: 1 | N24: Finland | O24: France | S24: Garrick | T24: 3.5 | V24: Malodoror | W24: 4
B25: J-Ho | C25: BudWiser | D25: 0.5 | E25: 0.5 | F25: 1 | G25: 1 | H25: 3 | I25: 0 | J25: 2 | K25: 0 | L25: 0 | M25: 1 | N25: Finland | O25: France | S25: Matte8 | T25: 3.5 | V25: Idroj | W25: 4
B26: sigu70 | C26: Domingo | D26: 0.5 | E26: 0.5 | F26: 2 | G26: 2 | H26: 2 | I26: 0 | J26: 0 | K26: 1 | L26: 3 | M26: 2 | N26: Switzerland | O26: Poland | S26: MissSweden | T26: 3.5 | V26: mynock | W26: 4
B27: Goss | C27: Shawass | D27: 1 | E27: 0 | F27: 3 | G27: 2 | H27: 2 | I27: 0 | J27: 0 | K27: 1 | L27: 3 | M27: 1 | N27: Switzerland | O27: Poland | S27: DocMaxx | T27: 3.5 | V27: Spartako | W27: 4
B28: Phifoe | C28: Reszka | D28: 0.5 | E28: 0.5 | F28: 1 | G28: 1 | H28: 2 | I28: 1 | J28: 3 | K28: 1 | L28: 3 | M28: 1 | N28: Switzerland | O28: Poland | S28: Corwin | T28: 3.5 | V28: Pellevin | W28: 4
B29: Elrik | C29: Warrior1980 | D29: 1 | E29: 0 | F29: 1 | G29: 0 | H29: 0 | I29: 0 | J29: 3 | K29: 1 | L29: 0 | M29: 2 | N29: Switzerland | O29: Poland | S29: Shawass | T29: 3.5 | V29: Tactel | W29: 4
B30: Macabeo | C30: Leonek | D30: 0 | E30: 1 | F30: 0 | G30: 2 | H30: 2 | I30: 1 | J30: 0 | K30: 3 | L30: 1 | M30: 0 | N30: Switzerland | O30: Poland | S30: Kaltenland | T30: 3.5 | V30: sann0638 | W30: 4
B31: Madmatt13 | C31: Mewash | D31: 0 | E31: 1 | F31: 1 | G31: 3 | H31: 1 | I31: 3 | J31: 2 | K31: 1 | L31: 3 | M31: 2 | N31: Switzerland | O31: Poland | S31: Duckwing | T31: 3 | V31: Elrik | W31: 4
B32: Jokaero | C32: Slimaq | D32: 0.5 | E32: 0.5 | F32: 2 | G32: 2 | H32: 2 | I32: 3 | J32: 1 | K32: 3 | L32: 2 | M32: 2 | N32: Switzerland | O32: Poland | S32: Spartako | T32: 3 | V32: noraal | W32: 4
B33: Strider84 | C33: Juniooor7 | D33: 1 | E33: 0 | F33: 3 | G33: 2 | H33: 0 | I33: 2 | J33: 3 | K33: 0 | L33: 0 | M33: 1 | N33: Switzerland | O33: Poland | S33: Dragons | T33: 3 | V33: Alex05 | W33: 4
B34: Topper | C34: Inforthepain | D34: 0.5 | E34: 0.5 | F34: 2 | G34: 2 | H34: 0 | I34: 2 | J34: 1 | K34: 0 | L34: 2 | M34: 1 | N34: Denmark | O34: Sweden | S34: Pellevin | T34: 3 | V34: Liam | W34: 4
B35: kfoged | C35: Skuld | D35: 0 | E35: 1 | F35: 0 | G35: 2 | H35: 1 | I35: 2 | J35: 2 | K35: 3 | L35: 0 | M35: 0 | N35: Denmark | O35: Sweden | S35: sann0638 | T35: 3 | V35: Beppe | W35: 3.5
B36: Niebling | C36: Dragons | D36: 0 | E36: 1 | F36: 0 | G36: 2 | H36: 3 | I36: 2 | J36: 2 | K36: 1 | L36: 0 | M36: 0 | N36: Denmark | O36: Sweden | S36: SpecialOne | T36: 3 | V36: straume | W36: 3.5
B37: MissSweden | C37: Pellevin | D37: 0 | E37: 1 | F37: 2 | G37: 3 | H37: 0 | I37: 2 | J37: 2 | K37: 0 | L37: 0 | M37: 1 | N37: Denmark | O37: Sweden | S37: BlackOrc | T37: 3 | V37: MadeofWelsh | W37: 3.5
B38: SpecialOne | C38: Melisqus | D38: 1 | E38: 0 | F38: 3 | G38: 1 | H38: 2 | I38: 0 | J38: 0 | K38: 2 | L38: 0 | M38: 2 | N38: Denmark | O38: Sweden | S38: Bouzzy | T38: 3 | V38: kfoged | W38: 3.5
B39: Jaqra | C39: Pidpad | D39: 1 | E39: 0 | F39: 2 | G39: 1 | H39: 2 | I39: 1 | J39: 2 | K39: 3 | L39: 1 | M39: 0 | N39: Denmark | O39: Sweden | S39: ratogre | T39: 3 | V39: Bouzzy | W39: 3.5
B40: Tank | C40: JohnnyD | D40: 1 | E40: 0 | F40: 2 | G40: 1 | H40: 1 | I40: 2 | J40: 2 | K40: 1 | L40: 0 | M40: 3 | N40: Denmark | O40: Sweden | S40: Melisqus | T40: 3 | V40: Niebling | W40: 3.5
B41: Tripleskull | C41: Skoberget | D41: 0.5 | E41: 0.5 | F41: 2 | G41: 2 | H41: 0 | I41: 1 | J41: 1 | K41: 1 | L41: 1 | M41: 1 | N41: Denmark | O41: Sweden | S41: mynock | T41: 3 | V41: DocMaxx | W41: 3.5
B42: Malodoror | C42: Idroj | D42: 1 | E42: 0 | F42: 3 | G42: 2 | H42: 2 | I42: 2 | J42: 2 | K42: 2 | L42: 2 | M42: 2 | N42: Belgium | O42: Spain | S42: MacWitt | T42: 3 | V42: Matte8 | W42: 3.5
B43: gninocker | C43: Tactel | D43: 0 | E43: 1 | F43: 0 | G43: 3 | H43: 2 | I43: 1 | J43: 3 | K43: 0 | L43: 0 | M43: 1 | N43: Belgium | O43: Spain | S43: Elrik | T43: 3 | V43: Shawass | W43: 3.5
B44: Woete | C44: Barry | D44: 1 | E44: 0 | F44: 2 | G44: 1 | H44: 2 | I44: 2 | J44: 2 | K44: 2 | L44: 2 | M44: 2 | N44: Belgium | O44: Spain | S44: Malodoror | T44: 3 | V44: Muadib | W44: 3.5
B45: Phoenix11 | C45: Dark Duke | D45: 1 | E45: 0 | F45: 3 | G45: 1 | H45: 2 | I45: 1 | J45: 0 | K45: 1 | L45: 1 | M45: 1 | N45: Belgium | O45: Spain | S45: Tactel | T45: 3 | V45: MissSweden | W45: 3.5
B46: Dekra1979 | C46: Joanet | D46: 1 | E46: 0 | F46: 1 | G46: 0 | H46: 1 | I46: 2 | J46: 3 | K46: 3 | L46: 2 | M46: 0 | N46: Belgium | O46: Spain | S46: Mubo | T46: 3 | V46: The_Ref | W46: 3.5
B47: Araznaroth | C47: Obeliz | D47: 0.5 | E47: 0.5 | F47: 1 | G47: 1 | H47: 3 | I47: 1 | J47: 0 | K47: 1 | L47: 1 | M47: 2 | N47: Belgium | O47: Spain | S47: brocCooli | T47: 3 | V47: MacWitt | W47: 3.5
B48: JJ | C48: Malasnoticias | D48: 1 | E48: 0 | F48: 3 | G48: 2 | H48: 2 | I48: 3 | J48: 3 | K48: 2 | L48: 1 | M48: 3 | N48: Belgium | O48: Spain | S48: Harti | T48: 3 | V48: Woete | W48: 3.5
B49: Driesfield | C49: Duke_Luthor_Von_Hawkfire | D49: 1 | E49: 0 | F49: 2 | G49: 1 | H49: 1 | I49: 0 | J49: 2 | K49: 1 | L49: 2 | M49: 0 | N49: Belgium | O49: Spain | S49: gninocker | T49: 3 | V49: Corwin | W49: 3.5
B50: Mubo | C50: DonShula | D50: 0 | E50: 1 | F50: 1 | G50: 2 | H50: 3 | I50: 2 | J50: 2 | K50: 2 | L50: 3 | M50: 0 | N50: England | O50: Scotland | S50: 20Phoenix | T50: 3 | V50: 20Phoenix | W50: 3.5
B51: Podfrey | C51: Garrick | D51: 0 | E51: 1 | F51: 1 | G51: 2 | H51: 1 | I51: 1 | J51: 1 | K51: 1 | L51: 3 | M51: 3 | N51: England | O51: Scotland | S51: noraal | T51: 3 | V51: Kaltenland | W51: 3.5
B52: PurpleGoo | C52: sann0638 | D52: 0 | E52: 1 | F52: 1 | G52: 2 | H52: 0 | I52: 2 | J52: 3 | K52: 0 | L52: 0 | M52: 1 | N52: England | O52: Scotland | S52: Liam | T52: 3 | V52: Candlejack | W52: 3.5
B53: Joemanji | C53: Loki | D53: 1 | E53: 0 | F53: 3 | G53: 1 | H53: 0 | I53: 1 | J53: 1 | K53: 1 | L53: 2 | M53: 3 | N53: England | O53: Scotland | S53: Alex05 | T53: 3 | V53: brocCooli | W53: 3.5
B54: Lycos | C54: HumptyTrump | D54: 1 | E54: 0 | F54: 2 | G54: 1 | H54: 0 | I54: 3 | J54: 3 | K54: 1 | L54: 3 | M54: 2 | N54: England | O54: Scotland | S54: Macabeo | T54: 2.5 | V54: Joemanji | W54: 3.5
B55: Geggster | C55: Purdindas | D55: 0.5 | E55: 0.5 | F55: 2 | G55: 2 | H55: 1 | I55: 2 | J55: 1 | K55: 3 | L55: 2 | M55: 0 | N55: England | O55: Scotland | S55: Barry | T55: 2.5 | V55: Phoenix11 | W55: 3.5
B56: JimJimany | C56: Valen | D56: 1 | E56: 0 | F56: 3 | G56: 2 | H56: 2 | I56: 1 | J56: 1 | K56: 2 | L56: 3 | M56: 0 | N56: England | O56: Scotland | S56: MadeofWelsh | T56: 2.5 | V56: Lycos | W56: 3
B57: Wilzif | C57: JamesEs | D57: 1 | E57: 0 | F57: 2 | G57: 1 | H57: 1 | I57: 2 | J57: 1 | K57: 2 | L57: 2 | M57: 0 | N57: England | O57: Scotland | S57: Dark Duke | T57: 2.5 | V57: Duckwing | W57: 3
B58: Arioso | C58: 20Phoenix | D58: 0.5 | E58: 0.5 | F58: 1 | G58: 1 | H58: 2 | I58: 2 | J58: 2 | K58: 3 | L58: 2 | M58: 2 | N58: Germany | O58: Wales | S58: Reszka | T58: 2.5 | V58: Mubo | W58: 3
B59: DocMaxx | C59: MadeofWelsh | D59: 0 | E59: 1 | F59: 0 | G59: 1 | H59: 3 | I59: 3 | J59: 2 | K59: 2 | L59: 1 | M59: 2 | N59: Germany | O59: Wales | S59: BeerBeer | T59: 2.5 | V59: Reszka | W59: 3
B60: Muadib | C60: SFisher91 | D60: 1 | E60: 0 | F60: 2 | G60: 1 | H60: 2 | I60: 2 | J60: 3 | K60: 1 | L60: 1 | M60: 3 | N60: Germany | O60: Wales | S60: Muadib | T60: 2.5 | V60: Gros Nain | W60: 3
B61: Candlejack | C61: andydavo | D61: 1 | E61: 0 | F61: 1 | G61: 0 | H61: 2 | I61: 1 | J61: 2 | K61: 2 | L61: 2 | M61: 1 | N61: Germany | O61: Wales | S61: The_Ref | T61: 2.5 | V61: Melisqus | W61: 3
B62: Prince | C62: Dionysian | D62: 0.5 | E62: 0.5 | F62: 3 | G62: 3 | H62: 0 | I62: 1 | J62: 1 | K62: 0 | L62: 2 | M62: 1 | N62: Germany | O62: Wales | S62: Woete | T62: 2.5 | V62: Leonek | W62: 3
B63: Gaunab | C63: Ploppy_McPloppy | D63: 0 | E63: 1 | F63: 1 | G63: 3 | H63: 1 | I63: 1 | J63: 0 | K63: 3 | L63: 3 | M63: 3 | N63: Germany | O63: Wales | S63: Bernuz | T63: 2.5 | V63: BeerBeer | W63: 3
B64: Jonny_Kanone | C64: Northernknight | D64: 1 | E64: 0 | F64: 3 | G64: 0 | H64: 3 | I64: 3 | J64: 2 | K64: 2 | L64: 0 | M64: 2 | N64: Germany | O64: Wales | S64: valkohukka | T64: 2.5 | V64: Harti | W64: 3
B65: RoterSternHochdahl | C65: nonumber | D65: 0 | E65: 1 | F65: 1 | G65: 3 | H65: 3 | I65: 2 | J65: 3 | K65: 0 | L65: 2 | M65: 1 | N65: Germany | O65: Wales | S65: Candlejack | T65: 2.5 | V65: FrankPedersen | W65: 3
S66: swifty | T66: 2.5 | V66: Bernuz | W66: 3
S67: SFisher91 | T67: 2.5 | V67: Mewash | W67: 3
S68: Podfrey | T68: 2.5 | V68: Dekra1979 | W68: 3
S69: zulu | T69: 2.5 | V69: Endalos | W69: 3
S70: Balder | T70: 2.5 | V70: zulu | W70: 3
S71: Justicium | T71: 2.5 | V71: Jaqra | W71: 3
S72: Phoenix11 | T72: 2.5 | V72: gninocker | W72: 3
S73: Loki | T73: 2.5 | V73: Justicium | W73: 3
S74: Wolio | T74: 2.5 | V74: Simon_ACP | W74: 3
S75: PurpleGoo | T75: 2.5 | V75: bothun | W75: 3
S76: Joemanji | T76: 2.5 | V76: Barry | W76: 2.5
S77: bothun | T77: 2.5 | V77: Matt le fou | W77: 2.5
S78: Lycos | T78: 2 | V78: Macabeo | W78: 2.5
S79: Harza | T79: 2 | V79: Dark Duke | W79: 2.5
S80: Matt le fou | T80: 2 | V80: cz | W80: 2.5
S81: Gros Nain | T81: 2 | V81: Strider84 | W81: 2.5
S82: Madmatt13 | T82: 2 | V82: valkohukka | W82: 2.5
S83: Warrior1980 | T83: 2 | V83: Podfrey | W83: 2.5
S84: andydavo | T84: 2 | V84: Geggster | W84: 2.5
S85: FrankPedersen | T85: 2 | V85: Dirold | W85: 2.5
S86: Leonek | T86: 2 | V86: swifty | W86: 2.5
S87: HumptyTrump | T87: 2 | V87: SFisher91 | W87: 2.5
S88: Mewash | T88: 2 | V88: Loki | W88: 2.5
S89: cz | T89: 2 | V89: Obeliz | W89: 2.5
S90: Dekra1979 | T90: 2 | V90: PurpleGoo | W90: 2.5
S91: Endalos | T91: 2 | V91: Wolio | W91: 2.5
S92: Joanet | T92: 2 | V92: Favi | W92: 2.5
S93: Favi | T93: 2 | V93: JJ | W93: 2.5
S94: Jaqra | T94: 2 | V94: Araznaroth | W94: 2.5
S95: Geggster | T95: 2 | V95: JimJimany | W95: 2.5
S96: Dirold | T96: 2 | V96: Balder | W96: 2.5
S97: Obeliz | T97: 2 | V97: Slimaq | W97: 2.5
S98: Simon_ACP | T98: 2 | V98: Ploppy_McPloppy | W98: 2.5
S99: Slimaq | T99: 2 | V99: Jokaero | W99: 2.5
S100: Purrelito | T100: 2 | V100: J-Ho | W100: 2.5
S101: Jokaero | T101: 2 | V101: Warrior1980 | W101: 2
S102: Araznaroth | T102: 2 | V102: HumptyTrump | W102: 2
S103: J-Ho | T103: 2 | V103: Tank | W103: 2
S104: Strider84 | T104: 1.5 | V104: Purdindas | W104: 2
S105: Purdindas | T105: 1.5 | V105: Harza | W105: 2
S106: Malasnoticias | T106: 1.5 | V106: Madmatt13 | W106: 2
S107: Pidpad | T107: 1.5 | V107: andydavo | W107: 2
S108: Prince | T108: 1.5 | V108: Jonny_Kanone | W108: 2
S109: Gaunab | T109: 1.5 | V109: Joanet | W109: 2
S110: JJ | T110: 1.5 | V110: Prince | W110: 2
S111: JimJimany | T111: 1.5 | V111: Dionysian | W111: 2
S112: Dionysian | T112: 1.5 | V112: Purrelito | W112: 2
S113: Ploppy_McPloppy | T113: 1.5 | V113: Wilzif | W113: 2
S114: BudWiser | T114: 1.5 | V114: nonumber | W114: 2
S115: Valen | T115: 1.5 | V115: BudWiser | W115: 2
S116: Tank | T116: 1 | V116: Pidpad | W116: 1.5
S117: JamesEs | T117: 1 | V117: Malasnoticias | W117: 1.5
S118: Northernknight | T118: 1 | V118: Gaunab | W118: 1.5
S119: Jonny_Kanone | T119: 1 | V119: Tripleskull | W119: 1.5
S120: nonumber | T120: 1 | V120: Farina | W120: 1.5
S121: RoterSternHochdahl | T121: 1 | V121: Valen | W121: 1.5
S122: Juniooor7 | T122: 1 | V122: Driesfield | W122: 1.5
S123: Tripleskull | T123: 1 | V123: JamesEs | W123: 1
S124: Wilzif | T124: 1 | V124: Northernknight | W124: 1
S125: Farina | T125: 1 | V125: Juniooor7 | W125: 1
S126: JohnnyD | T126: 1 | V126: RoterSternHochdahl | W126: 1
S127: Skoberget | T127: 0.5 | V127: Skoberget | W127: 1
S128: Driesfield | T128: 0.5 | V128: JohnnyD | W128: 1
S129: Duke_Luthor_Von_Hawkfire | T129: 0.5 | V129: Duke_Luthor_Von_Hawkfire | W129: 0.5

Sheet Round7
B1: Home Player | C1: Away Player | D1: Home Points | E1: Away Points | F1: Home TD | G1: Away TD | H1: Home Cas | I1: Away Cas | J1: Home Bonus1 | K1: Away Bonus1 | L1: Home Bonus2 | M1: Away Bonus2 | N1: Home Group | O1: Away Group | S1: Points Before Games | V1: Points After Games | Y1: Group Results | Z1: Group | AA1: Points | AC1: Group Points Before Games | AF1: Group Points After Games
B2: sigu70 | C2: GreatWhiteHope | D2: =fctScore(F2,G2,H2,J2,L2) -> 1 | E2: =fctScore(G2,F2,I2,K2,M2) -> 0 | F2: 3 | G2: 2 | H2: 1 | I2: 2 | J2: 2 | K2: 0 | L2: 1 | M2: 2 | N2: Switzerland | O2: Norway | S2: Domingo | T2: 5.5 | V2: Domingo | W2: 6.5 | Z2: Belgium | AA2: 2.5 | AC2: Switzerland | AD2: 31.5 | AF2: Switzerland | AG2: 38
B3: Goss | C3: mynock | D3: =fctScore(F3,G3,H3,J3,L3) -> 0 | E3: =fctScore(G3,F3,I3,K3,M3) -> 1 | F3: 1 | G3: 3 | H3: 2 | I3: 1 | J3: 3 | K3: 2 | L3: 3 | M3: 2 | N3: Switzerland | O3: Norway | S3: DonShula | T3: 5 | V3: sigu70 | W3: 6 | Z3: Denmark | AA3: 2 | AC3: Norway | AD3: 31.5 | AF3: Viking | AG3: 36.5
B4: Phifoe | C4: straume | D4: 1 | E4: 0 | F4: 1 | G4: 0 | H4: 1 | I4: 3 | J4: 2 | K4: 3 | L4: 2 | M4: 1 | N4: Switzerland | O4: Norway | S4: sigu70 | T4: 5 | V4: DonShula | W4: 5.5 | Z4: England | AA4: 4.5 | AC4: Viking | AD4: 30.5 | AF4: Italy | AG4: 36
B5: Elrik | C5: The_Ref | D5: 1 | E5: 0 | F5: 3 | G5: 2 | H5: 2 | I5: 3 | J5: 1 | K5: 1 | L5: 1 | M5: 2 | N5: Switzerland | O5: Norway | S5: Topper | T5: 5 | V5: Verrinho | W5: 5.5 | Z5: Finland | AA5: 3.5 | AC5: Italy | AD5: 30.5 | AF5: France | AG5: 35
B6: Macabeo | C6: FrankPedersen | D6: 1 | E6: 0 | F6: 2 | G6: 1 | H6: 2 | I6: 1 | J6: 2 | K6: 3 | L6: 2 | M6: 2 | N6: Switzerland | O6: Norway | S6: Mufflo | T6: 4.5 | V6: Topper | W6: 5.5 | Z6: France | AA6: 7 | AC6: Finland | AD6: 29.5 | AF6: Norway | AG6: 34
B7: Strider84 | C7: Endalos | D7: 0.5 | E7: 0.5 | F7: 1 | G7: 1 | H7: 0 | I7: 1 | J7: 0 | K7: 1 | L7: 1 | M7: 1 | N7: Switzerland | O7: Norway | S7: Faccko | T7: 4.5 | V7: Garrick | W7: 5.5 | Z7: Germany | AA7: 4.5 | AC7: Hungary | AD7: 29.5 | AF7: Finland | AG7: 33
B8: Jokaero | C8: zulu | D8: 0 | E8: 1 | F8: 0 | G8: 2 | H8: 1 | I8: 0 | J8: 2 | K8: 1 | L8: 0 | M8: 2 | N8: Switzerland | O8: Norway | S8: Verrinho | T8: 4.5 | V8: Inforthepain | W8: 5 | Z8: Hungary | AA8: 3 | AC8: Denmark | AD8: 29 | AF8: Poland | AG8: 33
B9: Madmatt13 | C9: bothun | D9: 1 | E9: 0 | F9: 3 | G9: 0 | H9: 2 | I9: 3 | J9: 1 | K9: 2 | L9: 1 | M9: 2 | N9: Switzerland | O9: Norway | S9: Inforthepain | T9: 4.5 | V9: Faccko | W9: 5 | Z9: Italy | AA9: 5.5 | AC9: France | AD9: 28 | AF9: Hungary | AG9: 32.5
B10: Mufflo | C10: BlackOrc | D10: 0 | E10: 1 | F10: 2 | G10: 3 | H10: 0 | I10: 2 | J10: 3 | K10: 0 | L10: 1 | M10: 2 | N10: Viking | O10: Hungary | S10: BiBi | T10: 4.5 | V10: BiBi | W10: 5 | Z10: Norway | AA10: 2.5 | AC10: Poland | AD10: 26.5 | AF10: Sweden | AG10: 31.5
B11: Faccko | C11: Itzla | D11: 0.5 | E11: 0.5 | F11: 2 | G11: 2 | H11: 1 | I11: 2 | J11: 2 | K11: 1 | L11: 1 | M11: 2 | N11: Viking | O11: Hungary | S11: Goss | T11: 4.5 | V11: mynock | W11: 5 | Z11: Poland | AA11: 6.5 | AC11: Belgium | AD11: 26.5 | AF11: Denmark | AG11: 31
B12: Corwin | C12: noraal | D12: 1 | E12: 0 | F12: 2 | G12: 1 | H12: 1 | I12: 2 | J12: 2 | K12: 0 | L12: 1 | M12: 1 | N12: Viking | O12: Hungary | S12: Skuld | T12: 4.5 | V12: jopotzuki | W12: 5 | Z12: Scotland | AA12: 4.5 | AC12: Sweden | AD12: 26 | AF12: Scotland | AG12: 29.5
B13: brocCooli | C13: Alex05 | D13: 0 | E13: 1 | F13: 1 | G13: 3 | H13: 1 | I13: 2 | J13: 1 | K13: 1 | L13: 1 | M13: 2 | N13: Viking | O13: Hungary | S13: edheim | T13: 4.5 | V13: Dragons | W13: 5 | Z13: Spain | AA13: 4.5 | AC13: Scotland | AD13: 25 | AF13: England | AG13: 29
B14: Duckwing | C14: cz | D14: 1 | E14: 0 | F14: 1 | G14: 0 | H14: 3 | I14: 0 | J14: 3 | K14: 2 | L14: 2 | M14: 3 | N14: Viking | O14: Hungary | S14: Garrick | T14: 4.5 | V14: BlackOrc | W14: 5 | Z14: Sweden | AA14: 5.5 | AC14: England | AD14: 24.5 | AF14: Belgium | AG14: 29
B15: Bernuz | C15: swifty | D15: 1 | E15: 0 | F15: 2 | G15: 0 | H15: 2 | I15: 2 | J15: 2 | K15: 2 | L15: 1 | M15: 2 | N15: Viking | O15: Hungary | S15: GreatWhiteHope | T15: 4 | V15: Phifoe | W15: 5 | Z15: Switzerland | AA15: 6.5 | AC15: Germany | AD15: 22.5 | AF15: Germany | AG15: 27
B16: Balder | C16: Wolio | D16: 1 | E16: 0 | F16: 2 | G16: 0 | H16: 2 | I16: 3 | J16: 2 | K16: 2 | L16: 3 | M16: 2 | N16: Viking | O16: Hungary | S16: jopotzuki | T16: 4 | V16: Skuld | W16: 5 | Z16: Viking | AA16: 6 | AC16: Spain | AD16: 21 | AF16: Spain | AG16: 25.5
B17: Purrelito | C17: Favi | D17: 0.5 | E17: 0.5 | F17: 0 | G17: 0 | H17: 1 | I17: 1 | J17: 3 | K17: 2 | L17: 2 | M17: 1 | N17: Viking | O17: Hungary | S17: Arioso | T17: 4 | V17: sann0638 | W17: 5 | Z17: Wales | AA17: 3.5 | AC17: Wales | AD17: 20 | AF17: Wales | AG17: 23.5
B18: Verrinho | C18: edheim | D18: 1 | E18: 0 | F18: 2 | G18: 1 | H18: 1 | I18: 0 | J18: 2 | K18: 1 | L18: 1 | M18: 1 | N18: Italy | O18: Finland | S18: BlackOrc | T18: 4 | V18: Elrik | W18: 5
B19: Spartako | C19: jopotzuki | D19: 0 | E19: 1 | F19: 0 | G19: 3 | H19: 3 | I19: 2 | J19: 2 | K19: 0 | L19: 3 | M19: 1 | N19: Italy | O19: Finland | S19: ratogre | T19: 4 | V19: Tactel | W19: 5
B20: Liam | C20: ratogre | D20: 0.5 | E20: 0.5 | F20: 1 | G20: 1 | H20: 1 | I20: 2 | J20: 1 | K20: 0 | L20: 3 | M20: 1 | N20: Italy | O20: Finland | S20: SpecialOne | T20: 4 | V20: Alex05 | W20: 5
B21: Beppe | C21: MacWitt | D21: 1 | E21: 0 | F21: 3 | G21: 1 | H21: 2 | I21: 3 | J21: 1 | K21: 0 | L21: 1 | M21: 2 | N21: Italy | O21: Finland | S21: Dragons | T21: 4 | V21: Beppe | W21: 4.5
B22: Matte8 | C22: BeerBeer | D22: 0 | E22: 1 | F22: 2 | G22: 3 | H22: 1 | I22: 2 | J22: 1 | K22: 3 | L22: 1 | M22: 0 | N22: Italy | O22: Finland | S22: Phifoe | T22: 4 | V22: Mufflo | W22: 4.5
B23: Kaltenland | C23: valkohukka | D23: 0 | E23: 1 | F23: 0 | G23: 1 | H23: 1 | I23: 0 | J23: 2 | K23: 1 | L23: 2 | M23: 1 | N23: Italy | O23: Finland | S23: Itzla | T23: 4 | V23: Goss | W23: 4.5
B24: Dirold | C24: J-Ho | D24: 1 | E24: 0 | F24: 3 | G24: 1 | H24: 1 | I24: 2 | J24: 2 | K24: 2 | L24: 1 | M24: 3 | N24: Italy | O24: Finland | S24: Malodoror | T24: 4 | V24: Arioso | W24: 4.5
B25: Farina | C25: Harza | D25: 1 | E25: 0 | F25: 2 | G25: 1 | H25: 2 | I25: 1 | J25: 0 | K25: 1 | L25: 0 | M25: 2 | N25: Italy | O25: Finland | S25: Idroj | T25: 4 | V25: ratogre | W25: 4.5
B26: Topper | C26: BiBi | D26: 0.5 | E26: 0.5 | F26: 1 | G26: 1 | H26: 0 | I26: 2 | J26: 2 | K26: 0 | L26: 1 | M26: 0 | N26: Denmark | O26: France | S26: mynock | T26: 4 | V26: edheim | W26: 4.5
B27: SpecialOne | C27: Bouzzy | D27: 0.5 | E27: 0.5 | F27: 3 | G27: 3 | H27: 1 | I27: 0 | J27: 2 | K27: 0 | L27: 2 | M27: 2 | N27: Denmark | O27: France | S27: Spartako | T27: 4 | V27: SpecialOne | W27: 4.5
B28: kfoged | C28: Gros Nain | D28: 0 | E28: 1 | F28: 0 | G28: 1 | H28: 0 | I28: 2 | J28: 1 | K28: 3 | L28: 1 | M28: 2 | N28: Denmark | O28: France | S28: Pellevin | T28: 4 | V28: Itzla | W28: 4.5
B29: Niebling | C29: Harti | D29: 0 | E29: 1 | F29: 2 | G29: 3 | H29: 1 | I29: 2 | J29: 1 | K29: 1 | L29: 0 | M29: 3 | N29: Denmark | O29: France | S29: Tactel | T29: 4 | V29: Joemanji | W29: 4.5
B30: MissSweden | C30: Justicium | D30: 0 | E30: 1 | F30: 0 | G30: 2 | H30: 3 | I30: 1 | J30: 1 | K30: 2 | L30: 1 | M30: 2 | N30: Denmark | O30: France | S30: sann0638 | T30: 4 | V30: Woete | W30: 4.5
B31: Jaqra | C31: Simon_ACP | D31: 0 | E31: 1 | F31: 1 | G31: 2 | H31: 1 | I31: 1 | J31: 1 | K31: 1 | L31: 3 | M31: 3 | N31: Denmark | O31: France | S31: Elrik | T31: 4 | V31: Corwin | W31: 4.5
B32: Tank | C32: Matt le fou | D32: 0 | E32: 1 | F32: 1 | G32: 2 | H32: 1 | I32: 3 | J32: 2 | K32: 0 | L32: 0 | M32: 2 | N32: Denmark | O32: France | S32: noraal | T32: 4 | V32: Liam | W32: 4.5
B33: Tripleskull | C33: BudWiser | D33: 1 | E33: 0 | F33: 1 | G33: 0 | H33: 2 | I33: 0 | J33: 2 | K33: 2 | L33: 2 | M33: 0 | N33: Denmark | O33: France | S33: Alex05 | T33: 4 | V33: GreatWhiteHope | W33: 4
B34: Domingo | C34: Malodoror | D34: 1 | E34: 0 | F34: 1 | G34: 0 | H34: 2 | I34: 2 | J34: 1 | K34: 1 | L34: 3 | M34: 1 | N34: Poland | O34: Belgium | S34: Liam | T34: 4 | V34: Malodoror | W34: 4
B35: Shawass | C35: Woete | D35: 0 | E35: 1 | F35: 1 | G35: 3 | H35: 2 | I35: 1 | J35: 0 | K35: 1 | L35: 3 | M35: 0 | N35: Poland | O35: Belgium | S35: Beppe | T35: 3.5 | V35: Gros Nain | W35: 4
B36: Reszka | C36: Phoenix11 | D36: 0.5 | E36: 0.5 | F36: 2 | G36: 2 | H36: 0 | I36: 3 | J36: 1 | K36: 1 | L36: 2 | M36: 2 | N36: Poland | O36: Belgium | S36: straume | T36: 3.5 | V36: Bouzzy | W36: 4
B37: Leonek | C37: Dekra1979 | D37: 1 | E37: 0 | F37: 3 | G37: 1 | H37: 0 | I37: 1 | J37: 2 | K37: 2 | L37: 2 | M37: 2 | N37: Poland | O37: Belgium | S37: MadeofWelsh | T37: 3.5 | V37: MadeofWelsh | W37: 4
B38: Mewash | C38: gninocker | D38: 1 | E38: 0 | F38: 3 | G38: 2 | H38: 0 | I38: 2 | J38: 3 | K38: 1 | L38: 3 | M38: 2 | N38: Poland | O38: Belgium | S38: kfoged | T38: 3.5 | V38: Leonek | W38: 4
B39: Slimaq | C39: JJ | D39: 0.5 | E39: 0.5 | F39: 3 | G39: 3 | H39: 1 | I39: 2 | J39: 2 | K39: 2 | L39: 1 | M39: 1 | N39: Poland | O39: Belgium | S39: Bouzzy | T39: 3.5 | V39: Spartako | W39: 4
B40: Warrior1980 | C40: Araznaroth | D40: 0.5 | E40: 0.5 | F40: 2 | G40: 2 | H40: 2 | I40: 1 | J40: 1 | K40: 2 | L40: 2 | M40: 2 | N40: Poland | O40: Belgium | S40: Niebling | T40: 3.5 | V40: Mubo | W40: 4
B41: Juniooor7 | C41: Driesfield | D41: 1 | E41: 0 | F41: 3 | G41: 1 | H41: 3 | I41: 3 | J41: 2 | K41: 2 | L41: 2 | M41: 1 | N41: Poland | O41: Belgium | S41: DocMaxx | T41: 3.5 | V41: 20Phoenix | W41: 4
B42: DonShula | C42: Arioso | D42: 0.5 | E42: 0.5 | F42: 2 | G42: 2 | H42: 2 | I42: 1 | J42: 2 | K42: 3 | L42: 2 | M42: 1 | N42: Scotland | O42: Germany | S42: Matte8 | T42: 3.5 | V42: Idroj | W42: 4
B43: Garrick | C43: DocMaxx | D43: 1 | E43: 0 | F43: 3 | G43: 0 | H43: 1 | I43: 2 | J43: 1 | K43: 2 | L43: 3 | M43: 1 | N43: Scotland | O43: Germany | S43: Shawass | T43: 3.5 | V43: Duckwing | W43: 4
B44: sann0638 | C44: Muadib | D44: 1 | E44: 0 | F44: 3 | G44: 1 | H44: 2 | I44: 2 | J44: 2 | K44: 3 | L44: 2 | M44: 1 | N44: Scotland | O44: Germany | S44: Muadib | T44: 3.5 | V44: BeerBeer | W44: 4
B45: Loki | C45: Candlejack | D45: 1 | E45: 0 | F45: 3 | G45: 1 | H45: 2 | I45: 1 | J45: 1 | K45: 2 | L45: 1 | M45: 1 | N45: Scotland | O45: Germany | S45: MissSweden | T45: 3.5 | V45: Pellevin | W45: 4
B46: HumptyTrump | C46: Jonny_Kanone | D46: 0.5 | E46: 0.5 | F46: 1 | G46: 1 | H46: 0 | I46: 1 | J46: 1 | K46: 0 | L46: 0 | M46: 2 | N46: Scotland | O46: Germany | S46: The_Ref | T46: 3.5 | V46: Mewash | W46: 4
B47: Purdindas | C47: Prince | D47: 0 | E47: 1 | F47: 0 | G47: 2 | H47: 0 | I47: 0 | J47: 3 | K47: 1 | L47: 1 | M47: 2 | N47: Scotland | O47: Germany | S47: MacWitt | T47: 3.5 | V47: noraal | W47: 4
B48: Valen | C48: Gaunab | D48: 0 | E48: 1 | F48: 2 | G48: 3 | H48: 2 | I48: 2 | J48: 3 | K48: 0 | L48: 1 | M48: 2 | N48: Scotland | O48: Germany | S48: Woete | T48: 3.5 | V48: Melisqus | W48: 4
B49: JamesEs | C49: RoterSternHochdahl | D49: 0 | E49: 1 | F49: 0 | G49: 2 | H49: 1 | I49: 3 | J49: 1 | K49: 2 | L49: 1 | M49: 1 | N49: Scotland | O49: Germany | S49: Corwin | T49: 3.5 | V49: Harti | W49: 4
B50: MadeofWelsh | C50: Inforthepain | D50: 0.5 | E50: 0.5 | F50: 1 | G50: 1 | H50: 3 | I50: 1 | J50: 1 | K50: 2 | L50: 2 | M50: 1 | N50: Wales | O50: Sweden | S50: 20Phoenix | T50: 3.5 | V50: Bernuz | W50: 4
B51: 20Phoenix | C51: Skuld | D51: 0.5 | E51: 0.5 | F51: 2 | G51: 2 | H51: 1 | I51: 1 | J51: 2 | K51: 2 | L51: 3 | M51: 2 | N51: Wales | O51: Sweden | S51: Kaltenland | T51: 3.5 | V51: zulu | W51: 4
B52: SFisher91 | C52: Dragons | D52: 0 | E52: 1 | F52: 1 | G52: 3 | H52: 2 | I52: 2 | J52: 0 | K52: 1 | L52: 1 | M52: 2 | N52: Wales | O52: Sweden | S52: Candlejack | T52: 3.5 | V52: Justicium | W52: 4
B53: Ploppy_McPloppy | C53: Pellevin | D53: 1 | E53: 0 | F53: 2 | G53: 1 | H53: 0 | I53: 2 | J53: 1 | K53: 2 | L53: 1 | M53: 0 | N53: Wales | O53: Sweden | S53: brocCooli | T53: 3.5 | V53: Phoenix11 | W53: 4
B54: andydavo | C54: Melisqus | D54: 0 | E54: 1 | F54: 2 | G54: 3 | H54: 3 | I54: 1 | J54: 1 | K54: 1 | L54: 1 | M54: 2 | N54: Wales | O54: Sweden | S54: Joemanji | T54: 3.5 | V54: Simon_ACP | W54: 4
B55: Dionysian | C55: Pidpad | D55: 1 | E55: 0 | F55: 3 | G55: 2 | H55: 3 | I55: 0 | J55: 3 | K55: 2 | L55: 2 | M55: 3 | N55: Wales | O55: Sweden | S55: Phoenix11 | T55: 3.5 | V55: straume | W55: 3.5
B56: nonumber | C56: Skoberget | D56: 0.5 | E56: 0.5 | F56: 1 | G56: 1 | H56: 1 | I56: 0 | J56: 1 | K56: 1 | L56: 0 | M56: 3 | N56: Wales | O56: Sweden | S56: Lycos | T56: 3 | V56: Niebling | W56: 3.5
B57: Northernknight | C57: JohnnyD | D57: 0 | E57: 1 | F57: 2 | G57: 3 | H57: 3 | I57: 2 | J57: 2 | K57: 2 | L57: 3 | M57: 2 | N57: Wales | O57: Sweden | S57: Duckwing | T57: 3 | V57: Reszka | W57: 3.5
B58: Idroj | C58: Joemanji | D58: 0 | E58: 1 | F58: 1 | G58: 2 | H58: 2 | I58: 2 | J58: 0 | K58: 2 | L58: 1 | M58: 1 | N58: Spain | O58: England | S58: Mubo | T58: 3 | V58: Matt le fou | W58: 3.5
B59: Tactel | C59: Lycos | D59: 1 | E59: 0 | F59: 2 | G59: 1 | H59: 1 | I59: 1 | J59: 1 | K59: 1 | L59: 1 | M59: 0 | N59: Spain | O59: England | S59: Reszka | T59: 3 | V59: Matte8 | W59: 3.5
B60: Barry | C60: Mubo | D60: 0 | E60: 1 | F60: 0 | G60: 2 | H60: 3 | I60: 1 | J60: 1 | K60: 0 | L60: 2 | M60: 2 | N60: Spain | O60: England | S60: Gros Nain | T60: 3 | V60: brocCooli | W60: 3.5
B61: Dark Duke | C61: Podfrey | D61: 1 | E61: 0 | F61: 3 | G61: 2 | H61: 2 | I61: 2 | J61: 3 | K61: 3 | L61: 3 | M61: 3 | N61: Spain | O61: England | S61: Melisqus | T61: 3 | V61: DocMaxx | W61: 3.5
B62: Obeliz | C62: Geggster | D62: 0.5 | E62: 0.5 | F62: 1 | G62: 1 | H62: 0 | I62: 1 | J62: 2 | K62: 3 | L62: 2 | M62: 0 | N62: Spain | O62: England | S62: Leonek | T62: 3 | V62: Muadib | W62: 3.5
B63: Joanet | C63: PurpleGoo | D63: 0.5 | E63: 0.5 | F63: 3 | G63: 3 | H63: 1 | I63: 2 | J63: 3 | K63: 2 | L63: 1 | M63: 2 | N63: Spain | O63: England | S63: BeerBeer | T63: 3 | V63: valkohukka | W63: 3.5
B64: Malasnoticias | C64: JimJimany | D64: 1 | E64: 0 | F64: 3 | G64: 2 | H64: 1 | I64: 2 | J64: 0 | K64: 2 | L64: 2 | M64: 2 | N64: Spain | O64: England | S64: Harti | T64: 3 | V64: The_Ref | W64: 3.5
B65: Duke_Luthor_Von_Hawkfire | C65: Wilzif | D65: 0 | E65: 1 | F65: 0 | G65: 2 | H65: 2 | I65: 3 | J65: 2 | K65: 2 | L65: 2 | M65: 1 | N65: Spain | O65: England | S65: FrankPedersen | T65: 3 | V65: kfoged | W65: 3.5
S66: Bernuz | T66: 3 | V66: Macabeo | W66: 3.5
S67: Mewash | T67: 3 | V67: MacWitt | W67: 3.5
S68: Dekra1979 | T68: 3 | V68: Kaltenland | W68: 3.5
S69: Endalos | T69: 3 | V69: Dark Duke | W69: 3.5
S70: zulu | T70: 3 | V70: Shawass | W70: 3.5
S71: Jaqra | T71: 3 | V71: MissSweden | W71: 3.5
S72: gninocker | T72: 3 | V72: Endalos | W72: 3.5
S73: Justicium | T73: 3 | V73: Dirold | W73: 3.5
S74: Simon_ACP | T74: 3 | V74: Loki | W74: 3.5
S75: bothun | T75: 3 | V75: Ploppy_McPloppy | W75: 3.5
S76: Barry | T76: 2.5 | V76: Candlejack | W76: 3.5
S77: Matt le fou | T77: 2.5 | V77: Balder | W77: 3.5
S78: Macabeo | T78: 2.5 | V78: Lycos | W78: 3
S79: Dark Duke | T79: 2.5 | V79: Dekra1979 | W79: 3
S80: cz | T80: 2.5 | V80: Madmatt13 | W80: 3
S81: Strider84 | T81: 2.5 | V81: Strider84 | W81: 3
S82: valkohukka | T82: 2.5 | V82: FrankPedersen | W82: 3
S83: Podfrey | T83: 2.5 | V83: gninocker | W83: 3
S84: Geggster | T84: 2.5 | V84: Jaqra | W84: 3
S85: Dirold | T85: 2.5 | V85: Dionysian | W85: 3
S86: swifty | T86: 2.5 | V86: PurpleGoo | W86: 3
S87: SFisher91 | T87: 2.5 | V87: Obeliz | W87: 3
S88: Loki | T88: 2.5 | V88: Prince | W88: 3
S89: Obeliz | T89: 2.5 | V89: Favi | W89: 3
S90: PurpleGoo | T90: 2.5 | V90: Geggster | W90: 3
S91: Wolio | T91: 2.5 | V91: JJ | W91: 3
S92: Favi | T92: 2.5 | V92: Araznaroth | W92: 3
S93: JJ | T93: 2.5 | V93: Slimaq | W93: 3
S94: Araznaroth | T94: 2.5 | V94: Wilzif | W94: 3
S95: JimJimany | T95: 2.5 | V95: bothun | W95: 3
S96: Balder | T96: 2.5 | V96: Barry | W96: 2.5
S97: Slimaq | T97: 2.5 | V97: cz | W97: 2.5
S98: Ploppy_McPloppy | T98: 2.5 | V98: Warrior1980 | W98: 2.5
S99: Jokaero | T99: 2.5 | V99: Malasnoticias | W99: 2.5
S100: J-Ho | T100: 2.5 | V100: HumptyTrump | W100: 2.5
S101: Warrior1980 | T101: 2 | V101: swifty | W101: 2.5
S102: HumptyTrump | T102: 2 | V102: Jonny_Kanone | W102: 2.5
S103: Tank | T103: 2 | V103: Podfrey | W103: 2.5
S104: Purdindas | T104: 2 | V104: SFisher91 | W104: 2.5
S105: Harza | T105: 2 | V105: Gaunab | W105: 2.5
S106: Madmatt13 | T106: 2 | V106: Joanet | W106: 2.5
S107: andydavo | T107: 2 | V107: Jokaero | W107: 2.5
S108: Jonny_Kanone | T108: 2 | V108: Purrelito | W108: 2.5
S109: Joanet | T109: 2 | V109: Wolio | W109: 2.5
S110: Prince | T110: 2 | V110: JimJimany | W110: 2.5
S111: Dionysian | T111: 2 | V111: nonumber | W111: 2.5
S112: Purrelito | T112: 2 | V112: Farina | W112: 2.5
S113: Wilzif | T113: 2 | V113: J-Ho | W113: 2.5
S114: nonumber | T114: 2 | V114: Tripleskull | W114: 2.5
S115: BudWiser | T115: 2 | V115: Tank | W115: 2
S116: Pidpad | T116: 1.5 | V116: Harza | W116: 2
S117: Malasnoticias | T117: 1.5 | V117: Purdindas | W117: 2
S118: Gaunab | T118: 1.5 | V118: andydavo | W118: 2
S119: Tripleskull | T119: 1.5 | V119: Juniooor7 | W119: 2
S120: Farina | T120: 1.5 | V120: RoterSternHochdahl | W120: 2
S121: Valen | T121: 1.5 | V121: BudWiser | W121: 2
S122: Driesfield | T122: 1.5 | V122: JohnnyD | W122: 2
S123: JamesEs | T123: 1 | V123: Pidpad | W123: 1.5
S124: Northernknight | T124: 1 | V124: Skoberget | W124: 1.5
S125: Juniooor7 | T125: 1 | V125: Valen | W125: 1.5
S126: RoterSternHochdahl | T126: 1 | V126: Driesfield | W126: 1.5
S127: Skoberget | T127: 1 | V127: JamesEs | W127: 1
S128: JohnnyD | T128: 1 | V128: Northernknight | W128: 1
S129: Duke_Luthor_Von_Hawkfire | T129: 0.5 | V129: Duke_Luthor_Von_Hawkfire | W129: 0.5

Sheet Round8
B1: Home Player | C1: Away Player | D1: Home Points | E1: Away Points | F1: Home TD | G1: Away TD | H1: Home Cas | I1: Away Cas | J1: Home Bonus1 | K1: Away Bonus1 | L1: Home Bonus2 | M1: Away Bonus2 | N1: Home Group | O1: Away Group | S1: Points Before Games | V1: Points After Games | Y1: Group Results | Z1: Group | AA1: Points | AC1: Group Points Before Games | AF1: Group Points After Games
B2: sigu70 | C2: BiBi | D2: =fctScore(F2,G2,H2,J2,L2) -> 0 | E2: =fctScore(G2,F2,I2,K2,M2) -> 1 | F2: 1 | G2: 2 | H2: 2 | I2: 1 | J2: 2 | K2: 1 | L2: 3 | M2: 0 | N2: Switzerland | O2: France | S2: Domingo | T2: 6.5 | V2: Verrinho | W2: 6.5 | Z2: Belgium | AA2: 4.5 | AC2: Switzerland | AD2: 38 | AF2: Switzerland | AG2: 43.5
B3: Phifoe | C3: Gros Nain | D3: =fctScore(F3,G3,H3,J3,L3) -> 0 | E3: =fctScore(G3,F3,I3,K3,M3) -> 1 | F3: 1 | G3: 2 | H3: 1 | I3: 2 | J3: 1 | K3: 0 | L3: 3 | M3: 3 | N3: Switzerland | O3: France | S3: sigu70 | T3: 6 | V3: Domingo | W3: 6.5 | Z3: Denmark | AA3: 6.5 | AC3: Viking | AD3: 36.5 | AF3: Norway | AG3: 39.5
B4: Elrik | C4: Bouzzy | D4: 0.5 | E4: 0.5 | F4: 1 | G4: 1 | H4: 1 | I4: 2 | J4: 2 | K4: 3 | L4: 2 | M4: 0 | N4: Switzerland | O4: France | S4: DonShula | T4: 5.5 | V4: Topper | W4: 6.5 | Z4: England | AA4: 3.5 | AC4: Italy | AD4: 36 | AF4: Italy | AG4: 39.5
B5: Goss | C5: Harti | D5: 1 | E5: 0 | F5: 2 | G5: 1 | H5: 1 | I5: 1 | J5: 0 | K5: 0 | L5: 1 | M5: 1 | N5: Switzerland | O5: France | S5: Verrinho | T5: 5.5 | V5: Garrick | W5: 6.5 | Z5: Finland | AA5: 5.5 | AC5: France | AD5: 35 | AF5: Finland | AG5: 38.5
B6: Macabeo | C6: Justicium | D6: 0.5 | E6: 0.5 | F6: 1 | G6: 1 | H6: 3 | I6: 2 | J6: 2 | K6: 1 | L6: 2 | M6: 3 | N6: Switzerland | O6: France | S6: Topper | T6: 5.5 | V6: DonShula | W6: 6 | Z6: France | AA6: 3.5 | AC6: Norway | AD6: 34 | AF6: France | AG6: 38.5
B7: Madmatt13 | C7: Simon_ACP | D7: 0.5 | E7: 0.5 | F7: 1 | G7: 1 | H7: 1 | I7: 1 | J7: 3 | K7: 0 | L7: 2 | M7: 2 | N7: Switzerland | O7: France | S7: Garrick | T7: 5.5 | V7: BiBi | W7: 6 | Z7: Germany | AA7: 5.5 | AC7: Finland | AD7: 33 | AF7: Viking | AG7: 38
B8: Strider84 | C8: Matt le fou | D8: 1 | E8: 0 | F8: 2 | G8: 1 | H8: 1 | I8: 2 | J8: 1 | K8: 2 | L8: 2 | M8: 2 | N8: Switzerland | O8: France | S8: Inforthepain | T8: 5 | V8: Inforthepain | W8: 6 | Z8: Hungary | AA8: 3.5 | AC8: Poland | AD8: 33 | AF8: Denmark | AG8: 37.5
B9: Jokaero | C9: BudWiser | D9: 1 | E9: 0 | F9: 2 | G9: 1 | H9: 0 | I9: 1 | J9: 2 | K9: 2 | L9: 3 | M9: 2 | N9: Switzerland | O9: France | S9: Faccko | T9: 5 | V9: sigu70 | W9: 6 | Z9: Italy | AA9: 3.5 | AC9: Hungary | AD9: 32.5 | AF9: Sweden | AG9: 36
B10: Domingo | C10: Topper | D10: 0 | E10: 1 | F10: 0 | G10: 1 | H10: 2 | I10: 2 | J10: 3 | K10: 1 | L10: 1 | M10: 1 | N10: Poland | O10: Denmark | S10: BiBi | T10: 5 | V10: jopotzuki | W10: 6 | Z10: Norway | AA10: 5.5 | AC10: Sweden | AD10: 31.5 | AF10: Hungary | AG10: 36
B11: Leonek | C11: SpecialOne | D11: 0 | E11: 1 | F11: 0 | G11: 1 | H11: 2 | I11: 2 | J11: 1 | K11: 2 | L11: 2 | M11: 2 | N11: Poland | O11: Denmark | S11: mynock | T11: 5 | V11: Alex05 | W11: 6 | Z11: Poland | AA11: 2.5 | AC11: Denmark | AD11: 31 | AF11: Poland | AG11: 35.5
B12: Mewash | C12: Niebling | D12: 0 | E12: 1 | F12: 1 | G12: 2 | H12: 0 | I12: 2 | J12: 2 | K12: 1 | L12: 2 | M12: 0 | N12: Poland | O12: Denmark | S12: jopotzuki | T12: 5 | V12: Goss | W12: 5.5 | Z12: Scotland | AA12: 4.5 | AC12: Scotland | AD12: 29.5 | AF12: Scotland | AG12: 34
B13: Reszka | C13: kfoged | D13: 0.5 | E13: 0.5 | F13: 0 | G13: 0 | H13: 0 | I13: 1 | J13: 2 | K13: 2 | L13: 2 | M13: 2 | N13: Poland | O13: Denmark | S13: Dragons | T13: 5 | V13: Faccko | W13: 5.5 | Z13: Spain | AA13: 4.5 | AC13: England | AD13: 29 | AF13: Belgium | AG13: 33.5
B14: Shawass | C14: MissSweden | D14: 1 | E14: 0 | F14: 3 | G14: 2 | H14: 1 | I14: 2 | J14: 2 | K14: 3 | L14: 1 | M14: 2 | N14: Poland | O14: Denmark | S14: BlackOrc | T14: 5 | V14: mynock | W14: 5.5 | Z14: Sweden | AA14: 4.5 | AC14: Belgium | AD14: 29 | AF14: Germany | AG14: 32.5
B15: Slimaq | C15: Jaqra | D15: 0 | E15: 1 | F15: 0 | G15: 2 | H15: 1 | I15: 0 | J15: 1 | K15: 2 | L15: 2 | M15: 3 | N15: Poland | O15: Denmark | S15: Phifoe | T15: 5 | V15: Itzla | W15: 5.5 | Z15: Switzerland | AA15: 5.5 | AC15: Germany | AD15: 27 | AF15: England | AG15: 32.5
B16: Warrior1980 | C16: Tripleskull | D16: 0.5 | E16: 0.5 | F16: 3 | G16: 3 | H16: 1 | I16: 1 | J16: 2 | K16: 0 | L16: 0 | M16: 2 | N16: Poland | O16: Denmark | S16: Skuld | T16: 5 | V16: Skuld | W16: 5.5 | Z16: Viking | AA16: 1.5 | AC16: Spain | AD16: 25.5 | AF16: Wales | AG16: 31
B17: Juniooor7 | C17: Tank | D17: 0.5 | E17: 0.5 | F17: 2 | G17: 2 | H17: 3 | I17: 2 | J17: 3 | K17: 0 | L17: 2 | M17: 3 | N17: Poland | O17: Denmark | S17: sann0638 | T17: 5 | V17: SpecialOne | W17: 5.5 | Z17: Wales | AA17: 7.5 | AC17: Wales | AD17: 23.5 | AF17: Spain | AG17: 30
B18: Woete | C18: Inforthepain | D18: 0 | E18: 1 | F18: 1 | G18: 2 | H18: 3 | I18: 2 | J18: 2 | K18: 0 | L18: 1 | M18: 2 | N18: Belgium | O18: Sweden | S18: Elrik | T18: 5 | V18: Tactel | W18: 5.5
B19: Malodoror | C19: Dragons | D19: 1 | E19: 0 | F19: 3 | G19: 1 | H19: 2 | I19: 1 | J19: 0 | K19: 2 | L19: 0 | M19: 1 | N19: Belgium | O19: Sweden | S19: Tactel | T19: 5 | V19: sann0638 | W19: 5.5
B20: Phoenix11 | C20: Skuld | D20: 0.5 | E20: 0.5 | F20: 2 | G20: 2 | H20: 2 | I20: 1 | J20: 2 | K20: 1 | L20: 1 | M20: 1 | N20: Belgium | O20: Sweden | S20: Alex05 | T20: 5 | V20: Elrik | W20: 5.5
B21: Dekra1979 | C21: Pellevin | D21: 0 | E21: 1 | F21: 1 | G21: 2 | H21: 1 | I21: 2 | J21: 0 | K21: 2 | L21: 1 | M21: 3 | N21: Belgium | O21: Sweden | S21: Beppe | T21: 4.5 | V21: Liam | W21: 5.5
B22: gninocker | C22: Melisqus | D22: 1 | E22: 0 | F22: 1 | G22: 0 | H22: 3 | I22: 2 | J22: 2 | K22: 3 | L22: 3 | M22: 1 | N22: Belgium | O22: Sweden | S22: Mufflo | T22: 4.5 | V22: Dragons | W22: 5
B23: JJ | C23: JohnnyD | D23: 0 | E23: 1 | F23: 2 | G23: 3 | H23: 2 | I23: 1 | J23: 1 | K23: 0 | L23: 0 | M23: 0 | N23: Belgium | O23: Sweden | S23: Goss | T23: 4.5 | V23: Malodoror | W23: 5
B24: Araznaroth | C24: Pidpad | D24: 1 | E24: 0 | F24: 3 | G24: 1 | H24: 2 | I24: 1 | J24: 2 | K24: 1 | L24: 2 | M24: 0 | N24: Belgium | O24: Sweden | S24: Arioso | T24: 4.5 | V24: BlackOrc | W24: 5
B25: Driesfield | C25: Skoberget | D25: 0.5 | E25: 0.5 | F25: 1 | G25: 1 | H25: 0 | I25: 3 | J25: 1 | K25: 1 | L25: 2 | M25: 1 | N25: Belgium | O25: Sweden | S25: ratogre | T25: 4.5 | V25: Gros Nain | W25: 5
B26: jopotzuki | C26: BlackOrc | D26: 1 | E26: 0 | F26: 3 | G26: 0 | H26: 0 | I26: 2 | J26: 0 | K26: 2 | L26: 0 | M26: 3 | N26: Finland | O26: Hungary | S26: edheim | T26: 4.5 | V26: Phifoe | W26: 5
B27: ratogre | C27: Alex05 | D27: 0 | E27: 1 | F27: 0 | G27: 1 | H27: 1 | I27: 1 | J27: 0 | K27: 1 | L27: 3 | M27: 0 | N27: Finland | O27: Hungary | S27: SpecialOne | T27: 4.5 | V27: 20Phoenix | W27: 5
B28: edheim | C28: Itzla | D28: 0 | E28: 1 | F28: 0 | G28: 3 | H28: 1 | I28: 0 | J28: 3 | K28: 2 | L28: 0 | M28: 2 | N28: Finland | O28: Hungary | S28: Itzla | T28: 4.5 | V28: Joemanji | W28: 5
B29: BeerBeer | C29: noraal | D29: 0 | E29: 1 | F29: 0 | G29: 2 | H29: 3 | I29: 2 | J29: 2 | K29: 1 | L29: 2 | M29: 2 | N29: Finland | O29: Hungary | S29: Joemanji | T29: 4.5 | V29: Corwin | W29: 5
B30: valkohukka | C30: Favi | D30: 1 | E30: 0 | F30: 3 | G30: 1 | H30: 2 | I30: 2 | J30: 1 | K30: 1 | L30: 3 | M30: 2 | N30: Finland | O30: Hungary | S30: Woete | T30: 4.5 | V30: noraal | W30: 5
B31: MacWitt | C31: cz | D31: 1 | E31: 0 | F31: 1 | G31: 0 | H31: 0 | I31: 1 | J31: 1 | K31: 3 | L31: 2 | M31: 2 | N31: Finland | O31: Hungary | S31: Corwin | T31: 4.5 | V31: Pellevin | W31: 5
B32: J-Ho | C32: swifty | D32: 0.5 | E32: 0.5 | F32: 2 | G32: 2 | H32: 2 | I32: 1 | J32: 0 | K32: 3 | L32: 2 | M32: 2 | N32: Finland | O32: Hungary | S32: Liam | T32: 4.5 | V32: GreatWhiteHope | W32: 4.5
B33: Harza | C33: Wolio | D33: 1 | E33: 0 | F33: 2 | G33: 1 | H33: 1 | I33: 3 | J33: 2 | K33: 1 | L33: 2 | M33: 0 | N33: Finland | O33: Hungary | S33: GreatWhiteHope | T33: 4 | V33: Arioso | W33: 4.5
B34: Joemanji | C34: mynock | D34: 0.5 | E34: 0.5 | F34: 1 | G34: 1 | H34: 3 | I34: 0 | J34: 2 | K34: 2 | L34: 2 | M34: 2 | N34: England | O34: Norway | S34: Malodoror | T34: 4 | V34: Mufflo | W34: 4.5
B35: Mubo | C35: GreatWhiteHope | D35: 0.5 | E35: 0.5 | F35: 0 | G35: 0 | H35: 1 | I35: 0 | J35: 2 | K35: 3 | L35: 1 | M35: 1 | N35: England | O35: Norway | S35: Gros Nain | T35: 4 | V35: Beppe | W35: 4.5
B36: Lycos | C36: zulu | D36: 0.5 | E36: 0.5 | F36: 1 | G36: 1 | H36: 3 | I36: 1 | J36: 1 | K36: 3 | L36: 3 | M36: 2 | N36: England | O36: Norway | S36: Bouzzy | T36: 4 | V36: Bouzzy | W36: 4.5
B37: PurpleGoo | C37: straume | D37: 0 | E37: 1 | F37: 0 | G37: 1 | H37: 2 | I37: 2 | J37: 1 | K37: 1 | L37: 3 | M37: 2 | N37: England | O37: Norway | S37: MadeofWelsh | T37: 4 | V37: edheim | W37: 4.5
B38: Geggster | C38: The_Ref | D38: 0.5 | E38: 0.5 | F38: 0 | G38: 0 | H38: 0 | I38: 1 | J38: 2 | K38: 2 | L38: 1 | M38: 1 | N38: England | O38: Norway | S38: Leonek | T38: 4 | V38: ratogre | W38: 4.5
B39: Wilzif | C39: Endalos | D39: 0.5 | E39: 0.5 | F39: 1 | G39: 1 | H39: 1 | I39: 0 | J39: 1 | K39: 1 | L39: 0 | M39: 3 | N39: England | O39: Norway | S39: Spartako | T39: 4 | V39: MadeofWelsh | W39: 4.5
B40: Podfrey | C40: FrankPedersen | D40: 1 | E40: 0 | F40: 3 | G40: 2 | H40: 1 | I40: 2 | J40: 0 | K40: 3 | L40: 2 | M40: 3 | N40: England | O40: Norway | S40: Mubo | T40: 4 | V40: Niebling | W40: 4.5
B41: JimJimany | C41: bothun | D41: 0 | E41: 1 | F41: 1 | G41: 3 | H41: 1 | I41: 3 | J41: 3 | K41: 2 | L41: 1 | M41: 2 | N41: England | O41: Norway | S41: 20Phoenix | T41: 4 | V41: straume | W41: 4.5
B42: MadeofWelsh | C42: Faccko | D42: 0.5 | E42: 0.5 | F42: 2 | G42: 2 | H42: 0 | I42: 3 | J42: 2 | K42: 3 | L42: 0 | M42: 1 | N42: Wales | O42: Viking | S42: Idroj | T42: 4 | V42: Woete | W42: 4.5
B43: 20Phoenix | C43: Mufflo | D43: 1 | E43: 0 | F43: 3 | G43: 0 | H43: 1 | I43: 0 | J43: 0 | K43: 3 | L43: 1 | M43: 2 | N43: Wales | O43: Viking | S43: Duckwing | T43: 4 | V43: Mubo | W43: 4.5
B44: Ploppy_McPloppy | C44: Corwin | D44: 0.5 | E44: 0.5 | F44: 1 | G44: 1 | H44: 0 | I44: 1 | J44: 2 | K44: 3 | L44: 1 | M44: 0 | N44: Wales | O44: Viking | S44: BeerBeer | T44: 4 | V44: DocMaxx | W44: 4.5
B45: Dionysian | C45: Duckwing | D45: 1 | E45: 0 | F45: 3 | G45: 2 | H45: 1 | I45: 2 | J45: 3 | K45: 1 | L45: 0 | M45: 2 | N45: Wales | O45: Viking | S45: Pellevin | T45: 4 | V45: valkohukka | W45: 4.5
B46: SFisher91 | C46: Bernuz | D46: 1 | E46: 0 | F46: 2 | G46: 0 | H46: 1 | I46: 2 | J46: 0 | K46: 1 | L46: 1 | M46: 2 | N46: Wales | O46: Viking | S46: Mewash | T46: 4 | V46: Kaltenland | W46: 4.5
B47: nonumber | C47: brocCooli | D47: 1 | E47: 0 | F47: 3 | G47: 2 | H47: 2 | I47: 1 | J47: 2 | K47: 2 | L47: 0 | M47: 3 | N47: Wales | O47: Viking | S47: noraal | T47: 4 | V47: Shawass | W47: 4.5
B48: andydavo | C48: Balder | D48: 1 | E48: 0 | F48: 1 | G48: 0 | H48: 1 | I48: 3 | J48: 2 | K48: 1 | L48: 2 | M48: 3 | N48: Wales | O48: Viking | S48: Melisqus | T48: 4 | V48: MacWitt | W48: 4.5
B49: Northernknight | C49: Purrelito | D49: 0.5 | E49: 0.5 | F49: 1 | G49: 1 | H49: 1 | I49: 0 | J49: 1 | K49: 1 | L49: 2 | M49: 3 | N49: Wales | O49: Viking | S49: Harti | T49: 4 | V49: Phoenix11 | W49: 4.5
B50: Arioso | C50: Verrinho | D50: 0 | E50: 1 | F50: 1 | G50: 3 | H50: 1 | I50: 2 | J50: 1 | K50: 1 | L50: 3 | M50: 3 | N50: Germany | O50: Italy | S50: Bernuz | T50: 4 | V50: zulu | W50: 4.5
B51: DocMaxx | C51: Beppe | D51: 1 | E51: 0 | F51: 3 | G51: 2 | H51: 3 | I51: 1 | J51: 1 | K51: 0 | L51: 1 | M51: 2 | N51: Germany | O51: Italy | S51: zulu | T51: 4 | V51: Candlejack | W51: 4.5
B52: Muadib | C52: Liam | D52: 0 | E52: 1 | F52: 1 | G52: 3 | H52: 3 | I52: 3 | J52: 1 | K52: 2 | L52: 0 | M52: 2 | N52: Germany | O52: Italy | S52: Justicium | T52: 4 | V52: Justicium | W52: 4.5
B53: Candlejack | C53: Spartako | D53: 1 | E53: 0 | F53: 2 | G53: 0 | H53: 2 | I53: 0 | J53: 0 | K53: 1 | L53: 2 | M53: 1 | N53: Germany | O53: Italy | S53: Phoenix11 | T53: 4 | V53: Simon_ACP | W53: 4.5
B54: Prince | C54: Matte8 | D54: 0.5 | E54: 0.5 | F54: 1 | G54: 1 | H54: 1 | I54: 3 | J54: 2 | K54: 0 | L54: 1 | M54: 1 | N54: Germany | O54: Italy | S54: Simon_ACP | T54: 4 | V54: Idroj | W54: 4
B55: Jonny_Kanone | C55: Kaltenland | D55: 0 | E55: 1 | F55: 1 | G55: 2 | H55: 3 | I55: 2 | J55: 2 | K55: 1 | L55: 2 | M55: 3 | N55: Germany | O55: Italy | S55: straume | T55: 3.5 | V55: Leonek | W55: 4
B56: Gaunab | C56: Dirold | D56: 1 | E56: 0 | F56: 2 | G56: 1 | H56: 2 | I56: 0 | J56: 2 | K56: 3 | L56: 3 | M56: 1 | N56: Germany | O56: Italy | S56: Niebling | T56: 3.5 | V56: Reszka | W56: 4
B57: RoterSternHochdahl | C57: Farina | D57: 1 | E57: 0 | F57: 2 | G57: 1 | H57: 1 | I57: 2 | J57: 0 | K57: 2 | L57: 2 | M57: 2 | N57: Germany | O57: Italy | S57: Reszka | T57: 3.5 | V57: kfoged | W57: 4
B58: Tactel | C58: DonShula | D58: 0.5 | E58: 0.5 | F58: 2 | G58: 2 | H58: 2 | I58: 1 | J58: 2 | K58: 0 | L58: 1 | M58: 2 | N58: Spain | O58: Scotland | S58: Matt le fou | T58: 3.5 | V58: Dark Duke | W58: 4
B59: Idroj | C59: Garrick | D59: 0 | E59: 1 | F59: 1 | G59: 3 | H59: 1 | I59: 1 | J59: 3 | K59: 2 | L59: 2 | M59: 2 | N59: Spain | O59: Scotland | S59: Matte8 | T59: 3.5 | V59: Spartako | W59: 4
B60: Dark Duke | C60: sann0638 | D60: 0.5 | E60: 0.5 | F60: 2 | G60: 2 | H60: 2 | I60: 2 | J60: 3 | K60: 1 | L60: 3 | M60: 2 | N60: Spain | O60: Scotland | S60: brocCooli | T60: 3.5 | V60: BeerBeer | W60: 4
B61: Obeliz | C61: Loki | D61: 0.5 | E61: 0.5 | F61: 2 | G61: 2 | H61: 0 | I61: 1 | J61: 1 | K61: 2 | L61: 2 | M61: 2 | N61: Spain | O61: Scotland | S61: DocMaxx | T61: 3.5 | V61: Matte8 | W61: 4
B62: Barry | C62: HumptyTrump | D62: 1 | E62: 0 | F62: 3 | G62: 1 | H62: 2 | I62: 1 | J62: 2 | K62: 1 | L62: 2 | M62: 0 | N62: Spain | O62: Scotland | S62: Muadib | T62: 3.5 | V62: The_Ref | W62: 4
B63: Malasnoticias | C63: Purdindas | D63: 0.5 | E63: 0.5 | F63: 2 | G63: 2 | H63: 2 | I63: 0 | J63: 2 | K63: 1 | L63: 0 | M63: 1 | N63: Spain | O63: Scotland | S63: valkohukka | T63: 3.5 | V63: Melisqus | W63: 4
B64: Joanet | C64: Valen | D64: 0.5 | E64: 0.5 | F64: 3 | G64: 3 | H64: 1 | I64: 2 | J64: 2 | K64: 2 | L64: 2 | M64: 2 | N64: Spain | O64: Scotland | S64: The_Ref | T64: 3.5 | V64: Strider84 | W64: 4
B65: Duke_Luthor_Von_Hawkfire | C65: JamesEs | D65: 0.5 | E65: 0.5 | F65: 1 | G65: 1 | H65: 2 | I65: 1 | J65: 2 | K65: 3 | L65: 0 | M65: 1 | N65: Spain | O65: Scotland | S65: kfoged | T65: 3.5 | V65: Macabeo | W65: 4
S66: Macabeo | T66: 3.5 | V66: Mewash | W66: 4
S67: MacWitt | T67: 3.5 | V67: Duckwing | W67: 4
S68: Kaltenland | T68: 3.5 | V68: Harti | W68: 4
S69: Dark Duke | T69: 3.5 | V69: gninocker | W69: 4
S70: Shawass | T70: 3.5 | V70: Ploppy_McPloppy | W70: 4
S71: MissSweden | T71: 3.5 | V71: Bernuz | W71: 4
S72: Endalos | T72: 3.5 | V72: Endalos | W72: 4
S73: Dirold | T73: 3.5 | V73: Dionysian | W73: 4
S74: Loki | T74: 3.5 | V74: Jaqra | W74: 4
S75: Ploppy_McPloppy | T75: 3.5 | V75: Loki | W75: 4
S76: Candlejack | T76: 3.5 | V76: Araznaroth | W76: 4
S77: Balder | T77: 3.5 | V77: bothun | W77: 4
S78: Lycos | T78: 3 | V78: Lycos | W78: 3.5
S79: Dekra1979 | T79: 3 | V79: Barry | W79: 3.5
S80: Madmatt13 | T80: 3 | V80: Muadib | W80: 3.5
S81: Strider84 | T81: 3 | V81: Matt le fou | W81: 3.5
S82: FrankPedersen | T82: 3 | V82: Madmatt13 | W82: 3.5
S83: gninocker | T83: 3 | V83: brocCooli | W83: 3.5
S84: Jaqra | T84: 3 | V84: MissSweden | W84: 3.5
S85: Dionysian | T85: 3 | V85: Podfrey | W85: 3.5
S86: PurpleGoo | T86: 3 | V86: Gaunab | W86: 3.5
S87: Obeliz | T87: 3 | V87: Geggster | W87: 3.5
S88: Prince | T88: 3 | V88: Obeliz | W88: 3.5
S89: Favi | T89: 3 | V89: Dirold | W89: 3.5
S90: Geggster | T90: 3 | V90: SFisher91 | W90: 3.5
S91: JJ | T91: 3 | V91: Prince | W91: 3.5
S92: Araznaroth | T92: 3 | V92: nonumber | W92: 3.5
S93: Slimaq | T93: 3 | V93: Wilzif | W93: 3.5
S94: Wilzif | T94: 3 | V94: Balder | W94: 3.5
S95: bothun | T95: 3 | V95: Jokaero | W95: 3.5
S96: Barry | T96: 2.5 | V96: Dekra1979 | W96: 3
S97: cz | T97: 2.5 | V97: Warrior1980 | W97: 3
S98: Warrior1980 | T98: 2.5 | V98: Malasnoticias | W98: 3
S99: Malasnoticias | T99: 2.5 | V99: PurpleGoo | W99: 3
S100: HumptyTrump | T100: 2.5 | V100: andydavo | W100: 3
S101: swifty | T101: 2.5 | V101: FrankPedersen | W101: 3
S102: Jonny_Kanone | T102: 2.5 | V102: Harza | W102: 3
S103: Podfrey | T103: 2.5 | V103: Favi | W103: 3
S104: SFisher91 | T104: 2.5 | V104: swifty | W104: 3
S105: Gaunab | T105: 2.5 | V105: JJ | W105: 3
S106: Joanet | T106: 2.5 | V106: Slimaq | W106: 3
S107: Jokaero | T107: 2.5 | V107: Purrelito | W107: 3
S108: Purrelito | T108: 2.5 | V108: Joanet | W108: 3
S109: Wolio | T109: 2.5 | V109: RoterSternHochdahl | W109: 3
S110: JimJimany | T110: 2.5 | V110: Tripleskull | W110: 3
S111: nonumber | T111: 2.5 | V111: J-Ho | W111: 3
S112: Farina | T112: 2.5 | V112: JohnnyD | W112: 3
S113: J-Ho | T113: 2.5 | V113: cz | W113: 2.5
S114: Tripleskull | T114: 2.5 | V114: Tank | W114: 2.5
S115: Tank | T115: 2 | V115: Purdindas | W115: 2.5
S116: Harza | T116: 2 | V116: Jonny_Kanone | W116: 2.5
S117: Purdindas | T117: 2 | V117: HumptyTrump | W117: 2.5
S118: andydavo | T118: 2 | V118: Juniooor7 | W118: 2.5
S119: Juniooor7 | T119: 2 | V119: JimJimany | W119: 2.5
S120: RoterSternHochdahl | T120: 2 | V120: Wolio | W120: 2.5
S121: BudWiser | T121: 2 | V121: Farina | W121: 2.5
S122: JohnnyD | T122: 2 | V122: Skoberget | W122: 2
S123: Pidpad | T123: 1.5 | V123: BudWiser | W123: 2
S124: Skoberget | T124: 1.5 | V124: Valen | W124: 2
S125: Valen | T125: 1.5 | V125: Driesfield | W125: 2
S126: Driesfield | T126: 1.5 | V126: Pidpad | W126: 1.5
S127: JamesEs | T127: 1 | V127: JamesEs | W127: 1.5
S128: Northernknight | T128: 1 | V128: Northernknight | W128: 1.5
S129: Duke_Luthor_Von_Hawkfire | T129: 0.5 | V129: Duke_Luthor_Von_Hawkfire | W129: 1

Sheet Round9

Sheet NAF
A1: <?xml version="1.0" encoding="UTF-8"?>
A2: <nafReport xmlns:blo="http://www.bloodbowl.net">
A3: <organiser>Mike</organiser>
A4: <coaches>
A5: <coach>
A6: <name>Alex</name>
A7: <number>16761</number>
A8: <team>Skaven</team>
A9: </coach>
A10: <coach>
A11: <name>Mike</name>
A12: <number>10468</number>
A13: <team>Elves</team>
A14: </coach>
A15: <coach>
A16: <name>Linus</name>
A17: <number>15676</number>
A18: <team>Dwarves</team>
A19: </coach>
A20: <coach>
A21: <name>Player4</name>
A22: <number>9106</number>
A23: <team>Wood Elves</team>
A24: </coach>
A25: <coach>
A26: <name>Player5</name>
A27: <number>12789</number>
A28: <team>Dark Elves</team>
A29: </coach>
A30: <coach>
A31: <name>Player6</name>
A32: <number>18136</number>
A33: <team>Wood Elves</team>
A34: </coach>
A35: <coach>
A36: <name>Player7</name>
A37: <number>9672</number>
A38: <team>Wood Elves</team>
A39: </coach>
A40: <coach>
A41: <name>Player8</name>
A42: <number>4118</number>
A43: <team>Chaos Dwarves</team>
A44: </coach>
A45: <coach>
A46: <name>Player9</name>
A47: <number>14129</number>
A48: <team>Nurgle's Rotters</team>
A49: </coach>
A50: <coach>
A51: <name>Player10</name>
A52: <number>1739</number>
A53: <team>Lizardmen</team>
A54: </coach>
A55: <coach>
A56: <name>Player11</name>
A57: <number>19602</number>
A58: <team>Slann</team>
A59: </coach>
A60: <coach>
A61: <name>Player12</name>
A62: <number>15064</number>
A63: <team>Wood Elves</team>
A64: </coach>
A65: <coach>
A66: <name>Player13</name>
A67: <number>6092</number>
A68: <team>Amazons</team>
A69: </coach>
A70: <coach>
A71: <name>Player14</name>
A72: <number>9080</number>
A73: <team>Dwarves</team>
A74: </coach>
A75: <coach>
A76: <name>Player15</name>
A77: <number>7960</number>
A78: <team>Undead</team>
A79: </coach>
A80: <coach>
A81: <name>Player16</name>
A82: <number>15062</number>
A83: <team>Goblins</team>
A84: </coach>
A85: <coach>
A86: <name>Player17</name>
A87: <number>7106</number>
A88: <team>Wood Elves</team>
A89: </coach>
A90: <coach>
A91: <name>Player18</name>
A92: <number>7371</number>
A93: <team>Khemri</team>
A94: </coach>
A95: </coaches>
A96: <game>
A97: <timestamp>2016-09-18 01:00</timestamp>
A98: <playerRecord>
A99: <name>Player7</name>
A100: <number>9672</number>
A101: <teamRating>100</teamRating>
A102: <touchDowns>12</touchDowns>
A103: <badlyHurt>2</badlyHurt>
A104: </playerRecord>
A105: <playerRecord>
A106: <name>Player9</name>
A107: <number>14129</number>
A108: <teamRating>100</teamRating>
A109: <touchDowns>7</touchDowns>
A110: <badlyHurt>1</badlyHurt>
A111: </playerRecord>
A112: </game>
A113: <game>
A114: <timestamp>2016-09-18 01:00</timestamp>
A115: <playerRecord>
A116: <name>Player6</name>
A117: <number>18136</number>
A118: <teamRating>100</teamRating>
A119: <touchDowns>12</touchDowns>
A120: <badlyHurt>2</badlyHurt>
A121: </playerRecord>
A122: <playerRecord>
A123: <name>Player11</name>
A124: <number>19602</number>
A125: <teamRating>100</teamRating>
A126: <touchDowns>12</touchDowns>
A127: <badlyHurt>2</badlyHurt>
A128: </playerRecord>
A129: </game>
A130: <game>
A131: <timestamp>2016-09-18 01:00</timestamp>
A132: <playerRecord>
A133: <name>Player17</name>
A134: <number>7106</number>
A135: <teamRating>100</teamRating>
A136: <touchDowns>10</touchDowns>
A137: <badlyHurt>2</badlyHurt>
A138: </playerRecord>
A139: <playerRecord>
A140: <name>Player13</name>
A141: <number>6092</number>
A142: <teamRating>100</teamRating>
A143: <touchDowns>8</touchDowns>
A144: <badlyHurt>2</badlyHurt>
A145: </playerRecord>
A146: </game>
A147: <game>
A148: <timestamp>2016-09-18 01:00</timestamp>
A149: <playerRecord>
A150: <name>Player8</name>
A151: <number>4118</number>
A152: <teamRating>100</teamRating>
A153: <touchDowns>3</touchDowns>
A154: <badlyHurt>1</badlyHurt>
A155: </playerRecord>
A156: <playerRecord>
A157: <name>Linus</name>
A158: <number>15676</number>
A159: <teamRating>100</teamRating>
A160: <touchDowns>16</touchDowns>
A161: <badlyHurt>3</badlyHurt>
A162: </playerRecord>
A163: </game>
A164: <game>
A165: <timestamp>2016-09-18 01:00</timestamp>
A166: <playerRecord>
A167: <name>Player14</name>
A168: <number>9080</number>
A169: <teamRating>100</teamRating>
A170: <touchDowns>9</touchDowns>
A171: <badlyHurt>1</badlyHurt>
A172: </playerRecord>
A173: <playerRecord>
A174: <name>Player10</name>
A175: <number>1739</number>
A176: <teamRating>100</teamRating>
A177: <touchDowns>11</touchDowns>
A178: <badlyHurt>2</badlyHurt>
A179: </playerRecord>
A180: </game>
A181: <game>
A182: <timestamp>2016-09-18 01:00</timestamp>
A183: <playerRecord>
A184: <name>Mike</name>
A185: <number>10468</number>
A186: <teamRating>100</teamRating>
A187: <touchDowns>4</touchDowns>
A188: <badlyHurt>0</badlyHurt>
A189: </playerRecord>
A190: <playerRecord>
A191: <name>Player5</name>
A192: <number>12789</number>
A193: <teamRating>100</teamRating>
A194: <touchDowns>17</touchDowns>
A195: <badlyHurt>2</badlyHurt>
A196: </playerRecord>
A197: </game>
A198: <game>
A199: <timestamp>2016-09-18 01:00</timestamp>
A200: <playerRecord>
... 661 more rows

Sheet Working
Z1: Latest Rd: | AA1: 8
Z2: Players: | AA2: =COUNTA(Players!B:B)-1 -> 128 | AE2: Max Score | AF2: =Setup!B19*TeamSize*Setup!B19+Setup!B19 -> 9
Z3: Display | AA3: 14 | AB3: Columns
Z4: Enter | AA4: 7 | AB4: Columns
Z5: Max random | AA5: 3
Z6: Number of Groups | AA6: =COUNTA(Players!M:M)-1 -> 16 | AE6: Group
AE7: Individual
Z8: Group display | AA8: 18 | AB8: columns
AC10: Cumulative
AA11: Amazons | AG11: Entry Data
AA12: Chaos | AE12: Initial Display Columns | AG12: Player
AA13: Chaos Dwarves | AE13: Player | AG13: Points
AA14: Chaos Pact | AE14: Points | AG14: TD
AA15: Dark Elves | AE15: TD For | AG15: Cas
AA16: Dwarves | AE16: Cas For | AG16: =Setup!E3 -> Bonus1 | AH16: Bonus1 Name
AA17: Elves | AE17: =Working!AG16 -> Bonus1 | AG17: =Setup!E4 -> Bonus2 | AH17: Bonus2 Name
AA18: Goblins | AE18: =Working!AG17 -> Bonus2 | AG18: Group
AA19: Halflings | AE19: TD Against
AA20: High Elves | AE20: Cas Against
AA21: Humans | AE21: TD Net
AA22: Khemri | AE22: Cas Net
AA23: Lizardmen | AE23: Wins
AA24: Necromantic | AE24: Draws
AA25: Norse | AE25: Losses
AA26: Nurgle's Rotters | AE26: Opp Score
AA27: Ogres | AE27: Group
AA28: Orc
AA29: Skaven
AA30: Slann
AA31: Undead
AA32: Underworld
AA33: Vampires
AA34: Wood Elves

Sheet ChangeLog
B1: This spreadsheet is based on one by Kaper on an Excel forum: http://www.excelforum.com/excel-programming-vba-macros/1105569-swiss-pairing-algorithm-in-excel-to-organize-a-chess-tournament.html
B2: Massive thanks due to him!
B3: The original was used for Chess, and it has been adapted to work for Blood Bowl by sann0638 (Mike Davies)
A5: Version | B5: Summary | C5: Date | D5: Notes
A6: 1.0 | B6: Multi-sheet version of the chess | C6: 2016-06-19
A7: 1.1 | B7: Remove Black and White stuff | C7: 2016-06-19
A8: 1.2 | B8: Change to TDs to generate points | C8: 2016-06-19
B9: Got the Swiss working properly | C9: 2016-06-19 | D9: Published.
A10: 1.3 | B10: More help information. | C10: 2016-06-20
B11: Added Table | C11: 2016-06-20
B12: Added Opponent Score | C12: 2016-06-20
A13: 2.1 | B13: Big overhaul to where info stored | C13: 2016-06-21
A14: 2.2 | B14: Putting in the Score formula | C14: 2016-06-21 | D14: Published.
A15: 3.1 | B15: Added all tiebreaker columns | C15: 2016-06-22
B16: Realised opponent score was wrong, fixed it. | C16: 2016-06-22
A17: 3.2 | B17: Fixed problem with sorting the table. | C17: 2016-06-23 | D17: Published.
A18: 3.3 | B18: Tiebreakers implemented | C18: 2016-06-24
B19: NAF Upload file | C19: 2016-06-24 | D19: Published.
A20: 4.1 | B20: Group results and matrix added | C20: 2016-06-25
B21: Group results fully implemented | C21: 2016-06-26
A22: 4.2 | B22: Fixed net casualties | C22: 2016-06-28
A23: 4.3 | B23: Tiebreakers corrected, yet again! | C23: 2016-09-17 | D23: Published.
A24: 4.4 | B24: Group results corrected, groups added to table | C24: 2016-09-17
B25: Removed need for Groups to be in there, corrected number of players. | C25: 2016-09-18 | D25: Published.
A26: 5.0 | B26: Mostly working Group Swiss | C26: 2016-09-21
A27: 5.1 | B27: Working Group Swiss. | C27: 2016-09-21 | D27: Published.
A28: 5.2 | B28: Fixed problem with more than 100 coaches. | C28: 2016-09-25
B29: Tidied up tabs. | C29: 2016-09-25 | D29: Published.
